Workbook

Sheet product composition
C1: NOTES
H4: Estimated Vapor Pressure (Pa) | I4: Estimated Water Solubility (mg/L) | J4: STP Removal Efficiency (%) | K4: Emitted to Air through STP (%)
G5: ESTIMATED:
G7: 1 | H7: 2 | I7: 3 | J7: 4 | K7: 5 | L7: 6 | M7: 7 | N7: 8 | O7: 9 | P7: 10 | Q7: 11 | R7: 12 | S7: 13 | T7: 14 | U7: 15 | V7: 16
G8: n-P | H8: i-P | I8: MonoN | J8: Di-N | K8: n-Olefins | L8: i-Olefins | M8: Poly-N | N8: AlS | O8: MoAr | P8: NMAr | Q8: DiAr | R8: NDiAr | S8: TriAr | T8: NTriAr | U8: PolyAr | V8: ArS
D9: Block | E9: C#i (>=) | F9: C#f (<) | G9: (weight %) | H9: (weight %) | I9: (weight %) | J9: (weight %) | K9: (weight %) | L9: (weight %) | M9: (weight %) | N9: (weight %) | O9: (weight %) | P9: (weight %) | Q9: (weight %) | R9: (weight %) | S9: (weight %) | T9: (weight %) | U9: (weight %) | V9: (weight %)
D10: 1 | E10: 4 | F10: 5
D11: 2 | E11: 5 | F11: 6
D12: 3 | E12: 6 | F12: 7
D13: 4 | E13: 7 | F13: 8
D14: 5 | E14: 8 | F14: 9
D15: 6 | E15: 9 | F15: 10
D16: 7 | E16: 10 | F16: 11
D17: 8 | E17: 11 | F17: 12
D18: 9 | E18: 12 | F18: 13
D19: 10 | E19: 13 | F19: 14
D20: 11 | E20: 14 | F20: 15
D21: 12 | E21: 15 | F21: 16
D22: 13 | E22: 16 | F22: 17
D23: 14 | E23: 17 | F23: 18
D24: 15 | E24: 18 | F24: 19
D25: 16 | E25: 19 | F25: 20
D26: 17 | E26: 20 | F26: 21
D27: 18 | E27: 21 | F27: 22
D28: 19 | E28: 22 | F28: 23
D29: 20 | E29: 23 | F29: 24
D30: 21 | E30: 24 | F30: 25
D31: 22 | E31: 25 | F31: 26
D32: 23 | E32: 26 | F32: 27
D33: 24 | E33: 27 | F33: 28
D34: 25 | E34: 28 | F34: 29
D35: 26 | E35: 29 | F35: 30
D36: 27 | E36: 30 | F36: >30
F37: Sum: | G37: =SUM(G10:V36) -> 0

Sheet product lifecycle information
G1: NOTES
K3: Max | L3: Local Assumed Operating Conditions | Q3: Efficiency of Air
F4: EU | G4: Assumed | H4: Emission Factors (see 'SPERCs') | K4: Local Site | L4: Duration of | M4: Wastewater | N4: Dilution | O4: Dilution | Q4: Removal controls
F5: Tonnage | G5: Fraction | H5: Air EF | I5: Water EF | J5: Soil EF | K5: Tonnage | L5: Site Operation | M5: Flow | N5: Factor | O5: Factor | P5: Sludge | Q5: for reference only | R5: Additional comments
A6: Entry | B6: Lifestage | C6: Petrorisk ID # | D6: GES # | F6: T/yr | G6: Regional | H6: % | I6: % | J6: % | K6: T/yr | L6: days | M6: m3/d | N6: Rivers | O6: Marine | P6: Application | Q6: does not affect calc | R6: Source of Emission Factors
A7: 1 | B7: Manufacture of substances: Industrial (SU8, SU9) | D7: =VLOOKUP(C7,SPERCs!$Q$4:$R$46,2,FALSE) -> 
A8: 2
A9: 3
A10: 4
A11: 5
A12: 6
A13: 7
A14: 8
A15: 9
A16: 10
A17: 11
A18: 12
A19: 13
A20: 14
A21: 15
A22: 16
A23: 17
A24: 18
A25: 19
A26: 20
A27: 21
A28: 22
A29: 23
A30: 24
A31: 25
A32: 26
A33: 27
A34: 28
A35: 29
A36: 30
A37: 31
A38: 32
A39: 33
A40: 34
A41: 35
A42: 36
A43: 37
A44: 38
A45: 39
A46: 40
A47: 41
A48: 42
A49: 43
A50: 44
A51: 45
A52: 46
E54: Apply Sediment Assessment Factor of 10 for chemicals with logKow>5?
F55: N
C58: Assumed TOC (%)
C59: Sediment | D59: 5
C60: Soil | D60: 2
C61: fraction solids | D61: 0.2

Sheet Site-Specific Production
C4: Generic exposure scenario for production
C5: Max | D5: Emission Factors | G5: Local Default Operating Conditions | M5: PEC | N5: PEC | O5: PEC | P5: PEC | Q5: PEC | R5: PEC | S5: PEC | T5: PEC | U5: PEC | V5: PEC | W5: PEC | X5: PEC | Y5: PEC | Z5: PEC | AA5: PEC | AB5: PEC | AC5: PEC | AD5: PEC | AE5: PEC | AF5: RCR | AG5: RCR | AH5: RCR | AI5: RCR | AJ5: RCR | AK5: RCR | AL5: RCR | AM5: RCR | AN5: RDR | AO5: RCR | AP5: HI | AQ5: HI | AR5: Total HI | AS5: HI - RCR | AT5: HI - RCR | AU5: HI - RCR
C6: Local Site Tonnage | D6: Air EF | E6: Water EF | F6: Soil EF | G6: Duration of Site Operation | H6: Wastewater flow | I6: Dilution Factor | J6: Dilution Factor | K6: Sludge | L6: Default removal efficiency | M6: Effluent | N6: Fresh Water | O6: Fresh Water Sediment | P6: Marine Water | Q6: Marine Sediment | R6: Natural Soil | S6: Air | T6: Sludge | U6: Ground water | V6: Fish | W6: Leaf | X6: Root | Y6: Meat | Z6: Milk | AA6: Drinking Water | AB6: fish.oral | AC6: predator.oral | AD6: worm.oral | AE6: Top Predator.oral | AF6: Effluent | AG6: Fresh Water | AH6: Fresh Water Sediment | AI6: Marine Water | AJ6: Marine Sediment | AK6: Natural Soil | AL6: fish.oral | AM6: predator.oral | AN6: worm.oral | AO6: Top Predator.oral | AP6: Inhalation | AQ6: Indirect Dose | AR6: Total | AS6: Inhalation | AT6: Indirect Dose | AU6: Total
C7: T/yr | D7: % | E7: % | F7: % | G7: days | H7: m3/d | I7: River | J7: Marine | K7: Application | L7: (%) | M7: mg/L | N7: mg/L | O7: mg/kgw | P7: mg/L | Q7: mg/kgw | R7: mg/kgw | S7: mg/m3 | T7: mg/kgw | U7: mg/L | V7: mg/kgw | W7: mg/kgw | X7: mg/kgw | Y7: mg/kgw | Z7: mg/kgw | AA7: mg/L | AB7: mg/kgw | AC7: mg/kgw | AD7: mg/kgw | AE7: mg/kgw | AP7: ug/kg/d | AQ7: ug/kg/d | AR7: ug/kg/d
C8: ='product lifecycle information'!$K$7 -> 0 | D8: ='product lifecycle information'!$H$7 -> 0 | E8: ='product lifecycle information'!$I$7 -> 0 | F8: ='product lifecycle information'!$J$7 -> 0 | G8: ='product lifecycle information'!$L$7 -> 0 | H8: ='product lifecycle information'!$M$7 -> 0 | I8: ='product lifecycle information'!$N$7 -> 0 | J8: ='product lifecycle information'!$O$7 -> 0 | K8: ='product lifecycle information'!$P$7 -> 0 | L8: ='product composition'!$J$5 -> 0 | M8: =LocalCSR!$C$24 -> 0 | N8: =LocalCSR!$C$30 -> 0 | O8: =LocalCSR!$C$35 -> 0 | P8: =LocalCSR!$C$32 -> 0 | Q8: =LocalCSR!$C$37 -> 0 | R8: =LocalCSR!$C$40 -> 0 | S8: =LocalCSR!$C$27 -> 0 | T8: =LocalCSR!$C$25 -> 0 | U8: =LocalCSR!$C$42 -> 0 | V8: =LocalCSR!$C$50 -> 0 | W8: =LocalCSR!$C$58 -> 0 | X8: =LocalCSR!$C$60 -> 0 | Y8: =LocalCSR!$C$54 -> 0 | Z8: =LocalCSR!$C$56 -> 0 | AA8: =LocalCSR!$C$52 -> 0 | AB8: =LocalCSR!$C$45 -> 0 | AC8: =LocalCSR!$C$46 -> 0 | AD8: =LocalCSR!$C$47 -> 0 | AE8: =LocalCSR!$C$48 -> 0 | AF8: =LocalCSR!$C$73 -> 0 | AG8: =LocalCSR!$C$74 -> 0 | AH8: =LocalCSR!$C$76 -> 0 | AI8: =LocalCSR!$C$75 -> 0 | AJ8: =LocalCSR!$C$77 -> 0 | AK8: =LocalCSR!$C$80 -> 0 | AL8: =LocalCSR!$C$78 -> 0 | AM8: =LocalCSR!$C$79 -> 0 | AN8: =LocalCSR!$C$81 -> 0 | AO8: =LocalCSR!$C$82 -> 0 | AP8: =LocalCSR!$C$63 -> 0 | AQ8: =LocalCSR!$C$64 -> 0 | AR8: =AQ8+AP8 -> 0 | AS8: =LocalCSR!$C$84 -> 0 | AT8: =LocalCSR!$C$85 -> 0 | AU8: =LocalCSR!$C$86 -> 0
C13: Scaled Local Site-Specific Refinery Assessments | AF13: NOTE
M14: PEC | N14: PEC | O14: PEC | P14: PEC | Q14: PEC | R14: PEC | S14: PEC | T14: PEC | U14: PEC | V14: PEC | W14: PEC | X14: PEC | Y14: PEC | Z14: PEC | AA14: PEC | AB14: PEC | AC14: PEC | AD14: PEC | AE14: PEC | AF14: RCR | AG14: RCR | AH14: RCR | AI14: RCR | AJ14: RCR | AK14: RCR | AL14: RCR | AM14: RCR | AN14: RCR | AO14: RCR | AP14: HI | AQ14: HI | AR14: Total HI | AS14: HI - RCR | AT14: HI - RCR | AU14: HI - RCR
C15: refinery code | D15: SubstanceProduction | E15: Feedstock throughput | F15: WWTP flow | G15: TPH in effluent | H15: Receiving water type. Specify 'Riverine' or 'Marine' only. | I15: Capped Dilution factor | J15: Reported Dilution factor | K15: Final Wastewater Treatment On-Site ? | L15: Required TPH removal | M15: Effluent | N15: Fresh Water | O15: Fresh Water Sediment | P15: Marine Water | Q15: Marine Water Sediment | R15: Natural Soil | S15: Air | T15: Sludge | U15: Groundwater | V15: Fish | W15: Leaf | X15: Root | Y15: Meat | Z15: Milk | AA15: Drinking water | AB15: fish.oral | AC15: predator.oral | AD15: worm.oral | AE15: Top Predator.oral | AF15: Effluent | AG15: Fresh Water | AH15: Fresh Water Sediment | AI15: Marine Water | AJ15: Marine Sediment | AK15: Natural Soil | AL15: fish.oral | AM15: predator.oral | AN15: worm.oral | AO15: Top Predator.oral | AP15: Inhalation | AQ15: Indirect Dose | AR15: Total | AS15: Inhalation | AT15: Indirect Dose | AU15: Total
D16: T/yr | E16: T/yr | F16: m3/d | G16: mg/L | K16: Y/N | L16: (%) | M16: mg/L | N16: mg/L | O16: mg/kgw | P16: mg/L | Q16: mg/kgw | R16: mg/kgw | S16: mg/m3 | T16: mg/kgw | U16: mg/kgw | V16: mg/kgw | W16: mg/kgw | X16: mg/kgw | Y16: mg/kgw | Z16: mg/kgw | AA16: mg/L | AB16: mg/kgw | AC16: mg/kgw | AD16: mg/kgw | AE16: mg/kgw | AP16: ug/kg/d | AQ16: ug/kg/d | AR16: ug/kg/d
L17: =IF(D17<0.0000000001,"",IF(MAX(AF17:AJ17,AL17:AM17,AT17)>MAX(AK17,AO17,AS17),IF(MAX(AF17:AJ17,AL17:AM17,AT17)<1,"",(100-100*(M17/MAX(AF17:AJ17,AL17:AM17,AT17)/M17))),"")) ->  | M17: =IF(D17="","",G17*($D17/$E17)) ->  | N17: =IF($H17="Riverine",IF(ISBLANK(N$8),"",N$8*($G17/$M$8))* ($D17/$E17) * ($I$8/$I17),"") ->  | O17: =IF($H17="Riverine",IF(ISBLANK(O$8),"",O$8*($G17/$M$8)) * ($D17/$E17) * ($I$8/$I17),"") ->  | P17: =IF($H17="Marine",IF(ISBLANK(P$8),"",P$8*($G17/$M$8))* ($D17/$E17) * ($J$8/$I17),"") ->  | R17: =IF(OR(ISBLANK($D17),ISBLANK(R$8)),"",R$8*$D17/$C$8) ->  | S17: =IF(OR(ISBLANK($D17),ISBLANK(S$8)),"",S$8*$D17/$C$8) ->  | AF17: =IF(UPPER(K17)="N",IF(ISBLANK(AF$8),"",AF$8 * (M17/M$8)),"") ->  | AG17: =IF($H17="Riverine",IF(ISBLANK(AG$8),"",AG$8*(N17/N$8)),"") ->  | AH17: =IF($H17="Riverine",IF(ISBLANK(AH$8),"",AH$8*(O17/O$8)),"") ->  | AI17: =IF($H17="Marine",IF(ISBLANK(AI$8),"",AI$8*(P17/P$8)),"") ->  | AJ17: =IF($H17="Marine",IF(ISBLANK(AJ$8),"",AJ$8*(Q17/Q$8)),"") ->  | AK17: =IF(OR(ISBLANK($D17),ISBLANK(AK$8)),"",AK$8*$D17/$C$8) -> 
L18: =IF(D18<0.0000000001,"",IF(MAX(AF18:AJ18,AL18:AM18,AT18)>MAX(AK18,AO18,AS18),IF(MAX(AF18:AJ18,AL18:AM18,AT18)<1,"",(100-100*(M18/MAX(AF18:AJ18,AL18:AM18,AT18)/M18))),"")) ->  | R18: =IF(OR(ISBLANK($D18),ISBLANK(R$8)),"",R$8*$D18/$C$8) ->  | AF18: =IF(UPPER(K18)="N",IF(ISBLANK(AF$8),"",AF$8 * (M18/M$8)),"") -> 
AF20: =IF(UPPER(K20)="N",IF(ISBLANK(AF$8),"",AF$8 * (M20/M$8)),"") ->  | AG20: =IF($H20="Riverine",IF(ISBLANK(AG$8),"",AG$8*(N20/N$8)),"") ->  | AH20: =IF($H20="Riverine",IF(ISBLANK(AH$8),"",AH$8*(O20/O$8)),"") ->  | AI20: =IF($H20="Marine",IF(ISBLANK(AI$8),"",AI$8*(P20/P$8)),"") ->  | AJ20: =IF($H20="Marine",IF(ISBLANK(AJ$8),"",AJ$8*(Q20/Q$8)),"") -> 
AK28: =IF(OR(ISBLANK($D28),ISBLANK(AK$8)),"",AK$8*$D28/$C$8) ->  | AS28: =IF(OR(ISBLANK($D28),ISBLANK(AS$8)),"",AS$8*$D28/$C$8) -> 
M29: =IF(D29="","",G29*($D29/$E29)) -> 
M30: =IF(D30="","",G30*($D30/$E30)) -> 
R34: =IF(OR(ISBLANK($D34),ISBLANK(R$8)),"",R$8*$D34/$C$8) -> 
P36: =IF($H36="Marine",IF(ISBLANK(P$8),"",P$8*($G36/$M$8))* ($D36/$E36) * ($J$8/$I36),"") -> 
AM41: =IF(OR(ISBLANK($D41),ISBLANK(AM$8)),"",AM$8*$D41/$C$8) -> 
N48: =IF($H48="Riverine",IF(ISBLANK(N$8),"",N$8*($G48/$M$8))* ($D48/$E48) * ($I$8/$I48),"") ->  | O48: =IF($H48="Riverine",IF(ISBLANK(O$8),"",O$8*($G48/$M$8)) * ($D48/$E48) * ($I$8/$I48),"") ->  | AG48: =IF($H48="Riverine",IF(ISBLANK(AG$8),"",AG$8*(N48/N$8)),"") ->  | AH48: =IF($H48="Riverine",IF(ISBLANK(AH$8),"",AH$8*(O48/O$8)),"") ->  | AI48: =IF($H48="Marine",IF(ISBLANK(AI$8),"",AI$8*(P48/P$8)),"") ->  | AJ48: =IF($H48="Marine",IF(ISBLANK(AJ$8),"",AJ$8*(Q48/Q$8)),"") -> 
R50: =IF(OR(ISBLANK($D50),ISBLANK(R$8)),"",R$8*$D50/$C$8) -> 
P56: =IF($H56="Marine",IF(ISBLANK(P$8),"",P$8*($G56/$M$8))* ($D56/$E56) * ($J$8/$I56),"") -> 
AO64: =IF(OR(ISBLANK($D64),ISBLANK(AO$8)),"",AO$8*$D64/$C$8) -> 
R66: =IF(OR(ISBLANK($D66),ISBLANK(R$8)),"",R$8*$D66/$C$8) -> 
P76: =IF($H76="Marine",IF(ISBLANK(P$8),"",P$8*($G76/$M$8))* ($D76/$E76) * ($J$8/$I76),"") -> 
N80: =IF($H80="Riverine",IF(ISBLANK(N$8),"",N$8*($G80/$M$8))* ($D80/$E80) * ($I$8/$I80),"") ->  | O80: =IF($H80="Riverine",IF(ISBLANK(O$8),"",O$8*($G80/$M$8)) * ($D80/$E80) * ($I$8/$I80),"") ->  | AG80: =IF($H80="Riverine",IF(ISBLANK(AG$8),"",AG$8*(N80/N$8)),"") ->  | AH80: =IF($H80="Riverine",IF(ISBLANK(AH$8),"",AH$8*(O80/O$8)),"") ->  | AI80: =IF($H80="Marine",IF(ISBLANK(AI$8),"",AI$8*(P80/P$8)),"") ->  | AJ80: =IF($H80="Marine",IF(ISBLANK(AJ$8),"",AJ$8*(Q80/Q$8)),"") -> 
AF81: =IF(UPPER(K81)="N",IF(ISBLANK(AF$8),"",AF$8 * (M81/M$8)),"") -> 
L82: =IF(D82<0.0000000001,"",IF(MAX(AF82:AJ82,AL82:AM82,AT82)>MAX(AK82,AO82,AS82),IF(MAX(AF82:AJ82,AL82:AM82,AT82)<1,"",(100-100*(M82/MAX(AF82:AJ82,AL82:AM82,AT82)/M82))),"")) ->  | R82: =IF(OR(ISBLANK($D82),ISBLANK(R$8)),"",R$8*$D82/$C$8) -> 
AQ87: =IF(OR(ISBLANK($D87),ISBLANK(AQ$8)),"",AQ$8*$D87/$C$8) -> 
M94: =IF(D94="","",G94*($D94/$E94)) -> 
P96: =IF($H96="Marine",IF(ISBLANK(P$8),"",P$8*($G96/$M$8))* ($D96/$E96) * ($J$8/$I96),"") -> 
R98: =IF(OR(ISBLANK($D98),ISBLANK(R$8)),"",R$8*$D98/$C$8) -> 
AS110: =IF(OR(ISBLANK($D110),ISBLANK(AS$8)),"",AS$8*$D110/$C$8) -> 
AK111: =IF(OR(ISBLANK($D111),ISBLANK(AK$8)),"",AK$8*$D111/$C$8) -> 
N112: =IF($H112="Riverine",IF(ISBLANK(N$8),"",N$8*($G112/$M$8))* ($D112/$E112) * ($I$8/$I112),"") ->  | O112: =IF($H112="Riverine",IF(ISBLANK(O$8),"",O$8*($G112/$M$8)) * ($D112/$E112) * ($I$8/$I112),"") ->  | AG112: =IF($H112="Riverine",IF(ISBLANK(AG$8),"",AG$8*(N112/N$8)),"") ->  | AH112: =IF($H112="Riverine",IF(ISBLANK(AH$8),"",AH$8*(O112/O$8)),"") ->  | AI112: =IF($H112="Marine",IF(ISBLANK(AI$8),"",AI$8*(P112/P$8)),"") ->  | AJ112: =IF($H112="Marine",IF(ISBLANK(AJ$8),"",AJ$8*(Q112/Q$8)),"") -> 
R114: =IF(OR(ISBLANK($D114),ISBLANK(R$8)),"",R$8*$D114/$C$8) -> 
P116: =IF($H116="Marine",IF(ISBLANK(P$8),"",P$8*($G116/$M$8))* ($D116/$E116) * ($J$8/$I116),"") -> 
R130: =IF(OR(ISBLANK($D130),ISBLANK(R$8)),"",R$8*$D130/$C$8) -> 
AF138: =IF(UPPER(K138)="N",IF(ISBLANK(AF$8),"",AF$8 * (M138/M$8)),"") ->  | AG138: =IF($H138="Riverine",IF(ISBLANK(AG$8),"",AG$8*(N138/N$8)),"") ->  | AH138: =IF($H138="Riverine",IF(ISBLANK(AH$8),"",AH$8*(O138/O$8)),"") ->  | AI138: =IF($H138="Marine",IF(ISBLANK(AI$8),"",AI$8*(P138/P$8)),"") ->  | AJ138: =IF($H138="Marine",IF(ISBLANK(AJ$8),"",AJ$8*(Q138/Q$8)),"") -> 
AF139: =IF(UPPER(K139)="N",IF(ISBLANK(AF$8),"",AF$8 * (M139/M$8)),"") ->  | AG139: =IF($H139="Riverine",IF(ISBLANK(AG$8),"",AG$8*(N139/N$8)),"") ->  | AH139: =IF($H139="Riverine",IF(ISBLANK(AH$8),"",AH$8*(O139/O$8)),"") ->  | AI139: =IF($H139="Marine",IF(ISBLANK(AI$8),"",AI$8*(P139/P$8)),"") ->  | AJ139: =IF($H139="Marine",IF(ISBLANK(AJ$8),"",AJ$8*(Q139/Q$8)),"") -> 
P140: =IF($H140="Marine",IF(ISBLANK(P$8),"",P$8*($G140/$M$8))* ($D140/$E140) * ($J$8/$I140),"") -> 
AR142: =IF(OR(ISBLANK($D142),ISBLANK(AR$8)),"",AR$8*$D142/$C$8) -> 
R146: =IF(OR(ISBLANK($D146),ISBLANK(R$8)),"",R$8*$D146/$C$8) -> 

Sheet Templates (hidden)
A1: TEMPLATE for Emissions output
B3: REGIONAL | C3: REGIONAL | D3: REGIONAL | F3: REGIONAL | G3: REGIONAL | I3: REGIONAL | J3: REGIONAL | L3: LOCAL | M3: LOCAL | N3: LOCAL | P3: LOCAL | Q3: LOCAL | S3: LOCAL | T3: LOCAL | V3: LOCAL | W3: LOCAL | AA3: REGIONAL | AB3: REGIONAL | AC3: REGIONAL | AD3: REGIONAL | AE3: REGIONAL | AF3: REGIONAL | AG3: REGIONAL | AH3: REGIONAL | AI3: REGIONAL | AJ3: REGIONAL | AK3: REGIONAL | AL3: REGIONAL | AM3: REGIONAL | AN3: REGIONAL | AO3: REGIONAL | AP3: REGIONAL | AQ3: REGIONAL | AS3: REGIONAL | AT3: REGIONAL | AU3: REGIONAL | AV3: REGIONAL | AW3: REGIONAL | AX3: REGIONAL | AY3: REGIONAL | AZ3: REGIONAL | BA3: REGIONAL | BB3: REGIONAL | BC3: REGIONAL | BD3: REGIONAL | BE3: REGIONAL | BF3: REGIONAL | BG3: REGIONAL | BH3: REGIONAL | BJ3: REGIONAL | BK3: REGIONAL | BL3: REGIONAL | BM3: REGIONAL | BN3: REGIONAL | BO3: REGIONAL | BP3: REGIONAL | BQ3: REGIONAL | BR3: REGIONAL | BS3: REGIONAL | BT3: REGIONAL | BU3: REGIONAL | BV3: REGIONAL | BW3: REGIONAL | BX3: REGIONAL | BY3: REGIONAL | CA3: LOCAL | CB3: LOCAL | CC3: LOCAL | CD3: LOCAL | CE3: LOCAL | CF3: LOCAL | CG3: LOCAL | CH3: LOCAL | CI3: LOCAL | CJ3: LOCAL | CK3: LOCAL | CL3: LOCAL | CM3: LOCAL | CN3: LOCAL | CO3: LOCAL | CP3: LOCAL | CQ3: LOCAL | CS3: LOCAL | CT3: LOCAL | CU3: LOCAL | CV3: LOCAL | CW3: LOCAL | CX3: LOCAL | CY3: LOCAL | CZ3: LOCAL | DA3: LOCAL | DB3: LOCAL | DC3: LOCAL | DD3: LOCAL | DE3: LOCAL | DF3: LOCAL | DG3: LOCAL | DH3: LOCAL | DJ3: LOCAL | DK3: LOCAL | DL3: LOCAL | DM3: LOCAL | DN3: LOCAL | DO3: LOCAL | DP3: LOCAL | DQ3: LOCAL | DR3: LOCAL | DS3: LOCAL | DT3: LOCAL | DU3: LOCAL | DV3: LOCAL | DW3: LOCAL | DX3: LOCAL | DY3: LOCAL | EA3: LOCAL | EB3: LOCAL | EC3: LOCAL | ED3: LOCAL | EE3: LOCAL | EF3: LOCAL | EG3: LOCAL | EH3: LOCAL | EI3: LOCAL | EJ3: LOCAL | EK3: LOCAL | EL3: LOCAL | EM3: LOCAL | EN3: LOCAL | EO3: LOCAL | EP3: LOCAL | FQ3: REGIONAL | FR3: REGIONAL | FS3: REGIONAL | FT3: REGIONAL | FU3: REGIONAL | FV3: REGIONAL | FW3: REGIONAL | FX3: REGIONAL | FY3: REGIONAL | FZ3: REGIONAL | GA3: REGIONAL | GB3: REGIONAL | GC3: REGIONAL | GD3: REGIONAL | GE3: REGIONAL | GF3: REGIONAL | GG3: REGIONAL | GI3: REGIONAL | GJ3: REGIONAL | GK3: REGIONAL | GL3: REGIONAL | GM3: REGIONAL | GN3: REGIONAL | GO3: REGIONAL | GP3: REGIONAL | GQ3: REGIONAL | GR3: REGIONAL | GS3: REGIONAL | GT3: REGIONAL | GU3: REGIONAL | GV3: REGIONAL | GW3: REGIONAL | GX3: REGIONAL | GZ3: REGIONAL | HA3: REGIONAL | HB3: REGIONAL | HC3: REGIONAL | HD3: REGIONAL | HE3: REGIONAL | HF3: REGIONAL | HG3: REGIONAL | HH3: REGIONAL | HI3: REGIONAL | HJ3: REGIONAL | HK3: REGIONAL | HL3: REGIONAL | HM3: REGIONAL | HN3: REGIONAL | HO3: REGIONAL | HQ3: LOCAL | HR3: LOCAL | HS3: LOCAL | HT3: LOCAL | HU3: LOCAL | HV3: LOCAL | HW3: LOCAL | HX3: LOCAL | HY3: LOCAL | HZ3: LOCAL | IA3: LOCAL | IB3: LOCAL | IC3: LOCAL | ID3: LOCAL | IE3: LOCAL | IF3: LOCAL | IG3: LOCAL | II3: LOCAL | IJ3: LOCAL | IK3: LOCAL | IL3: LOCAL | IM3: LOCAL | IN3: LOCAL | IO3: LOCAL | IP3: LOCAL | IQ3: LOCAL | IR3: LOCAL | IS3: LOCAL | IT3: LOCAL | IU3: LOCAL | IV3: LOCAL | IW3: LOCAL | IX3: LOCAL | IZ3: LOCAL | JA3: LOCAL | JB3: LOCAL | JC3: LOCAL | JD3: LOCAL | JE3: LOCAL | JF3: LOCAL | JG3: LOCAL | JH3: LOCAL | JI3: LOCAL | JJ3: LOCAL | JK3: LOCAL | JL3: LOCAL | JM3: LOCAL | JN3: LOCAL | JO3: LOCAL | JQ3: LOCAL | JR3: LOCAL | JS3: LOCAL | JT3: LOCAL | JU3: LOCAL | JV3: LOCAL | JW3: LOCAL | JX3: LOCAL | JY3: LOCAL | JZ3: LOCAL | KA3: LOCAL | KB3: LOCAL | KC3: LOCAL | KD3: LOCAL | KE3: LOCAL | KF3: LOCAL
C5: Emission to Air | F5: Emission to Water | I5: Emission to Soil | M5: Emission to Air | P5: Emission to Water | S5: Emission to Soil | V5: Emission to WasteWater | AB5: Emission to Air | AS5: Emission to Water | BJ5: Emission to Soil | CB5: Emission to Air | CS5: Emission to Water | DJ5: Emission to Soil | EA5: Emission to WasteWater | FR5: Emission to Air | GI5: Emission to Water | GZ5: Emission to Soil | HR5: Emission to Air | II5: Emission to Water | IZ5: Emission to Soil | JQ5: Emission to WasteWater
C6: SUM: | D6: =SUM(C10:D18) -> 0 | F6: SUM: | G6: =SUM(F10:G18) -> 0 | I6: SUM: | J6: =SUM(I10:J18) -> 0 | M6: SUM: | N6: =SUM(M10:N18) -> 0 | P6: SUM: | Q6: =SUM(P10:Q18) -> 0 | S6: SUM: | T6: =SUM(S10:T18) -> 0 | V6: SUM: | W6: =SUM(V10:W18) -> 0 | AB6: SUM: | AC6: =SUM(AB10:AQ19) -> 0 | AS6: SUM: | AT6: =SUM(AS10:BH19) -> 0 | BJ6: SUM: | BK6: =SUM(BJ10:BY19) -> 0 | CB6: SUM: | CC6: =SUM(CB10:CQ19) -> 0 | CS6: SUM: | CT6: =SUM(CS10:DH19) -> 0 | DJ6: SUM: | DK6: =SUM(DJ10:DY19) -> 0 | EA6: SUM: | EB6: =SUM(EA10:EP19) -> 0 | FR6: SUM: | FS6: =SUM(FR10:GG36) -> 0 | GI6: SUM: | GJ6: =SUM(GI10:GX36) -> 0 | GZ6: SUM: | HA6: =SUM(GZ10:HO36) -> 0 | HR6: SUM: | HS6: =SUM(HR10:IG36) -> 0 | II6: SUM: | IJ6: =SUM(II10:IX36) -> 0 | IZ6: SUM: | JA6: =SUM(IZ10:JO36) -> 0 | JQ6: SUM: | JR6: =SUM(JQ10:KF36) -> 0
C7: 1 | D7: 2 | F7: 1 | G7: 2 | I7: 1 | J7: 2 | M7: 1 | N7: 2 | P7: 1 | Q7: 2 | S7: 1 | T7: 2 | V7: 1 | W7: 2 | AB7: 1 | AC7: 2 | AD7: 3 | AE7: 4 | AF7: 5 | AG7: 6 | AH7: 7 | AI7: 8 | AJ7: 9 | AK7: 10 | AL7: 11 | AM7: 12 | AN7: 13 | AO7: 14 | AP7: 15 | AQ7: 16 | AS7: 1 | AT7: 2 | AU7: 3 | AV7: 4 | AW7: 5 | AX7: 6 | AY7: 7 | AZ7: 8 | BA7: 9 | BB7: 10 | BC7: 11 | BD7: 12 | BE7: 13 | BF7: 14 | BG7: 15 | BH7: 16 | BJ7: 1 | BK7: 2 | BL7: 3 | BM7: 4 | BN7: 5 | BO7: 6 | BP7: 7 | BQ7: 8 | BR7: 9 | BS7: 10 | BT7: 11 | BU7: 12 | BV7: 13 | BW7: 14 | BX7: 15 | BY7: 16 | CB7: 1 | CC7: 2 | CD7: 3 | CE7: 4 | CF7: 5 | CG7: 6 | CH7: 7 | CI7: 8 | CJ7: 9 | CK7: 10 | CL7: 11 | CM7: 12 | CN7: 13 | CO7: 14 | CP7: 15 | CQ7: 16 | CS7: 1 | CT7: 2 | CU7: 3 | CV7: 4 | CW7: 5 | CX7: 6 | CY7: 7 | CZ7: 8 | DA7: 9 | DB7: 10 | DC7: 11 | DD7: 12 | DE7: 13 | DF7: 14 | DG7: 15 | DH7: 16 | DJ7: 1 | DK7: 2 | DL7: 3 | DM7: 4 | DN7: 5 | DO7: 6 | DP7: 7 | DQ7: 8 | DR7: 9 | DS7: 10 | DT7: 11 | DU7: 12 | DV7: 13 | DW7: 14 | DX7: 15 | DY7: 16 | EA7: 1 | EB7: 2 | EC7: 3 | ED7: 4 | EE7: 5 | EF7: 6 | EG7: 7 | EH7: 8 | EI7: 9 | EJ7: 10 | EK7: 11 | EL7: 12 | EM7: 13 | EN7: 14 | EO7: 15 | EP7: 16 | FR7: 1 | FS7: 2 | FT7: 3 | FU7: 4 | FV7: 5 | FW7: 6 | FX7: 7 | FY7: 8 | FZ7: 9 | GA7: 10 | GB7: 11 | GC7: 12 | GD7: 13 | GE7: 14 | GF7: 15 | GG7: 16 | GI7: 1 | GJ7: 2 | GK7: 3 | GL7: 4 | GM7: 5 | GN7: 6 | GO7: 7 | GP7: 8 | GQ7: 9 | GR7: 10 | GS7: 11 | GT7: 12 | GU7: 13 | GV7: 14 | GW7: 15 | GX7: 16 | GZ7: 1 | HA7: 2 | HB7: 3 | HC7: 4 | HD7: 5 | HE7: 6 | HF7: 7 | HG7: 8 | HH7: 9 | HI7: 10 | HJ7: 11 | HK7: 12 | HL7: 13 | HM7: 14 | HN7: 15 | HO7: 16 | HR7: 1 | HS7: 2 | HT7: 3 | HU7: 4 | HV7: 5 | HW7: 6 | HX7: 7 | HY7: 8 | HZ7: 9 | IA7: 10 | IB7: 11 | IC7: 12 | ID7: 13 | IE7: 14 | IF7: 15 | IG7: 16 | II7: 1 | IJ7: 2 | IK7: 3 | IL7: 4 | IM7: 5 | IN7: 6 | IO7: 7 | IP7: 8 | IQ7: 9 | IR7: 10 | IS7: 11 | IT7: 12 | IU7: 13 | IV7: 14 | IW7: 15 | IX7: 16 | IZ7: 1 | JA7: 2 | JB7: 3 | JC7: 4 | JD7: 5 | JE7: 6 | JF7: 7 | JG7: 8 | JH7: 9 | JI7: 10 | JJ7: 11 | JK7: 12 | JL7: 13 | JM7: 14 | JN7: 15 | JO7: 16 | JQ7: 1 | JR7: 2 | JS7: 3 | JT7: 4 | JU7: 5 | JV7: 6 | JW7: 7 | JX7: 8 | JY7: 9 | JZ7: 10 | KA7: 11 | KB7: 12 | KC7: 13 | KD7: 14 | KE7: 15 | KF7: 16
C8: Aliphatic | D8: Aromatic | F8: Aliphatic | G8: Aromatic | I8: Aliphatic | J8: Aromatic | M8: Aliphatic | N8: Aromatic | P8: Aliphatic | Q8: Aromatic | S8: Aliphatic | T8: Aromatic | V8: Aliphatic | W8: Aromatic | AB8: n-P | AC8: i-P | AD8: n-CC5 | AE8: n-CC6 | AF8: i-N | AG8: Di-N | AH8: n-Olefins | AI8: i-Olefins | AJ8: Poly-N | AK8: AlS | AL8: MoAr | AM8: NMAr | AN8: DiAr | AO8: NDiAr | AP8: PolyAr | AQ8: ArS | AS8: n-P | AT8: i-P | AU8: n-CC5 | AV8: n-CC6 | AW8: i-N | AX8: Di-N | AY8: n-Olefins | AZ8: i-Olefins | BA8: Poly-N | BB8: AlS | BC8: MoAr | BD8: NMAr | BE8: DiAr | BF8: NDiAr | BG8: PolyAr | BH8: ArS | BJ8: n-P | BK8: i-P | BL8: n-CC5 | BM8: n-CC6 | BN8: i-N | BO8: Di-N | BP8: n-Olefins | BQ8: i-Olefins | BR8: Poly-N | BS8: AlS | BT8: MoAr | BU8: NMAr | BV8: DiAr | BW8: NDiAr | BX8: PolyAr | BY8: ArS | CB8: n-P | CC8: i-P | CD8: n-CC5 | CE8: n-CC6 | CF8: i-N | CG8: Di-N | CH8: n-Olefins | CI8: i-Olefins | CJ8: Poly-N | CK8: AlS | CL8: MoAr | CM8: NMAr | CN8: DiAr | CO8: NDiAr | CP8: PolyAr | CQ8: ArS | CS8: n-P | CT8: i-P | CU8: n-CC5 | CV8: n-CC6 | CW8: i-N | CX8: Di-N | CY8: n-Olefins | CZ8: i-Olefins | DA8: Poly-N | DB8: AlS | DC8: MoAr | DD8: NMAr | DE8: DiAr | DF8: NDiAr | DG8: PolyAr | DH8: ArS | DJ8: n-P | DK8: i-P | DL8: n-CC5 | DM8: n-CC6 | DN8: i-N | DO8: Di-N | DP8: n-Olefins | DQ8: i-Olefins | DR8: Poly-N | DS8: AlS | DT8: MoAr | DU8: NMAr | DV8: DiAr | DW8: NDiAr | DX8: PolyAr | DY8: ArS | EA8: n-P | EB8: i-P | EC8: n-CC5 | ED8: n-CC6 | EE8: i-N | EF8: Di-N | EG8: n-Olefins | EH8: i-Olefins | EI8: Poly-N | EJ8: AlS | EK8: MoAr | EL8: NMAr | EM8: DiAr | EN8: NDiAr | EO8: PolyAr | EP8: ArS | FR8: n-P | FS8: i-P | FT8: MonoN | FU8: Di-N | FV8: n-Olefins | FW8: i-Olefins | FX8: Poly-N | FY8: AlS | FZ8: MoAr | GA8: NMAr | GB8: DiAr | GC8: NDiAr | GD8: TriAr | GE8: NTriAr | GF8: PolyAr | GG8: ArS | GI8: n-P | GJ8: i-P | GK8: MonoN | GL8: Di-N | GM8: n-Olefins | GN8: i-Olefins | GO8: Poly-N | GP8: AlS | GQ8: MoAr | GR8: NMAr | GS8: DiAr | GT8: NDiAr | GU8: TriAr | GV8: NTriAr | GW8: PolyAr | GX8: ArS | GZ8: n-P | HA8: i-P | HB8: MonoN | HC8: Di-N | HD8: n-Olefins | HE8: i-Olefins | HF8: Poly-N | HG8: AlS | HH8: MoAr | HI8: NMAr | HJ8: DiAr | HK8: NDiAr | HL8: TriAr | HM8: NTriAr | HN8: PolyAr | HO8: ArS | HR8: n-P | HS8: i-P | HT8: MonoN | HU8: Di-N | HV8: n-Olefins | HW8: i-Olefins | HX8: Poly-N | HY8: AlS | HZ8: MoAr | IA8: NMAr | IB8: DiAr | IC8: NDiAr | ID8: TriAr | IE8: NTriAr | IF8: PolyAr | IG8: ArS | II8: n-P | IJ8: i-P | IK8: MonoN | IL8: Di-N | IM8: n-Olefins | IN8: i-Olefins | IO8: Poly-N | IP8: AlS | IQ8: MoAr | IR8: NMAr | IS8: DiAr | IT8: NDiAr | IU8: TriAr | IV8: NTriAr | IW8: PolyAr | IX8: ArS | IZ8: n-P | JA8: i-P | JB8: MonoN | JC8: Di-N | JD8: n-Olefins | JE8: i-Olefins | JF8: Poly-N | JG8: AlS | JH8: MoAr | JI8: NMAr | JJ8: DiAr | JK8: NDiAr | JL8: TriAr | JM8: NTriAr | JN8: PolyAr | JO8: ArS | JQ8: n-P | JR8: i-P | JS8: MonoN | JT8: Di-N | JU8: n-Olefins | JV8: i-Olefins | JW8: Poly-N | JX8: AlS | JY8: MoAr | JZ8: NMAr | KA8: DiAr | KB8: NDiAr | KC8: TriAr | KD8: NTriAr | KE8: PolyAr | KF8: ArS
C9: (kg/day) | D9: (kg/day) | F9: (kg/day) | G9: (kg/day) | I9: (kg/day) | J9: (kg/day) | M9: (kg/day) | N9: (kg/day) | P9: (kg/day) | Q9: (kg/day) | S9: (kg/day) | T9: (kg/day) | V9: (kg/day) | W9: (kg/day) | AB9: (kg/day) | AC9: (kg/day) | AD9: (kg/day) | AE9: (kg/day) | AF9: (kg/day) | AG9: (kg/day) | AH9: (kg/day) | AI9: (kg/day) | AJ9: (kg/day) | AK9: (kg/day) | AL9: (kg/day) | AM9: (kg/day) | AN9: (kg/day) | AO9: (kg/day) | AP9: (kg/day) | AQ9: (kg/day) | AS9: (kg/day) | AT9: (kg/day) | AU9: (kg/day) | AV9: (kg/day) | AW9: (kg/day) | AX9: (kg/day) | AY9: (kg/day) | AZ9: (kg/day) | BA9: (kg/day) | BB9: (kg/day) | BC9: (kg/day) | BD9: (kg/day) | BE9: (kg/day) | BF9: (kg/day) | BG9: (kg/day) | BH9: (kg/day) | BJ9: (kg/day) | BK9: (kg/day) | BL9: (kg/day) | BM9: (kg/day) | BN9: (kg/day) | BO9: (kg/day) | BP9: (kg/day) | BQ9: (kg/day) | BR9: (kg/day) | BS9: (kg/day) | BT9: (kg/day) | BU9: (kg/day) | BV9: (kg/day) | BW9: (kg/day) | BX9: (kg/day) | BY9: (kg/day) | CB9: (kg/day) | CC9: (kg/day) | CD9: (kg/day) | CE9: (kg/day) | CF9: (kg/day) | CG9: (kg/day) | CH9: (kg/day) | CI9: (kg/day) | CJ9: (kg/day) | CK9: (kg/day) | CL9: (kg/day) | CM9: (kg/day) | CN9: (kg/day) | CO9: (kg/day) | CP9: (kg/day) | CQ9: (kg/day) | CS9: (kg/day) | CT9: (kg/day) | CU9: (kg/day) | CV9: (kg/day) | CW9: (kg/day) | CX9: (kg/day) | CY9: (kg/day) | CZ9: (kg/day) | DA9: (kg/day) | DB9: (kg/day) | DC9: (kg/day) | DD9: (kg/day) | DE9: (kg/day) | DF9: (kg/day) | DG9: (kg/day) | DH9: (kg/day) | DJ9: (kg/day) | DK9: (kg/day) | DL9: (kg/day) | DM9: (kg/day) | DN9: (kg/day) | DO9: (kg/day) | DP9: (kg/day) | DQ9: (kg/day) | DR9: (kg/day) | DS9: (kg/day) | DT9: (kg/day) | DU9: (kg/day) | DV9: (kg/day) | DW9: (kg/day) | DX9: (kg/day) | DY9: (kg/day) | EA9: (kg/day) | EB9: (kg/day) | EC9: (kg/day) | ED9: (kg/day) | EE9: (kg/day) | EF9: (kg/day) | EG9: (kg/day) | EH9: (kg/day) | EI9: (kg/day) | EJ9: (kg/day) | EK9: (kg/day) | EL9: (kg/day) | EM9: (kg/day) | EN9: (kg/day) | EO9: (kg/day) | EP9: (kg/day) | FR9: (kg/day) | FS9: (kg/day) | FT9: (kg/day) | FU9: (kg/day) | FV9: (kg/day) | FW9: (kg/day) | FX9: (kg/day) | FY9: (kg/day) | FZ9: (kg/day) | GA9: (kg/day) | GB9: (kg/day) | GC9: (kg/day) | GD9: (kg/day) | GE9: (kg/day) | GF9: (kg/day) | GG9: (kg/day) | GI9: (kg/day) | GJ9: (kg/day) | GK9: (kg/day) | GL9: (kg/day) | GM9: (kg/day) | GN9: (kg/day) | GO9: (kg/day) | GP9: (kg/day) | GQ9: (kg/day) | GR9: (kg/day) | GS9: (kg/day) | GT9: (kg/day) | GU9: (kg/day) | GV9: (kg/day) | GW9: (kg/day) | GX9: (kg/day) | GZ9: (kg/day) | HA9: (kg/day) | HB9: (kg/day) | HC9: (kg/day) | HD9: (kg/day) | HE9: (kg/day) | HF9: (kg/day) | HG9: (kg/day) | HH9: (kg/day) | HI9: (kg/day) | HJ9: (kg/day) | HK9: (kg/day) | HL9: (kg/day) | HM9: (kg/day) | HN9: (kg/day) | HO9: (kg/day) | HR9: (kg/day) | HS9: (kg/day) | HT9: (kg/day) | HU9: (kg/day) | HV9: (kg/day) | HW9: (kg/day) | HX9: (kg/day) | HY9: (kg/day) | HZ9: (kg/day) | IA9: (kg/day) | IB9: (kg/day) | IC9: (kg/day) | ID9: (kg/day) | IE9: (kg/day) | IF9: (kg/day) | IG9: (kg/day) | II9: (kg/day) | IJ9: (kg/day) | IK9: (kg/day) | IL9: (kg/day) | IM9: (kg/day) | IN9: (kg/day) | IO9: (kg/day) | IP9: (kg/day) | IQ9: (kg/day) | IR9: (kg/day) | IS9: (kg/day) | IT9: (kg/day) | IU9: (kg/day) | IV9: (kg/day) | IW9: (kg/day) | IX9: (kg/day) | IZ9: (kg/day) | JA9: (kg/day) | JB9: (kg/day) | JC9: (kg/day) | JD9: (kg/day) | JE9: (kg/day) | JF9: (kg/day) | JG9: (kg/day) | JH9: (kg/day) | JI9: (kg/day) | JJ9: (kg/day) | JK9: (kg/day) | JL9: (kg/day) | JM9: (kg/day) | JN9: (kg/day) | JO9: (kg/day) | JQ9: (kg/day) | JR9: (kg/day) | JS9: (kg/day) | JT9: (kg/day) | JU9: (kg/day) | JV9: (kg/day) | JW9: (kg/day) | JX9: (kg/day) | JY9: (kg/day) | JZ9: (kg/day) | KA9: (kg/day) | KB9: (kg/day) | KC9: (kg/day) | KD9: (kg/day) | KE9: (kg/day) | KF9: (kg/day)
B10: 1 | L10: 1 | AA10: 1 | CA10: 1 | FQ10: 1 | HQ10: 1
B11: 2 | L11: 2 | AA11: 2 | CA11: 2 | FQ11: 2 | HQ11: 2
B12: 3 | L12: 3 | AA12: 3 | CA12: 3 | FQ12: 3 | HQ12: 3
B13: 4 | L13: 4 | AA13: 4 | CA13: 4 | FQ13: 4 | HQ13: 4
B14: 5 | L14: 5 | AA14: 5 | CA14: 5 | FQ14: 5 | HQ14: 5
B15: 6 | L15: 6 | AA15: 6 | CA15: 6 | FQ15: 6 | HQ15: 6
B16: 7 | L16: 7 | AA16: 7 | CA16: 7 | FQ16: 7 | HQ16: 7
B17: 8 | L17: 8 | AA17: 8 | CA17: 8 | FQ17: 8 | HQ17: 8
B18: 9 | L18: 9 | AA18: 9 | CA18: 9 | FQ18: 9 | HQ18: 9
AA19: 10 | CA19: 10 | FQ19: 10 | HQ19: 10
FQ20: 11 | HQ20: 11
FQ21: 12 | HQ21: 12
AH22: solvent emissions template | FQ22: 13 | HQ22: 13
A23: High Res input template | D23: copy B25:V38 | AH23: copy AJ23:BF45 | AK23: REGIONAL | AL23: REGIONAL | AM23: REGIONAL | AO23: REGIONAL | AP23: REGIONAL | AR23: REGIONAL | AS23: REGIONAL | AU23: LOCAL | AV23: LOCAL | AW23: LOCAL | AY23: LOCAL | AZ23: LOCAL | BB23: LOCAL | BC23: LOCAL | BE23: LOCAL | BF23: LOCAL | ET23: High Res input template | EW23: copy ET25:FN55 | FQ23: 14 | HQ23: 14
FQ24: 15 | HQ24: 15
G25: 1 | H25: 2 | I25: 3 | J25: 4 | K25: 5 | L25: 6 | M25: 7 | N25: 8 | O25: 9 | P25: 10 | Q25: 11 | R25: 12 | S25: 13 | T25: 14 | U25: 15 | V25: 16 | AL25: Emission to Air | AO25: Emission to Water | AR25: Emission to Soil | AV25: Emission to Air | AY25: Emission to Water | BB25: Emission to Soil | BE25: Emission to WasteWater | EY25: 1 | EZ25: 2 | FA25: 3 | FB25: 4 | FC25: 5 | FD25: 6 | FE25: 7 | FF25: 8 | FG25: 9 | FH25: 10 | FI25: 11 | FJ25: 12 | FK25: 13 | FL25: 14 | FM25: 15 | FN25: 16 | FQ25: 16 | HQ25: 16
G26: n-P | H26: i-P | I26: n-CC5 | J26: n-CC6 | K26: i-N | L26: Di-N | M26: n-Olefins | N26: i-Olefins | O26: Poly-N | P26: AlS | Q26: MoAr | R26: NMAr | S26: DiAr | T26: NDiAr | U26: PolyAr | V26: ArS | AL26: SUM: | AM26: =SUM(AL30:AM45) -> 0 | AO26: SUM: | AP26: =SUM(AO30:AP45) -> 0 | AR26: SUM: | AS26: =SUM(AR30:AS45) -> 0 | AV26: SUM: | AW26: =SUM(AV30:AW45) -> 0 | AY26: SUM: | AZ26: =SUM(AY30:AZ45) -> 0 | BB26: SUM: | BC26: =SUM(BB30:BC45) -> 0 | BE26: SUM: | BF26: =SUM(BE30:BF45) -> 0 | EY26: n-P | EZ26: i-P | FA26: MonoN | FB26: Di-N | FC26: n-Olefins | FD26: i-Olefins | FE26: Poly-N | FF26: AlS | FG26: MoAr | FH26: NMAr | FI26: DiAr | FJ26: NDiAr | FK26: TriAr | FL26: NTriAr | FM26: PolyAr | FN26: ArS | FQ26: 17 | HQ26: 17
D27: Block | E27: C#i (>=) | F27: C#f (<) | G27: (weight %) | H27: (weight %) | I27: (weight %) | J27: (weight %) | K27: (weight %) | L27: (weight %) | M27: (weight %) | N27: (weight %) | O27: (weight %) | P27: (weight %) | Q27: (weight %) | R27: (weight %) | S27: (weight %) | T27: (weight %) | U27: (weight %) | V27: (weight %) | AL27: 101 | AM27: 102 | AO27: 101 | AP27: 102 | AR27: 101 | AS27: 102 | AV27: 101 | AW27: 102 | AY27: 101 | AZ27: 102 | BB27: 101 | BC27: 102 | BE27: 101 | BF27: 102 | EV27: Block | EW27: C#i (>=) | EX27: C#f (<) | EY27: (weight %) | EZ27: (weight %) | FA27: (weight %) | FB27: (weight %) | FC27: (weight %) | FD27: (weight %) | FE27: (weight %) | FF27: (weight %) | FG27: (weight %) | FH27: (weight %) | FI27: (weight %) | FJ27: (weight %) | FK27: (weight %) | FL27: (weight %) | FM27: (weight %) | FN27: (weight %) | FQ27: 18 | HQ27: 18
D28: 1 | E28: 3 | F28: 6 | AL28: Aliphatic | AM28: Aromatic | AO28: Aliphatic | AP28: Aromatic | AR28: Aliphatic | AS28: Aromatic | AV28: Aliphatic | AW28: Aromatic | AY28: Aliphatic | AZ28: Aromatic | BB28: Aliphatic | BC28: Aromatic | BE28: Aliphatic | BF28: Aromatic | EV28: 1 | EW28: 4 | EX28: 5 | FQ28: 19 | HQ28: 19
D29: 2 | E29: 6 | F29: 9 | AL29: (kg/day) | AM29: (kg/day) | AO29: (kg/day) | AP29: (kg/day) | AR29: (kg/day) | AS29: (kg/day) | AV29: (kg/day) | AW29: (kg/day) | AY29: (kg/day) | AZ29: (kg/day) | BB29: (kg/day) | BC29: (kg/day) | BE29: (kg/day) | BF29: (kg/day) | EV29: 2 | EW29: 5 | EX29: 6 | FQ29: 20 | HQ29: 20
D30: 3 | E30: 9 | F30: 12 | AK30: 1 | AU30: 1 | EV30: 3 | EW30: 6 | EX30: 7 | FQ30: 21 | HQ30: 21
D31: 4 | E31: 12 | F31: 15 | AK31: 2 | AU31: 2 | EV31: 4 | EW31: 7 | EX31: 8 | FQ31: 22 | HQ31: 22
D32: 5 | E32: 15 | F32: 18 | AK32: 3 | AU32: 3 | EV32: 5 | EW32: 8 | EX32: 9 | FQ32: 23 | HQ32: 23
D33: 6 | E33: 18 | F33: 21 | AK33: 4 | AU33: 4 | EV33: 6 | EW33: 9 | EX33: 10 | FQ33: 24 | HQ33: 24
D34: 7 | E34: 21 | F34: 24 | X34: Priority substances template | AB34: copy X36:AC59 | AK34: 5 | AU34: 5 | EV34: 7 | EW34: 10 | EX34: 11 | FQ34: 25 | HQ34: 25
D35: 8 | E35: 24 | F35: 27 | AK35: 6 | AU35: 6 | EV35: 8 | EW35: 11 | EX35: 12 | FQ35: 26 | HQ35: 26
D36: 9 | E36: 27 | F36: 30 | X36: ID | Y36: Individual Constituentsa | Z36: C# | AA36: ID | AB36: BP (oC) | AC36: Weight (%) | AK36: 7 | AU36: 7 | EV36: 9 | EW36: 12 | EX36: 13 | FQ36: 27 | HQ36: 27
D37: 10 | E37: 30 | F37: >30 | X37: 1 | Y37: n-pentane | Z37: 5 | AA37: 1455 | AB37: 34.26946736 | AK37: 8 | AU37: 8 | EV37: 10 | EW37: 13 | EX37: 14
F38: Sum: | G38: =SUM(G28:V37) -> 0 | X38: 2 | Y38: n-Hexane | Z38: 6 | AA38: 1456 | AB38: 68.11021613 | AK38: 9 | AU38: 9 | EV38: 11 | EW38: 14 | EX38: 15
N39: Solvent resolution template | S39: copy M40:S59 | X39: 3 | Y39: Benzene | Z39: 6 | AA39: 1 | AB39: 77.95570637 | AK39: 10 | AU39: 10 | EV39: 12 | EW39: 15 | EX39: 16
R40: 101 | S40: 102 | X40: 4 | Y40: Toluene | Z40: 7 | AA40: 2 | AB40: 117.6315563 | AK40: 11 | AU40: 11 | EV40: 13 | EW40: 16 | EX40: 17
A41: Low Res input template | D41: copy B43:H56 | R41: Aliphatic | S41: Aromatic | X41: 5 | Y41: Naphthalene | Z41: 10 | AA41: 11 | AB41: 213.9459351 | AK41: 12 | AU41: 12 | EV41: 14 | EW41: 17 | EX41: 18
P42: Block | Q42: C# | R42: (weight %) | S42: (weight %) | X42: 6 | Y42: Acenaphthylene | Z42: 12 | AA42: 31 | AB42: 233.939105 | AK42: 13 | AU42: 13 | EV42: 15 | EW42: 18 | EX42: 19
G43: 1 | H43: 2 | P43: 1 | Q43: 5 | X43: 7 | Y43: Acenaphthene | Z43: 12 | AA43: 30 | AB43: 260.5800149 | AK43: 14 | AU43: 14 | EV43: 16 | EW43: 19 | EX43: 20
G44: Aliphatic | H44: Aromatic | P44: 2 | Q44: 6 | X44: 8 | Y44: Fluorene | Z44: 13 | AA44: 40 | AB44: 261.0506749 | AK44: 15 | AU44: 15 | EV44: 17 | EW44: 20 | EX44: 21
B45: Block | C45: EqCi (>=) | D45: EqCf (<) | E45: BPi | F45: BPf | G45: (weight %) | H45: (weight %) | P45: 3 | Q45: 7 | X45: 9 | Y45: Phenanthrene | Z45: 14 | AA45: 59 | AB45: 336.2281513 | AK45: 16 | AU45: 16 | EV45: 18 | EW45: 21 | EX45: 22
B46: 1 | C46: 3 | D46: 5 | E46: -50 | F46: =E47 -> 46.01 | P46: 4 | Q46: 8 | X46: 10 | Y46: Anthracene | Z46: 14 | AA46: 58 | AB46: 339.8042851 | EV46: 19 | EW46: 22 | EX46: 23
B47: 2 | C47: 5 | D47: 7 | E47: 46.01 | F47: =E48 -> 96.16 | P47: 5 | Q47: 9 | X47: 11 | Y47: Fluoranthene | Z47: 16 | AA47: 145 | AB47: 368.0973053 | EV47: 20 | EW47: 23 | EX47: 24
B48: 3 | C48: 7 | D48: 9 | E48: 96.16 | F48: 142.69 | P48: 6 | Q48: 10 | X48: 12 | Y48: Pyrene | Z48: 16 | AA48: 113 | AB48: 398.235512 | EV48: 21 | EW48: 24 | EX48: 25
B49: 4 | C49: 9 | D49: 11 | E49: 142.69 | F49: 185.61 | P49: 7 | Q49: 11 | X49: 13 | Y49: Chrysene | Z49: 18 | AA49: 231 | AB49: 472.2054441 | EV49: 22 | EW49: 25 | EX49: 26
B50: 5 | C50: 11 | D50: 13 | E50: 185.61 | F50: 224.91 | P50: 8 | Q50: 12 | X50: 14 | Y50: Benz(a)anthracene | Z50: 18 | AA50: 221 | AB50: 474.46492 | EV50: 23 | EW50: 26 | EX50: 27
B51: 6 | C51: 13 | D51: 17 | E51: 224.91 | F51: 292.66 | P51: 9 | Q51: 13 | X51: 15 | Y51: Benzo(b)fluoranthene | Z51: 20 | AA51: 227 | AB51: 500.6802716 | EV51: 24 | EW51: 27 | EX51: 28
B52: 7 | C52: 17 | D52: 22 | E52: 292.66 | F52: 357.63 | P52: 10 | Q52: 14 | X52: 16 | Y52: Benzo(a)pyrene | Z52: 20 | AA52: 284 | AB52: 503.480627 | EV52: 25 | EW52: 28 | EX52: 29
B53: 8 | C53: 22 | D53: 36 | E53: 357.63 | F53: 520.08 | P53: 12 | Q53: 15 | X53: 17 | Y53: Benzo(k)fluoranthene | Z53: 20 | AA53: 280 | AB53: 505.6454086 | EV53: 26 | EW53: 29 | EX53: 30
B54: 9 | C54: 36 | D54: >36 | E54: 520.08 | F54: >500.9 | P54: 12 | Q54: 16 | X54: 18 | Y54: Indeno(1,2,3-cd)pyrene | Z54: 22 | AA54: 390 | AB54: 512.704153 | EV54: 27 | EW54: 30 | EX54: >30
E55: user defined | P55: 13 | Q55: 17 | X55: 19 | Y55: Benzo(ghi)perylene | Z55: 22 | AA55: 391 | AB55: 513.2110876 | EX55: Sum: | EY55: =SUM(EY28:FN54) -> 0
F56: Sum: | G56: =SUM(G46:H54) -> 0 | P56: 14 | Q56: 18 | X56: 20 | Y56: Dibenzo(a,h)anthracene | Z56: 22 | AA56: 357 | AB56: 547.4741738
P57: 15 | Q57: 19 | Y57: a - These mass fractions should be consistent with mass assigned to hydrocarbon blocks | AC57: ="" -> 
P58: 16 | Q58: 20 | Y58: b - Only non-zero numbers are used in calculations, blank entries are ignored
A59: PEC output template - high res, copy B60:CZ113 | Q59: Sum: | R59: =SUM(R43:S58) -> 0 | Y59: NOTE: wt% = 10-4 * Concentration (ug/g oil)
C61: PEC | T61: PEC | AK61: PEC | BB61: PEC | BS61: PEC | CJ61: PEC
C62: Compartment: | D62: Fresh Water | T62: Compartment: | U62: Fresh Water Sediment | AK62: Compartment: | AL62: Marine Water | BB62: Compartment: | BC62: Marine Sediment | BS62: Compartment: | BT62: Natural Soil | CJ62: Compartment: | CK62: Air
C63: SUM: | D63: =SUM(C67:R76) -> 0 | T63: SUM: | U63: =SUM(T67:AI76) -> 0 | AK63: SUM: | AL63: =SUM(AK67:AZ76) -> 0 | BB63: SUM: | BC63: =SUM(BB67:BQ76) -> 0 | BS63: SUM: | BT63: =SUM(BS67:CH76) -> 0 | CJ63: SUM: | CK63: =SUM(CJ67:CY76) -> 0
C64: 1 | D64: 2 | E64: 3 | F64: 4 | G64: 5 | H64: 6 | I64: 7 | J64: 8 | K64: 9 | L64: 10 | M64: 11 | N64: 12 | O64: 13 | P64: 14 | Q64: 15 | R64: 16 | T64: 1 | U64: 2 | V64: 3 | W64: 4 | X64: 5 | Y64: 6 | Z64: 7 | AA64: 8 | AB64: 9 | AC64: 10 | AD64: 11 | AE64: 12 | AF64: 13 | AG64: 14 | AH64: 15 | AI64: 16 | AK64: 1 | AL64: 2 | AM64: 3 | AN64: 4 | AO64: 5 | AP64: 6 | AQ64: 7 | AR64: 8 | AS64: 9 | AT64: 10 | AU64: 11 | AV64: 12 | AW64: 13 | AX64: 14 | AY64: 15 | AZ64: 16 | BB64: 1 | BC64: 2 | BD64: 3 | BE64: 4 | BF64: 5 | BG64: 6 | BH64: 7 | BI64: 8 | BJ64: 9 | BK64: 10 | BL64: 11 | BM64: 12 | BN64: 13 | BO64: 14 | BP64: 15 | BQ64: 16 | BS64: 1 | BT64: 2 | BU64: 3 | BV64: 4 | BW64: 5 | BX64: 6 | BY64: 7 | BZ64: 8 | CA64: 9 | CB64: 10 | CC64: 11 | CD64: 12 | CE64: 13 | CF64: 14 | CG64: 15 | CH64: 16 | CJ64: 1 | CK64: 2 | CL64: 3 | CM64: 4 | CN64: 5 | CO64: 6 | CP64: 7 | CQ64: 8 | CR64: 9 | CS64: 10 | CT64: 11 | CU64: 12 | CV64: 13 | CW64: 14 | CX64: 15 | CY64: 16
C65: n-P | D65: i-P | E65: n-CC5 | F65: n-CC6 | G65: i-N | H65: Di-N | I65: n-Olefins | J65: i-Olefins | K65: Poly-N | L65: AlS | M65: MoAr | N65: NMAr | O65: DiAr | P65: NDiAr | Q65: PolyAr | R65: ArS | T65: n-P | U65: i-P | V65: n-CC5 | W65: n-CC6 | X65: i-N | Y65: Di-N | Z65: n-Olefins | AA65: i-Olefins | AB65: Poly-N | AC65: AlS | AD65: MoAr | AE65: NMAr | AF65: DiAr | AG65: NDiAr | AH65: PolyAr | AI65: ArS | AK65: n-P | AL65: i-P | AM65: n-CC5 | AN65: n-CC6 | AO65: i-N | AP65: Di-N | AQ65: n-Olefins | AR65: i-Olefins | AS65: Poly-N | AT65: AlS | AU65: MoAr | AV65: NMAr | AW65: DiAr | AX65: NDiAr | AY65: PolyAr | AZ65: ArS | BB65: n-P | BC65: i-P | BD65: n-CC5 | BE65: n-CC6 | BF65: i-N | BG65: Di-N | BH65: n-Olefins | BI65: i-Olefins | BJ65: Poly-N | BK65: AlS | BL65: MoAr | BM65: NMAr | BN65: DiAr | BO65: NDiAr | BP65: PolyAr | BQ65: ArS | BS65: n-P | BT65: i-P | BU65: n-CC5 | BV65: n-CC6 | BW65: i-N | BX65: Di-N | BY65: n-Olefins | BZ65: i-Olefins | CA65: Poly-N | CB65: AlS | CC65: MoAr | CD65: NMAr | CE65: DiAr | CF65: NDiAr | CG65: PolyAr | CH65: ArS | CJ65: n-P | CK65: i-P | CL65: n-CC5 | CM65: n-CC6 | CN65: i-N | CO65: Di-N | CP65: n-Olefins | CQ65: i-Olefins | CR65: Poly-N | CS65: AlS | CT65: MoAr | CU65: NMAr | CV65: DiAr | CW65: NDiAr | CX65: PolyAr | CY65: ArS
C66: (mg/L) | D66: (mg/L) | E66: (mg/L) | F66: (mg/L) | G66: (mg/L) | H66: (mg/L) | I66: (mg/L) | J66: (mg/L) | K66: (mg/L) | L66: (mg/L) | M66: (mg/L) | N66: (mg/L) | O66: (mg/L) | P66: (mg/L) | Q66: (mg/L) | R66: (mg/L) | T66: (mg/kgw) | U66: (mg/kgw) | V66: (mg/kgw) | W66: (mg/kgw) | X66: (mg/kgw) | Y66: (mg/kgw) | Z66: (mg/kgw) | AA66: (mg/kgw) | AB66: (mg/kgw) | AC66: (mg/kgw) | AD66: (mg/kgw) | AE66: (mg/kgw) | AF66: (mg/kgw) | AG66: (mg/kgw) | AH66: (mg/kgw) | AI66: (mg/kgw) | AK66: (mg/L) | AL66: (mg/L) | AM66: (mg/L) | AN66: (mg/L) | AO66: (mg/L) | AP66: (mg/L) | AQ66: (mg/L) | AR66: (mg/L) | AS66: (mg/L) | AT66: (mg/L) | AU66: (mg/L) | AV66: (mg/L) | AW66: (mg/L) | AX66: (mg/L) | AY66: (mg/L) | AZ66: (mg/L) | BB66: (mg/kgw) | BC66: (mg/kgw) | BD66: (mg/kgw) | BE66: (mg/kgw) | BF66: (mg/kgw) | BG66: (mg/kgw) | BH66: (mg/kgw) | BI66: (mg/kgw) | BJ66: (mg/kgw) | BK66: (mg/kgw) | BL66: (mg/kgw) | BM66: (mg/kgw) | BN66: (mg/kgw) | BO66: (mg/kgw) | BP66: (mg/kgw) | BQ66: (mg/kgw) | BS66: (mg/kgw) | BT66: (mg/kgw) | BU66: (mg/kgw) | BV66: (mg/kgw) | BW66: (mg/kgw) | BX66: (mg/kgw) | BY66: (mg/kgw) | BZ66: (mg/kgw) | CA66: (mg/kgw) | CB66: (mg/kgw) | CC66: (mg/kgw) | CD66: (mg/kgw) | CE66: (mg/kgw) | CF66: (mg/kgw) | CG66: (mg/kgw) | CH66: (mg/kgw) | CJ66: (mg/m3) | CK66: (mg/m3) | CL66: (mg/m3) | CM66: (mg/m3) | CN66: (mg/m3) | CO66: (mg/m3) | CP66: (mg/m3) | CQ66: (mg/m3) | CR66: (mg/m3) | CS66: (mg/m3) | CT66: (mg/m3) | CU66: (mg/m3) | CV66: (mg/m3) | CW66: (mg/m3) | CX66: (mg/m3) | CY66: (mg/m3)
B67: 1
B68: 2
B69: 3
B70: 4
B71: 5
B72: 6
B73: 7
B74: 8
B75: 9
B76: 10
C79: RCR | T79: RCR | AK79: RCR | BB79: RCR | BS79: RCR | CJ79: RCR
C80: Compartment: | D80: Fresh Water | T80: Compartment: | U80: Fresh Water Sediment | AK80: Compartment: | AL80: Marine Water | BB80: Compartment: | BC80: Marine Sediment | BS80: Compartment: | BT80: Natural Soil | CJ80: Compartment: | CK80: Air
C81: SUM: | D81: =SUM(C85:R94) -> 0 | T81: SUM: | U81: =SUM(T85:AI94) -> 0 | AK81: SUM: | AL81: =SUM(AK85:AZ94) -> 0 | BB81: SUM: | BC81: =SUM(BB85:BQ94) -> 0 | BS81: SUM: | BT81: =SUM(BS85:CH94) -> 0 | CJ81: SUM: | CK81: =SUM(CJ85:CY94) -> 0
C82: 1 | D82: 2 | E82: 3 | F82: 4 | G82: 5 | H82: 6 | I82: 7 | J82: 8 | K82: 9 | L82: 10 | M82: 11 | N82: 12 | O82: 13 | P82: 14 | Q82: 15 | R82: 16 | T82: 1 | U82: 2 | V82: 3 | W82: 4 | X82: 5 | Y82: 6 | Z82: 7 | AA82: 8 | AB82: 9 | AC82: 10 | AD82: 11 | AE82: 12 | AF82: 13 | AG82: 14 | AH82: 15 | AI82: 16 | AK82: 1 | AL82: 2 | AM82: 3 | AN82: 4 | AO82: 5 | AP82: 6 | AQ82: 7 | AR82: 8 | AS82: 9 | AT82: 10 | AU82: 11 | AV82: 12 | AW82: 13 | AX82: 14 | AY82: 15 | AZ82: 16 | BB82: 1 | BC82: 2 | BD82: 3 | BE82: 4 | BF82: 5 | BG82: 6 | BH82: 7 | BI82: 8 | BJ82: 9 | BK82: 10 | BL82: 11 | BM82: 12 | BN82: 13 | BO82: 14 | BP82: 15 | BQ82: 16 | BS82: 1 | BT82: 2 | BU82: 3 | BV82: 4 | BW82: 5 | BX82: 6 | BY82: 7 | BZ82: 8 | CA82: 9 | CB82: 10 | CC82: 11 | CD82: 12 | CE82: 13 | CF82: 14 | CG82: 15 | CH82: 16 | CJ82: 1 | CK82: 2 | CL82: 3 | CM82: 4 | CN82: 5 | CO82: 6 | CP82: 7 | CQ82: 8 | CR82: 9 | CS82: 10 | CT82: 11 | CU82: 12 | CV82: 13 | CW82: 14 | CX82: 15 | CY82: 16
C83: n-P | D83: i-P | E83: n-CC5 | F83: n-CC6 | G83: i-N | H83: Di-N | I83: n-Olefins | J83: i-Olefins | K83: Poly-N | L83: AlS | M83: MoAr | N83: NMAr | O83: DiAr | P83: NDiAr | Q83: PolyAr | R83: ArS | T83: n-P | U83: i-P | V83: n-CC5 | W83: n-CC6 | X83: i-N | Y83: Di-N | Z83: n-Olefins | AA83: i-Olefins | AB83: Poly-N | AC83: AlS | AD83: MoAr | AE83: NMAr | AF83: DiAr | AG83: NDiAr | AH83: PolyAr | AI83: ArS | AK83: n-P | AL83: i-P | AM83: n-CC5 | AN83: n-CC6 | AO83: i-N | AP83: Di-N | AQ83: n-Olefins | AR83: i-Olefins | AS83: Poly-N | AT83: AlS | AU83: MoAr | AV83: NMAr | AW83: DiAr | AX83: NDiAr | AY83: PolyAr | AZ83: ArS | BB83: n-P | BC83: i-P | BD83: n-CC5 | BE83: n-CC6 | BF83: i-N | BG83: Di-N | BH83: n-Olefins | BI83: i-Olefins | BJ83: Poly-N | BK83: AlS | BL83: MoAr | BM83: NMAr | BN83: DiAr | BO83: NDiAr | BP83: PolyAr | BQ83: ArS | BS83: n-P | BT83: i-P | BU83: n-CC5 | BV83: n-CC6 | BW83: i-N | BX83: Di-N | BY83: n-Olefins | BZ83: i-Olefins | CA83: Poly-N | CB83: AlS | CC83: MoAr | CD83: NMAr | CE83: DiAr | CF83: NDiAr | CG83: PolyAr | CH83: ArS | CJ83: n-P | CK83: i-P | CL83: n-CC5 | CM83: n-CC6 | CN83: i-N | CO83: Di-N | CP83: n-Olefins | CQ83: i-Olefins | CR83: Poly-N | CS83: AlS | CT83: MoAr | CU83: NMAr | CV83: DiAr | CW83: NDiAr | CX83: PolyAr | CY83: ArS
B85: 1
B86: 2
B87: 3
B88: 4
B89: 5
B90: 6
B91: 7
B92: 8
B93: 9
B94: 10
C97: Percent contribution | T97: Percent contribution | AK97: Percent contribution | BB97: Percent contribution | BS97: Percent contribution | CJ97: Percent contribution
C98: Compartment: | D98: Fresh Water | T98: Compartment: | U98: Fresh Water Sediment | AK98: Compartment: | AL98: Marine Water | BB98: Compartment: | BC98: Marine Sediment | BS98: Compartment: | BT98: Natural Soil | CJ98: Compartment: | CK98: Air
C99: SUM: | D99: =SUM(C103:R112) -> 0 | T99: SUM: | U99: =SUM(T103:AI112) -> 0 | AK99: SUM: | AL99: =SUM(AK103:AZ112) ->  | BB99: SUM: | BC99: =SUM(BB103:BQ112) -> 0 | BS99: SUM: | BT99: =SUM(BS103:CH112) -> 0 | CJ99: SUM: | CK99: =SUM(CJ103:CY112) -> 0
C100: 1 | D100: 2 | E100: 3 | F100: 4 | G100: 5 | H100: 6 | I100: 7 | J100: 8 | K100: 9 | L100: 10 | M100: 11 | N100: 12 | O100: 13 | P100: 14 | Q100: 15 | R100: 16 | T100: 1 | U100: 2 | V100: 3 | W100: 4 | X100: 5 | Y100: 6 | Z100: 7 | AA100: 8 | AB100: 9 | AC100: 10 | AD100: 11 | AE100: 12 | AF100: 13 | AG100: 14 | AH100: 15 | AI100: 16 | AK100: 1 | AL100: 2 | AM100: 3 | AN100: 4 | AO100: 5 | AP100: 6 | AQ100: 7 | AR100: 8 | AS100: 9 | AT100: 10 | AU100: 11 | AV100: 12 | AW100: 13 | AX100: 14 | AY100: 15 | AZ100: 16 | BB100: 1 | BC100: 2 | BD100: 3 | BE100: 4 | BF100: 5 | BG100: 6 | BH100: 7 | BI100: 8 | BJ100: 9 | BK100: 10 | BL100: 11 | BM100: 12 | BN100: 13 | BO100: 14 | BP100: 15 | BQ100: 16 | BS100: 1 | BT100: 2 | BU100: 3 | BV100: 4 | BW100: 5 | BX100: 6 | BY100: 7 | BZ100: 8 | CA100: 9 | CB100: 10 | CC100: 11 | CD100: 12 | CE100: 13 | CF100: 14 | CG100: 15 | CH100: 16 | CJ100: 1 | CK100: 2 | CL100: 3 | CM100: 4 | CN100: 5 | CO100: 6 | CP100: 7 | CQ100: 8 | CR100: 9 | CS100: 10 | CT100: 11 | CU100: 12 | CV100: 13 | CW100: 14 | CX100: 15 | CY100: 16
C101: n-P | D101: i-P | E101: n-CC5 | F101: n-CC6 | G101: i-N | H101: Di-N | I101: n-Olefins | J101: i-Olefins | K101: Poly-N | L101: AlS | M101: MoAr | N101: NMAr | O101: DiAr | P101: NDiAr | Q101: PolyAr | R101: ArS | T101: n-P | U101: i-P | V101: n-CC5 | W101: n-CC6 | X101: i-N | Y101: Di-N | Z101: n-Olefins | AA101: i-Olefins | AB101: Poly-N | AC101: AlS | AD101: MoAr | AE101: NMAr | AF101: DiAr | AG101: NDiAr | AH101: PolyAr | AI101: ArS | AK101: n-P | AL101: i-P | AM101: n-CC5 | AN101: n-CC6 | AO101: i-N | AP101: Di-N | AQ101: n-Olefins | AR101: i-Olefins | AS101: Poly-N | AT101: AlS | AU101: MoAr | AV101: NMAr | AW101: DiAr | AX101: NDiAr | AY101: PolyAr | AZ101: ArS | BB101: n-P | BC101: i-P | BD101: n-CC5 | BE101: n-CC6 | BF101: i-N | BG101: Di-N | BH101: n-Olefins | BI101: i-Olefins | BJ101: Poly-N | BK101: AlS | BL101: MoAr | BM101: NMAr | BN101: DiAr | BO101: NDiAr | BP101: PolyAr | BQ101: ArS | BS101: n-P | BT101: i-P | BU101: n-CC5 | BV101: n-CC6 | BW101: i-N | BX101: Di-N | BY101: n-Olefins | BZ101: i-Olefins | CA101: Poly-N | CB101: AlS | CC101: MoAr | CD101: NMAr | CE101: DiAr | CF101: NDiAr | CG101: PolyAr | CH101: ArS | CJ101: n-P | CK101: i-P | CL101: n-CC5 | CM101: n-CC6 | CN101: i-N | CO101: Di-N | CP101: n-Olefins | CQ101: i-Olefins | CR101: Poly-N | CS101: AlS | CT101: MoAr | CU101: NMAr | CV101: DiAr | CW101: NDiAr | CX101: PolyAr | CY101: ArS
B103: 1 | C103: =IF($D$25<=0,"",100*C85/$D$25) ->  | D103: =IF($D$25<=0,"",100*D85/$D$25) ->  | R103: =IF($D$25<=0,"",100*R85/$D$25) ->  | T103: =IF($U$25<=0,"",100*T85/$U$25) -> 0 | U103: =IF($U$25<=0,"",100*U85/$U$25) -> 0 | V103: 0 | W103: 0 | X103: 0 | Y103: 0 | Z103: 0 | AA103: 0 | AB103: 0 | AC103: 0 | AD103: 0 | AE103: 0 | AF103: 0 | AG103: 0 | AH103: 0 | AI103: 0 | AK103: =IF($AL$25<=0,"",100*AK85/$AL$25) ->  | AL103: =IF($AL$25<=0,"",100*AL85/$AL$25) ->  | BB103: =IF($BC$25<=0,"",100*BB85/$BC$25) ->  | BC103: =IF($BC$25<=0,"",100*BC85/$BC$25) ->  | BS103: =IF($BT$25<=0,"",100*BS85/$BT$25) ->  | BT103: =IF($BT$25<=0,"",100*BT85/$BT$25) ->  | CJ103: =IF($CK$25<=0,"",100*CJ85/$CK$25) ->  | CK103: =IF($CK$25<=0,"",100*CK85/$CK$25) -> 
B104: 2 | C104: =IF($D$25<=0,"",100*C86/$D$25) ->  | T104: =IF($U$25<=0,"",100*T86/$U$25) -> 0 | U104: 0 | V104: 0 | W104: 0 | X104: 0 | Y104: 0 | Z104: 0 | AA104: 0 | AB104: 0 | AC104: 0 | AD104: 0 | AE104: 0 | AF104: 0 | AG104: 0 | AH104: 0 | AI104: 0 | AK104: =IF($AL$25<=0,"",100*AK86/$AL$25) ->  | BB104: =IF($BC$25<=0,"",100*BB86/$BC$25) ->  | BS104: =IF($BT$25<=0,"",100*BS86/$BT$25) ->  | CJ104: =IF($CK$25<=0,"",100*CJ86/$CK$25) -> 
B105: 3 | C105: =IF($D$25<=0,"",100*C87/$D$25) ->  | T105: =IF($U$25<=0,"",100*T87/$U$25) -> 0 | U105: 0 | V105: 0 | W105: 0 | X105: 0 | Y105: 0 | Z105: 0 | AA105: 0 | AB105: 0 | AC105: 0 | AD105: 0 | AE105: 0 | AF105: 0 | AG105: 0 | AH105: 0 | AI105: 0 | AK105: =IF($AL$25<=0,"",100*AK87/$AL$25) ->  | BB105: =IF($BC$25<=0,"",100*BB87/$BC$25) ->  | BS105: =IF($BT$25<=0,"",100*BS87/$BT$25) ->  | CJ105: =IF($CK$25<=0,"",100*CJ87/$CK$25) -> 
B106: 4 | C106: =IF($D$25<=0,"",100*C88/$D$25) ->  | T106: =IF($U$25<=0,"",100*T88/$U$25) -> 0 | U106: 0 | V106: 0 | W106: 0 | X106: 0 | Y106: 0 | Z106: 0 | AA106: 0 | AB106: 0 | AC106: 0 | AD106: 0 | AE106: 0 | AF106: 0 | AG106: 0 | AH106: 0 | AI106: 0 | AK106: =IF($AL$25<=0,"",100*AK88/$AL$25) ->  | BB106: =IF($BC$25<=0,"",100*BB88/$BC$25) ->  | BS106: =IF($BT$25<=0,"",100*BS88/$BT$25) ->  | CJ106: =IF($CK$25<=0,"",100*CJ88/$CK$25) -> 
B107: 5 | C107: =IF($D$25<=0,"",100*C89/$D$25) ->  | T107: =IF($U$25<=0,"",100*T89/$U$25) -> 0 | U107: 0 | V107: 0 | W107: 0 | X107: 0 | Y107: 0 | Z107: 0 | AA107: 0 | AB107: 0 | AC107: 0 | AD107: 0 | AE107: 0 | AF107: 0 | AG107: 0 | AH107: 0 | AI107: 0 | AK107: =IF($AL$25<=0,"",100*AK89/$AL$25) ->  | BB107: =IF($BC$25<=0,"",100*BB89/$BC$25) ->  | BS107: =IF($BT$25<=0,"",100*BS89/$BT$25) ->  | CJ107: =IF($CK$25<=0,"",100*CJ89/$CK$25) -> 
B108: 6 | C108: =IF($D$25<=0,"",100*C90/$D$25) ->  | T108: =IF($U$25<=0,"",100*T90/$U$25) -> 0 | U108: 0 | V108: 0 | W108: 0 | X108: 0 | Y108: 0 | Z108: 0 | AA108: 0 | AB108: 0 | AC108: 0 | AD108: 0 | AE108: 0 | AF108: 0 | AG108: 0 | AH108: 0 | AI108: 0 | AK108: =IF($AL$25<=0,"",100*AK90/$AL$25) ->  | BB108: =IF($BC$25<=0,"",100*BB90/$BC$25) ->  | BS108: =IF($BT$25<=0,"",100*BS90/$BT$25) ->  | CJ108: =IF($CK$25<=0,"",100*CJ90/$CK$25) -> 
B109: 7 | C109: =IF($D$25<=0,"",100*C91/$D$25) ->  | T109: =IF($U$25<=0,"",100*T91/$U$25) -> 0 | U109: 0 | V109: 0 | W109: 0 | X109: 0 | Y109: 0 | Z109: 0 | AA109: 0 | AB109: 0 | AC109: 0 | AD109: 0 | AE109: 0 | AF109: 0 | AG109: 0 | AH109: 0 | AI109: 0 | AK109: =IF($AL$25<=0,"",100*AK91/$AL$25) ->  | BB109: =IF($BC$25<=0,"",100*BB91/$BC$25) ->  | BS109: =IF($BT$25<=0,"",100*BS91/$BT$25) ->  | CJ109: =IF($CK$25<=0,"",100*CJ91/$CK$25) -> 
B110: 8 | C110: =IF($D$25<=0,"",100*C92/$D$25) ->  | T110: =IF($U$25<=0,"",100*T92/$U$25) -> 0 | U110: 0 | V110: 0 | W110: 0 | X110: 0 | Y110: 0 | Z110: 0 | AA110: 0 | AB110: 0 | AC110: 0 | AD110: 0 | AE110: 0 | AF110: 0 | AG110: 0 | AH110: 0 | AI110: 0 | AK110: =IF($AL$25<=0,"",100*AK92/$AL$25) ->  | BB110: =IF($BC$25<=0,"",100*BB92/$BC$25) ->  | BS110: =IF($BT$25<=0,"",100*BS92/$BT$25) ->  | CJ110: =IF($CK$25<=0,"",100*CJ92/$CK$25) -> 
B111: 9 | C111: =IF($D$25<=0,"",100*C93/$D$25) ->  | T111: =IF($U$25<=0,"",100*T93/$U$25) -> 0 | U111: 0 | V111: 0 | W111: 0 | X111: 0 | Y111: 0 | Z111: 0 | AA111: 0 | AB111: 0 | AC111: 0 | AD111: 0 | AE111: 0 | AF111: 0 | AG111: 0 | AH111: 0 | AI111: 0 | AK111: =IF($AL$25<=0,"",100*AK93/$AL$25) ->  | BB111: =IF($BC$25<=0,"",100*BB93/$BC$25) ->  | BS111: =IF($BT$25<=0,"",100*BS93/$BT$25) ->  | CJ111: =IF($CK$25<=0,"",100*CJ93/$CK$25) -> 
B112: 10 | C112: =IF($D$25<=0,"",100*C94/$D$25) ->  | T112: =IF($U$25<=0,"",100*T94/$U$25) -> 0 | U112: 0 | V112: 0 | W112: 0 | X112: 0 | Y112: 0 | Z112: 0 | AA112: 0 | AB112: 0 | AC112: 0 | AD112: 0 | AE112: 0 | AF112: 0 | AG112: 0 | AH112: 0 | AI112: 0 | AK112: =IF($AL$25<=0,"",100*AK94/$AL$25) ->  | BB112: =IF($BC$25<=0,"",100*BB94/$BC$25) ->  | BS112: =IF($BT$25<=0,"",100*BS94/$BT$25) ->  | CJ112: =IF($CK$25<=0,"",100*CJ94/$CK$25) -> 
A114: PEC output template - low res, copy B115:T167
C116: PEC | F116: PEC | I116: PEC | L116: PEC | O116: PEC | R116: PEC
C117: Compartment: | D117: Fresh Water | F117: Compartment: | G117: Fresh Water Sediment | I117: Compartment: | J117: Marine Water | L117: Compartment: | M117: Marine Sediment | O117: Compartment: | P117: Natural Soil | R117: Compartment: | S117: Air
C118: SUM: | D118: =SUM(C122:D130) -> 0 | F118: SUM: | G118: =SUM(F122:G130) -> 0 | I118: SUM: | J118: =SUM(I122:J130) -> 0 | L118: SUM: | M118: =SUM(L122:M130) -> 0 | O118: SUM: | P118: =SUM(O122:P130) -> 0 | R118: SUM: | S118: =SUM(R122:S130) -> 0
C119: 1 | D119: 2 | F119: 1 | G119: 2 | I119: 1 | J119: 2 | L119: 1 | M119: 2 | O119: 1 | P119: 2 | R119: 1 | S119: 2
C120: Aliphatic | D120: Aromatic | F120: Aliphatic | G120: Aromatic | I120: Aliphatic | J120: Aromatic | L120: Aliphatic | M120: Aromatic | O120: Aliphatic | P120: Aromatic | R120: Aliphatic | S120: Aromatic
C121: (mg/L) | D121: (mg/L) | F121: (mg/kgw) | G121: (mg/kgw) | I121: (mg/L) | J121: (mg/L) | L121: (mg/kgw) | M121: (mg/kgw) | O121: (mg/kgw) | P121: (mg/kgw) | R121: (mg/m3) | S121: (mg/m3)
B122: 1
B123: 2
B124: 3
B125: 4
B126: 5
B127: 6
B128: 7
B129: 8
B130: 9
C134: RCR | F134: RCR | I134: RCR | L134: RCR | O134: RCR | R134: RCR
C135: Compartment: | D135: Fresh Water | F135: Compartment: | G135: Fresh Water Sediment | I135: Compartment: | J135: Marine Water | L135: Compartment: | M135: Marine Sediment | O135: Compartment: | P135: Natural Soil | R135: Compartment: | S135: Air
C136: SUM: | D136: =SUM(C140:D148) -> 0 | F136: SUM: | G136: =SUM(F140:G148) -> 0 | I136: SUM: | J136: =SUM(I140:J148) -> 0 | L136: SUM: | M136: =SUM(L140:M148) -> 0 | O136: SUM: | P136: =SUM(O140:P148) -> 0 | R136: SUM: | S136: =SUM(R140:S148) -> 0
C137: 1 | D137: 2 | F137: 1 | G137: 2 | I137: 1 | J137: 2 | L137: 1 | M137: 2 | O137: 1 | P137: 2 | R137: 1 | S137: 2
C138: Aliphatic | D138: Aromatic | F138: Aliphatic | G138: Aromatic | I138: Aliphatic | J138: Aromatic | L138: Aliphatic | M138: Aromatic | O138: Aliphatic | P138: Aromatic | R138: Aliphatic | S138: Aromatic
B140: 1
B141: 2
B142: 3
B143: 4
B144: 5
B145: 6
B146: 7
B147: 8
B148: 9
C152: Percent contribution | F152: Percent contribution | I152: Percent contribution | L152: Percent contribution | O152: Percent contribution | R152: Percent contribution
C153: Compartment: | D153: Fresh Water | F153: Compartment: | G153: Fresh Water Sediment | I153: Compartment: | J153: Marine Water | L153: Compartment: | M153: Marine Sediment | O153: Compartment: | P153: Natural Soil | R153: Compartment: | S153: Air
C154: SUM: | D154: =SUM(C158:D166) -> 0 | F154: SUM: | G154: =SUM(F158:G166) -> 0 | I154: SUM: | J154: =SUM(I158:J166) -> 0 | L154: SUM: | M154: =SUM(L158:M166) -> 0 | O154: SUM: | P154: =SUM(O158:P166) -> 0 | R154: SUM: | S154: =SUM(R158:S166) -> 0
C155: 1 | D155: 2 | F155: 1 | G155: 2 | I155: 1 | J155: 2 | L155: 1 | M155: 2 | O155: 1 | P155: 2 | R155: 1 | S155: 2
C156: Aliphatic | D156: Aromatic | F156: Aliphatic | G156: Aromatic | I156: Aliphatic | J156: Aromatic | L156: Aliphatic | M156: Aromatic | O156: Aliphatic | P156: Aromatic | R156: Aliphatic | S156: Aromatic
B158: 1 | C158: =IF($D$25<=0,"",100*C140/$D$25) ->  | D158: =IF($D$25<=0,"",100*D140/$D$25) ->  | F158: =IF($G$25<=0,"",100*F140/$G$25) -> 0 | G158: =IF($G$25<=0,"",100*G140/$G$25) -> 0 | I158: =IF($J$25<=0,"",100*I140/$J$25) -> 0 | J158: =IF($J$25<=0,"",100*J140/$J$25) -> 0 | L158: =IF($M$25<=0,"",100*L140/$M$25) -> 0 | M158: =IF($M$25<=0,"",100*M140/$M$25) -> 0 | O158: =IF($P$25<=0,"",100*O140/$P$25) -> 0 | P158: =IF($P$25<=0,"",100*P140/$P$25) -> 0 | R158: =IF($S$25<=0,"",100*R140/$S$25) -> 0 | S158: =IF($S$25<=0,"",100*S140/$S$25) -> 0
B159: 2 | F159: 0 | G159: 0 | I159: 0 | J159: 0 | L159: 0 | M159: 0 | O159: 0 | P159: 0 | R159: 0 | S159: 0
B160: 3 | F160: 0 | G160: 0 | I160: 0 | J160: 0 | L160: 0 | M160: 0 | O160: 0 | P160: 0 | R160: 0 | S160: 0
B161: 4 | F161: 0 | G161: 0 | I161: 0 | J161: 0 | L161: 0 | M161: 0 | O161: 0 | P161: 0 | R161: 0 | S161: 0
B162: 5 | F162: 0 | G162: 0 | I162: 0 | J162: 0 | L162: 0 | M162: 0 | O162: 0 | P162: 0 | R162: 0 | S162: 0
B163: 6 | F163: 0 | G163: 0 | I163: 0 | J163: 0 | L163: 0 | M163: 0 | O163: 0 | P163: 0 | R163: 0 | S163: 0
B164: 7 | F164: 0 | G164: 0 | I164: 0 | J164: 0 | L164: 0 | M164: 0 | O164: 0 | P164: 0 | R164: 0 | S164: 0
B165: 8 | F165: 0 | G165: 0 | I165: 0 | J165: 0 | L165: 0 | M165: 0 | O165: 0 | P165: 0 | R165: 0 | S165: 0
B166: 9 | F166: 0 | G166: 0 | I166: 0 | J166: 0 | L166: 0 | M166: 0 | O166: 0 | P166: 0 | R166: 0 | S166: 0
A168: Human intake fraction template, high res, copy B169:BJ217
C172: Human Intake Fraction | W172: Human Intake Fraction | AQ172: Human Intake Fraction
C173: Compartment: | D173: Air | W173: Compartment: | X173: Water | AQ173: Compartment: | AR173: Soil
C174: SUM: | D174: =SUM(C178:R187) -> 0 | W174: SUM: | X174: =SUM(W178:AL187) -> 0 | AQ174: SUM: | AR174: =SUM(AQ178:BF187) -> 0
C175: 1 | D175: 2 | E175: 3 | F175: 4 | G175: 5 | H175: 6 | I175: 7 | J175: 8 | K175: 9 | L175: 10 | M175: 11 | N175: 12 | O175: 13 | P175: 14 | Q175: 15 | R175: 16 | W175: 1 | X175: 2 | Y175: 3 | Z175: 4 | AA175: 5 | AB175: 6 | AC175: 7 | AD175: 8 | AE175: 9 | AF175: 10 | AG175: 11 | AH175: 12 | AI175: 13 | AJ175: 14 | AK175: 15 | AL175: 16 | AQ175: 1 | AR175: 2 | AS175: 3 | AT175: 4 | AU175: 5 | AV175: 6 | AW175: 7 | AX175: 8 | AY175: 9 | AZ175: 10 | BA175: 11 | BB175: 12 | BC175: 13 | BD175: 14 | BE175: 15 | BF175: 16
C176: n-P | D176: i-P | E176: n-CC5 | F176: n-CC6 | G176: i-N | H176: Di-N | I176: n-Olefins | J176: i-Olefins | K176: Poly-N | L176: AlS | M176: MoAr | N176: NMAr | O176: DiAr | P176: NDiAr | Q176: PolyAr | R176: ArS | W176: n-P | X176: i-P | Y176: n-CC5 | Z176: n-CC6 | AA176: i-N | AB176: Di-N | AC176: n-Olefins | AD176: i-Olefins | AE176: Poly-N | AF176: AlS | AG176: MoAr | AH176: NMAr | AI176: DiAr | AJ176: NDiAr | AK176: PolyAr | AL176: ArS | AQ176: n-P | AR176: i-P | AS176: n-CC5 | AT176: n-CC6 | AU176: i-N | AV176: Di-N | AW176: n-Olefins | AX176: i-Olefins | AY176: Poly-N | AZ176: AlS | BA176: MoAr | BB176: NMAr | BC176: DiAr | BD176: NDiAr | BE176: PolyAr | BF176: ArS
C177: (ug/kg/d) | D177: (ug/kg/d) | E177: (ug/kg/d) | F177: (ug/kg/d) | G177: (ug/kg/d) | H177: (ug/kg/d) | I177: (ug/kg/d) | J177: (ug/kg/d) | K177: (ug/kg/d) | L177: (ug/kg/d) | M177: (ug/kg/d) | N177: (ug/kg/d) | O177: (ug/kg/d) | P177: (ug/kg/d) | Q177: (ug/kg/d) | R177: (ug/kg/d) | W177: (ug/kg/d) | X177: (ug/kg/d) | Y177: (ug/kg/d) | Z177: (ug/kg/d) | AA177: (ug/kg/d) | AB177: (ug/kg/d) | AC177: (ug/kg/d) | AD177: (ug/kg/d) | AE177: (ug/kg/d) | AF177: (ug/kg/d) | AG177: (ug/kg/d) | AH177: (ug/kg/d) | AI177: (ug/kg/d) | AJ177: (ug/kg/d) | AK177: (ug/kg/d) | AL177: (ug/kg/d) | AQ177: (ug/kg/d) | AR177: (ug/kg/d) | AS177: (ug/kg/d) | AT177: (ug/kg/d) | AU177: (ug/kg/d) | AV177: (ug/kg/d) | AW177: (ug/kg/d) | AX177: (ug/kg/d) | AY177: (ug/kg/d) | AZ177: (ug/kg/d) | BA177: (ug/kg/d) | BB177: (ug/kg/d) | BC177: (ug/kg/d) | BD177: (ug/kg/d) | BE177: (ug/kg/d) | BF177: (ug/kg/d)
B178: 1
B179: 2
B180: 3
B181: 4
B182: 5
B183: 6
B184: 7
B185: 8
B186: 9
B187: 10
C196: Human Intake Fraction
C197: Compartment: | D197: Summary
C198: SUM: | D198: =SUM(C202:R211) -> 0
C199: 1 | D199: 2 | E199: 3 | F199: 4 | G199: 5 | H199: 6 | I199: 7 | J199: 8 | K199: 9 | L199: 10 | M199: 11 | N199: 12 | O199: 13 | P199: 14 | Q199: 15 | R199: 16
C200: n-P | D200: i-P | E200: n-CC5 | F200: n-CC6 | G200: i-N | H200: Di-N | I200: n-Olefins | J200: i-Olefins | K200: Poly-N | L200: AlS | M200: MoAr | N200: NMAr | O200: DiAr | P200: NDiAr | Q200: PolyAr | R200: ArS
C201: (ug/kg/d) | D201: (ug/kg/d) | E201: (ug/kg/d) | F201: (ug/kg/d) | G201: (ug/kg/d) | H201: (ug/kg/d) | I201: (ug/kg/d) | J201: (ug/kg/d) | K201: (ug/kg/d) | L201: (ug/kg/d) | M201: (ug/kg/d) | N201: (ug/kg/d) | O201: (ug/kg/d) | P201: (ug/kg/d) | Q201: (ug/kg/d) | R201: (ug/kg/d)
B202: 1
B203: 2
B204: 3
B205: 4
B206: 5
B207: 6
B208: 7
B209: 8
B210: 9
B211: 10
A220: Human intake fraction template, low res, copy B221:T269
C224: Human Intake Fraction | I224: Human Intake Fraction | O224: Human Intake Fraction
C225: Compartment: | D225: Air | I225: Compartment: | J225: Water | O225: Compartment: | P225: Soil
C226: SUM: | D226: =SUM(C230:D238) -> 0 | I226: SUM: | J226: =SUM(I230:J238) -> 0 | O226: SUM: | P226: =SUM(O230:P238) -> 0
C227: 1 | D227: 2 | I227: 1 | J227: 2 | O227: 1 | P227: 2
C228: Aliphatic | D228: Aromatic | I228: Aliphatic | J228: Aromatic | O228: Aliphatic | P228: Aromatic
C229: (ug/kg/d) | D229: (ug/kg/d) | I229: (ug/kg/d) | J229: (ug/kg/d) | O229: (ug/kg/d) | P229: (ug/kg/d)
B230: 1
B231: 2
B232: 3
B233: 4
B234: 5
B235: 6
B236: 7
B237: 8
B238: 9
C248: Human Intake Fraction
C249: Compartment: | D249: Summary
C250: SUM: | D250: =SUM(C254:D262) -> 0
C251: 1 | D251: 2
... 146 more rows

Sheet Multimedia Distribution (hidden)
B2: Results from Regional Calculations
D3: PEC | E3: units | G3: Vol/Mass | H3: Units | I3: Mass (kg) | J3: Distribution (%) | M3: Volumes | P3: Parameters from Eutgdsheet v123
C4: Fresh Water | E4: mg/L | G4: =M4*1000 -> 3600000000000 | H4: L | I4: =G4*D4*10^-6 -> 0 | J4: =I4/$I$13*100 ->  | L4: FW | M4: =Q5*Q6*1000000*Q14 -> 3600000000 | N4: m3 | P4: Density | Q4: 2500 | R4: Kg/m3
C5: Fresh Water Sediment | E5: mg/kgw | G5: =M5*Q4 -> 300000000000 | H5: kg | I5: 0 | J5: =I5/$I$13*100 ->  | L5: Sediment | M5: =Q5*Q6*1000000*0.1 -> 120000000 | N5: m3 | P5: Area of Region | Q5: 40000 | R5: Km2
C6: Marine Water | E6: mg/L | G6: =M6*1000 -> 4000000000000 | H6: L | I6: 0 | L6: Marine | M6: =Q12*Q15 -> 4000000000 | N6: m3 | P6: Frac fw | Q6: 0.03 | R6: fr
C7: Marine Sediment | E7: mg/kgw | G7: =M7*Q4 -> 100000000000 | H7: kg | I7: 0 | L7: MrSed | M7: =Q12*0.1 -> 40000000 | N7: m3 | P7: Frac Natural | Q7: 0.27 | R7: fr
C8: Natural Soil | E8: mg/kgw | G8: =M8*Q4 -> 2700000000000 | H8: kg | I8: 0 | L8: Nat Soil | M8: =(Q7)*Q5*1000000*Q13 -> 1080000000 | N8: m3 | P8: Frac Ag soil | Q8: 0.6 | R8: fr
C9: Air | E9: mg/m3 | G9: =M9 -> 40000000000000 | H9: m3 | I9: 0 | L9: Air | M9: =Q5*1000000*Q16 -> 40000000000000 | N9: m3 | P9: Frac Urban | Q9: 0.1 | R9: fr
C10: Agricultural Soil | E10: mg/kgw | G10: =M10*Q4 -> 6000000000000 | H10: kg | I10: 0 | L10: Ag Soil | M10: =(Q8)*Q5*1000000*Q13 -> 2400000000 | N10: m3 | P10: Length regional sea water | Q10: 40000 | R10: m
C11: Fish | E11: mg/kgw | J11: =SUM(J4:J10) ->  | K11: sum | P11: Width regional sea water | Q11: 10000 | R11: m
C12: Leaf | E12: mg/kgw | P12: Area Sea | Q12: =Q11*Q10 -> 400000000 | R12: m2
C13: Root | E13: mg/kgw | H13: Total Mass | I13: =SUM(I4:I10) -> 0 | J13: kg hydrocarbons | P13: Mixing depth Soil/Sed | Q13: 0.1 | R13: m
C14: Meat | E14: mg/kgw | P14: Depth FW | Q14: 3 | R14: m
C15: Milk | E15: mg/kgw | P15: Depth Sea | Q15: 10 | R15: m
C16: Drinking Water | E16: mg/L | P16: Height Air | Q16: 1000 | R16: m

Sheet ProductLibrary (hidden)
B1: output field: | C1: A1:U1520 | E1: NOTES | U1: Product mass | V1: Aq. Solubility-scaled | W1: VP-scaled
C2: =IF(COUNT('product composition'!D10:D19)>9,"HighResolution","Low Resolution") -> HighResolution | L2: Half-Lives | U2: Emission Speciation for Soil | V2: Emmision Speciation for Water | W2: Emission Speciation for Air
C3: Block ID | D3: Compound | E3: Chemical | F3: SMILES | G3: Chemical | H3: Water Solubility | I3: Log Henry's Law Constant | J3: Log (KOW) | K3: Log (KOC) | L3: Air | M3: Water | N3: Soil | O3: Sediment | P3: Wastewater | Q3: Aqueous HC5 | R3: Wastewater HC5 | S3: Soil HC5 | T3: sediment HC5 | U3: Mass Fraction | V3: Mass Fraction | W3: Mass Fraction
A4: count: | B4: =COUNT(D8:D1529) -> 0 | C4: Block, Class | D4: ID | E4: Name | G4: Class | H4: (mg/L) | I4: (atm-m3/mol) | L4: Hrs | M4: Days | N4: Days | O4: Days | P4: Hrs | Q4: (ug/L) | R4: (ug/L) | S4: mg/kg WW | T4: mg/kg WW | U4: =SUM(U8:U1529) -> 0 | V4: =SUM(V8:V1529) -> 0 | W4: =SUM(W8:W1529) -> 0
B5: Max | H5: =MAX(H8:H1529) -> 0 | I5: =MAX(I8:I1529) -> 0 | J5: =MAX(J8:J1529) -> 0 | K5: =MAX(K8:K1529) -> 0 | L5: 0 | M5: 0 | N5: 0 | O5: 0 | P5: 0 | Q5: 0 | R5: 0 | S5: 0 | T5: 0
B6: Min | H6: =MIN(H8:H1529) -> 0 | I6: =MIN(I8:I1529) -> 0 | J6: =MIN(J8:J1529) -> 0 | K6: =MIN(K8:K1529) -> 0 | L6: 0 | M6: 0 | N6: 0 | O6: 0 | P6: 0 | Q6: 0 | R6: 0 | S6: 0 | T6: 0
B8: Detailed output | E8: =IF(D8="","",VLOOKUP($D8,'Concawe Library'!$A$4:$AI$1563,3,FALSE)) ->  | F8: =IF(D8="","",VLOOKUP($D8,'Concawe Library'!$A$4:$AI$1563,4,FALSE)) ->  | G8: =IF(D8="","",VLOOKUP($D8,'Concawe Library'!$A$4:$AI$1563,6,FALSE)) ->  | H8: =IF(D8="","",VLOOKUP($D8,'Concawe Library'!$A$4:$AI$1563,11,FALSE)) ->  | I8: =IF(D8="","",LOG(VLOOKUP($D8,'Concawe Library'!$A$4:$AI$1563,13,FALSE))) ->  | J8: =IF(D8="","",VLOOKUP($D8,'Concawe Library'!$A$4:$AI$1563,14,FALSE)) ->  | K8: =IF(D8="","",LOG(VLOOKUP($D8,'Concawe Library'!$A$4:$AI$1563,28,FALSE))) ->  | L8: =IF(D8="","",VLOOKUP($D8,'Concawe Library'!$A$4:$AI$1563,31,FALSE)) ->  | M8: =IF(D8="","",VLOOKUP($D8,'Concawe Library'!$A$4:$AI$1563,32,FALSE)) ->  | N8: =IF(D8="","",VLOOKUP($D8,'Concawe Library'!$A$4:$AI$1563,33,FALSE)) ->  | O8: =IF(D8="","",VLOOKUP($D8,'Concawe Library'!$A$4:$AI$1563,34,FALSE)) ->  | P8: =IF(D8="","",VLOOKUP($D8,'Concawe Library'!$A$4:$AI$1563,35,FALSE)) ->  | Q8: =IF(D8="","",VLOOKUP($D8,'Concawe Library'!$A$4:$AI$1563,25,FALSE)) ->  | R8: =IF(D8="","",VLOOKUP($D8,'Concawe Library'!$A$4:$AI$1563,26,FALSE)) ->  | S8: =IF(D8="","",VLOOKUP($D8,'Concawe Library'!$A$4:$AI$1563,30,FALSE)) ->  | T8: =IF(D8="","",VLOOKUP($D8,'Concawe Library'!$A$4:$AI$1563,29,FALSE)) -> 
E9: =IF(D9="","",VLOOKUP($D9,'Concawe Library'!$A$4:$AI$1563,3,FALSE)) ->  | F9: =IF(D9="","",VLOOKUP($D9,'Concawe Library'!$A$4:$AI$1563,4,FALSE)) ->  | G9: =IF(D9="","",VLOOKUP($D9,'Concawe Library'!$A$4:$AI$1563,6,FALSE)) ->  | H9: =IF(D9="","",VLOOKUP($D9,'Concawe Library'!$A$4:$AI$1563,11,FALSE)) ->  | I9: =IF(D9="","",LOG(VLOOKUP($D9,'Concawe Library'!$A$4:$AI$1563,13,FALSE))) ->  | J9: =IF(D9="","",VLOOKUP($D9,'Concawe Library'!$A$4:$AI$1563,14,FALSE)) ->  | K9: =IF(D9="","",LOG(VLOOKUP($D9,'Concawe Library'!$A$4:$AI$1563,28,FALSE))) ->  | L9: =IF(D9="","",VLOOKUP($D9,'Concawe Library'!$A$4:$AI$1563,31,FALSE)) ->  | M9: =IF(D9="","",VLOOKUP($D9,'Concawe Library'!$A$4:$AI$1563,32,FALSE)) ->  | N9: =IF(D9="","",VLOOKUP($D9,'Concawe Library'!$A$4:$AI$1563,33,FALSE)) ->  | O9: =IF(D9="","",VLOOKUP($D9,'Concawe Library'!$A$4:$AI$1563,34,FALSE)) ->  | P9: =IF(D9="","",VLOOKUP($D9,'Concawe Library'!$A$4:$AI$1563,35,FALSE)) ->  | Q9: =IF(D9="","",VLOOKUP($D9,'Concawe Library'!$A$4:$AI$1563,25,FALSE)) ->  | R9: =IF(D9="","",VLOOKUP($D9,'Concawe Library'!$A$4:$AI$1563,26,FALSE)) ->  | S9: =IF(D9="","",VLOOKUP($D9,'Concawe Library'!$A$4:$AI$1563,30,FALSE)) ->  | T9: =IF(D9="","",VLOOKUP($D9,'Concawe Library'!$A$4:$AI$1563,29,FALSE)) -> 
E10: =IF(D10="","",VLOOKUP($D10,'Concawe Library'!$A$4:$AI$1563,3,FALSE)) ->  | F10: =IF(D10="","",VLOOKUP($D10,'Concawe Library'!$A$4:$AI$1563,4,FALSE)) ->  | G10: =IF(D10="","",VLOOKUP($D10,'Concawe Library'!$A$4:$AI$1563,6,FALSE)) ->  | H10: =IF(D10="","",VLOOKUP($D10,'Concawe Library'!$A$4:$AI$1563,11,FALSE)) ->  | I10: =IF(D10="","",LOG(VLOOKUP($D10,'Concawe Library'!$A$4:$AI$1563,13,FALSE))) ->  | J10: =IF(D10="","",VLOOKUP($D10,'Concawe Library'!$A$4:$AI$1563,14,FALSE)) ->  | K10: =IF(D10="","",LOG(VLOOKUP($D10,'Concawe Library'!$A$4:$AI$1563,28,FALSE))) ->  | L10: =IF(D10="","",VLOOKUP($D10,'Concawe Library'!$A$4:$AI$1563,31,FALSE)) ->  | M10: =IF(D10="","",VLOOKUP($D10,'Concawe Library'!$A$4:$AI$1563,32,FALSE)) ->  | N10: =IF(D10="","",VLOOKUP($D10,'Concawe Library'!$A$4:$AI$1563,33,FALSE)) ->  | O10: =IF(D10="","",VLOOKUP($D10,'Concawe Library'!$A$4:$AI$1563,34,FALSE)) ->  | P10: =IF(D10="","",VLOOKUP($D10,'Concawe Library'!$A$4:$AI$1563,35,FALSE)) ->  | Q10: =IF(D10="","",VLOOKUP($D10,'Concawe Library'!$A$4:$AI$1563,25,FALSE)) ->  | R10: =IF(D10="","",VLOOKUP($D10,'Concawe Library'!$A$4:$AI$1563,26,FALSE)) ->  | S10: =IF(D10="","",VLOOKUP($D10,'Concawe Library'!$A$4:$AI$1563,30,FALSE)) ->  | T10: =IF(D10="","",VLOOKUP($D10,'Concawe Library'!$A$4:$AI$1563,29,FALSE)) -> 
E11: =IF(D11="","",VLOOKUP($D11,'Concawe Library'!$A$4:$AI$1563,3,FALSE)) ->  | F11: =IF(D11="","",VLOOKUP($D11,'Concawe Library'!$A$4:$AI$1563,4,FALSE)) ->  | G11: =IF(D11="","",VLOOKUP($D11,'Concawe Library'!$A$4:$AI$1563,6,FALSE)) ->  | H11: =IF(D11="","",VLOOKUP($D11,'Concawe Library'!$A$4:$AI$1563,11,FALSE)) ->  | I11: =IF(D11="","",LOG(VLOOKUP($D11,'Concawe Library'!$A$4:$AI$1563,13,FALSE))) ->  | J11: =IF(D11="","",VLOOKUP($D11,'Concawe Library'!$A$4:$AI$1563,14,FALSE)) ->  | K11: =IF(D11="","",LOG(VLOOKUP($D11,'Concawe Library'!$A$4:$AI$1563,28,FALSE))) ->  | L11: =IF(D11="","",VLOOKUP($D11,'Concawe Library'!$A$4:$AI$1563,31,FALSE)) ->  | M11: =IF(D11="","",VLOOKUP($D11,'Concawe Library'!$A$4:$AI$1563,32,FALSE)) ->  | N11: =IF(D11="","",VLOOKUP($D11,'Concawe Library'!$A$4:$AI$1563,33,FALSE)) ->  | O11: =IF(D11="","",VLOOKUP($D11,'Concawe Library'!$A$4:$AI$1563,34,FALSE)) ->  | P11: =IF(D11="","",VLOOKUP($D11,'Concawe Library'!$A$4:$AI$1563,35,FALSE)) ->  | Q11: =IF(D11="","",VLOOKUP($D11,'Concawe Library'!$A$4:$AI$1563,25,FALSE)) ->  | R11: =IF(D11="","",VLOOKUP($D11,'Concawe Library'!$A$4:$AI$1563,26,FALSE)) ->  | S11: =IF(D11="","",VLOOKUP($D11,'Concawe Library'!$A$4:$AI$1563,30,FALSE)) ->  | T11: =IF(D11="","",VLOOKUP($D11,'Concawe Library'!$A$4:$AI$1563,29,FALSE)) -> 
E12: =IF(D12="","",VLOOKUP($D12,'Concawe Library'!$A$4:$AI$1563,3,FALSE)) ->  | F12: =IF(D12="","",VLOOKUP($D12,'Concawe Library'!$A$4:$AI$1563,4,FALSE)) ->  | G12: =IF(D12="","",VLOOKUP($D12,'Concawe Library'!$A$4:$AI$1563,6,FALSE)) ->  | H12: =IF(D12="","",VLOOKUP($D12,'Concawe Library'!$A$4:$AI$1563,11,FALSE)) ->  | I12: =IF(D12="","",LOG(VLOOKUP($D12,'Concawe Library'!$A$4:$AI$1563,13,FALSE))) ->  | J12: =IF(D12="","",VLOOKUP($D12,'Concawe Library'!$A$4:$AI$1563,14,FALSE)) ->  | K12: =IF(D12="","",LOG(VLOOKUP($D12,'Concawe Library'!$A$4:$AI$1563,28,FALSE))) ->  | L12: =IF(D12="","",VLOOKUP($D12,'Concawe Library'!$A$4:$AI$1563,31,FALSE)) ->  | M12: =IF(D12="","",VLOOKUP($D12,'Concawe Library'!$A$4:$AI$1563,32,FALSE)) ->  | N12: =IF(D12="","",VLOOKUP($D12,'Concawe Library'!$A$4:$AI$1563,33,FALSE)) ->  | O12: =IF(D12="","",VLOOKUP($D12,'Concawe Library'!$A$4:$AI$1563,34,FALSE)) ->  | P12: =IF(D12="","",VLOOKUP($D12,'Concawe Library'!$A$4:$AI$1563,35,FALSE)) ->  | Q12: =IF(D12="","",VLOOKUP($D12,'Concawe Library'!$A$4:$AI$1563,25,FALSE)) ->  | R12: =IF(D12="","",VLOOKUP($D12,'Concawe Library'!$A$4:$AI$1563,26,FALSE)) ->  | S12: =IF(D12="","",VLOOKUP($D12,'Concawe Library'!$A$4:$AI$1563,30,FALSE)) ->  | T12: =IF(D12="","",VLOOKUP($D12,'Concawe Library'!$A$4:$AI$1563,29,FALSE)) -> 
E13: =IF(D13="","",VLOOKUP($D13,'Concawe Library'!$A$4:$AI$1563,3,FALSE)) ->  | F13: =IF(D13="","",VLOOKUP($D13,'Concawe Library'!$A$4:$AI$1563,4,FALSE)) ->  | G13: =IF(D13="","",VLOOKUP($D13,'Concawe Library'!$A$4:$AI$1563,6,FALSE)) ->  | H13: =IF(D13="","",VLOOKUP($D13,'Concawe Library'!$A$4:$AI$1563,11,FALSE)) ->  | I13: =IF(D13="","",LOG(VLOOKUP($D13,'Concawe Library'!$A$4:$AI$1563,13,FALSE))) ->  | J13: =IF(D13="","",VLOOKUP($D13,'Concawe Library'!$A$4:$AI$1563,14,FALSE)) ->  | K13: =IF(D13="","",LOG(VLOOKUP($D13,'Concawe Library'!$A$4:$AI$1563,28,FALSE))) ->  | L13: =IF(D13="","",VLOOKUP($D13,'Concawe Library'!$A$4:$AI$1563,31,FALSE)) ->  | M13: =IF(D13="","",VLOOKUP($D13,'Concawe Library'!$A$4:$AI$1563,32,FALSE)) ->  | N13: =IF(D13="","",VLOOKUP($D13,'Concawe Library'!$A$4:$AI$1563,33,FALSE)) ->  | O13: =IF(D13="","",VLOOKUP($D13,'Concawe Library'!$A$4:$AI$1563,34,FALSE)) ->  | P13: =IF(D13="","",VLOOKUP($D13,'Concawe Library'!$A$4:$AI$1563,35,FALSE)) ->  | Q13: =IF(D13="","",VLOOKUP($D13,'Concawe Library'!$A$4:$AI$1563,25,FALSE)) ->  | R13: =IF(D13="","",VLOOKUP($D13,'Concawe Library'!$A$4:$AI$1563,26,FALSE)) ->  | S13: =IF(D13="","",VLOOKUP($D13,'Concawe Library'!$A$4:$AI$1563,30,FALSE)) ->  | T13: =IF(D13="","",VLOOKUP($D13,'Concawe Library'!$A$4:$AI$1563,29,FALSE)) -> 
E14: =IF(D14="","",VLOOKUP($D14,'Concawe Library'!$A$4:$AI$1563,3,FALSE)) ->  | F14: =IF(D14="","",VLOOKUP($D14,'Concawe Library'!$A$4:$AI$1563,4,FALSE)) ->  | G14: =IF(D14="","",VLOOKUP($D14,'Concawe Library'!$A$4:$AI$1563,6,FALSE)) ->  | H14: =IF(D14="","",VLOOKUP($D14,'Concawe Library'!$A$4:$AI$1563,11,FALSE)) ->  | I14: =IF(D14="","",LOG(VLOOKUP($D14,'Concawe Library'!$A$4:$AI$1563,13,FALSE))) ->  | J14: =IF(D14="","",VLOOKUP($D14,'Concawe Library'!$A$4:$AI$1563,14,FALSE)) ->  | K14: =IF(D14="","",LOG(VLOOKUP($D14,'Concawe Library'!$A$4:$AI$1563,28,FALSE))) ->  | L14: =IF(D14="","",VLOOKUP($D14,'Concawe Library'!$A$4:$AI$1563,31,FALSE)) ->  | M14: =IF(D14="","",VLOOKUP($D14,'Concawe Library'!$A$4:$AI$1563,32,FALSE)) ->  | N14: =IF(D14="","",VLOOKUP($D14,'Concawe Library'!$A$4:$AI$1563,33,FALSE)) ->  | O14: =IF(D14="","",VLOOKUP($D14,'Concawe Library'!$A$4:$AI$1563,34,FALSE)) ->  | P14: =IF(D14="","",VLOOKUP($D14,'Concawe Library'!$A$4:$AI$1563,35,FALSE)) ->  | Q14: =IF(D14="","",VLOOKUP($D14,'Concawe Library'!$A$4:$AI$1563,25,FALSE)) ->  | R14: =IF(D14="","",VLOOKUP($D14,'Concawe Library'!$A$4:$AI$1563,26,FALSE)) ->  | S14: =IF(D14="","",VLOOKUP($D14,'Concawe Library'!$A$4:$AI$1563,30,FALSE)) ->  | T14: =IF(D14="","",VLOOKUP($D14,'Concawe Library'!$A$4:$AI$1563,29,FALSE)) -> 
E15: =IF(D15="","",VLOOKUP($D15,'Concawe Library'!$A$4:$AI$1563,3,FALSE)) ->  | F15: =IF(D15="","",VLOOKUP($D15,'Concawe Library'!$A$4:$AI$1563,4,FALSE)) ->  | G15: =IF(D15="","",VLOOKUP($D15,'Concawe Library'!$A$4:$AI$1563,6,FALSE)) ->  | H15: =IF(D15="","",VLOOKUP($D15,'Concawe Library'!$A$4:$AI$1563,11,FALSE)) ->  | I15: =IF(D15="","",LOG(VLOOKUP($D15,'Concawe Library'!$A$4:$AI$1563,13,FALSE))) ->  | J15: =IF(D15="","",VLOOKUP($D15,'Concawe Library'!$A$4:$AI$1563,14,FALSE)) ->  | K15: =IF(D15="","",LOG(VLOOKUP($D15,'Concawe Library'!$A$4:$AI$1563,28,FALSE))) ->  | L15: =IF(D15="","",VLOOKUP($D15,'Concawe Library'!$A$4:$AI$1563,31,FALSE)) ->  | M15: =IF(D15="","",VLOOKUP($D15,'Concawe Library'!$A$4:$AI$1563,32,FALSE)) ->  | N15: =IF(D15="","",VLOOKUP($D15,'Concawe Library'!$A$4:$AI$1563,33,FALSE)) ->  | O15: =IF(D15="","",VLOOKUP($D15,'Concawe Library'!$A$4:$AI$1563,34,FALSE)) ->  | P15: =IF(D15="","",VLOOKUP($D15,'Concawe Library'!$A$4:$AI$1563,35,FALSE)) ->  | Q15: =IF(D15="","",VLOOKUP($D15,'Concawe Library'!$A$4:$AI$1563,25,FALSE)) ->  | R15: =IF(D15="","",VLOOKUP($D15,'Concawe Library'!$A$4:$AI$1563,26,FALSE)) ->  | S15: =IF(D15="","",VLOOKUP($D15,'Concawe Library'!$A$4:$AI$1563,30,FALSE)) ->  | T15: =IF(D15="","",VLOOKUP($D15,'Concawe Library'!$A$4:$AI$1563,29,FALSE)) -> 
E16: =IF(D16="","",VLOOKUP($D16,'Concawe Library'!$A$4:$AI$1563,3,FALSE)) ->  | F16: =IF(D16="","",VLOOKUP($D16,'Concawe Library'!$A$4:$AI$1563,4,FALSE)) ->  | G16: =IF(D16="","",VLOOKUP($D16,'Concawe Library'!$A$4:$AI$1563,6,FALSE)) ->  | H16: =IF(D16="","",VLOOKUP($D16,'Concawe Library'!$A$4:$AI$1563,11,FALSE)) ->  | I16: =IF(D16="","",LOG(VLOOKUP($D16,'Concawe Library'!$A$4:$AI$1563,13,FALSE))) ->  | J16: =IF(D16="","",VLOOKUP($D16,'Concawe Library'!$A$4:$AI$1563,14,FALSE)) ->  | K16: =IF(D16="","",LOG(VLOOKUP($D16,'Concawe Library'!$A$4:$AI$1563,28,FALSE))) ->  | L16: =IF(D16="","",VLOOKUP($D16,'Concawe Library'!$A$4:$AI$1563,31,FALSE)) ->  | M16: =IF(D16="","",VLOOKUP($D16,'Concawe Library'!$A$4:$AI$1563,32,FALSE)) ->  | N16: =IF(D16="","",VLOOKUP($D16,'Concawe Library'!$A$4:$AI$1563,33,FALSE)) ->  | O16: =IF(D16="","",VLOOKUP($D16,'Concawe Library'!$A$4:$AI$1563,34,FALSE)) ->  | P16: =IF(D16="","",VLOOKUP($D16,'Concawe Library'!$A$4:$AI$1563,35,FALSE)) ->  | Q16: =IF(D16="","",VLOOKUP($D16,'Concawe Library'!$A$4:$AI$1563,25,FALSE)) ->  | R16: =IF(D16="","",VLOOKUP($D16,'Concawe Library'!$A$4:$AI$1563,26,FALSE)) ->  | S16: =IF(D16="","",VLOOKUP($D16,'Concawe Library'!$A$4:$AI$1563,30,FALSE)) ->  | T16: =IF(D16="","",VLOOKUP($D16,'Concawe Library'!$A$4:$AI$1563,29,FALSE)) -> 
E17: =IF(D17="","",VLOOKUP($D17,'Concawe Library'!$A$4:$AI$1563,3,FALSE)) ->  | F17: =IF(D17="","",VLOOKUP($D17,'Concawe Library'!$A$4:$AI$1563,4,FALSE)) ->  | G17: =IF(D17="","",VLOOKUP($D17,'Concawe Library'!$A$4:$AI$1563,6,FALSE)) ->  | H17: =IF(D17="","",VLOOKUP($D17,'Concawe Library'!$A$4:$AI$1563,11,FALSE)) ->  | I17: =IF(D17="","",LOG(VLOOKUP($D17,'Concawe Library'!$A$4:$AI$1563,13,FALSE))) ->  | J17: =IF(D17="","",VLOOKUP($D17,'Concawe Library'!$A$4:$AI$1563,14,FALSE)) ->  | K17: =IF(D17="","",LOG(VLOOKUP($D17,'Concawe Library'!$A$4:$AI$1563,28,FALSE))) ->  | L17: =IF(D17="","",VLOOKUP($D17,'Concawe Library'!$A$4:$AI$1563,31,FALSE)) ->  | M17: =IF(D17="","",VLOOKUP($D17,'Concawe Library'!$A$4:$AI$1563,32,FALSE)) ->  | N17: =IF(D17="","",VLOOKUP($D17,'Concawe Library'!$A$4:$AI$1563,33,FALSE)) ->  | O17: =IF(D17="","",VLOOKUP($D17,'Concawe Library'!$A$4:$AI$1563,34,FALSE)) ->  | P17: =IF(D17="","",VLOOKUP($D17,'Concawe Library'!$A$4:$AI$1563,35,FALSE)) ->  | Q17: =IF(D17="","",VLOOKUP($D17,'Concawe Library'!$A$4:$AI$1563,25,FALSE)) ->  | R17: =IF(D17="","",VLOOKUP($D17,'Concawe Library'!$A$4:$AI$1563,26,FALSE)) ->  | S17: =IF(D17="","",VLOOKUP($D17,'Concawe Library'!$A$4:$AI$1563,30,FALSE)) ->  | T17: =IF(D17="","",VLOOKUP($D17,'Concawe Library'!$A$4:$AI$1563,29,FALSE)) -> 
E18: =IF(D18="","",VLOOKUP($D18,'Concawe Library'!$A$4:$AI$1563,3,FALSE)) ->  | F18: =IF(D18="","",VLOOKUP($D18,'Concawe Library'!$A$4:$AI$1563,4,FALSE)) ->  | G18: =IF(D18="","",VLOOKUP($D18,'Concawe Library'!$A$4:$AI$1563,6,FALSE)) ->  | H18: =IF(D18="","",VLOOKUP($D18,'Concawe Library'!$A$4:$AI$1563,11,FALSE)) ->  | I18: =IF(D18="","",LOG(VLOOKUP($D18,'Concawe Library'!$A$4:$AI$1563,13,FALSE))) ->  | J18: =IF(D18="","",VLOOKUP($D18,'Concawe Library'!$A$4:$AI$1563,14,FALSE)) ->  | K18: =IF(D18="","",LOG(VLOOKUP($D18,'Concawe Library'!$A$4:$AI$1563,28,FALSE))) ->  | L18: =IF(D18="","",VLOOKUP($D18,'Concawe Library'!$A$4:$AI$1563,31,FALSE)) ->  | M18: =IF(D18="","",VLOOKUP($D18,'Concawe Library'!$A$4:$AI$1563,32,FALSE)) ->  | N18: =IF(D18="","",VLOOKUP($D18,'Concawe Library'!$A$4:$AI$1563,33,FALSE)) ->  | O18: =IF(D18="","",VLOOKUP($D18,'Concawe Library'!$A$4:$AI$1563,34,FALSE)) ->  | P18: =IF(D18="","",VLOOKUP($D18,'Concawe Library'!$A$4:$AI$1563,35,FALSE)) ->  | Q18: =IF(D18="","",VLOOKUP($D18,'Concawe Library'!$A$4:$AI$1563,25,FALSE)) ->  | R18: =IF(D18="","",VLOOKUP($D18,'Concawe Library'!$A$4:$AI$1563,26,FALSE)) ->  | S18: =IF(D18="","",VLOOKUP($D18,'Concawe Library'!$A$4:$AI$1563,30,FALSE)) ->  | T18: =IF(D18="","",VLOOKUP($D18,'Concawe Library'!$A$4:$AI$1563,29,FALSE)) -> 
E19: =IF(D19="","",VLOOKUP($D19,'Concawe Library'!$A$4:$AI$1563,3,FALSE)) ->  | F19: =IF(D19="","",VLOOKUP($D19,'Concawe Library'!$A$4:$AI$1563,4,FALSE)) ->  | G19: =IF(D19="","",VLOOKUP($D19,'Concawe Library'!$A$4:$AI$1563,6,FALSE)) ->  | H19: =IF(D19="","",VLOOKUP($D19,'Concawe Library'!$A$4:$AI$1563,11,FALSE)) ->  | I19: =IF(D19="","",LOG(VLOOKUP($D19,'Concawe Library'!$A$4:$AI$1563,13,FALSE))) ->  | J19: =IF(D19="","",VLOOKUP($D19,'Concawe Library'!$A$4:$AI$1563,14,FALSE)) ->  | K19: =IF(D19="","",LOG(VLOOKUP($D19,'Concawe Library'!$A$4:$AI$1563,28,FALSE))) ->  | L19: =IF(D19="","",VLOOKUP($D19,'Concawe Library'!$A$4:$AI$1563,31,FALSE)) ->  | M19: =IF(D19="","",VLOOKUP($D19,'Concawe Library'!$A$4:$AI$1563,32,FALSE)) ->  | N19: =IF(D19="","",VLOOKUP($D19,'Concawe Library'!$A$4:$AI$1563,33,FALSE)) ->  | O19: =IF(D19="","",VLOOKUP($D19,'Concawe Library'!$A$4:$AI$1563,34,FALSE)) ->  | P19: =IF(D19="","",VLOOKUP($D19,'Concawe Library'!$A$4:$AI$1563,35,FALSE)) ->  | Q19: =IF(D19="","",VLOOKUP($D19,'Concawe Library'!$A$4:$AI$1563,25,FALSE)) ->  | R19: =IF(D19="","",VLOOKUP($D19,'Concawe Library'!$A$4:$AI$1563,26,FALSE)) ->  | S19: =IF(D19="","",VLOOKUP($D19,'Concawe Library'!$A$4:$AI$1563,30,FALSE)) ->  | T19: =IF(D19="","",VLOOKUP($D19,'Concawe Library'!$A$4:$AI$1563,29,FALSE)) -> 
E20: =IF(D20="","",VLOOKUP($D20,'Concawe Library'!$A$4:$AI$1563,3,FALSE)) ->  | F20: =IF(D20="","",VLOOKUP($D20,'Concawe Library'!$A$4:$AI$1563,4,FALSE)) ->  | G20: =IF(D20="","",VLOOKUP($D20,'Concawe Library'!$A$4:$AI$1563,6,FALSE)) ->  | H20: =IF(D20="","",VLOOKUP($D20,'Concawe Library'!$A$4:$AI$1563,11,FALSE)) ->  | I20: =IF(D20="","",LOG(VLOOKUP($D20,'Concawe Library'!$A$4:$AI$1563,13,FALSE))) ->  | J20: =IF(D20="","",VLOOKUP($D20,'Concawe Library'!$A$4:$AI$1563,14,FALSE)) ->  | K20: =IF(D20="","",LOG(VLOOKUP($D20,'Concawe Library'!$A$4:$AI$1563,28,FALSE))) ->  | L20: =IF(D20="","",VLOOKUP($D20,'Concawe Library'!$A$4:$AI$1563,31,FALSE)) ->  | M20: =IF(D20="","",VLOOKUP($D20,'Concawe Library'!$A$4:$AI$1563,32,FALSE)) ->  | N20: =IF(D20="","",VLOOKUP($D20,'Concawe Library'!$A$4:$AI$1563,33,FALSE)) ->  | O20: =IF(D20="","",VLOOKUP($D20,'Concawe Library'!$A$4:$AI$1563,34,FALSE)) ->  | P20: =IF(D20="","",VLOOKUP($D20,'Concawe Library'!$A$4:$AI$1563,35,FALSE)) ->  | Q20: =IF(D20="","",VLOOKUP($D20,'Concawe Library'!$A$4:$AI$1563,25,FALSE)) ->  | R20: =IF(D20="","",VLOOKUP($D20,'Concawe Library'!$A$4:$AI$1563,26,FALSE)) ->  | S20: =IF(D20="","",VLOOKUP($D20,'Concawe Library'!$A$4:$AI$1563,30,FALSE)) ->  | T20: =IF(D20="","",VLOOKUP($D20,'Concawe Library'!$A$4:$AI$1563,29,FALSE)) -> 
E21: =IF(D21="","",VLOOKUP($D21,'Concawe Library'!$A$4:$AI$1563,3,FALSE)) ->  | F21: =IF(D21="","",VLOOKUP($D21,'Concawe Library'!$A$4:$AI$1563,4,FALSE)) ->  | G21: =IF(D21="","",VLOOKUP($D21,'Concawe Library'!$A$4:$AI$1563,6,FALSE)) ->  | H21: =IF(D21="","",VLOOKUP($D21,'Concawe Library'!$A$4:$AI$1563,11,FALSE)) ->  | I21: =IF(D21="","",LOG(VLOOKUP($D21,'Concawe Library'!$A$4:$AI$1563,13,FALSE))) ->  | J21: =IF(D21="","",VLOOKUP($D21,'Concawe Library'!$A$4:$AI$1563,14,FALSE)) ->  | K21: =IF(D21="","",LOG(VLOOKUP($D21,'Concawe Library'!$A$4:$AI$1563,28,FALSE))) ->  | L21: =IF(D21="","",VLOOKUP($D21,'Concawe Library'!$A$4:$AI$1563,31,FALSE)) ->  | M21: =IF(D21="","",VLOOKUP($D21,'Concawe Library'!$A$4:$AI$1563,32,FALSE)) ->  | N21: =IF(D21="","",VLOOKUP($D21,'Concawe Library'!$A$4:$AI$1563,33,FALSE)) ->  | O21: =IF(D21="","",VLOOKUP($D21,'Concawe Library'!$A$4:$AI$1563,34,FALSE)) ->  | P21: =IF(D21="","",VLOOKUP($D21,'Concawe Library'!$A$4:$AI$1563,35,FALSE)) ->  | Q21: =IF(D21="","",VLOOKUP($D21,'Concawe Library'!$A$4:$AI$1563,25,FALSE)) ->  | R21: =IF(D21="","",VLOOKUP($D21,'Concawe Library'!$A$4:$AI$1563,26,FALSE)) ->  | S21: =IF(D21="","",VLOOKUP($D21,'Concawe Library'!$A$4:$AI$1563,30,FALSE)) ->  | T21: =IF(D21="","",VLOOKUP($D21,'Concawe Library'!$A$4:$AI$1563,29,FALSE)) -> 
E22: =IF(D22="","",VLOOKUP($D22,'Concawe Library'!$A$4:$AI$1563,3,FALSE)) ->  | F22: =IF(D22="","",VLOOKUP($D22,'Concawe Library'!$A$4:$AI$1563,4,FALSE)) ->  | G22: =IF(D22="","",VLOOKUP($D22,'Concawe Library'!$A$4:$AI$1563,6,FALSE)) ->  | H22: =IF(D22="","",VLOOKUP($D22,'Concawe Library'!$A$4:$AI$1563,11,FALSE)) ->  | I22: =IF(D22="","",LOG(VLOOKUP($D22,'Concawe Library'!$A$4:$AI$1563,13,FALSE))) ->  | J22: =IF(D22="","",VLOOKUP($D22,'Concawe Library'!$A$4:$AI$1563,14,FALSE)) ->  | K22: =IF(D22="","",LOG(VLOOKUP($D22,'Concawe Library'!$A$4:$AI$1563,28,FALSE))) ->  | L22: =IF(D22="","",VLOOKUP($D22,'Concawe Library'!$A$4:$AI$1563,31,FALSE)) ->  | M22: =IF(D22="","",VLOOKUP($D22,'Concawe Library'!$A$4:$AI$1563,32,FALSE)) ->  | N22: =IF(D22="","",VLOOKUP($D22,'Concawe Library'!$A$4:$AI$1563,33,FALSE)) ->  | O22: =IF(D22="","",VLOOKUP($D22,'Concawe Library'!$A$4:$AI$1563,34,FALSE)) ->  | P22: =IF(D22="","",VLOOKUP($D22,'Concawe Library'!$A$4:$AI$1563,35,FALSE)) ->  | Q22: =IF(D22="","",VLOOKUP($D22,'Concawe Library'!$A$4:$AI$1563,25,FALSE)) ->  | R22: =IF(D22="","",VLOOKUP($D22,'Concawe Library'!$A$4:$AI$1563,26,FALSE)) ->  | S22: =IF(D22="","",VLOOKUP($D22,'Concawe Library'!$A$4:$AI$1563,30,FALSE)) ->  | T22: =IF(D22="","",VLOOKUP($D22,'Concawe Library'!$A$4:$AI$1563,29,FALSE)) -> 
E23: =IF(D23="","",VLOOKUP($D23,'Concawe Library'!$A$4:$AI$1563,3,FALSE)) ->  | F23: =IF(D23="","",VLOOKUP($D23,'Concawe Library'!$A$4:$AI$1563,4,FALSE)) ->  | G23: =IF(D23="","",VLOOKUP($D23,'Concawe Library'!$A$4:$AI$1563,6,FALSE)) ->  | H23: =IF(D23="","",VLOOKUP($D23,'Concawe Library'!$A$4:$AI$1563,11,FALSE)) ->  | I23: =IF(D23="","",LOG(VLOOKUP($D23,'Concawe Library'!$A$4:$AI$1563,13,FALSE))) ->  | J23: =IF(D23="","",VLOOKUP($D23,'Concawe Library'!$A$4:$AI$1563,14,FALSE)) ->  | K23: =IF(D23="","",LOG(VLOOKUP($D23,'Concawe Library'!$A$4:$AI$1563,28,FALSE))) ->  | L23: =IF(D23="","",VLOOKUP($D23,'Concawe Library'!$A$4:$AI$1563,31,FALSE)) ->  | M23: =IF(D23="","",VLOOKUP($D23,'Concawe Library'!$A$4:$AI$1563,32,FALSE)) ->  | N23: =IF(D23="","",VLOOKUP($D23,'Concawe Library'!$A$4:$AI$1563,33,FALSE)) ->  | O23: =IF(D23="","",VLOOKUP($D23,'Concawe Library'!$A$4:$AI$1563,34,FALSE)) ->  | P23: =IF(D23="","",VLOOKUP($D23,'Concawe Library'!$A$4:$AI$1563,35,FALSE)) ->  | Q23: =IF(D23="","",VLOOKUP($D23,'Concawe Library'!$A$4:$AI$1563,25,FALSE)) ->  | R23: =IF(D23="","",VLOOKUP($D23,'Concawe Library'!$A$4:$AI$1563,26,FALSE)) ->  | S23: =IF(D23="","",VLOOKUP($D23,'Concawe Library'!$A$4:$AI$1563,30,FALSE)) ->  | T23: =IF(D23="","",VLOOKUP($D23,'Concawe Library'!$A$4:$AI$1563,29,FALSE)) -> 
E24: =IF(D24="","",VLOOKUP($D24,'Concawe Library'!$A$4:$AI$1563,3,FALSE)) ->  | F24: =IF(D24="","",VLOOKUP($D24,'Concawe Library'!$A$4:$AI$1563,4,FALSE)) ->  | G24: =IF(D24="","",VLOOKUP($D24,'Concawe Library'!$A$4:$AI$1563,6,FALSE)) ->  | H24: =IF(D24="","",VLOOKUP($D24,'Concawe Library'!$A$4:$AI$1563,11,FALSE)) ->  | I24: =IF(D24="","",LOG(VLOOKUP($D24,'Concawe Library'!$A$4:$AI$1563,13,FALSE))) ->  | J24: =IF(D24="","",VLOOKUP($D24,'Concawe Library'!$A$4:$AI$1563,14,FALSE)) ->  | K24: =IF(D24="","",LOG(VLOOKUP($D24,'Concawe Library'!$A$4:$AI$1563,28,FALSE))) ->  | L24: =IF(D24="","",VLOOKUP($D24,'Concawe Library'!$A$4:$AI$1563,31,FALSE)) ->  | M24: =IF(D24="","",VLOOKUP($D24,'Concawe Library'!$A$4:$AI$1563,32,FALSE)) ->  | N24: =IF(D24="","",VLOOKUP($D24,'Concawe Library'!$A$4:$AI$1563,33,FALSE)) ->  | O24: =IF(D24="","",VLOOKUP($D24,'Concawe Library'!$A$4:$AI$1563,34,FALSE)) ->  | P24: =IF(D24="","",VLOOKUP($D24,'Concawe Library'!$A$4:$AI$1563,35,FALSE)) ->  | Q24: =IF(D24="","",VLOOKUP($D24,'Concawe Library'!$A$4:$AI$1563,25,FALSE)) ->  | R24: =IF(D24="","",VLOOKUP($D24,'Concawe Library'!$A$4:$AI$1563,26,FALSE)) ->  | S24: =IF(D24="","",VLOOKUP($D24,'Concawe Library'!$A$4:$AI$1563,30,FALSE)) ->  | T24: =IF(D24="","",VLOOKUP($D24,'Concawe Library'!$A$4:$AI$1563,29,FALSE)) -> 
E25: =IF(D25="","",VLOOKUP($D25,'Concawe Library'!$A$4:$AI$1563,3,FALSE)) ->  | F25: =IF(D25="","",VLOOKUP($D25,'Concawe Library'!$A$4:$AI$1563,4,FALSE)) ->  | G25: =IF(D25="","",VLOOKUP($D25,'Concawe Library'!$A$4:$AI$1563,6,FALSE)) ->  | H25: =IF(D25="","",VLOOKUP($D25,'Concawe Library'!$A$4:$AI$1563,11,FALSE)) ->  | I25: =IF(D25="","",LOG(VLOOKUP($D25,'Concawe Library'!$A$4:$AI$1563,13,FALSE))) ->  | J25: =IF(D25="","",VLOOKUP($D25,'Concawe Library'!$A$4:$AI$1563,14,FALSE)) ->  | K25: =IF(D25="","",LOG(VLOOKUP($D25,'Concawe Library'!$A$4:$AI$1563,28,FALSE))) ->  | L25: =IF(D25="","",VLOOKUP($D25,'Concawe Library'!$A$4:$AI$1563,31,FALSE)) ->  | M25: =IF(D25="","",VLOOKUP($D25,'Concawe Library'!$A$4:$AI$1563,32,FALSE)) ->  | N25: =IF(D25="","",VLOOKUP($D25,'Concawe Library'!$A$4:$AI$1563,33,FALSE)) ->  | O25: =IF(D25="","",VLOOKUP($D25,'Concawe Library'!$A$4:$AI$1563,34,FALSE)) ->  | P25: =IF(D25="","",VLOOKUP($D25,'Concawe Library'!$A$4:$AI$1563,35,FALSE)) ->  | Q25: =IF(D25="","",VLOOKUP($D25,'Concawe Library'!$A$4:$AI$1563,25,FALSE)) ->  | R25: =IF(D25="","",VLOOKUP($D25,'Concawe Library'!$A$4:$AI$1563,26,FALSE)) ->  | S25: =IF(D25="","",VLOOKUP($D25,'Concawe Library'!$A$4:$AI$1563,30,FALSE)) ->  | T25: =IF(D25="","",VLOOKUP($D25,'Concawe Library'!$A$4:$AI$1563,29,FALSE)) -> 
E26: =IF(D26="","",VLOOKUP($D26,'Concawe Library'!$A$4:$AI$1563,3,FALSE)) ->  | F26: =IF(D26="","",VLOOKUP($D26,'Concawe Library'!$A$4:$AI$1563,4,FALSE)) ->  | G26: =IF(D26="","",VLOOKUP($D26,'Concawe Library'!$A$4:$AI$1563,6,FALSE)) ->  | H26: =IF(D26="","",VLOOKUP($D26,'Concawe Library'!$A$4:$AI$1563,11,FALSE)) ->  | I26: =IF(D26="","",LOG(VLOOKUP($D26,'Concawe Library'!$A$4:$AI$1563,13,FALSE))) ->  | J26: =IF(D26="","",VLOOKUP($D26,'Concawe Library'!$A$4:$AI$1563,14,FALSE)) ->  | K26: =IF(D26="","",LOG(VLOOKUP($D26,'Concawe Library'!$A$4:$AI$1563,28,FALSE))) ->  | L26: =IF(D26="","",VLOOKUP($D26,'Concawe Library'!$A$4:$AI$1563,31,FALSE)) ->  | M26: =IF(D26="","",VLOOKUP($D26,'Concawe Library'!$A$4:$AI$1563,32,FALSE)) ->  | N26: =IF(D26="","",VLOOKUP($D26,'Concawe Library'!$A$4:$AI$1563,33,FALSE)) ->  | O26: =IF(D26="","",VLOOKUP($D26,'Concawe Library'!$A$4:$AI$1563,34,FALSE)) ->  | P26: =IF(D26="","",VLOOKUP($D26,'Concawe Library'!$A$4:$AI$1563,35,FALSE)) ->  | Q26: =IF(D26="","",VLOOKUP($D26,'Concawe Library'!$A$4:$AI$1563,25,FALSE)) ->  | R26: =IF(D26="","",VLOOKUP($D26,'Concawe Library'!$A$4:$AI$1563,26,FALSE)) ->  | S26: =IF(D26="","",VLOOKUP($D26,'Concawe Library'!$A$4:$AI$1563,30,FALSE)) ->  | T26: =IF(D26="","",VLOOKUP($D26,'Concawe Library'!$A$4:$AI$1563,29,FALSE)) -> 
E27: =IF(D27="","",VLOOKUP($D27,'Concawe Library'!$A$4:$AI$1563,3,FALSE)) ->  | F27: =IF(D27="","",VLOOKUP($D27,'Concawe Library'!$A$4:$AI$1563,4,FALSE)) ->  | G27: =IF(D27="","",VLOOKUP($D27,'Concawe Library'!$A$4:$AI$1563,6,FALSE)) ->  | H27: =IF(D27="","",VLOOKUP($D27,'Concawe Library'!$A$4:$AI$1563,11,FALSE)) ->  | I27: =IF(D27="","",LOG(VLOOKUP($D27,'Concawe Library'!$A$4:$AI$1563,13,FALSE))) ->  | J27: =IF(D27="","",VLOOKUP($D27,'Concawe Library'!$A$4:$AI$1563,14,FALSE)) ->  | K27: =IF(D27="","",LOG(VLOOKUP($D27,'Concawe Library'!$A$4:$AI$1563,28,FALSE))) ->  | L27: =IF(D27="","",VLOOKUP($D27,'Concawe Library'!$A$4:$AI$1563,31,FALSE)) ->  | M27: =IF(D27="","",VLOOKUP($D27,'Concawe Library'!$A$4:$AI$1563,32,FALSE)) ->  | N27: =IF(D27="","",VLOOKUP($D27,'Concawe Library'!$A$4:$AI$1563,33,FALSE)) ->  | O27: =IF(D27="","",VLOOKUP($D27,'Concawe Library'!$A$4:$AI$1563,34,FALSE)) ->  | P27: =IF(D27="","",VLOOKUP($D27,'Concawe Library'!$A$4:$AI$1563,35,FALSE)) ->  | Q27: =IF(D27="","",VLOOKUP($D27,'Concawe Library'!$A$4:$AI$1563,25,FALSE)) ->  | R27: =IF(D27="","",VLOOKUP($D27,'Concawe Library'!$A$4:$AI$1563,26,FALSE)) ->  | S27: =IF(D27="","",VLOOKUP($D27,'Concawe Library'!$A$4:$AI$1563,30,FALSE)) ->  | T27: =IF(D27="","",VLOOKUP($D27,'Concawe Library'!$A$4:$AI$1563,29,FALSE)) -> 
E28: =IF(D28="","",VLOOKUP($D28,'Concawe Library'!$A$4:$AI$1563,3,FALSE)) ->  | F28: =IF(D28="","",VLOOKUP($D28,'Concawe Library'!$A$4:$AI$1563,4,FALSE)) ->  | G28: =IF(D28="","",VLOOKUP($D28,'Concawe Library'!$A$4:$AI$1563,6,FALSE)) ->  | H28: =IF(D28="","",VLOOKUP($D28,'Concawe Library'!$A$4:$AI$1563,11,FALSE)) ->  | I28: =IF(D28="","",LOG(VLOOKUP($D28,'Concawe Library'!$A$4:$AI$1563,13,FALSE))) ->  | J28: =IF(D28="","",VLOOKUP($D28,'Concawe Library'!$A$4:$AI$1563,14,FALSE)) ->  | K28: =IF(D28="","",LOG(VLOOKUP($D28,'Concawe Library'!$A$4:$AI$1563,28,FALSE))) ->  | L28: =IF(D28="","",VLOOKUP($D28,'Concawe Library'!$A$4:$AI$1563,31,FALSE)) ->  | M28: =IF(D28="","",VLOOKUP($D28,'Concawe Library'!$A$4:$AI$1563,32,FALSE)) ->  | N28: =IF(D28="","",VLOOKUP($D28,'Concawe Library'!$A$4:$AI$1563,33,FALSE)) ->  | O28: =IF(D28="","",VLOOKUP($D28,'Concawe Library'!$A$4:$AI$1563,34,FALSE)) ->  | P28: =IF(D28="","",VLOOKUP($D28,'Concawe Library'!$A$4:$AI$1563,35,FALSE)) ->  | Q28: =IF(D28="","",VLOOKUP($D28,'Concawe Library'!$A$4:$AI$1563,25,FALSE)) ->  | R28: =IF(D28="","",VLOOKUP($D28,'Concawe Library'!$A$4:$AI$1563,26,FALSE)) ->  | S28: =IF(D28="","",VLOOKUP($D28,'Concawe Library'!$A$4:$AI$1563,30,FALSE)) ->  | T28: =IF(D28="","",VLOOKUP($D28,'Concawe Library'!$A$4:$AI$1563,29,FALSE)) -> 
E29: =IF(D29="","",VLOOKUP($D29,'Concawe Library'!$A$4:$AI$1563,3,FALSE)) ->  | F29: =IF(D29="","",VLOOKUP($D29,'Concawe Library'!$A$4:$AI$1563,4,FALSE)) ->  | G29: =IF(D29="","",VLOOKUP($D29,'Concawe Library'!$A$4:$AI$1563,6,FALSE)) ->  | H29: =IF(D29="","",VLOOKUP($D29,'Concawe Library'!$A$4:$AI$1563,11,FALSE)) ->  | I29: =IF(D29="","",LOG(VLOOKUP($D29,'Concawe Library'!$A$4:$AI$1563,13,FALSE))) ->  | J29: =IF(D29="","",VLOOKUP($D29,'Concawe Library'!$A$4:$AI$1563,14,FALSE)) ->  | K29: =IF(D29="","",LOG(VLOOKUP($D29,'Concawe Library'!$A$4:$AI$1563,28,FALSE))) ->  | L29: =IF(D29="","",VLOOKUP($D29,'Concawe Library'!$A$4:$AI$1563,31,FALSE)) ->  | M29: =IF(D29="","",VLOOKUP($D29,'Concawe Library'!$A$4:$AI$1563,32,FALSE)) ->  | N29: =IF(D29="","",VLOOKUP($D29,'Concawe Library'!$A$4:$AI$1563,33,FALSE)) ->  | O29: =IF(D29="","",VLOOKUP($D29,'Concawe Library'!$A$4:$AI$1563,34,FALSE)) ->  | P29: =IF(D29="","",VLOOKUP($D29,'Concawe Library'!$A$4:$AI$1563,35,FALSE)) ->  | Q29: =IF(D29="","",VLOOKUP($D29,'Concawe Library'!$A$4:$AI$1563,25,FALSE)) ->  | R29: =IF(D29="","",VLOOKUP($D29,'Concawe Library'!$A$4:$AI$1563,26,FALSE)) ->  | S29: =IF(D29="","",VLOOKUP($D29,'Concawe Library'!$A$4:$AI$1563,30,FALSE)) ->  | T29: =IF(D29="","",VLOOKUP($D29,'Concawe Library'!$A$4:$AI$1563,29,FALSE)) -> 
E30: =IF(D30="","",VLOOKUP($D30,'Concawe Library'!$A$4:$AI$1563,3,FALSE)) ->  | F30: =IF(D30="","",VLOOKUP($D30,'Concawe Library'!$A$4:$AI$1563,4,FALSE)) ->  | G30: =IF(D30="","",VLOOKUP($D30,'Concawe Library'!$A$4:$AI$1563,6,FALSE)) ->  | H30: =IF(D30="","",VLOOKUP($D30,'Concawe Library'!$A$4:$AI$1563,11,FALSE)) ->  | I30: =IF(D30="","",LOG(VLOOKUP($D30,'Concawe Library'!$A$4:$AI$1563,13,FALSE))) ->  | J30: =IF(D30="","",VLOOKUP($D30,'Concawe Library'!$A$4:$AI$1563,14,FALSE)) ->  | K30: =IF(D30="","",LOG(VLOOKUP($D30,'Concawe Library'!$A$4:$AI$1563,28,FALSE))) ->  | L30: =IF(D30="","",VLOOKUP($D30,'Concawe Library'!$A$4:$AI$1563,31,FALSE)) ->  | M30: =IF(D30="","",VLOOKUP($D30,'Concawe Library'!$A$4:$AI$1563,32,FALSE)) ->  | N30: =IF(D30="","",VLOOKUP($D30,'Concawe Library'!$A$4:$AI$1563,33,FALSE)) ->  | O30: =IF(D30="","",VLOOKUP($D30,'Concawe Library'!$A$4:$AI$1563,34,FALSE)) ->  | P30: =IF(D30="","",VLOOKUP($D30,'Concawe Library'!$A$4:$AI$1563,35,FALSE)) ->  | Q30: =IF(D30="","",VLOOKUP($D30,'Concawe Library'!$A$4:$AI$1563,25,FALSE)) ->  | R30: =IF(D30="","",VLOOKUP($D30,'Concawe Library'!$A$4:$AI$1563,26,FALSE)) ->  | S30: =IF(D30="","",VLOOKUP($D30,'Concawe Library'!$A$4:$AI$1563,30,FALSE)) ->  | T30: =IF(D30="","",VLOOKUP($D30,'Concawe Library'!$A$4:$AI$1563,29,FALSE)) -> 
E31: =IF(D31="","",VLOOKUP($D31,'Concawe Library'!$A$4:$AI$1563,3,FALSE)) ->  | F31: =IF(D31="","",VLOOKUP($D31,'Concawe Library'!$A$4:$AI$1563,4,FALSE)) ->  | G31: =IF(D31="","",VLOOKUP($D31,'Concawe Library'!$A$4:$AI$1563,6,FALSE)) ->  | H31: =IF(D31="","",VLOOKUP($D31,'Concawe Library'!$A$4:$AI$1563,11,FALSE)) ->  | I31: =IF(D31="","",LOG(VLOOKUP($D31,'Concawe Library'!$A$4:$AI$1563,13,FALSE))) ->  | J31: =IF(D31="","",VLOOKUP($D31,'Concawe Library'!$A$4:$AI$1563,14,FALSE)) ->  | K31: =IF(D31="","",LOG(VLOOKUP($D31,'Concawe Library'!$A$4:$AI$1563,28,FALSE))) ->  | L31: =IF(D31="","",VLOOKUP($D31,'Concawe Library'!$A$4:$AI$1563,31,FALSE)) ->  | M31: =IF(D31="","",VLOOKUP($D31,'Concawe Library'!$A$4:$AI$1563,32,FALSE)) ->  | N31: =IF(D31="","",VLOOKUP($D31,'Concawe Library'!$A$4:$AI$1563,33,FALSE)) ->  | O31: =IF(D31="","",VLOOKUP($D31,'Concawe Library'!$A$4:$AI$1563,34,FALSE)) ->  | P31: =IF(D31="","",VLOOKUP($D31,'Concawe Library'!$A$4:$AI$1563,35,FALSE)) ->  | Q31: =IF(D31="","",VLOOKUP($D31,'Concawe Library'!$A$4:$AI$1563,25,FALSE)) ->  | R31: =IF(D31="","",VLOOKUP($D31,'Concawe Library'!$A$4:$AI$1563,26,FALSE)) ->  | S31: =IF(D31="","",VLOOKUP($D31,'Concawe Library'!$A$4:$AI$1563,30,FALSE)) ->  | T31: =IF(D31="","",VLOOKUP($D31,'Concawe Library'!$A$4:$AI$1563,29,FALSE)) -> 
E32: =IF(D32="","",VLOOKUP($D32,'Concawe Library'!$A$4:$AI$1563,3,FALSE)) ->  | F32: =IF(D32="","",VLOOKUP($D32,'Concawe Library'!$A$4:$AI$1563,4,FALSE)) ->  | G32: =IF(D32="","",VLOOKUP($D32,'Concawe Library'!$A$4:$AI$1563,6,FALSE)) ->  | H32: =IF(D32="","",VLOOKUP($D32,'Concawe Library'!$A$4:$AI$1563,11,FALSE)) ->  | I32: =IF(D32="","",LOG(VLOOKUP($D32,'Concawe Library'!$A$4:$AI$1563,13,FALSE))) ->  | J32: =IF(D32="","",VLOOKUP($D32,'Concawe Library'!$A$4:$AI$1563,14,FALSE)) ->  | K32: =IF(D32="","",LOG(VLOOKUP($D32,'Concawe Library'!$A$4:$AI$1563,28,FALSE))) ->  | L32: =IF(D32="","",VLOOKUP($D32,'Concawe Library'!$A$4:$AI$1563,31,FALSE)) ->  | M32: =IF(D32="","",VLOOKUP($D32,'Concawe Library'!$A$4:$AI$1563,32,FALSE)) ->  | N32: =IF(D32="","",VLOOKUP($D32,'Concawe Library'!$A$4:$AI$1563,33,FALSE)) ->  | O32: =IF(D32="","",VLOOKUP($D32,'Concawe Library'!$A$4:$AI$1563,34,FALSE)) ->  | P32: =IF(D32="","",VLOOKUP($D32,'Concawe Library'!$A$4:$AI$1563,35,FALSE)) ->  | Q32: =IF(D32="","",VLOOKUP($D32,'Concawe Library'!$A$4:$AI$1563,25,FALSE)) ->  | R32: =IF(D32="","",VLOOKUP($D32,'Concawe Library'!$A$4:$AI$1563,26,FALSE)) ->  | S32: =IF(D32="","",VLOOKUP($D32,'Concawe Library'!$A$4:$AI$1563,30,FALSE)) ->  | T32: =IF(D32="","",VLOOKUP($D32,'Concawe Library'!$A$4:$AI$1563,29,FALSE)) -> 
E33: =IF(D33="","",VLOOKUP($D33,'Concawe Library'!$A$4:$AI$1563,3,FALSE)) ->  | F33: =IF(D33="","",VLOOKUP($D33,'Concawe Library'!$A$4:$AI$1563,4,FALSE)) ->  | G33: =IF(D33="","",VLOOKUP($D33,'Concawe Library'!$A$4:$AI$1563,6,FALSE)) ->  | H33: =IF(D33="","",VLOOKUP($D33,'Concawe Library'!$A$4:$AI$1563,11,FALSE)) ->  | I33: =IF(D33="","",LOG(VLOOKUP($D33,'Concawe Library'!$A$4:$AI$1563,13,FALSE))) ->  | J33: =IF(D33="","",VLOOKUP($D33,'Concawe Library'!$A$4:$AI$1563,14,FALSE)) ->  | K33: =IF(D33="","",LOG(VLOOKUP($D33,'Concawe Library'!$A$4:$AI$1563,28,FALSE))) ->  | L33: =IF(D33="","",VLOOKUP($D33,'Concawe Library'!$A$4:$AI$1563,31,FALSE)) ->  | M33: =IF(D33="","",VLOOKUP($D33,'Concawe Library'!$A$4:$AI$1563,32,FALSE)) ->  | N33: =IF(D33="","",VLOOKUP($D33,'Concawe Library'!$A$4:$AI$1563,33,FALSE)) ->  | O33: =IF(D33="","",VLOOKUP($D33,'Concawe Library'!$A$4:$AI$1563,34,FALSE)) ->  | P33: =IF(D33="","",VLOOKUP($D33,'Concawe Library'!$A$4:$AI$1563,35,FALSE)) ->  | Q33: =IF(D33="","",VLOOKUP($D33,'Concawe Library'!$A$4:$AI$1563,25,FALSE)) ->  | R33: =IF(D33="","",VLOOKUP($D33,'Concawe Library'!$A$4:$AI$1563,26,FALSE)) ->  | S33: =IF(D33="","",VLOOKUP($D33,'Concawe Library'!$A$4:$AI$1563,30,FALSE)) ->  | T33: =IF(D33="","",VLOOKUP($D33,'Concawe Library'!$A$4:$AI$1563,29,FALSE)) -> 
E34: =IF(D34="","",VLOOKUP($D34,'Concawe Library'!$A$4:$AI$1563,3,FALSE)) ->  | F34: =IF(D34="","",VLOOKUP($D34,'Concawe Library'!$A$4:$AI$1563,4,FALSE)) ->  | G34: =IF(D34="","",VLOOKUP($D34,'Concawe Library'!$A$4:$AI$1563,6,FALSE)) ->  | H34: =IF(D34="","",VLOOKUP($D34,'Concawe Library'!$A$4:$AI$1563,11,FALSE)) ->  | I34: =IF(D34="","",LOG(VLOOKUP($D34,'Concawe Library'!$A$4:$AI$1563,13,FALSE))) ->  | J34: =IF(D34="","",VLOOKUP($D34,'Concawe Library'!$A$4:$AI$1563,14,FALSE)) ->  | K34: =IF(D34="","",LOG(VLOOKUP($D34,'Concawe Library'!$A$4:$AI$1563,28,FALSE))) ->  | L34: =IF(D34="","",VLOOKUP($D34,'Concawe Library'!$A$4:$AI$1563,31,FALSE)) ->  | M34: =IF(D34="","",VLOOKUP($D34,'Concawe Library'!$A$4:$AI$1563,32,FALSE)) ->  | N34: =IF(D34="","",VLOOKUP($D34,'Concawe Library'!$A$4:$AI$1563,33,FALSE)) ->  | O34: =IF(D34="","",VLOOKUP($D34,'Concawe Library'!$A$4:$AI$1563,34,FALSE)) ->  | P34: =IF(D34="","",VLOOKUP($D34,'Concawe Library'!$A$4:$AI$1563,35,FALSE)) ->  | Q34: =IF(D34="","",VLOOKUP($D34,'Concawe Library'!$A$4:$AI$1563,25,FALSE)) ->  | R34: =IF(D34="","",VLOOKUP($D34,'Concawe Library'!$A$4:$AI$1563,26,FALSE)) ->  | S34: =IF(D34="","",VLOOKUP($D34,'Concawe Library'!$A$4:$AI$1563,30,FALSE)) ->  | T34: =IF(D34="","",VLOOKUP($D34,'Concawe Library'!$A$4:$AI$1563,29,FALSE)) -> 
E35: =IF(D35="","",VLOOKUP($D35,'Concawe Library'!$A$4:$AI$1563,3,FALSE)) ->  | F35: =IF(D35="","",VLOOKUP($D35,'Concawe Library'!$A$4:$AI$1563,4,FALSE)) ->  | G35: =IF(D35="","",VLOOKUP($D35,'Concawe Library'!$A$4:$AI$1563,6,FALSE)) ->  | H35: =IF(D35="","",VLOOKUP($D35,'Concawe Library'!$A$4:$AI$1563,11,FALSE)) ->  | I35: =IF(D35="","",LOG(VLOOKUP($D35,'Concawe Library'!$A$4:$AI$1563,13,FALSE))) ->  | J35: =IF(D35="","",VLOOKUP($D35,'Concawe Library'!$A$4:$AI$1563,14,FALSE)) ->  | K35: =IF(D35="","",LOG(VLOOKUP($D35,'Concawe Library'!$A$4:$AI$1563,28,FALSE))) ->  | L35: =IF(D35="","",VLOOKUP($D35,'Concawe Library'!$A$4:$AI$1563,31,FALSE)) ->  | M35: =IF(D35="","",VLOOKUP($D35,'Concawe Library'!$A$4:$AI$1563,32,FALSE)) ->  | N35: =IF(D35="","",VLOOKUP($D35,'Concawe Library'!$A$4:$AI$1563,33,FALSE)) ->  | O35: =IF(D35="","",VLOOKUP($D35,'Concawe Library'!$A$4:$AI$1563,34,FALSE)) ->  | P35: =IF(D35="","",VLOOKUP($D35,'Concawe Library'!$A$4:$AI$1563,35,FALSE)) ->  | Q35: =IF(D35="","",VLOOKUP($D35,'Concawe Library'!$A$4:$AI$1563,25,FALSE)) ->  | R35: =IF(D35="","",VLOOKUP($D35,'Concawe Library'!$A$4:$AI$1563,26,FALSE)) ->  | S35: =IF(D35="","",VLOOKUP($D35,'Concawe Library'!$A$4:$AI$1563,30,FALSE)) ->  | T35: =IF(D35="","",VLOOKUP($D35,'Concawe Library'!$A$4:$AI$1563,29,FALSE)) -> 
E36: =IF(D36="","",VLOOKUP($D36,'Concawe Library'!$A$4:$AI$1563,3,FALSE)) ->  | F36: =IF(D36="","",VLOOKUP($D36,'Concawe Library'!$A$4:$AI$1563,4,FALSE)) ->  | G36: =IF(D36="","",VLOOKUP($D36,'Concawe Library'!$A$4:$AI$1563,6,FALSE)) ->  | H36: =IF(D36="","",VLOOKUP($D36,'Concawe Library'!$A$4:$AI$1563,11,FALSE)) ->  | I36: =IF(D36="","",LOG(VLOOKUP($D36,'Concawe Library'!$A$4:$AI$1563,13,FALSE))) ->  | J36: =IF(D36="","",VLOOKUP($D36,'Concawe Library'!$A$4:$AI$1563,14,FALSE)) ->  | K36: =IF(D36="","",LOG(VLOOKUP($D36,'Concawe Library'!$A$4:$AI$1563,28,FALSE))) ->  | L36: =IF(D36="","",VLOOKUP($D36,'Concawe Library'!$A$4:$AI$1563,31,FALSE)) ->  | M36: =IF(D36="","",VLOOKUP($D36,'Concawe Library'!$A$4:$AI$1563,32,FALSE)) ->  | N36: =IF(D36="","",VLOOKUP($D36,'Concawe Library'!$A$4:$AI$1563,33,FALSE)) ->  | O36: =IF(D36="","",VLOOKUP($D36,'Concawe Library'!$A$4:$AI$1563,34,FALSE)) ->  | P36: =IF(D36="","",VLOOKUP($D36,'Concawe Library'!$A$4:$AI$1563,35,FALSE)) ->  | Q36: =IF(D36="","",VLOOKUP($D36,'Concawe Library'!$A$4:$AI$1563,25,FALSE)) ->  | R36: =IF(D36="","",VLOOKUP($D36,'Concawe Library'!$A$4:$AI$1563,26,FALSE)) ->  | S36: =IF(D36="","",VLOOKUP($D36,'Concawe Library'!$A$4:$AI$1563,30,FALSE)) ->  | T36: =IF(D36="","",VLOOKUP($D36,'Concawe Library'!$A$4:$AI$1563,29,FALSE)) -> 
E37: =IF(D37="","",VLOOKUP($D37,'Concawe Library'!$A$4:$AI$1563,3,FALSE)) ->  | F37: =IF(D37="","",VLOOKUP($D37,'Concawe Library'!$A$4:$AI$1563,4,FALSE)) ->  | G37: =IF(D37="","",VLOOKUP($D37,'Concawe Library'!$A$4:$AI$1563,6,FALSE)) ->  | H37: =IF(D37="","",VLOOKUP($D37,'Concawe Library'!$A$4:$AI$1563,11,FALSE)) ->  | I37: =IF(D37="","",LOG(VLOOKUP($D37,'Concawe Library'!$A$4:$AI$1563,13,FALSE))) ->  | J37: =IF(D37="","",VLOOKUP($D37,'Concawe Library'!$A$4:$AI$1563,14,FALSE)) ->  | K37: =IF(D37="","",LOG(VLOOKUP($D37,'Concawe Library'!$A$4:$AI$1563,28,FALSE))) ->  | L37: =IF(D37="","",VLOOKUP($D37,'Concawe Library'!$A$4:$AI$1563,31,FALSE)) ->  | M37: =IF(D37="","",VLOOKUP($D37,'Concawe Library'!$A$4:$AI$1563,32,FALSE)) ->  | N37: =IF(D37="","",VLOOKUP($D37,'Concawe Library'!$A$4:$AI$1563,33,FALSE)) ->  | O37: =IF(D37="","",VLOOKUP($D37,'Concawe Library'!$A$4:$AI$1563,34,FALSE)) ->  | P37: =IF(D37="","",VLOOKUP($D37,'Concawe Library'!$A$4:$AI$1563,35,FALSE)) ->  | Q37: =IF(D37="","",VLOOKUP($D37,'Concawe Library'!$A$4:$AI$1563,25,FALSE)) ->  | R37: =IF(D37="","",VLOOKUP($D37,'Concawe Library'!$A$4:$AI$1563,26,FALSE)) ->  | S37: =IF(D37="","",VLOOKUP($D37,'Concawe Library'!$A$4:$AI$1563,30,FALSE)) ->  | T37: =IF(D37="","",VLOOKUP($D37,'Concawe Library'!$A$4:$AI$1563,29,FALSE)) -> 
E38: =IF(D38="","",VLOOKUP($D38,'Concawe Library'!$A$4:$AI$1563,3,FALSE)) ->  | F38: =IF(D38="","",VLOOKUP($D38,'Concawe Library'!$A$4:$AI$1563,4,FALSE)) ->  | G38: =IF(D38="","",VLOOKUP($D38,'Concawe Library'!$A$4:$AI$1563,6,FALSE)) ->  | H38: =IF(D38="","",VLOOKUP($D38,'Concawe Library'!$A$4:$AI$1563,11,FALSE)) ->  | I38: =IF(D38="","",LOG(VLOOKUP($D38,'Concawe Library'!$A$4:$AI$1563,13,FALSE))) ->  | J38: =IF(D38="","",VLOOKUP($D38,'Concawe Library'!$A$4:$AI$1563,14,FALSE)) ->  | K38: =IF(D38="","",LOG(VLOOKUP($D38,'Concawe Library'!$A$4:$AI$1563,28,FALSE))) ->  | L38: =IF(D38="","",VLOOKUP($D38,'Concawe Library'!$A$4:$AI$1563,31,FALSE)) ->  | M38: =IF(D38="","",VLOOKUP($D38,'Concawe Library'!$A$4:$AI$1563,32,FALSE)) ->  | N38: =IF(D38="","",VLOOKUP($D38,'Concawe Library'!$A$4:$AI$1563,33,FALSE)) ->  | O38: =IF(D38="","",VLOOKUP($D38,'Concawe Library'!$A$4:$AI$1563,34,FALSE)) ->  | P38: =IF(D38="","",VLOOKUP($D38,'Concawe Library'!$A$4:$AI$1563,35,FALSE)) ->  | Q38: =IF(D38="","",VLOOKUP($D38,'Concawe Library'!$A$4:$AI$1563,25,FALSE)) ->  | R38: =IF(D38="","",VLOOKUP($D38,'Concawe Library'!$A$4:$AI$1563,26,FALSE)) ->  | S38: =IF(D38="","",VLOOKUP($D38,'Concawe Library'!$A$4:$AI$1563,30,FALSE)) ->  | T38: =IF(D38="","",VLOOKUP($D38,'Concawe Library'!$A$4:$AI$1563,29,FALSE)) -> 
E39: =IF(D39="","",VLOOKUP($D39,'Concawe Library'!$A$4:$AI$1563,3,FALSE)) ->  | F39: =IF(D39="","",VLOOKUP($D39,'Concawe Library'!$A$4:$AI$1563,4,FALSE)) ->  | G39: =IF(D39="","",VLOOKUP($D39,'Concawe Library'!$A$4:$AI$1563,6,FALSE)) ->  | H39: =IF(D39="","",VLOOKUP($D39,'Concawe Library'!$A$4:$AI$1563,11,FALSE)) ->  | I39: =IF(D39="","",LOG(VLOOKUP($D39,'Concawe Library'!$A$4:$AI$1563,13,FALSE))) ->  | J39: =IF(D39="","",VLOOKUP($D39,'Concawe Library'!$A$4:$AI$1563,14,FALSE)) ->  | K39: =IF(D39="","",LOG(VLOOKUP($D39,'Concawe Library'!$A$4:$AI$1563,28,FALSE))) ->  | L39: =IF(D39="","",VLOOKUP($D39,'Concawe Library'!$A$4:$AI$1563,31,FALSE)) ->  | M39: =IF(D39="","",VLOOKUP($D39,'Concawe Library'!$A$4:$AI$1563,32,FALSE)) ->  | N39: =IF(D39="","",VLOOKUP($D39,'Concawe Library'!$A$4:$AI$1563,33,FALSE)) ->  | O39: =IF(D39="","",VLOOKUP($D39,'Concawe Library'!$A$4:$AI$1563,34,FALSE)) ->  | P39: =IF(D39="","",VLOOKUP($D39,'Concawe Library'!$A$4:$AI$1563,35,FALSE)) ->  | Q39: =IF(D39="","",VLOOKUP($D39,'Concawe Library'!$A$4:$AI$1563,25,FALSE)) ->  | R39: =IF(D39="","",VLOOKUP($D39,'Concawe Library'!$A$4:$AI$1563,26,FALSE)) ->  | S39: =IF(D39="","",VLOOKUP($D39,'Concawe Library'!$A$4:$AI$1563,30,FALSE)) ->  | T39: =IF(D39="","",VLOOKUP($D39,'Concawe Library'!$A$4:$AI$1563,29,FALSE)) -> 
E40: =IF(D40="","",VLOOKUP($D40,'Concawe Library'!$A$4:$AI$1563,3,FALSE)) ->  | F40: =IF(D40="","",VLOOKUP($D40,'Concawe Library'!$A$4:$AI$1563,4,FALSE)) ->  | G40: =IF(D40="","",VLOOKUP($D40,'Concawe Library'!$A$4:$AI$1563,6,FALSE)) ->  | H40: =IF(D40="","",VLOOKUP($D40,'Concawe Library'!$A$4:$AI$1563,11,FALSE)) ->  | I40: =IF(D40="","",LOG(VLOOKUP($D40,'Concawe Library'!$A$4:$AI$1563,13,FALSE))) ->  | J40: =IF(D40="","",VLOOKUP($D40,'Concawe Library'!$A$4:$AI$1563,14,FALSE)) ->  | K40: =IF(D40="","",LOG(VLOOKUP($D40,'Concawe Library'!$A$4:$AI$1563,28,FALSE))) ->  | L40: =IF(D40="","",VLOOKUP($D40,'Concawe Library'!$A$4:$AI$1563,31,FALSE)) ->  | M40: =IF(D40="","",VLOOKUP($D40,'Concawe Library'!$A$4:$AI$1563,32,FALSE)) ->  | N40: =IF(D40="","",VLOOKUP($D40,'Concawe Library'!$A$4:$AI$1563,33,FALSE)) ->  | O40: =IF(D40="","",VLOOKUP($D40,'Concawe Library'!$A$4:$AI$1563,34,FALSE)) ->  | P40: =IF(D40="","",VLOOKUP($D40,'Concawe Library'!$A$4:$AI$1563,35,FALSE)) ->  | Q40: =IF(D40="","",VLOOKUP($D40,'Concawe Library'!$A$4:$AI$1563,25,FALSE)) ->  | R40: =IF(D40="","",VLOOKUP($D40,'Concawe Library'!$A$4:$AI$1563,26,FALSE)) ->  | S40: =IF(D40="","",VLOOKUP($D40,'Concawe Library'!$A$4:$AI$1563,30,FALSE)) ->  | T40: =IF(D40="","",VLOOKUP($D40,'Concawe Library'!$A$4:$AI$1563,29,FALSE)) -> 
E41: =IF(D41="","",VLOOKUP($D41,'Concawe Library'!$A$4:$AI$1563,3,FALSE)) ->  | F41: =IF(D41="","",VLOOKUP($D41,'Concawe Library'!$A$4:$AI$1563,4,FALSE)) ->  | G41: =IF(D41="","",VLOOKUP($D41,'Concawe Library'!$A$4:$AI$1563,6,FALSE)) ->  | H41: =IF(D41="","",VLOOKUP($D41,'Concawe Library'!$A$4:$AI$1563,11,FALSE)) ->  | I41: =IF(D41="","",LOG(VLOOKUP($D41,'Concawe Library'!$A$4:$AI$1563,13,FALSE))) ->  | J41: =IF(D41="","",VLOOKUP($D41,'Concawe Library'!$A$4:$AI$1563,14,FALSE)) ->  | K41: =IF(D41="","",LOG(VLOOKUP($D41,'Concawe Library'!$A$4:$AI$1563,28,FALSE))) ->  | L41: =IF(D41="","",VLOOKUP($D41,'Concawe Library'!$A$4:$AI$1563,31,FALSE)) ->  | M41: =IF(D41="","",VLOOKUP($D41,'Concawe Library'!$A$4:$AI$1563,32,FALSE)) ->  | N41: =IF(D41="","",VLOOKUP($D41,'Concawe Library'!$A$4:$AI$1563,33,FALSE)) ->  | O41: =IF(D41="","",VLOOKUP($D41,'Concawe Library'!$A$4:$AI$1563,34,FALSE)) ->  | P41: =IF(D41="","",VLOOKUP($D41,'Concawe Library'!$A$4:$AI$1563,35,FALSE)) ->  | Q41: =IF(D41="","",VLOOKUP($D41,'Concawe Library'!$A$4:$AI$1563,25,FALSE)) ->  | R41: =IF(D41="","",VLOOKUP($D41,'Concawe Library'!$A$4:$AI$1563,26,FALSE)) ->  | S41: =IF(D41="","",VLOOKUP($D41,'Concawe Library'!$A$4:$AI$1563,30,FALSE)) ->  | T41: =IF(D41="","",VLOOKUP($D41,'Concawe Library'!$A$4:$AI$1563,29,FALSE)) -> 
E42: =IF(D42="","",VLOOKUP($D42,'Concawe Library'!$A$4:$AI$1563,3,FALSE)) ->  | F42: =IF(D42="","",VLOOKUP($D42,'Concawe Library'!$A$4:$AI$1563,4,FALSE)) ->  | G42: =IF(D42="","",VLOOKUP($D42,'Concawe Library'!$A$4:$AI$1563,6,FALSE)) ->  | H42: =IF(D42="","",VLOOKUP($D42,'Concawe Library'!$A$4:$AI$1563,11,FALSE)) ->  | I42: =IF(D42="","",LOG(VLOOKUP($D42,'Concawe Library'!$A$4:$AI$1563,13,FALSE))) ->  | J42: =IF(D42="","",VLOOKUP($D42,'Concawe Library'!$A$4:$AI$1563,14,FALSE)) ->  | K42: =IF(D42="","",LOG(VLOOKUP($D42,'Concawe Library'!$A$4:$AI$1563,28,FALSE))) ->  | L42: =IF(D42="","",VLOOKUP($D42,'Concawe Library'!$A$4:$AI$1563,31,FALSE)) ->  | M42: =IF(D42="","",VLOOKUP($D42,'Concawe Library'!$A$4:$AI$1563,32,FALSE)) ->  | N42: =IF(D42="","",VLOOKUP($D42,'Concawe Library'!$A$4:$AI$1563,33,FALSE)) ->  | O42: =IF(D42="","",VLOOKUP($D42,'Concawe Library'!$A$4:$AI$1563,34,FALSE)) ->  | P42: =IF(D42="","",VLOOKUP($D42,'Concawe Library'!$A$4:$AI$1563,35,FALSE)) ->  | Q42: =IF(D42="","",VLOOKUP($D42,'Concawe Library'!$A$4:$AI$1563,25,FALSE)) ->  | R42: =IF(D42="","",VLOOKUP($D42,'Concawe Library'!$A$4:$AI$1563,26,FALSE)) ->  | S42: =IF(D42="","",VLOOKUP($D42,'Concawe Library'!$A$4:$AI$1563,30,FALSE)) ->  | T42: =IF(D42="","",VLOOKUP($D42,'Concawe Library'!$A$4:$AI$1563,29,FALSE)) -> 
E43: =IF(D43="","",VLOOKUP($D43,'Concawe Library'!$A$4:$AI$1563,3,FALSE)) ->  | F43: =IF(D43="","",VLOOKUP($D43,'Concawe Library'!$A$4:$AI$1563,4,FALSE)) ->  | G43: =IF(D43="","",VLOOKUP($D43,'Concawe Library'!$A$4:$AI$1563,6,FALSE)) ->  | H43: =IF(D43="","",VLOOKUP($D43,'Concawe Library'!$A$4:$AI$1563,11,FALSE)) ->  | I43: =IF(D43="","",LOG(VLOOKUP($D43,'Concawe Library'!$A$4:$AI$1563,13,FALSE))) ->  | J43: =IF(D43="","",VLOOKUP($D43,'Concawe Library'!$A$4:$AI$1563,14,FALSE)) ->  | K43: =IF(D43="","",LOG(VLOOKUP($D43,'Concawe Library'!$A$4:$AI$1563,28,FALSE))) ->  | L43: =IF(D43="","",VLOOKUP($D43,'Concawe Library'!$A$4:$AI$1563,31,FALSE)) ->  | M43: =IF(D43="","",VLOOKUP($D43,'Concawe Library'!$A$4:$AI$1563,32,FALSE)) ->  | N43: =IF(D43="","",VLOOKUP($D43,'Concawe Library'!$A$4:$AI$1563,33,FALSE)) ->  | O43: =IF(D43="","",VLOOKUP($D43,'Concawe Library'!$A$4:$AI$1563,34,FALSE)) ->  | P43: =IF(D43="","",VLOOKUP($D43,'Concawe Library'!$A$4:$AI$1563,35,FALSE)) ->  | Q43: =IF(D43="","",VLOOKUP($D43,'Concawe Library'!$A$4:$AI$1563,25,FALSE)) ->  | R43: =IF(D43="","",VLOOKUP($D43,'Concawe Library'!$A$4:$AI$1563,26,FALSE)) ->  | S43: =IF(D43="","",VLOOKUP($D43,'Concawe Library'!$A$4:$AI$1563,30,FALSE)) ->  | T43: =IF(D43="","",VLOOKUP($D43,'Concawe Library'!$A$4:$AI$1563,29,FALSE)) -> 
E44: =IF(D44="","",VLOOKUP($D44,'Concawe Library'!$A$4:$AI$1563,3,FALSE)) ->  | F44: =IF(D44="","",VLOOKUP($D44,'Concawe Library'!$A$4:$AI$1563,4,FALSE)) ->  | G44: =IF(D44="","",VLOOKUP($D44,'Concawe Library'!$A$4:$AI$1563,6,FALSE)) ->  | H44: =IF(D44="","",VLOOKUP($D44,'Concawe Library'!$A$4:$AI$1563,11,FALSE)) ->  | I44: =IF(D44="","",LOG(VLOOKUP($D44,'Concawe Library'!$A$4:$AI$1563,13,FALSE))) ->  | J44: =IF(D44="","",VLOOKUP($D44,'Concawe Library'!$A$4:$AI$1563,14,FALSE)) ->  | K44: =IF(D44="","",LOG(VLOOKUP($D44,'Concawe Library'!$A$4:$AI$1563,28,FALSE))) ->  | L44: =IF(D44="","",VLOOKUP($D44,'Concawe Library'!$A$4:$AI$1563,31,FALSE)) ->  | M44: =IF(D44="","",VLOOKUP($D44,'Concawe Library'!$A$4:$AI$1563,32,FALSE)) ->  | N44: =IF(D44="","",VLOOKUP($D44,'Concawe Library'!$A$4:$AI$1563,33,FALSE)) ->  | O44: =IF(D44="","",VLOOKUP($D44,'Concawe Library'!$A$4:$AI$1563,34,FALSE)) ->  | P44: =IF(D44="","",VLOOKUP($D44,'Concawe Library'!$A$4:$AI$1563,35,FALSE)) ->  | Q44: =IF(D44="","",VLOOKUP($D44,'Concawe Library'!$A$4:$AI$1563,25,FALSE)) ->  | R44: =IF(D44="","",VLOOKUP($D44,'Concawe Library'!$A$4:$AI$1563,26,FALSE)) ->  | S44: =IF(D44="","",VLOOKUP($D44,'Concawe Library'!$A$4:$AI$1563,30,FALSE)) ->  | T44: =IF(D44="","",VLOOKUP($D44,'Concawe Library'!$A$4:$AI$1563,29,FALSE)) -> 
E45: =IF(D45="","",VLOOKUP($D45,'Concawe Library'!$A$4:$AI$1563,3,FALSE)) ->  | F45: =IF(D45="","",VLOOKUP($D45,'Concawe Library'!$A$4:$AI$1563,4,FALSE)) ->  | G45: =IF(D45="","",VLOOKUP($D45,'Concawe Library'!$A$4:$AI$1563,6,FALSE)) ->  | H45: =IF(D45="","",VLOOKUP($D45,'Concawe Library'!$A$4:$AI$1563,11,FALSE)) ->  | I45: =IF(D45="","",LOG(VLOOKUP($D45,'Concawe Library'!$A$4:$AI$1563,13,FALSE))) ->  | J45: =IF(D45="","",VLOOKUP($D45,'Concawe Library'!$A$4:$AI$1563,14,FALSE)) ->  | K45: =IF(D45="","",LOG(VLOOKUP($D45,'Concawe Library'!$A$4:$AI$1563,28,FALSE))) ->  | L45: =IF(D45="","",VLOOKUP($D45,'Concawe Library'!$A$4:$AI$1563,31,FALSE)) ->  | M45: =IF(D45="","",VLOOKUP($D45,'Concawe Library'!$A$4:$AI$1563,32,FALSE)) ->  | N45: =IF(D45="","",VLOOKUP($D45,'Concawe Library'!$A$4:$AI$1563,33,FALSE)) ->  | O45: =IF(D45="","",VLOOKUP($D45,'Concawe Library'!$A$4:$AI$1563,34,FALSE)) ->  | P45: =IF(D45="","",VLOOKUP($D45,'Concawe Library'!$A$4:$AI$1563,35,FALSE)) ->  | Q45: =IF(D45="","",VLOOKUP($D45,'Concawe Library'!$A$4:$AI$1563,25,FALSE)) ->  | R45: =IF(D45="","",VLOOKUP($D45,'Concawe Library'!$A$4:$AI$1563,26,FALSE)) ->  | S45: =IF(D45="","",VLOOKUP($D45,'Concawe Library'!$A$4:$AI$1563,30,FALSE)) ->  | T45: =IF(D45="","",VLOOKUP($D45,'Concawe Library'!$A$4:$AI$1563,29,FALSE)) -> 
E46: =IF(D46="","",VLOOKUP($D46,'Concawe Library'!$A$4:$AI$1563,3,FALSE)) ->  | F46: =IF(D46="","",VLOOKUP($D46,'Concawe Library'!$A$4:$AI$1563,4,FALSE)) ->  | G46: =IF(D46="","",VLOOKUP($D46,'Concawe Library'!$A$4:$AI$1563,6,FALSE)) ->  | H46: =IF(D46="","",VLOOKUP($D46,'Concawe Library'!$A$4:$AI$1563,11,FALSE)) ->  | I46: =IF(D46="","",LOG(VLOOKUP($D46,'Concawe Library'!$A$4:$AI$1563,13,FALSE))) ->  | J46: =IF(D46="","",VLOOKUP($D46,'Concawe Library'!$A$4:$AI$1563,14,FALSE)) ->  | K46: =IF(D46="","",LOG(VLOOKUP($D46,'Concawe Library'!$A$4:$AI$1563,28,FALSE))) ->  | L46: =IF(D46="","",VLOOKUP($D46,'Concawe Library'!$A$4:$AI$1563,31,FALSE)) ->  | M46: =IF(D46="","",VLOOKUP($D46,'Concawe Library'!$A$4:$AI$1563,32,FALSE)) ->  | N46: =IF(D46="","",VLOOKUP($D46,'Concawe Library'!$A$4:$AI$1563,33,FALSE)) ->  | O46: =IF(D46="","",VLOOKUP($D46,'Concawe Library'!$A$4:$AI$1563,34,FALSE)) ->  | P46: =IF(D46="","",VLOOKUP($D46,'Concawe Library'!$A$4:$AI$1563,35,FALSE)) ->  | Q46: =IF(D46="","",VLOOKUP($D46,'Concawe Library'!$A$4:$AI$1563,25,FALSE)) ->  | R46: =IF(D46="","",VLOOKUP($D46,'Concawe Library'!$A$4:$AI$1563,26,FALSE)) ->  | S46: =IF(D46="","",VLOOKUP($D46,'Concawe Library'!$A$4:$AI$1563,30,FALSE)) ->  | T46: =IF(D46="","",VLOOKUP($D46,'Concawe Library'!$A$4:$AI$1563,29,FALSE)) -> 
E47: =IF(D47="","",VLOOKUP($D47,'Concawe Library'!$A$4:$AI$1563,3,FALSE)) ->  | F47: =IF(D47="","",VLOOKUP($D47,'Concawe Library'!$A$4:$AI$1563,4,FALSE)) ->  | G47: =IF(D47="","",VLOOKUP($D47,'Concawe Library'!$A$4:$AI$1563,6,FALSE)) ->  | H47: =IF(D47="","",VLOOKUP($D47,'Concawe Library'!$A$4:$AI$1563,11,FALSE)) ->  | I47: =IF(D47="","",LOG(VLOOKUP($D47,'Concawe Library'!$A$4:$AI$1563,13,FALSE))) ->  | J47: =IF(D47="","",VLOOKUP($D47,'Concawe Library'!$A$4:$AI$1563,14,FALSE)) ->  | K47: =IF(D47="","",LOG(VLOOKUP($D47,'Concawe Library'!$A$4:$AI$1563,28,FALSE))) ->  | L47: =IF(D47="","",VLOOKUP($D47,'Concawe Library'!$A$4:$AI$1563,31,FALSE)) ->  | M47: =IF(D47="","",VLOOKUP($D47,'Concawe Library'!$A$4:$AI$1563,32,FALSE)) ->  | N47: =IF(D47="","",VLOOKUP($D47,'Concawe Library'!$A$4:$AI$1563,33,FALSE)) ->  | O47: =IF(D47="","",VLOOKUP($D47,'Concawe Library'!$A$4:$AI$1563,34,FALSE)) ->  | P47: =IF(D47="","",VLOOKUP($D47,'Concawe Library'!$A$4:$AI$1563,35,FALSE)) ->  | Q47: =IF(D47="","",VLOOKUP($D47,'Concawe Library'!$A$4:$AI$1563,25,FALSE)) ->  | R47: =IF(D47="","",VLOOKUP($D47,'Concawe Library'!$A$4:$AI$1563,26,FALSE)) ->  | S47: =IF(D47="","",VLOOKUP($D47,'Concawe Library'!$A$4:$AI$1563,30,FALSE)) ->  | T47: =IF(D47="","",VLOOKUP($D47,'Concawe Library'!$A$4:$AI$1563,29,FALSE)) -> 
E48: =IF(D48="","",VLOOKUP($D48,'Concawe Library'!$A$4:$AI$1563,3,FALSE)) ->  | F48: =IF(D48="","",VLOOKUP($D48,'Concawe Library'!$A$4:$AI$1563,4,FALSE)) ->  | G48: =IF(D48="","",VLOOKUP($D48,'Concawe Library'!$A$4:$AI$1563,6,FALSE)) ->  | H48: =IF(D48="","",VLOOKUP($D48,'Concawe Library'!$A$4:$AI$1563,11,FALSE)) ->  | I48: =IF(D48="","",LOG(VLOOKUP($D48,'Concawe Library'!$A$4:$AI$1563,13,FALSE))) ->  | J48: =IF(D48="","",VLOOKUP($D48,'Concawe Library'!$A$4:$AI$1563,14,FALSE)) ->  | K48: =IF(D48="","",LOG(VLOOKUP($D48,'Concawe Library'!$A$4:$AI$1563,28,FALSE))) ->  | L48: =IF(D48="","",VLOOKUP($D48,'Concawe Library'!$A$4:$AI$1563,31,FALSE)) ->  | M48: =IF(D48="","",VLOOKUP($D48,'Concawe Library'!$A$4:$AI$1563,32,FALSE)) ->  | N48: =IF(D48="","",VLOOKUP($D48,'Concawe Library'!$A$4:$AI$1563,33,FALSE)) ->  | O48: =IF(D48="","",VLOOKUP($D48,'Concawe Library'!$A$4:$AI$1563,34,FALSE)) ->  | P48: =IF(D48="","",VLOOKUP($D48,'Concawe Library'!$A$4:$AI$1563,35,FALSE)) ->  | Q48: =IF(D48="","",VLOOKUP($D48,'Concawe Library'!$A$4:$AI$1563,25,FALSE)) ->  | R48: =IF(D48="","",VLOOKUP($D48,'Concawe Library'!$A$4:$AI$1563,26,FALSE)) ->  | S48: =IF(D48="","",VLOOKUP($D48,'Concawe Library'!$A$4:$AI$1563,30,FALSE)) ->  | T48: =IF(D48="","",VLOOKUP($D48,'Concawe Library'!$A$4:$AI$1563,29,FALSE)) -> 
E49: =IF(D49="","",VLOOKUP($D49,'Concawe Library'!$A$4:$AI$1563,3,FALSE)) ->  | F49: =IF(D49="","",VLOOKUP($D49,'Concawe Library'!$A$4:$AI$1563,4,FALSE)) ->  | G49: =IF(D49="","",VLOOKUP($D49,'Concawe Library'!$A$4:$AI$1563,6,FALSE)) ->  | H49: =IF(D49="","",VLOOKUP($D49,'Concawe Library'!$A$4:$AI$1563,11,FALSE)) ->  | I49: =IF(D49="","",LOG(VLOOKUP($D49,'Concawe Library'!$A$4:$AI$1563,13,FALSE))) ->  | J49: =IF(D49="","",VLOOKUP($D49,'Concawe Library'!$A$4:$AI$1563,14,FALSE)) ->  | K49: =IF(D49="","",LOG(VLOOKUP($D49,'Concawe Library'!$A$4:$AI$1563,28,FALSE))) ->  | L49: =IF(D49="","",VLOOKUP($D49,'Concawe Library'!$A$4:$AI$1563,31,FALSE)) ->  | M49: =IF(D49="","",VLOOKUP($D49,'Concawe Library'!$A$4:$AI$1563,32,FALSE)) ->  | N49: =IF(D49="","",VLOOKUP($D49,'Concawe Library'!$A$4:$AI$1563,33,FALSE)) ->  | O49: =IF(D49="","",VLOOKUP($D49,'Concawe Library'!$A$4:$AI$1563,34,FALSE)) ->  | P49: =IF(D49="","",VLOOKUP($D49,'Concawe Library'!$A$4:$AI$1563,35,FALSE)) ->  | Q49: =IF(D49="","",VLOOKUP($D49,'Concawe Library'!$A$4:$AI$1563,25,FALSE)) ->  | R49: =IF(D49="","",VLOOKUP($D49,'Concawe Library'!$A$4:$AI$1563,26,FALSE)) ->  | S49: =IF(D49="","",VLOOKUP($D49,'Concawe Library'!$A$4:$AI$1563,30,FALSE)) ->  | T49: =IF(D49="","",VLOOKUP($D49,'Concawe Library'!$A$4:$AI$1563,29,FALSE)) -> 
E50: =IF(D50="","",VLOOKUP($D50,'Concawe Library'!$A$4:$AI$1563,3,FALSE)) ->  | F50: =IF(D50="","",VLOOKUP($D50,'Concawe Library'!$A$4:$AI$1563,4,FALSE)) ->  | G50: =IF(D50="","",VLOOKUP($D50,'Concawe Library'!$A$4:$AI$1563,6,FALSE)) ->  | H50: =IF(D50="","",VLOOKUP($D50,'Concawe Library'!$A$4:$AI$1563,11,FALSE)) ->  | I50: =IF(D50="","",LOG(VLOOKUP($D50,'Concawe Library'!$A$4:$AI$1563,13,FALSE))) ->  | J50: =IF(D50="","",VLOOKUP($D50,'Concawe Library'!$A$4:$AI$1563,14,FALSE)) ->  | K50: =IF(D50="","",LOG(VLOOKUP($D50,'Concawe Library'!$A$4:$AI$1563,28,FALSE))) ->  | L50: =IF(D50="","",VLOOKUP($D50,'Concawe Library'!$A$4:$AI$1563,31,FALSE)) ->  | M50: =IF(D50="","",VLOOKUP($D50,'Concawe Library'!$A$4:$AI$1563,32,FALSE)) ->  | N50: =IF(D50="","",VLOOKUP($D50,'Concawe Library'!$A$4:$AI$1563,33,FALSE)) ->  | O50: =IF(D50="","",VLOOKUP($D50,'Concawe Library'!$A$4:$AI$1563,34,FALSE)) ->  | P50: =IF(D50="","",VLOOKUP($D50,'Concawe Library'!$A$4:$AI$1563,35,FALSE)) ->  | Q50: =IF(D50="","",VLOOKUP($D50,'Concawe Library'!$A$4:$AI$1563,25,FALSE)) ->  | R50: =IF(D50="","",VLOOKUP($D50,'Concawe Library'!$A$4:$AI$1563,26,FALSE)) ->  | S50: =IF(D50="","",VLOOKUP($D50,'Concawe Library'!$A$4:$AI$1563,30,FALSE)) ->  | T50: =IF(D50="","",VLOOKUP($D50,'Concawe Library'!$A$4:$AI$1563,29,FALSE)) -> 
E51: =IF(D51="","",VLOOKUP($D51,'Concawe Library'!$A$4:$AI$1563,3,FALSE)) ->  | F51: =IF(D51="","",VLOOKUP($D51,'Concawe Library'!$A$4:$AI$1563,4,FALSE)) ->  | G51: =IF(D51="","",VLOOKUP($D51,'Concawe Library'!$A$4:$AI$1563,6,FALSE)) ->  | H51: =IF(D51="","",VLOOKUP($D51,'Concawe Library'!$A$4:$AI$1563,11,FALSE)) ->  | I51: =IF(D51="","",LOG(VLOOKUP($D51,'Concawe Library'!$A$4:$AI$1563,13,FALSE))) ->  | J51: =IF(D51="","",VLOOKUP($D51,'Concawe Library'!$A$4:$AI$1563,14,FALSE)) ->  | K51: =IF(D51="","",LOG(VLOOKUP($D51,'Concawe Library'!$A$4:$AI$1563,28,FALSE))) ->  | L51: =IF(D51="","",VLOOKUP($D51,'Concawe Library'!$A$4:$AI$1563,31,FALSE)) ->  | M51: =IF(D51="","",VLOOKUP($D51,'Concawe Library'!$A$4:$AI$1563,32,FALSE)) ->  | N51: =IF(D51="","",VLOOKUP($D51,'Concawe Library'!$A$4:$AI$1563,33,FALSE)) ->  | O51: =IF(D51="","",VLOOKUP($D51,'Concawe Library'!$A$4:$AI$1563,34,FALSE)) ->  | P51: =IF(D51="","",VLOOKUP($D51,'Concawe Library'!$A$4:$AI$1563,35,FALSE)) ->  | Q51: =IF(D51="","",VLOOKUP($D51,'Concawe Library'!$A$4:$AI$1563,25,FALSE)) ->  | R51: =IF(D51="","",VLOOKUP($D51,'Concawe Library'!$A$4:$AI$1563,26,FALSE)) ->  | S51: =IF(D51="","",VLOOKUP($D51,'Concawe Library'!$A$4:$AI$1563,30,FALSE)) ->  | T51: =IF(D51="","",VLOOKUP($D51,'Concawe Library'!$A$4:$AI$1563,29,FALSE)) -> 
E52: =IF(D52="","",VLOOKUP($D52,'Concawe Library'!$A$4:$AI$1563,3,FALSE)) ->  | F52: =IF(D52="","",VLOOKUP($D52,'Concawe Library'!$A$4:$AI$1563,4,FALSE)) ->  | G52: =IF(D52="","",VLOOKUP($D52,'Concawe Library'!$A$4:$AI$1563,6,FALSE)) ->  | H52: =IF(D52="","",VLOOKUP($D52,'Concawe Library'!$A$4:$AI$1563,11,FALSE)) ->  | I52: =IF(D52="","",LOG(VLOOKUP($D52,'Concawe Library'!$A$4:$AI$1563,13,FALSE))) ->  | J52: =IF(D52="","",VLOOKUP($D52,'Concawe Library'!$A$4:$AI$1563,14,FALSE)) ->  | K52: =IF(D52="","",LOG(VLOOKUP($D52,'Concawe Library'!$A$4:$AI$1563,28,FALSE))) ->  | L52: =IF(D52="","",VLOOKUP($D52,'Concawe Library'!$A$4:$AI$1563,31,FALSE)) ->  | M52: =IF(D52="","",VLOOKUP($D52,'Concawe Library'!$A$4:$AI$1563,32,FALSE)) ->  | N52: =IF(D52="","",VLOOKUP($D52,'Concawe Library'!$A$4:$AI$1563,33,FALSE)) ->  | O52: =IF(D52="","",VLOOKUP($D52,'Concawe Library'!$A$4:$AI$1563,34,FALSE)) ->  | P52: =IF(D52="","",VLOOKUP($D52,'Concawe Library'!$A$4:$AI$1563,35,FALSE)) ->  | Q52: =IF(D52="","",VLOOKUP($D52,'Concawe Library'!$A$4:$AI$1563,25,FALSE)) ->  | R52: =IF(D52="","",VLOOKUP($D52,'Concawe Library'!$A$4:$AI$1563,26,FALSE)) ->  | S52: =IF(D52="","",VLOOKUP($D52,'Concawe Library'!$A$4:$AI$1563,30,FALSE)) ->  | T52: =IF(D52="","",VLOOKUP($D52,'Concawe Library'!$A$4:$AI$1563,29,FALSE)) -> 
E53: =IF(D53="","",VLOOKUP($D53,'Concawe Library'!$A$4:$AI$1563,3,FALSE)) ->  | F53: =IF(D53="","",VLOOKUP($D53,'Concawe Library'!$A$4:$AI$1563,4,FALSE)) ->  | G53: =IF(D53="","",VLOOKUP($D53,'Concawe Library'!$A$4:$AI$1563,6,FALSE)) ->  | H53: =IF(D53="","",VLOOKUP($D53,'Concawe Library'!$A$4:$AI$1563,11,FALSE)) ->  | I53: =IF(D53="","",LOG(VLOOKUP($D53,'Concawe Library'!$A$4:$AI$1563,13,FALSE))) ->  | J53: =IF(D53="","",VLOOKUP($D53,'Concawe Library'!$A$4:$AI$1563,14,FALSE)) ->  | K53: =IF(D53="","",LOG(VLOOKUP($D53,'Concawe Library'!$A$4:$AI$1563,28,FALSE))) ->  | L53: =IF(D53="","",VLOOKUP($D53,'Concawe Library'!$A$4:$AI$1563,31,FALSE)) ->  | M53: =IF(D53="","",VLOOKUP($D53,'Concawe Library'!$A$4:$AI$1563,32,FALSE)) ->  | N53: =IF(D53="","",VLOOKUP($D53,'Concawe Library'!$A$4:$AI$1563,33,FALSE)) ->  | O53: =IF(D53="","",VLOOKUP($D53,'Concawe Library'!$A$4:$AI$1563,34,FALSE)) ->  | P53: =IF(D53="","",VLOOKUP($D53,'Concawe Library'!$A$4:$AI$1563,35,FALSE)) ->  | Q53: =IF(D53="","",VLOOKUP($D53,'Concawe Library'!$A$4:$AI$1563,25,FALSE)) ->  | R53: =IF(D53="","",VLOOKUP($D53,'Concawe Library'!$A$4:$AI$1563,26,FALSE)) ->  | S53: =IF(D53="","",VLOOKUP($D53,'Concawe Library'!$A$4:$AI$1563,30,FALSE)) ->  | T53: =IF(D53="","",VLOOKUP($D53,'Concawe Library'!$A$4:$AI$1563,29,FALSE)) -> 
E54: =IF(D54="","",VLOOKUP($D54,'Concawe Library'!$A$4:$AI$1563,3,FALSE)) ->  | F54: =IF(D54="","",VLOOKUP($D54,'Concawe Library'!$A$4:$AI$1563,4,FALSE)) ->  | G54: =IF(D54="","",VLOOKUP($D54,'Concawe Library'!$A$4:$AI$1563,6,FALSE)) ->  | H54: =IF(D54="","",VLOOKUP($D54,'Concawe Library'!$A$4:$AI$1563,11,FALSE)) ->  | I54: =IF(D54="","",LOG(VLOOKUP($D54,'Concawe Library'!$A$4:$AI$1563,13,FALSE))) ->  | J54: =IF(D54="","",VLOOKUP($D54,'Concawe Library'!$A$4:$AI$1563,14,FALSE)) ->  | K54: =IF(D54="","",LOG(VLOOKUP($D54,'Concawe Library'!$A$4:$AI$1563,28,FALSE))) ->  | L54: =IF(D54="","",VLOOKUP($D54,'Concawe Library'!$A$4:$AI$1563,31,FALSE)) ->  | M54: =IF(D54="","",VLOOKUP($D54,'Concawe Library'!$A$4:$AI$1563,32,FALSE)) ->  | N54: =IF(D54="","",VLOOKUP($D54,'Concawe Library'!$A$4:$AI$1563,33,FALSE)) ->  | O54: =IF(D54="","",VLOOKUP($D54,'Concawe Library'!$A$4:$AI$1563,34,FALSE)) ->  | P54: =IF(D54="","",VLOOKUP($D54,'Concawe Library'!$A$4:$AI$1563,35,FALSE)) ->  | Q54: =IF(D54="","",VLOOKUP($D54,'Concawe Library'!$A$4:$AI$1563,25,FALSE)) ->  | R54: =IF(D54="","",VLOOKUP($D54,'Concawe Library'!$A$4:$AI$1563,26,FALSE)) ->  | S54: =IF(D54="","",VLOOKUP($D54,'Concawe Library'!$A$4:$AI$1563,30,FALSE)) ->  | T54: =IF(D54="","",VLOOKUP($D54,'Concawe Library'!$A$4:$AI$1563,29,FALSE)) -> 
E55: =IF(D55="","",VLOOKUP($D55,'Concawe Library'!$A$4:$AI$1563,3,FALSE)) ->  | F55: =IF(D55="","",VLOOKUP($D55,'Concawe Library'!$A$4:$AI$1563,4,FALSE)) ->  | G55: =IF(D55="","",VLOOKUP($D55,'Concawe Library'!$A$4:$AI$1563,6,FALSE)) ->  | H55: =IF(D55="","",VLOOKUP($D55,'Concawe Library'!$A$4:$AI$1563,11,FALSE)) ->  | I55: =IF(D55="","",LOG(VLOOKUP($D55,'Concawe Library'!$A$4:$AI$1563,13,FALSE))) ->  | J55: =IF(D55="","",VLOOKUP($D55,'Concawe Library'!$A$4:$AI$1563,14,FALSE)) ->  | K55: =IF(D55="","",LOG(VLOOKUP($D55,'Concawe Library'!$A$4:$AI$1563,28,FALSE))) ->  | L55: =IF(D55="","",VLOOKUP($D55,'Concawe Library'!$A$4:$AI$1563,31,FALSE)) ->  | M55: =IF(D55="","",VLOOKUP($D55,'Concawe Library'!$A$4:$AI$1563,32,FALSE)) ->  | N55: =IF(D55="","",VLOOKUP($D55,'Concawe Library'!$A$4:$AI$1563,33,FALSE)) ->  | O55: =IF(D55="","",VLOOKUP($D55,'Concawe Library'!$A$4:$AI$1563,34,FALSE)) ->  | P55: =IF(D55="","",VLOOKUP($D55,'Concawe Library'!$A$4:$AI$1563,35,FALSE)) ->  | Q55: =IF(D55="","",VLOOKUP($D55,'Concawe Library'!$A$4:$AI$1563,25,FALSE)) ->  | R55: =IF(D55="","",VLOOKUP($D55,'Concawe Library'!$A$4:$AI$1563,26,FALSE)) ->  | S55: =IF(D55="","",VLOOKUP($D55,'Concawe Library'!$A$4:$AI$1563,30,FALSE)) ->  | T55: =IF(D55="","",VLOOKUP($D55,'Concawe Library'!$A$4:$AI$1563,29,FALSE)) -> 
E56: =IF(D56="","",VLOOKUP($D56,'Concawe Library'!$A$4:$AI$1563,3,FALSE)) ->  | F56: =IF(D56="","",VLOOKUP($D56,'Concawe Library'!$A$4:$AI$1563,4,FALSE)) ->  | G56: =IF(D56="","",VLOOKUP($D56,'Concawe Library'!$A$4:$AI$1563,6,FALSE)) ->  | H56: =IF(D56="","",VLOOKUP($D56,'Concawe Library'!$A$4:$AI$1563,11,FALSE)) ->  | I56: =IF(D56="","",LOG(VLOOKUP($D56,'Concawe Library'!$A$4:$AI$1563,13,FALSE))) ->  | J56: =IF(D56="","",VLOOKUP($D56,'Concawe Library'!$A$4:$AI$1563,14,FALSE)) ->  | K56: =IF(D56="","",LOG(VLOOKUP($D56,'Concawe Library'!$A$4:$AI$1563,28,FALSE))) ->  | L56: =IF(D56="","",VLOOKUP($D56,'Concawe Library'!$A$4:$AI$1563,31,FALSE)) ->  | M56: =IF(D56="","",VLOOKUP($D56,'Concawe Library'!$A$4:$AI$1563,32,FALSE)) ->  | N56: =IF(D56="","",VLOOKUP($D56,'Concawe Library'!$A$4:$AI$1563,33,FALSE)) ->  | O56: =IF(D56="","",VLOOKUP($D56,'Concawe Library'!$A$4:$AI$1563,34,FALSE)) ->  | P56: =IF(D56="","",VLOOKUP($D56,'Concawe Library'!$A$4:$AI$1563,35,FALSE)) ->  | Q56: =IF(D56="","",VLOOKUP($D56,'Concawe Library'!$A$4:$AI$1563,25,FALSE)) ->  | R56: =IF(D56="","",VLOOKUP($D56,'Concawe Library'!$A$4:$AI$1563,26,FALSE)) ->  | S56: =IF(D56="","",VLOOKUP($D56,'Concawe Library'!$A$4:$AI$1563,30,FALSE)) ->  | T56: =IF(D56="","",VLOOKUP($D56,'Concawe Library'!$A$4:$AI$1563,29,FALSE)) -> 
E57: =IF(D57="","",VLOOKUP($D57,'Concawe Library'!$A$4:$AI$1563,3,FALSE)) ->  | F57: =IF(D57="","",VLOOKUP($D57,'Concawe Library'!$A$4:$AI$1563,4,FALSE)) ->  | G57: =IF(D57="","",VLOOKUP($D57,'Concawe Library'!$A$4:$AI$1563,6,FALSE)) ->  | H57: =IF(D57="","",VLOOKUP($D57,'Concawe Library'!$A$4:$AI$1563,11,FALSE)) ->  | I57: =IF(D57="","",LOG(VLOOKUP($D57,'Concawe Library'!$A$4:$AI$1563,13,FALSE))) ->  | J57: =IF(D57="","",VLOOKUP($D57,'Concawe Library'!$A$4:$AI$1563,14,FALSE)) ->  | K57: =IF(D57="","",LOG(VLOOKUP($D57,'Concawe Library'!$A$4:$AI$1563,28,FALSE))) ->  | L57: =IF(D57="","",VLOOKUP($D57,'Concawe Library'!$A$4:$AI$1563,31,FALSE)) ->  | M57: =IF(D57="","",VLOOKUP($D57,'Concawe Library'!$A$4:$AI$1563,32,FALSE)) ->  | N57: =IF(D57="","",VLOOKUP($D57,'Concawe Library'!$A$4:$AI$1563,33,FALSE)) ->  | O57: =IF(D57="","",VLOOKUP($D57,'Concawe Library'!$A$4:$AI$1563,34,FALSE)) ->  | P57: =IF(D57="","",VLOOKUP($D57,'Concawe Library'!$A$4:$AI$1563,35,FALSE)) ->  | Q57: =IF(D57="","",VLOOKUP($D57,'Concawe Library'!$A$4:$AI$1563,25,FALSE)) ->  | R57: =IF(D57="","",VLOOKUP($D57,'Concawe Library'!$A$4:$AI$1563,26,FALSE)) ->  | S57: =IF(D57="","",VLOOKUP($D57,'Concawe Library'!$A$4:$AI$1563,30,FALSE)) ->  | T57: =IF(D57="","",VLOOKUP($D57,'Concawe Library'!$A$4:$AI$1563,29,FALSE)) -> 
E58: =IF(D58="","",VLOOKUP($D58,'Concawe Library'!$A$4:$AI$1563,3,FALSE)) ->  | F58: =IF(D58="","",VLOOKUP($D58,'Concawe Library'!$A$4:$AI$1563,4,FALSE)) ->  | G58: =IF(D58="","",VLOOKUP($D58,'Concawe Library'!$A$4:$AI$1563,6,FALSE)) ->  | H58: =IF(D58="","",VLOOKUP($D58,'Concawe Library'!$A$4:$AI$1563,11,FALSE)) ->  | I58: =IF(D58="","",LOG(VLOOKUP($D58,'Concawe Library'!$A$4:$AI$1563,13,FALSE))) ->  | J58: =IF(D58="","",VLOOKUP($D58,'Concawe Library'!$A$4:$AI$1563,14,FALSE)) ->  | K58: =IF(D58="","",LOG(VLOOKUP($D58,'Concawe Library'!$A$4:$AI$1563,28,FALSE))) ->  | L58: =IF(D58="","",VLOOKUP($D58,'Concawe Library'!$A$4:$AI$1563,31,FALSE)) ->  | M58: =IF(D58="","",VLOOKUP($D58,'Concawe Library'!$A$4:$AI$1563,32,FALSE)) ->  | N58: =IF(D58="","",VLOOKUP($D58,'Concawe Library'!$A$4:$AI$1563,33,FALSE)) ->  | O58: =IF(D58="","",VLOOKUP($D58,'Concawe Library'!$A$4:$AI$1563,34,FALSE)) ->  | P58: =IF(D58="","",VLOOKUP($D58,'Concawe Library'!$A$4:$AI$1563,35,FALSE)) ->  | Q58: =IF(D58="","",VLOOKUP($D58,'Concawe Library'!$A$4:$AI$1563,25,FALSE)) ->  | R58: =IF(D58="","",VLOOKUP($D58,'Concawe Library'!$A$4:$AI$1563,26,FALSE)) ->  | S58: =IF(D58="","",VLOOKUP($D58,'Concawe Library'!$A$4:$AI$1563,30,FALSE)) ->  | T58: =IF(D58="","",VLOOKUP($D58,'Concawe Library'!$A$4:$AI$1563,29,FALSE)) -> 
E59: =IF(D59="","",VLOOKUP($D59,'Concawe Library'!$A$4:$AI$1563,3,FALSE)) ->  | F59: =IF(D59="","",VLOOKUP($D59,'Concawe Library'!$A$4:$AI$1563,4,FALSE)) ->  | G59: =IF(D59="","",VLOOKUP($D59,'Concawe Library'!$A$4:$AI$1563,6,FALSE)) ->  | H59: =IF(D59="","",VLOOKUP($D59,'Concawe Library'!$A$4:$AI$1563,11,FALSE)) ->  | I59: =IF(D59="","",LOG(VLOOKUP($D59,'Concawe Library'!$A$4:$AI$1563,13,FALSE))) ->  | J59: =IF(D59="","",VLOOKUP($D59,'Concawe Library'!$A$4:$AI$1563,14,FALSE)) ->  | K59: =IF(D59="","",LOG(VLOOKUP($D59,'Concawe Library'!$A$4:$AI$1563,28,FALSE))) ->  | L59: =IF(D59="","",VLOOKUP($D59,'Concawe Library'!$A$4:$AI$1563,31,FALSE)) ->  | M59: =IF(D59="","",VLOOKUP($D59,'Concawe Library'!$A$4:$AI$1563,32,FALSE)) ->  | N59: =IF(D59="","",VLOOKUP($D59,'Concawe Library'!$A$4:$AI$1563,33,FALSE)) ->  | O59: =IF(D59="","",VLOOKUP($D59,'Concawe Library'!$A$4:$AI$1563,34,FALSE)) ->  | P59: =IF(D59="","",VLOOKUP($D59,'Concawe Library'!$A$4:$AI$1563,35,FALSE)) ->  | Q59: =IF(D59="","",VLOOKUP($D59,'Concawe Library'!$A$4:$AI$1563,25,FALSE)) ->  | R59: =IF(D59="","",VLOOKUP($D59,'Concawe Library'!$A$4:$AI$1563,26,FALSE)) ->  | S59: =IF(D59="","",VLOOKUP($D59,'Concawe Library'!$A$4:$AI$1563,30,FALSE)) ->  | T59: =IF(D59="","",VLOOKUP($D59,'Concawe Library'!$A$4:$AI$1563,29,FALSE)) -> 
E60: =IF(D60="","",VLOOKUP($D60,'Concawe Library'!$A$4:$AI$1563,3,FALSE)) ->  | F60: =IF(D60="","",VLOOKUP($D60,'Concawe Library'!$A$4:$AI$1563,4,FALSE)) ->  | G60: =IF(D60="","",VLOOKUP($D60,'Concawe Library'!$A$4:$AI$1563,6,FALSE)) ->  | H60: =IF(D60="","",VLOOKUP($D60,'Concawe Library'!$A$4:$AI$1563,11,FALSE)) ->  | I60: =IF(D60="","",LOG(VLOOKUP($D60,'Concawe Library'!$A$4:$AI$1563,13,FALSE))) ->  | J60: =IF(D60="","",VLOOKUP($D60,'Concawe Library'!$A$4:$AI$1563,14,FALSE)) ->  | K60: =IF(D60="","",LOG(VLOOKUP($D60,'Concawe Library'!$A$4:$AI$1563,28,FALSE))) ->  | L60: =IF(D60="","",VLOOKUP($D60,'Concawe Library'!$A$4:$AI$1563,31,FALSE)) ->  | M60: =IF(D60="","",VLOOKUP($D60,'Concawe Library'!$A$4:$AI$1563,32,FALSE)) ->  | N60: =IF(D60="","",VLOOKUP($D60,'Concawe Library'!$A$4:$AI$1563,33,FALSE)) ->  | O60: =IF(D60="","",VLOOKUP($D60,'Concawe Library'!$A$4:$AI$1563,34,FALSE)) ->  | P60: =IF(D60="","",VLOOKUP($D60,'Concawe Library'!$A$4:$AI$1563,35,FALSE)) ->  | Q60: =IF(D60="","",VLOOKUP($D60,'Concawe Library'!$A$4:$AI$1563,25,FALSE)) ->  | R60: =IF(D60="","",VLOOKUP($D60,'Concawe Library'!$A$4:$AI$1563,26,FALSE)) ->  | S60: =IF(D60="","",VLOOKUP($D60,'Concawe Library'!$A$4:$AI$1563,30,FALSE)) ->  | T60: =IF(D60="","",VLOOKUP($D60,'Concawe Library'!$A$4:$AI$1563,29,FALSE)) -> 
E61: =IF(D61="","",VLOOKUP($D61,'Concawe Library'!$A$4:$AI$1563,3,FALSE)) ->  | F61: =IF(D61="","",VLOOKUP($D61,'Concawe Library'!$A$4:$AI$1563,4,FALSE)) ->  | G61: =IF(D61="","",VLOOKUP($D61,'Concawe Library'!$A$4:$AI$1563,6,FALSE)) ->  | H61: =IF(D61="","",VLOOKUP($D61,'Concawe Library'!$A$4:$AI$1563,11,FALSE)) ->  | I61: =IF(D61="","",LOG(VLOOKUP($D61,'Concawe Library'!$A$4:$AI$1563,13,FALSE))) ->  | J61: =IF(D61="","",VLOOKUP($D61,'Concawe Library'!$A$4:$AI$1563,14,FALSE)) ->  | K61: =IF(D61="","",LOG(VLOOKUP($D61,'Concawe Library'!$A$4:$AI$1563,28,FALSE))) ->  | L61: =IF(D61="","",VLOOKUP($D61,'Concawe Library'!$A$4:$AI$1563,31,FALSE)) ->  | M61: =IF(D61="","",VLOOKUP($D61,'Concawe Library'!$A$4:$AI$1563,32,FALSE)) ->  | N61: =IF(D61="","",VLOOKUP($D61,'Concawe Library'!$A$4:$AI$1563,33,FALSE)) ->  | O61: =IF(D61="","",VLOOKUP($D61,'Concawe Library'!$A$4:$AI$1563,34,FALSE)) ->  | P61: =IF(D61="","",VLOOKUP($D61,'Concawe Library'!$A$4:$AI$1563,35,FALSE)) ->  | Q61: =IF(D61="","",VLOOKUP($D61,'Concawe Library'!$A$4:$AI$1563,25,FALSE)) ->  | R61: =IF(D61="","",VLOOKUP($D61,'Concawe Library'!$A$4:$AI$1563,26,FALSE)) ->  | S61: =IF(D61="","",VLOOKUP($D61,'Concawe Library'!$A$4:$AI$1563,30,FALSE)) ->  | T61: =IF(D61="","",VLOOKUP($D61,'Concawe Library'!$A$4:$AI$1563,29,FALSE)) -> 
E62: =IF(D62="","",VLOOKUP($D62,'Concawe Library'!$A$4:$AI$1563,3,FALSE)) ->  | F62: =IF(D62="","",VLOOKUP($D62,'Concawe Library'!$A$4:$AI$1563,4,FALSE)) ->  | G62: =IF(D62="","",VLOOKUP($D62,'Concawe Library'!$A$4:$AI$1563,6,FALSE)) ->  | H62: =IF(D62="","",VLOOKUP($D62,'Concawe Library'!$A$4:$AI$1563,11,FALSE)) ->  | I62: =IF(D62="","",LOG(VLOOKUP($D62,'Concawe Library'!$A$4:$AI$1563,13,FALSE))) ->  | J62: =IF(D62="","",VLOOKUP($D62,'Concawe Library'!$A$4:$AI$1563,14,FALSE)) ->  | K62: =IF(D62="","",LOG(VLOOKUP($D62,'Concawe Library'!$A$4:$AI$1563,28,FALSE))) ->  | L62: =IF(D62="","",VLOOKUP($D62,'Concawe Library'!$A$4:$AI$1563,31,FALSE)) ->  | M62: =IF(D62="","",VLOOKUP($D62,'Concawe Library'!$A$4:$AI$1563,32,FALSE)) ->  | N62: =IF(D62="","",VLOOKUP($D62,'Concawe Library'!$A$4:$AI$1563,33,FALSE)) ->  | O62: =IF(D62="","",VLOOKUP($D62,'Concawe Library'!$A$4:$AI$1563,34,FALSE)) ->  | P62: =IF(D62="","",VLOOKUP($D62,'Concawe Library'!$A$4:$AI$1563,35,FALSE)) ->  | Q62: =IF(D62="","",VLOOKUP($D62,'Concawe Library'!$A$4:$AI$1563,25,FALSE)) ->  | R62: =IF(D62="","",VLOOKUP($D62,'Concawe Library'!$A$4:$AI$1563,26,FALSE)) ->  | S62: =IF(D62="","",VLOOKUP($D62,'Concawe Library'!$A$4:$AI$1563,30,FALSE)) ->  | T62: =IF(D62="","",VLOOKUP($D62,'Concawe Library'!$A$4:$AI$1563,29,FALSE)) -> 
E63: =IF(D63="","",VLOOKUP($D63,'Concawe Library'!$A$4:$AI$1563,3,FALSE)) ->  | F63: =IF(D63="","",VLOOKUP($D63,'Concawe Library'!$A$4:$AI$1563,4,FALSE)) ->  | G63: =IF(D63="","",VLOOKUP($D63,'Concawe Library'!$A$4:$AI$1563,6,FALSE)) ->  | H63: =IF(D63="","",VLOOKUP($D63,'Concawe Library'!$A$4:$AI$1563,11,FALSE)) ->  | I63: =IF(D63="","",LOG(VLOOKUP($D63,'Concawe Library'!$A$4:$AI$1563,13,FALSE))) ->  | J63: =IF(D63="","",VLOOKUP($D63,'Concawe Library'!$A$4:$AI$1563,14,FALSE)) ->  | K63: =IF(D63="","",LOG(VLOOKUP($D63,'Concawe Library'!$A$4:$AI$1563,28,FALSE))) ->  | L63: =IF(D63="","",VLOOKUP($D63,'Concawe Library'!$A$4:$AI$1563,31,FALSE)) ->  | M63: =IF(D63="","",VLOOKUP($D63,'Concawe Library'!$A$4:$AI$1563,32,FALSE)) ->  | N63: =IF(D63="","",VLOOKUP($D63,'Concawe Library'!$A$4:$AI$1563,33,FALSE)) ->  | O63: =IF(D63="","",VLOOKUP($D63,'Concawe Library'!$A$4:$AI$1563,34,FALSE)) ->  | P63: =IF(D63="","",VLOOKUP($D63,'Concawe Library'!$A$4:$AI$1563,35,FALSE)) ->  | Q63: =IF(D63="","",VLOOKUP($D63,'Concawe Library'!$A$4:$AI$1563,25,FALSE)) ->  | R63: =IF(D63="","",VLOOKUP($D63,'Concawe Library'!$A$4:$AI$1563,26,FALSE)) ->  | S63: =IF(D63="","",VLOOKUP($D63,'Concawe Library'!$A$4:$AI$1563,30,FALSE)) ->  | T63: =IF(D63="","",VLOOKUP($D63,'Concawe Library'!$A$4:$AI$1563,29,FALSE)) -> 
E64: =IF(D64="","",VLOOKUP($D64,'Concawe Library'!$A$4:$AI$1563,3,FALSE)) ->  | F64: =IF(D64="","",VLOOKUP($D64,'Concawe Library'!$A$4:$AI$1563,4,FALSE)) ->  | G64: =IF(D64="","",VLOOKUP($D64,'Concawe Library'!$A$4:$AI$1563,6,FALSE)) ->  | H64: =IF(D64="","",VLOOKUP($D64,'Concawe Library'!$A$4:$AI$1563,11,FALSE)) ->  | I64: =IF(D64="","",LOG(VLOOKUP($D64,'Concawe Library'!$A$4:$AI$1563,13,FALSE))) ->  | J64: =IF(D64="","",VLOOKUP($D64,'Concawe Library'!$A$4:$AI$1563,14,FALSE)) ->  | K64: =IF(D64="","",LOG(VLOOKUP($D64,'Concawe Library'!$A$4:$AI$1563,28,FALSE))) ->  | L64: =IF(D64="","",VLOOKUP($D64,'Concawe Library'!$A$4:$AI$1563,31,FALSE)) ->  | M64: =IF(D64="","",VLOOKUP($D64,'Concawe Library'!$A$4:$AI$1563,32,FALSE)) ->  | N64: =IF(D64="","",VLOOKUP($D64,'Concawe Library'!$A$4:$AI$1563,33,FALSE)) ->  | O64: =IF(D64="","",VLOOKUP($D64,'Concawe Library'!$A$4:$AI$1563,34,FALSE)) ->  | P64: =IF(D64="","",VLOOKUP($D64,'Concawe Library'!$A$4:$AI$1563,35,FALSE)) ->  | Q64: =IF(D64="","",VLOOKUP($D64,'Concawe Library'!$A$4:$AI$1563,25,FALSE)) ->  | R64: =IF(D64="","",VLOOKUP($D64,'Concawe Library'!$A$4:$AI$1563,26,FALSE)) ->  | S64: =IF(D64="","",VLOOKUP($D64,'Concawe Library'!$A$4:$AI$1563,30,FALSE)) ->  | T64: =IF(D64="","",VLOOKUP($D64,'Concawe Library'!$A$4:$AI$1563,29,FALSE)) -> 
E65: =IF(D65="","",VLOOKUP($D65,'Concawe Library'!$A$4:$AI$1563,3,FALSE)) ->  | F65: =IF(D65="","",VLOOKUP($D65,'Concawe Library'!$A$4:$AI$1563,4,FALSE)) ->  | G65: =IF(D65="","",VLOOKUP($D65,'Concawe Library'!$A$4:$AI$1563,6,FALSE)) ->  | H65: =IF(D65="","",VLOOKUP($D65,'Concawe Library'!$A$4:$AI$1563,11,FALSE)) ->  | I65: =IF(D65="","",LOG(VLOOKUP($D65,'Concawe Library'!$A$4:$AI$1563,13,FALSE))) ->  | J65: =IF(D65="","",VLOOKUP($D65,'Concawe Library'!$A$4:$AI$1563,14,FALSE)) ->  | K65: =IF(D65="","",LOG(VLOOKUP($D65,'Concawe Library'!$A$4:$AI$1563,28,FALSE))) ->  | L65: =IF(D65="","",VLOOKUP($D65,'Concawe Library'!$A$4:$AI$1563,31,FALSE)) ->  | M65: =IF(D65="","",VLOOKUP($D65,'Concawe Library'!$A$4:$AI$1563,32,FALSE)) ->  | N65: =IF(D65="","",VLOOKUP($D65,'Concawe Library'!$A$4:$AI$1563,33,FALSE)) ->  | O65: =IF(D65="","",VLOOKUP($D65,'Concawe Library'!$A$4:$AI$1563,34,FALSE)) ->  | P65: =IF(D65="","",VLOOKUP($D65,'Concawe Library'!$A$4:$AI$1563,35,FALSE)) ->  | Q65: =IF(D65="","",VLOOKUP($D65,'Concawe Library'!$A$4:$AI$1563,25,FALSE)) ->  | R65: =IF(D65="","",VLOOKUP($D65,'Concawe Library'!$A$4:$AI$1563,26,FALSE)) ->  | S65: =IF(D65="","",VLOOKUP($D65,'Concawe Library'!$A$4:$AI$1563,30,FALSE)) ->  | T65: =IF(D65="","",VLOOKUP($D65,'Concawe Library'!$A$4:$AI$1563,29,FALSE)) -> 
E66: =IF(D66="","",VLOOKUP($D66,'Concawe Library'!$A$4:$AI$1563,3,FALSE)) ->  | F66: =IF(D66="","",VLOOKUP($D66,'Concawe Library'!$A$4:$AI$1563,4,FALSE)) ->  | G66: =IF(D66="","",VLOOKUP($D66,'Concawe Library'!$A$4:$AI$1563,6,FALSE)) ->  | H66: =IF(D66="","",VLOOKUP($D66,'Concawe Library'!$A$4:$AI$1563,11,FALSE)) ->  | I66: =IF(D66="","",LOG(VLOOKUP($D66,'Concawe Library'!$A$4:$AI$1563,13,FALSE))) ->  | J66: =IF(D66="","",VLOOKUP($D66,'Concawe Library'!$A$4:$AI$1563,14,FALSE)) ->  | K66: =IF(D66="","",LOG(VLOOKUP($D66,'Concawe Library'!$A$4:$AI$1563,28,FALSE))) ->  | L66: =IF(D66="","",VLOOKUP($D66,'Concawe Library'!$A$4:$AI$1563,31,FALSE)) ->  | M66: =IF(D66="","",VLOOKUP($D66,'Concawe Library'!$A$4:$AI$1563,32,FALSE)) ->  | N66: =IF(D66="","",VLOOKUP($D66,'Concawe Library'!$A$4:$AI$1563,33,FALSE)) ->  | O66: =IF(D66="","",VLOOKUP($D66,'Concawe Library'!$A$4:$AI$1563,34,FALSE)) ->  | P66: =IF(D66="","",VLOOKUP($D66,'Concawe Library'!$A$4:$AI$1563,35,FALSE)) ->  | Q66: =IF(D66="","",VLOOKUP($D66,'Concawe Library'!$A$4:$AI$1563,25,FALSE)) ->  | R66: =IF(D66="","",VLOOKUP($D66,'Concawe Library'!$A$4:$AI$1563,26,FALSE)) ->  | S66: =IF(D66="","",VLOOKUP($D66,'Concawe Library'!$A$4:$AI$1563,30,FALSE)) ->  | T66: =IF(D66="","",VLOOKUP($D66,'Concawe Library'!$A$4:$AI$1563,29,FALSE)) -> 
E67: =IF(D67="","",VLOOKUP($D67,'Concawe Library'!$A$4:$AI$1563,3,FALSE)) ->  | F67: =IF(D67="","",VLOOKUP($D67,'Concawe Library'!$A$4:$AI$1563,4,FALSE)) ->  | G67: =IF(D67="","",VLOOKUP($D67,'Concawe Library'!$A$4:$AI$1563,6,FALSE)) ->  | H67: =IF(D67="","",VLOOKUP($D67,'Concawe Library'!$A$4:$AI$1563,11,FALSE)) ->  | I67: =IF(D67="","",LOG(VLOOKUP($D67,'Concawe Library'!$A$4:$AI$1563,13,FALSE))) ->  | J67: =IF(D67="","",VLOOKUP($D67,'Concawe Library'!$A$4:$AI$1563,14,FALSE)) ->  | K67: =IF(D67="","",LOG(VLOOKUP($D67,'Concawe Library'!$A$4:$AI$1563,28,FALSE))) ->  | L67: =IF(D67="","",VLOOKUP($D67,'Concawe Library'!$A$4:$AI$1563,31,FALSE)) ->  | M67: =IF(D67="","",VLOOKUP($D67,'Concawe Library'!$A$4:$AI$1563,32,FALSE)) ->  | N67: =IF(D67="","",VLOOKUP($D67,'Concawe Library'!$A$4:$AI$1563,33,FALSE)) ->  | O67: =IF(D67="","",VLOOKUP($D67,'Concawe Library'!$A$4:$AI$1563,34,FALSE)) ->  | P67: =IF(D67="","",VLOOKUP($D67,'Concawe Library'!$A$4:$AI$1563,35,FALSE)) ->  | Q67: =IF(D67="","",VLOOKUP($D67,'Concawe Library'!$A$4:$AI$1563,25,FALSE)) ->  | R67: =IF(D67="","",VLOOKUP($D67,'Concawe Library'!$A$4:$AI$1563,26,FALSE)) ->  | S67: =IF(D67="","",VLOOKUP($D67,'Concawe Library'!$A$4:$AI$1563,30,FALSE)) ->  | T67: =IF(D67="","",VLOOKUP($D67,'Concawe Library'!$A$4:$AI$1563,29,FALSE)) -> 
E68: =IF(D68="","",VLOOKUP($D68,'Concawe Library'!$A$4:$AI$1563,3,FALSE)) ->  | F68: =IF(D68="","",VLOOKUP($D68,'Concawe Library'!$A$4:$AI$1563,4,FALSE)) ->  | G68: =IF(D68="","",VLOOKUP($D68,'Concawe Library'!$A$4:$AI$1563,6,FALSE)) ->  | H68: =IF(D68="","",VLOOKUP($D68,'Concawe Library'!$A$4:$AI$1563,11,FALSE)) ->  | I68: =IF(D68="","",LOG(VLOOKUP($D68,'Concawe Library'!$A$4:$AI$1563,13,FALSE))) ->  | J68: =IF(D68="","",VLOOKUP($D68,'Concawe Library'!$A$4:$AI$1563,14,FALSE)) ->  | K68: =IF(D68="","",LOG(VLOOKUP($D68,'Concawe Library'!$A$4:$AI$1563,28,FALSE))) ->  | L68: =IF(D68="","",VLOOKUP($D68,'Concawe Library'!$A$4:$AI$1563,31,FALSE)) ->  | M68: =IF(D68="","",VLOOKUP($D68,'Concawe Library'!$A$4:$AI$1563,32,FALSE)) ->  | N68: =IF(D68="","",VLOOKUP($D68,'Concawe Library'!$A$4:$AI$1563,33,FALSE)) ->  | O68: =IF(D68="","",VLOOKUP($D68,'Concawe Library'!$A$4:$AI$1563,34,FALSE)) ->  | P68: =IF(D68="","",VLOOKUP($D68,'Concawe Library'!$A$4:$AI$1563,35,FALSE)) ->  | Q68: =IF(D68="","",VLOOKUP($D68,'Concawe Library'!$A$4:$AI$1563,25,FALSE)) ->  | R68: =IF(D68="","",VLOOKUP($D68,'Concawe Library'!$A$4:$AI$1563,26,FALSE)) ->  | S68: =IF(D68="","",VLOOKUP($D68,'Concawe Library'!$A$4:$AI$1563,30,FALSE)) ->  | T68: =IF(D68="","",VLOOKUP($D68,'Concawe Library'!$A$4:$AI$1563,29,FALSE)) -> 
E69: =IF(D69="","",VLOOKUP($D69,'Concawe Library'!$A$4:$AI$1563,3,FALSE)) ->  | F69: =IF(D69="","",VLOOKUP($D69,'Concawe Library'!$A$4:$AI$1563,4,FALSE)) ->  | G69: =IF(D69="","",VLOOKUP($D69,'Concawe Library'!$A$4:$AI$1563,6,FALSE)) ->  | H69: =IF(D69="","",VLOOKUP($D69,'Concawe Library'!$A$4:$AI$1563,11,FALSE)) ->  | I69: =IF(D69="","",LOG(VLOOKUP($D69,'Concawe Library'!$A$4:$AI$1563,13,FALSE))) ->  | J69: =IF(D69="","",VLOOKUP($D69,'Concawe Library'!$A$4:$AI$1563,14,FALSE)) ->  | K69: =IF(D69="","",LOG(VLOOKUP($D69,'Concawe Library'!$A$4:$AI$1563,28,FALSE))) ->  | L69: =IF(D69="","",VLOOKUP($D69,'Concawe Library'!$A$4:$AI$1563,31,FALSE)) ->  | M69: =IF(D69="","",VLOOKUP($D69,'Concawe Library'!$A$4:$AI$1563,32,FALSE)) ->  | N69: =IF(D69="","",VLOOKUP($D69,'Concawe Library'!$A$4:$AI$1563,33,FALSE)) ->  | O69: =IF(D69="","",VLOOKUP($D69,'Concawe Library'!$A$4:$AI$1563,34,FALSE)) ->  | P69: =IF(D69="","",VLOOKUP($D69,'Concawe Library'!$A$4:$AI$1563,35,FALSE)) ->  | Q69: =IF(D69="","",VLOOKUP($D69,'Concawe Library'!$A$4:$AI$1563,25,FALSE)) ->  | R69: =IF(D69="","",VLOOKUP($D69,'Concawe Library'!$A$4:$AI$1563,26,FALSE)) ->  | S69: =IF(D69="","",VLOOKUP($D69,'Concawe Library'!$A$4:$AI$1563,30,FALSE)) ->  | T69: =IF(D69="","",VLOOKUP($D69,'Concawe Library'!$A$4:$AI$1563,29,FALSE)) -> 
E70: =IF(D70="","",VLOOKUP($D70,'Concawe Library'!$A$4:$AI$1563,3,FALSE)) ->  | F70: =IF(D70="","",VLOOKUP($D70,'Concawe Library'!$A$4:$AI$1563,4,FALSE)) ->  | G70: =IF(D70="","",VLOOKUP($D70,'Concawe Library'!$A$4:$AI$1563,6,FALSE)) ->  | H70: =IF(D70="","",VLOOKUP($D70,'Concawe Library'!$A$4:$AI$1563,11,FALSE)) ->  | I70: =IF(D70="","",LOG(VLOOKUP($D70,'Concawe Library'!$A$4:$AI$1563,13,FALSE))) ->  | J70: =IF(D70="","",VLOOKUP($D70,'Concawe Library'!$A$4:$AI$1563,14,FALSE)) ->  | K70: =IF(D70="","",LOG(VLOOKUP($D70,'Concawe Library'!$A$4:$AI$1563,28,FALSE))) ->  | L70: =IF(D70="","",VLOOKUP($D70,'Concawe Library'!$A$4:$AI$1563,31,FALSE)) ->  | M70: =IF(D70="","",VLOOKUP($D70,'Concawe Library'!$A$4:$AI$1563,32,FALSE)) ->  | N70: =IF(D70="","",VLOOKUP($D70,'Concawe Library'!$A$4:$AI$1563,33,FALSE)) ->  | O70: =IF(D70="","",VLOOKUP($D70,'Concawe Library'!$A$4:$AI$1563,34,FALSE)) ->  | P70: =IF(D70="","",VLOOKUP($D70,'Concawe Library'!$A$4:$AI$1563,35,FALSE)) ->  | Q70: =IF(D70="","",VLOOKUP($D70,'Concawe Library'!$A$4:$AI$1563,25,FALSE)) ->  | R70: =IF(D70="","",VLOOKUP($D70,'Concawe Library'!$A$4:$AI$1563,26,FALSE)) ->  | S70: =IF(D70="","",VLOOKUP($D70,'Concawe Library'!$A$4:$AI$1563,30,FALSE)) ->  | T70: =IF(D70="","",VLOOKUP($D70,'Concawe Library'!$A$4:$AI$1563,29,FALSE)) -> 
E71: =IF(D71="","",VLOOKUP($D71,'Concawe Library'!$A$4:$AI$1563,3,FALSE)) ->  | F71: =IF(D71="","",VLOOKUP($D71,'Concawe Library'!$A$4:$AI$1563,4,FALSE)) ->  | G71: =IF(D71="","",VLOOKUP($D71,'Concawe Library'!$A$4:$AI$1563,6,FALSE)) ->  | H71: =IF(D71="","",VLOOKUP($D71,'Concawe Library'!$A$4:$AI$1563,11,FALSE)) ->  | I71: =IF(D71="","",LOG(VLOOKUP($D71,'Concawe Library'!$A$4:$AI$1563,13,FALSE))) ->  | J71: =IF(D71="","",VLOOKUP($D71,'Concawe Library'!$A$4:$AI$1563,14,FALSE)) ->  | K71: =IF(D71="","",LOG(VLOOKUP($D71,'Concawe Library'!$A$4:$AI$1563,28,FALSE))) ->  | L71: =IF(D71="","",VLOOKUP($D71,'Concawe Library'!$A$4:$AI$1563,31,FALSE)) ->  | M71: =IF(D71="","",VLOOKUP($D71,'Concawe Library'!$A$4:$AI$1563,32,FALSE)) ->  | N71: =IF(D71="","",VLOOKUP($D71,'Concawe Library'!$A$4:$AI$1563,33,FALSE)) ->  | O71: =IF(D71="","",VLOOKUP($D71,'Concawe Library'!$A$4:$AI$1563,34,FALSE)) ->  | P71: =IF(D71="","",VLOOKUP($D71,'Concawe Library'!$A$4:$AI$1563,35,FALSE)) ->  | Q71: =IF(D71="","",VLOOKUP($D71,'Concawe Library'!$A$4:$AI$1563,25,FALSE)) ->  | R71: =IF(D71="","",VLOOKUP($D71,'Concawe Library'!$A$4:$AI$1563,26,FALSE)) ->  | S71: =IF(D71="","",VLOOKUP($D71,'Concawe Library'!$A$4:$AI$1563,30,FALSE)) ->  | T71: =IF(D71="","",VLOOKUP($D71,'Concawe Library'!$A$4:$AI$1563,29,FALSE)) -> 
E72: =IF(D72="","",VLOOKUP($D72,'Concawe Library'!$A$4:$AI$1563,3,FALSE)) ->  | F72: =IF(D72="","",VLOOKUP($D72,'Concawe Library'!$A$4:$AI$1563,4,FALSE)) ->  | G72: =IF(D72="","",VLOOKUP($D72,'Concawe Library'!$A$4:$AI$1563,6,FALSE)) ->  | H72: =IF(D72="","",VLOOKUP($D72,'Concawe Library'!$A$4:$AI$1563,11,FALSE)) ->  | I72: =IF(D72="","",LOG(VLOOKUP($D72,'Concawe Library'!$A$4:$AI$1563,13,FALSE))) ->  | J72: =IF(D72="","",VLOOKUP($D72,'Concawe Library'!$A$4:$AI$1563,14,FALSE)) ->  | K72: =IF(D72="","",LOG(VLOOKUP($D72,'Concawe Library'!$A$4:$AI$1563,28,FALSE))) ->  | L72: =IF(D72="","",VLOOKUP($D72,'Concawe Library'!$A$4:$AI$1563,31,FALSE)) ->  | M72: =IF(D72="","",VLOOKUP($D72,'Concawe Library'!$A$4:$AI$1563,32,FALSE)) ->  | N72: =IF(D72="","",VLOOKUP($D72,'Concawe Library'!$A$4:$AI$1563,33,FALSE)) ->  | O72: =IF(D72="","",VLOOKUP($D72,'Concawe Library'!$A$4:$AI$1563,34,FALSE)) ->  | P72: =IF(D72="","",VLOOKUP($D72,'Concawe Library'!$A$4:$AI$1563,35,FALSE)) ->  | Q72: =IF(D72="","",VLOOKUP($D72,'Concawe Library'!$A$4:$AI$1563,25,FALSE)) ->  | R72: =IF(D72="","",VLOOKUP($D72,'Concawe Library'!$A$4:$AI$1563,26,FALSE)) ->  | S72: =IF(D72="","",VLOOKUP($D72,'Concawe Library'!$A$4:$AI$1563,30,FALSE)) ->  | T72: =IF(D72="","",VLOOKUP($D72,'Concawe Library'!$A$4:$AI$1563,29,FALSE)) -> 
E73: =IF(D73="","",VLOOKUP($D73,'Concawe Library'!$A$4:$AI$1563,3,FALSE)) ->  | F73: =IF(D73="","",VLOOKUP($D73,'Concawe Library'!$A$4:$AI$1563,4,FALSE)) ->  | G73: =IF(D73="","",VLOOKUP($D73,'Concawe Library'!$A$4:$AI$1563,6,FALSE)) ->  | H73: =IF(D73="","",VLOOKUP($D73,'Concawe Library'!$A$4:$AI$1563,11,FALSE)) ->  | I73: =IF(D73="","",LOG(VLOOKUP($D73,'Concawe Library'!$A$4:$AI$1563,13,FALSE))) ->  | J73: =IF(D73="","",VLOOKUP($D73,'Concawe Library'!$A$4:$AI$1563,14,FALSE)) ->  | K73: =IF(D73="","",LOG(VLOOKUP($D73,'Concawe Library'!$A$4:$AI$1563,28,FALSE))) ->  | L73: =IF(D73="","",VLOOKUP($D73,'Concawe Library'!$A$4:$AI$1563,31,FALSE)) ->  | M73: =IF(D73="","",VLOOKUP($D73,'Concawe Library'!$A$4:$AI$1563,32,FALSE)) ->  | N73: =IF(D73="","",VLOOKUP($D73,'Concawe Library'!$A$4:$AI$1563,33,FALSE)) ->  | O73: =IF(D73="","",VLOOKUP($D73,'Concawe Library'!$A$4:$AI$1563,34,FALSE)) ->  | P73: =IF(D73="","",VLOOKUP($D73,'Concawe Library'!$A$4:$AI$1563,35,FALSE)) ->  | Q73: =IF(D73="","",VLOOKUP($D73,'Concawe Library'!$A$4:$AI$1563,25,FALSE)) ->  | R73: =IF(D73="","",VLOOKUP($D73,'Concawe Library'!$A$4:$AI$1563,26,FALSE)) ->  | S73: =IF(D73="","",VLOOKUP($D73,'Concawe Library'!$A$4:$AI$1563,30,FALSE)) ->  | T73: =IF(D73="","",VLOOKUP($D73,'Concawe Library'!$A$4:$AI$1563,29,FALSE)) -> 
E74: =IF(D74="","",VLOOKUP($D74,'Concawe Library'!$A$4:$AI$1563,3,FALSE)) ->  | F74: =IF(D74="","",VLOOKUP($D74,'Concawe Library'!$A$4:$AI$1563,4,FALSE)) ->  | G74: =IF(D74="","",VLOOKUP($D74,'Concawe Library'!$A$4:$AI$1563,6,FALSE)) ->  | H74: =IF(D74="","",VLOOKUP($D74,'Concawe Library'!$A$4:$AI$1563,11,FALSE)) ->  | I74: =IF(D74="","",LOG(VLOOKUP($D74,'Concawe Library'!$A$4:$AI$1563,13,FALSE))) ->  | J74: =IF(D74="","",VLOOKUP($D74,'Concawe Library'!$A$4:$AI$1563,14,FALSE)) ->  | K74: =IF(D74="","",LOG(VLOOKUP($D74,'Concawe Library'!$A$4:$AI$1563,28,FALSE))) ->  | L74: =IF(D74="","",VLOOKUP($D74,'Concawe Library'!$A$4:$AI$1563,31,FALSE)) ->  | M74: =IF(D74="","",VLOOKUP($D74,'Concawe Library'!$A$4:$AI$1563,32,FALSE)) ->  | N74: =IF(D74="","",VLOOKUP($D74,'Concawe Library'!$A$4:$AI$1563,33,FALSE)) ->  | O74: =IF(D74="","",VLOOKUP($D74,'Concawe Library'!$A$4:$AI$1563,34,FALSE)) ->  | P74: =IF(D74="","",VLOOKUP($D74,'Concawe Library'!$A$4:$AI$1563,35,FALSE)) ->  | Q74: =IF(D74="","",VLOOKUP($D74,'Concawe Library'!$A$4:$AI$1563,25,FALSE)) ->  | R74: =IF(D74="","",VLOOKUP($D74,'Concawe Library'!$A$4:$AI$1563,26,FALSE)) ->  | S74: =IF(D74="","",VLOOKUP($D74,'Concawe Library'!$A$4:$AI$1563,30,FALSE)) ->  | T74: =IF(D74="","",VLOOKUP($D74,'Concawe Library'!$A$4:$AI$1563,29,FALSE)) -> 
E75: =IF(D75="","",VLOOKUP($D75,'Concawe Library'!$A$4:$AI$1563,3,FALSE)) ->  | F75: =IF(D75="","",VLOOKUP($D75,'Concawe Library'!$A$4:$AI$1563,4,FALSE)) ->  | G75: =IF(D75="","",VLOOKUP($D75,'Concawe Library'!$A$4:$AI$1563,6,FALSE)) ->  | H75: =IF(D75="","",VLOOKUP($D75,'Concawe Library'!$A$4:$AI$1563,11,FALSE)) ->  | I75: =IF(D75="","",LOG(VLOOKUP($D75,'Concawe Library'!$A$4:$AI$1563,13,FALSE))) ->  | J75: =IF(D75="","",VLOOKUP($D75,'Concawe Library'!$A$4:$AI$1563,14,FALSE)) ->  | K75: =IF(D75="","",LOG(VLOOKUP($D75,'Concawe Library'!$A$4:$AI$1563,28,FALSE))) ->  | L75: =IF(D75="","",VLOOKUP($D75,'Concawe Library'!$A$4:$AI$1563,31,FALSE)) ->  | M75: =IF(D75="","",VLOOKUP($D75,'Concawe Library'!$A$4:$AI$1563,32,FALSE)) ->  | N75: =IF(D75="","",VLOOKUP($D75,'Concawe Library'!$A$4:$AI$1563,33,FALSE)) ->  | O75: =IF(D75="","",VLOOKUP($D75,'Concawe Library'!$A$4:$AI$1563,34,FALSE)) ->  | P75: =IF(D75="","",VLOOKUP($D75,'Concawe Library'!$A$4:$AI$1563,35,FALSE)) ->  | Q75: =IF(D75="","",VLOOKUP($D75,'Concawe Library'!$A$4:$AI$1563,25,FALSE)) ->  | R75: =IF(D75="","",VLOOKUP($D75,'Concawe Library'!$A$4:$AI$1563,26,FALSE)) ->  | S75: =IF(D75="","",VLOOKUP($D75,'Concawe Library'!$A$4:$AI$1563,30,FALSE)) ->  | T75: =IF(D75="","",VLOOKUP($D75,'Concawe Library'!$A$4:$AI$1563,29,FALSE)) -> 
E76: =IF(D76="","",VLOOKUP($D76,'Concawe Library'!$A$4:$AI$1563,3,FALSE)) ->  | F76: =IF(D76="","",VLOOKUP($D76,'Concawe Library'!$A$4:$AI$1563,4,FALSE)) ->  | G76: =IF(D76="","",VLOOKUP($D76,'Concawe Library'!$A$4:$AI$1563,6,FALSE)) ->  | H76: =IF(D76="","",VLOOKUP($D76,'Concawe Library'!$A$4:$AI$1563,11,FALSE)) ->  | I76: =IF(D76="","",LOG(VLOOKUP($D76,'Concawe Library'!$A$4:$AI$1563,13,FALSE))) ->  | J76: =IF(D76="","",VLOOKUP($D76,'Concawe Library'!$A$4:$AI$1563,14,FALSE)) ->  | K76: =IF(D76="","",LOG(VLOOKUP($D76,'Concawe Library'!$A$4:$AI$1563,28,FALSE))) ->  | L76: =IF(D76="","",VLOOKUP($D76,'Concawe Library'!$A$4:$AI$1563,31,FALSE)) ->  | M76: =IF(D76="","",VLOOKUP($D76,'Concawe Library'!$A$4:$AI$1563,32,FALSE)) ->  | N76: =IF(D76="","",VLOOKUP($D76,'Concawe Library'!$A$4:$AI$1563,33,FALSE)) ->  | O76: =IF(D76="","",VLOOKUP($D76,'Concawe Library'!$A$4:$AI$1563,34,FALSE)) ->  | P76: =IF(D76="","",VLOOKUP($D76,'Concawe Library'!$A$4:$AI$1563,35,FALSE)) ->  | Q76: =IF(D76="","",VLOOKUP($D76,'Concawe Library'!$A$4:$AI$1563,25,FALSE)) ->  | R76: =IF(D76="","",VLOOKUP($D76,'Concawe Library'!$A$4:$AI$1563,26,FALSE)) ->  | S76: =IF(D76="","",VLOOKUP($D76,'Concawe Library'!$A$4:$AI$1563,30,FALSE)) ->  | T76: =IF(D76="","",VLOOKUP($D76,'Concawe Library'!$A$4:$AI$1563,29,FALSE)) -> 
E77: =IF(D77="","",VLOOKUP($D77,'Concawe Library'!$A$4:$AI$1563,3,FALSE)) ->  | F77: =IF(D77="","",VLOOKUP($D77,'Concawe Library'!$A$4:$AI$1563,4,FALSE)) ->  | G77: =IF(D77="","",VLOOKUP($D77,'Concawe Library'!$A$4:$AI$1563,6,FALSE)) ->  | H77: =IF(D77="","",VLOOKUP($D77,'Concawe Library'!$A$4:$AI$1563,11,FALSE)) ->  | I77: =IF(D77="","",LOG(VLOOKUP($D77,'Concawe Library'!$A$4:$AI$1563,13,FALSE))) ->  | J77: =IF(D77="","",VLOOKUP($D77,'Concawe Library'!$A$4:$AI$1563,14,FALSE)) ->  | K77: =IF(D77="","",LOG(VLOOKUP($D77,'Concawe Library'!$A$4:$AI$1563,28,FALSE))) ->  | L77: =IF(D77="","",VLOOKUP($D77,'Concawe Library'!$A$4:$AI$1563,31,FALSE)) ->  | M77: =IF(D77="","",VLOOKUP($D77,'Concawe Library'!$A$4:$AI$1563,32,FALSE)) ->  | N77: =IF(D77="","",VLOOKUP($D77,'Concawe Library'!$A$4:$AI$1563,33,FALSE)) ->  | O77: =IF(D77="","",VLOOKUP($D77,'Concawe Library'!$A$4:$AI$1563,34,FALSE)) ->  | P77: =IF(D77="","",VLOOKUP($D77,'Concawe Library'!$A$4:$AI$1563,35,FALSE)) ->  | Q77: =IF(D77="","",VLOOKUP($D77,'Concawe Library'!$A$4:$AI$1563,25,FALSE)) ->  | R77: =IF(D77="","",VLOOKUP($D77,'Concawe Library'!$A$4:$AI$1563,26,FALSE)) ->  | S77: =IF(D77="","",VLOOKUP($D77,'Concawe Library'!$A$4:$AI$1563,30,FALSE)) ->  | T77: =IF(D77="","",VLOOKUP($D77,'Concawe Library'!$A$4:$AI$1563,29,FALSE)) -> 
E78: =IF(D78="","",VLOOKUP($D78,'Concawe Library'!$A$4:$AI$1563,3,FALSE)) ->  | F78: =IF(D78="","",VLOOKUP($D78,'Concawe Library'!$A$4:$AI$1563,4,FALSE)) ->  | G78: =IF(D78="","",VLOOKUP($D78,'Concawe Library'!$A$4:$AI$1563,6,FALSE)) ->  | H78: =IF(D78="","",VLOOKUP($D78,'Concawe Library'!$A$4:$AI$1563,11,FALSE)) ->  | I78: =IF(D78="","",LOG(VLOOKUP($D78,'Concawe Library'!$A$4:$AI$1563,13,FALSE))) ->  | J78: =IF(D78="","",VLOOKUP($D78,'Concawe Library'!$A$4:$AI$1563,14,FALSE)) ->  | K78: =IF(D78="","",LOG(VLOOKUP($D78,'Concawe Library'!$A$4:$AI$1563,28,FALSE))) ->  | L78: =IF(D78="","",VLOOKUP($D78,'Concawe Library'!$A$4:$AI$1563,31,FALSE)) ->  | M78: =IF(D78="","",VLOOKUP($D78,'Concawe Library'!$A$4:$AI$1563,32,FALSE)) ->  | N78: =IF(D78="","",VLOOKUP($D78,'Concawe Library'!$A$4:$AI$1563,33,FALSE)) ->  | O78: =IF(D78="","",VLOOKUP($D78,'Concawe Library'!$A$4:$AI$1563,34,FALSE)) ->  | P78: =IF(D78="","",VLOOKUP($D78,'Concawe Library'!$A$4:$AI$1563,35,FALSE)) ->  | Q78: =IF(D78="","",VLOOKUP($D78,'Concawe Library'!$A$4:$AI$1563,25,FALSE)) ->  | R78: =IF(D78="","",VLOOKUP($D78,'Concawe Library'!$A$4:$AI$1563,26,FALSE)) ->  | S78: =IF(D78="","",VLOOKUP($D78,'Concawe Library'!$A$4:$AI$1563,30,FALSE)) ->  | T78: =IF(D78="","",VLOOKUP($D78,'Concawe Library'!$A$4:$AI$1563,29,FALSE)) -> 
E79: =IF(D79="","",VLOOKUP($D79,'Concawe Library'!$A$4:$AI$1563,3,FALSE)) ->  | F79: =IF(D79="","",VLOOKUP($D79,'Concawe Library'!$A$4:$AI$1563,4,FALSE)) ->  | G79: =IF(D79="","",VLOOKUP($D79,'Concawe Library'!$A$4:$AI$1563,6,FALSE)) ->  | H79: =IF(D79="","",VLOOKUP($D79,'Concawe Library'!$A$4:$AI$1563,11,FALSE)) ->  | I79: =IF(D79="","",LOG(VLOOKUP($D79,'Concawe Library'!$A$4:$AI$1563,13,FALSE))) ->  | J79: =IF(D79="","",VLOOKUP($D79,'Concawe Library'!$A$4:$AI$1563,14,FALSE)) ->  | K79: =IF(D79="","",LOG(VLOOKUP($D79,'Concawe Library'!$A$4:$AI$1563,28,FALSE))) ->  | L79: =IF(D79="","",VLOOKUP($D79,'Concawe Library'!$A$4:$AI$1563,31,FALSE)) ->  | M79: =IF(D79="","",VLOOKUP($D79,'Concawe Library'!$A$4:$AI$1563,32,FALSE)) ->  | N79: =IF(D79="","",VLOOKUP($D79,'Concawe Library'!$A$4:$AI$1563,33,FALSE)) ->  | O79: =IF(D79="","",VLOOKUP($D79,'Concawe Library'!$A$4:$AI$1563,34,FALSE)) ->  | P79: =IF(D79="","",VLOOKUP($D79,'Concawe Library'!$A$4:$AI$1563,35,FALSE)) ->  | Q79: =IF(D79="","",VLOOKUP($D79,'Concawe Library'!$A$4:$AI$1563,25,FALSE)) ->  | R79: =IF(D79="","",VLOOKUP($D79,'Concawe Library'!$A$4:$AI$1563,26,FALSE)) ->  | S79: =IF(D79="","",VLOOKUP($D79,'Concawe Library'!$A$4:$AI$1563,30,FALSE)) ->  | T79: =IF(D79="","",VLOOKUP($D79,'Concawe Library'!$A$4:$AI$1563,29,FALSE)) -> 
E80: =IF(D80="","",VLOOKUP($D80,'Concawe Library'!$A$4:$AI$1563,3,FALSE)) ->  | F80: =IF(D80="","",VLOOKUP($D80,'Concawe Library'!$A$4:$AI$1563,4,FALSE)) ->  | G80: =IF(D80="","",VLOOKUP($D80,'Concawe Library'!$A$4:$AI$1563,6,FALSE)) ->  | H80: =IF(D80="","",VLOOKUP($D80,'Concawe Library'!$A$4:$AI$1563,11,FALSE)) ->  | I80: =IF(D80="","",LOG(VLOOKUP($D80,'Concawe Library'!$A$4:$AI$1563,13,FALSE))) ->  | J80: =IF(D80="","",VLOOKUP($D80,'Concawe Library'!$A$4:$AI$1563,14,FALSE)) ->  | K80: =IF(D80="","",LOG(VLOOKUP($D80,'Concawe Library'!$A$4:$AI$1563,28,FALSE))) ->  | L80: =IF(D80="","",VLOOKUP($D80,'Concawe Library'!$A$4:$AI$1563,31,FALSE)) ->  | M80: =IF(D80="","",VLOOKUP($D80,'Concawe Library'!$A$4:$AI$1563,32,FALSE)) ->  | N80: =IF(D80="","",VLOOKUP($D80,'Concawe Library'!$A$4:$AI$1563,33,FALSE)) ->  | O80: =IF(D80="","",VLOOKUP($D80,'Concawe Library'!$A$4:$AI$1563,34,FALSE)) ->  | P80: =IF(D80="","",VLOOKUP($D80,'Concawe Library'!$A$4:$AI$1563,35,FALSE)) ->  | Q80: =IF(D80="","",VLOOKUP($D80,'Concawe Library'!$A$4:$AI$1563,25,FALSE)) ->  | R80: =IF(D80="","",VLOOKUP($D80,'Concawe Library'!$A$4:$AI$1563,26,FALSE)) ->  | S80: =IF(D80="","",VLOOKUP($D80,'Concawe Library'!$A$4:$AI$1563,30,FALSE)) ->  | T80: =IF(D80="","",VLOOKUP($D80,'Concawe Library'!$A$4:$AI$1563,29,FALSE)) -> 
E81: =IF(D81="","",VLOOKUP($D81,'Concawe Library'!$A$4:$AI$1563,3,FALSE)) ->  | F81: =IF(D81="","",VLOOKUP($D81,'Concawe Library'!$A$4:$AI$1563,4,FALSE)) ->  | G81: =IF(D81="","",VLOOKUP($D81,'Concawe Library'!$A$4:$AI$1563,6,FALSE)) ->  | H81: =IF(D81="","",VLOOKUP($D81,'Concawe Library'!$A$4:$AI$1563,11,FALSE)) ->  | I81: =IF(D81="","",LOG(VLOOKUP($D81,'Concawe Library'!$A$4:$AI$1563,13,FALSE))) ->  | J81: =IF(D81="","",VLOOKUP($D81,'Concawe Library'!$A$4:$AI$1563,14,FALSE)) ->  | K81: =IF(D81="","",LOG(VLOOKUP($D81,'Concawe Library'!$A$4:$AI$1563,28,FALSE))) ->  | L81: =IF(D81="","",VLOOKUP($D81,'Concawe Library'!$A$4:$AI$1563,31,FALSE)) ->  | M81: =IF(D81="","",VLOOKUP($D81,'Concawe Library'!$A$4:$AI$1563,32,FALSE)) ->  | N81: =IF(D81="","",VLOOKUP($D81,'Concawe Library'!$A$4:$AI$1563,33,FALSE)) ->  | O81: =IF(D81="","",VLOOKUP($D81,'Concawe Library'!$A$4:$AI$1563,34,FALSE)) ->  | P81: =IF(D81="","",VLOOKUP($D81,'Concawe Library'!$A$4:$AI$1563,35,FALSE)) ->  | Q81: =IF(D81="","",VLOOKUP($D81,'Concawe Library'!$A$4:$AI$1563,25,FALSE)) ->  | R81: =IF(D81="","",VLOOKUP($D81,'Concawe Library'!$A$4:$AI$1563,26,FALSE)) ->  | S81: =IF(D81="","",VLOOKUP($D81,'Concawe Library'!$A$4:$AI$1563,30,FALSE)) ->  | T81: =IF(D81="","",VLOOKUP($D81,'Concawe Library'!$A$4:$AI$1563,29,FALSE)) -> 
E82: =IF(D82="","",VLOOKUP($D82,'Concawe Library'!$A$4:$AI$1563,3,FALSE)) ->  | F82: =IF(D82="","",VLOOKUP($D82,'Concawe Library'!$A$4:$AI$1563,4,FALSE)) ->  | G82: =IF(D82="","",VLOOKUP($D82,'Concawe Library'!$A$4:$AI$1563,6,FALSE)) ->  | H82: =IF(D82="","",VLOOKUP($D82,'Concawe Library'!$A$4:$AI$1563,11,FALSE)) ->  | I82: =IF(D82="","",LOG(VLOOKUP($D82,'Concawe Library'!$A$4:$AI$1563,13,FALSE))) ->  | J82: =IF(D82="","",VLOOKUP($D82,'Concawe Library'!$A$4:$AI$1563,14,FALSE)) ->  | K82: =IF(D82="","",LOG(VLOOKUP($D82,'Concawe Library'!$A$4:$AI$1563,28,FALSE))) ->  | L82: =IF(D82="","",VLOOKUP($D82,'Concawe Library'!$A$4:$AI$1563,31,FALSE)) ->  | M82: =IF(D82="","",VLOOKUP($D82,'Concawe Library'!$A$4:$AI$1563,32,FALSE)) ->  | N82: =IF(D82="","",VLOOKUP($D82,'Concawe Library'!$A$4:$AI$1563,33,FALSE)) ->  | O82: =IF(D82="","",VLOOKUP($D82,'Concawe Library'!$A$4:$AI$1563,34,FALSE)) ->  | P82: =IF(D82="","",VLOOKUP($D82,'Concawe Library'!$A$4:$AI$1563,35,FALSE)) ->  | Q82: =IF(D82="","",VLOOKUP($D82,'Concawe Library'!$A$4:$AI$1563,25,FALSE)) ->  | R82: =IF(D82="","",VLOOKUP($D82,'Concawe Library'!$A$4:$AI$1563,26,FALSE)) ->  | S82: =IF(D82="","",VLOOKUP($D82,'Concawe Library'!$A$4:$AI$1563,30,FALSE)) ->  | T82: =IF(D82="","",VLOOKUP($D82,'Concawe Library'!$A$4:$AI$1563,29,FALSE)) -> 
E83: =IF(D83="","",VLOOKUP($D83,'Concawe Library'!$A$4:$AI$1563,3,FALSE)) ->  | F83: =IF(D83="","",VLOOKUP($D83,'Concawe Library'!$A$4:$AI$1563,4,FALSE)) ->  | G83: =IF(D83="","",VLOOKUP($D83,'Concawe Library'!$A$4:$AI$1563,6,FALSE)) ->  | H83: =IF(D83="","",VLOOKUP($D83,'Concawe Library'!$A$4:$AI$1563,11,FALSE)) ->  | I83: =IF(D83="","",LOG(VLOOKUP($D83,'Concawe Library'!$A$4:$AI$1563,13,FALSE))) ->  | J83: =IF(D83="","",VLOOKUP($D83,'Concawe Library'!$A$4:$AI$1563,14,FALSE)) ->  | K83: =IF(D83="","",LOG(VLOOKUP($D83,'Concawe Library'!$A$4:$AI$1563,28,FALSE))) ->  | L83: =IF(D83="","",VLOOKUP($D83,'Concawe Library'!$A$4:$AI$1563,31,FALSE)) ->  | M83: =IF(D83="","",VLOOKUP($D83,'Concawe Library'!$A$4:$AI$1563,32,FALSE)) ->  | N83: =IF(D83="","",VLOOKUP($D83,'Concawe Library'!$A$4:$AI$1563,33,FALSE)) ->  | O83: =IF(D83="","",VLOOKUP($D83,'Concawe Library'!$A$4:$AI$1563,34,FALSE)) ->  | P83: =IF(D83="","",VLOOKUP($D83,'Concawe Library'!$A$4:$AI$1563,35,FALSE)) ->  | Q83: =IF(D83="","",VLOOKUP($D83,'Concawe Library'!$A$4:$AI$1563,25,FALSE)) ->  | R83: =IF(D83="","",VLOOKUP($D83,'Concawe Library'!$A$4:$AI$1563,26,FALSE)) ->  | S83: =IF(D83="","",VLOOKUP($D83,'Concawe Library'!$A$4:$AI$1563,30,FALSE)) ->  | T83: =IF(D83="","",VLOOKUP($D83,'Concawe Library'!$A$4:$AI$1563,29,FALSE)) -> 
E84: =IF(D84="","",VLOOKUP($D84,'Concawe Library'!$A$4:$AI$1563,3,FALSE)) ->  | F84: =IF(D84="","",VLOOKUP($D84,'Concawe Library'!$A$4:$AI$1563,4,FALSE)) ->  | G84: =IF(D84="","",VLOOKUP($D84,'Concawe Library'!$A$4:$AI$1563,6,FALSE)) ->  | H84: =IF(D84="","",VLOOKUP($D84,'Concawe Library'!$A$4:$AI$1563,11,FALSE)) ->  | I84: =IF(D84="","",LOG(VLOOKUP($D84,'Concawe Library'!$A$4:$AI$1563,13,FALSE))) ->  | J84: =IF(D84="","",VLOOKUP($D84,'Concawe Library'!$A$4:$AI$1563,14,FALSE)) ->  | K84: =IF(D84="","",LOG(VLOOKUP($D84,'Concawe Library'!$A$4:$AI$1563,28,FALSE))) ->  | L84: =IF(D84="","",VLOOKUP($D84,'Concawe Library'!$A$4:$AI$1563,31,FALSE)) ->  | M84: =IF(D84="","",VLOOKUP($D84,'Concawe Library'!$A$4:$AI$1563,32,FALSE)) ->  | N84: =IF(D84="","",VLOOKUP($D84,'Concawe Library'!$A$4:$AI$1563,33,FALSE)) ->  | O84: =IF(D84="","",VLOOKUP($D84,'Concawe Library'!$A$4:$AI$1563,34,FALSE)) ->  | P84: =IF(D84="","",VLOOKUP($D84,'Concawe Library'!$A$4:$AI$1563,35,FALSE)) ->  | Q84: =IF(D84="","",VLOOKUP($D84,'Concawe Library'!$A$4:$AI$1563,25,FALSE)) ->  | R84: =IF(D84="","",VLOOKUP($D84,'Concawe Library'!$A$4:$AI$1563,26,FALSE)) ->  | S84: =IF(D84="","",VLOOKUP($D84,'Concawe Library'!$A$4:$AI$1563,30,FALSE)) ->  | T84: =IF(D84="","",VLOOKUP($D84,'Concawe Library'!$A$4:$AI$1563,29,FALSE)) -> 
E85: =IF(D85="","",VLOOKUP($D85,'Concawe Library'!$A$4:$AI$1563,3,FALSE)) ->  | F85: =IF(D85="","",VLOOKUP($D85,'Concawe Library'!$A$4:$AI$1563,4,FALSE)) ->  | G85: =IF(D85="","",VLOOKUP($D85,'Concawe Library'!$A$4:$AI$1563,6,FALSE)) ->  | H85: =IF(D85="","",VLOOKUP($D85,'Concawe Library'!$A$4:$AI$1563,11,FALSE)) ->  | I85: =IF(D85="","",LOG(VLOOKUP($D85,'Concawe Library'!$A$4:$AI$1563,13,FALSE))) ->  | J85: =IF(D85="","",VLOOKUP($D85,'Concawe Library'!$A$4:$AI$1563,14,FALSE)) ->  | K85: =IF(D85="","",LOG(VLOOKUP($D85,'Concawe Library'!$A$4:$AI$1563,28,FALSE))) ->  | L85: =IF(D85="","",VLOOKUP($D85,'Concawe Library'!$A$4:$AI$1563,31,FALSE)) ->  | M85: =IF(D85="","",VLOOKUP($D85,'Concawe Library'!$A$4:$AI$1563,32,FALSE)) ->  | N85: =IF(D85="","",VLOOKUP($D85,'Concawe Library'!$A$4:$AI$1563,33,FALSE)) ->  | O85: =IF(D85="","",VLOOKUP($D85,'Concawe Library'!$A$4:$AI$1563,34,FALSE)) ->  | P85: =IF(D85="","",VLOOKUP($D85,'Concawe Library'!$A$4:$AI$1563,35,FALSE)) ->  | Q85: =IF(D85="","",VLOOKUP($D85,'Concawe Library'!$A$4:$AI$1563,25,FALSE)) ->  | R85: =IF(D85="","",VLOOKUP($D85,'Concawe Library'!$A$4:$AI$1563,26,FALSE)) ->  | S85: =IF(D85="","",VLOOKUP($D85,'Concawe Library'!$A$4:$AI$1563,30,FALSE)) ->  | T85: =IF(D85="","",VLOOKUP($D85,'Concawe Library'!$A$4:$AI$1563,29,FALSE)) -> 
E86: =IF(D86="","",VLOOKUP($D86,'Concawe Library'!$A$4:$AI$1563,3,FALSE)) ->  | F86: =IF(D86="","",VLOOKUP($D86,'Concawe Library'!$A$4:$AI$1563,4,FALSE)) ->  | G86: =IF(D86="","",VLOOKUP($D86,'Concawe Library'!$A$4:$AI$1563,6,FALSE)) ->  | H86: =IF(D86="","",VLOOKUP($D86,'Concawe Library'!$A$4:$AI$1563,11,FALSE)) ->  | I86: =IF(D86="","",LOG(VLOOKUP($D86,'Concawe Library'!$A$4:$AI$1563,13,FALSE))) ->  | J86: =IF(D86="","",VLOOKUP($D86,'Concawe Library'!$A$4:$AI$1563,14,FALSE)) ->  | K86: =IF(D86="","",LOG(VLOOKUP($D86,'Concawe Library'!$A$4:$AI$1563,28,FALSE))) ->  | L86: =IF(D86="","",VLOOKUP($D86,'Concawe Library'!$A$4:$AI$1563,31,FALSE)) ->  | M86: =IF(D86="","",VLOOKUP($D86,'Concawe Library'!$A$4:$AI$1563,32,FALSE)) ->  | N86: =IF(D86="","",VLOOKUP($D86,'Concawe Library'!$A$4:$AI$1563,33,FALSE)) ->  | O86: =IF(D86="","",VLOOKUP($D86,'Concawe Library'!$A$4:$AI$1563,34,FALSE)) ->  | P86: =IF(D86="","",VLOOKUP($D86,'Concawe Library'!$A$4:$AI$1563,35,FALSE)) ->  | Q86: =IF(D86="","",VLOOKUP($D86,'Concawe Library'!$A$4:$AI$1563,25,FALSE)) ->  | R86: =IF(D86="","",VLOOKUP($D86,'Concawe Library'!$A$4:$AI$1563,26,FALSE)) ->  | S86: =IF(D86="","",VLOOKUP($D86,'Concawe Library'!$A$4:$AI$1563,30,FALSE)) ->  | T86: =IF(D86="","",VLOOKUP($D86,'Concawe Library'!$A$4:$AI$1563,29,FALSE)) -> 
E87: =IF(D87="","",VLOOKUP($D87,'Concawe Library'!$A$4:$AI$1563,3,FALSE)) ->  | F87: =IF(D87="","",VLOOKUP($D87,'Concawe Library'!$A$4:$AI$1563,4,FALSE)) ->  | G87: =IF(D87="","",VLOOKUP($D87,'Concawe Library'!$A$4:$AI$1563,6,FALSE)) ->  | H87: =IF(D87="","",VLOOKUP($D87,'Concawe Library'!$A$4:$AI$1563,11,FALSE)) ->  | I87: =IF(D87="","",LOG(VLOOKUP($D87,'Concawe Library'!$A$4:$AI$1563,13,FALSE))) ->  | J87: =IF(D87="","",VLOOKUP($D87,'Concawe Library'!$A$4:$AI$1563,14,FALSE)) ->  | K87: =IF(D87="","",LOG(VLOOKUP($D87,'Concawe Library'!$A$4:$AI$1563,28,FALSE))) ->  | L87: =IF(D87="","",VLOOKUP($D87,'Concawe Library'!$A$4:$AI$1563,31,FALSE)) ->  | M87: =IF(D87="","",VLOOKUP($D87,'Concawe Library'!$A$4:$AI$1563,32,FALSE)) ->  | N87: =IF(D87="","",VLOOKUP($D87,'Concawe Library'!$A$4:$AI$1563,33,FALSE)) ->  | O87: =IF(D87="","",VLOOKUP($D87,'Concawe Library'!$A$4:$AI$1563,34,FALSE)) ->  | P87: =IF(D87="","",VLOOKUP($D87,'Concawe Library'!$A$4:$AI$1563,35,FALSE)) ->  | Q87: =IF(D87="","",VLOOKUP($D87,'Concawe Library'!$A$4:$AI$1563,25,FALSE)) ->  | R87: =IF(D87="","",VLOOKUP($D87,'Concawe Library'!$A$4:$AI$1563,26,FALSE)) ->  | S87: =IF(D87="","",VLOOKUP($D87,'Concawe Library'!$A$4:$AI$1563,30,FALSE)) ->  | T87: =IF(D87="","",VLOOKUP($D87,'Concawe Library'!$A$4:$AI$1563,29,FALSE)) -> 
E88: =IF(D88="","",VLOOKUP($D88,'Concawe Library'!$A$4:$AI$1563,3,FALSE)) ->  | F88: =IF(D88="","",VLOOKUP($D88,'Concawe Library'!$A$4:$AI$1563,4,FALSE)) ->  | G88: =IF(D88="","",VLOOKUP($D88,'Concawe Library'!$A$4:$AI$1563,6,FALSE)) ->  | H88: =IF(D88="","",VLOOKUP($D88,'Concawe Library'!$A$4:$AI$1563,11,FALSE)) ->  | I88: =IF(D88="","",LOG(VLOOKUP($D88,'Concawe Library'!$A$4:$AI$1563,13,FALSE))) ->  | J88: =IF(D88="","",VLOOKUP($D88,'Concawe Library'!$A$4:$AI$1563,14,FALSE)) ->  | K88: =IF(D88="","",LOG(VLOOKUP($D88,'Concawe Library'!$A$4:$AI$1563,28,FALSE))) ->  | L88: =IF(D88="","",VLOOKUP($D88,'Concawe Library'!$A$4:$AI$1563,31,FALSE)) ->  | M88: =IF(D88="","",VLOOKUP($D88,'Concawe Library'!$A$4:$AI$1563,32,FALSE)) ->  | N88: =IF(D88="","",VLOOKUP($D88,'Concawe Library'!$A$4:$AI$1563,33,FALSE)) ->  | O88: =IF(D88="","",VLOOKUP($D88,'Concawe Library'!$A$4:$AI$1563,34,FALSE)) ->  | P88: =IF(D88="","",VLOOKUP($D88,'Concawe Library'!$A$4:$AI$1563,35,FALSE)) ->  | Q88: =IF(D88="","",VLOOKUP($D88,'Concawe Library'!$A$4:$AI$1563,25,FALSE)) ->  | R88: =IF(D88="","",VLOOKUP($D88,'Concawe Library'!$A$4:$AI$1563,26,FALSE)) ->  | S88: =IF(D88="","",VLOOKUP($D88,'Concawe Library'!$A$4:$AI$1563,30,FALSE)) ->  | T88: =IF(D88="","",VLOOKUP($D88,'Concawe Library'!$A$4:$AI$1563,29,FALSE)) -> 
E89: =IF(D89="","",VLOOKUP($D89,'Concawe Library'!$A$4:$AI$1563,3,FALSE)) ->  | F89: =IF(D89="","",VLOOKUP($D89,'Concawe Library'!$A$4:$AI$1563,4,FALSE)) ->  | G89: =IF(D89="","",VLOOKUP($D89,'Concawe Library'!$A$4:$AI$1563,6,FALSE)) ->  | H89: =IF(D89="","",VLOOKUP($D89,'Concawe Library'!$A$4:$AI$1563,11,FALSE)) ->  | I89: =IF(D89="","",LOG(VLOOKUP($D89,'Concawe Library'!$A$4:$AI$1563,13,FALSE))) ->  | J89: =IF(D89="","",VLOOKUP($D89,'Concawe Library'!$A$4:$AI$1563,14,FALSE)) ->  | K89: =IF(D89="","",LOG(VLOOKUP($D89,'Concawe Library'!$A$4:$AI$1563,28,FALSE))) ->  | L89: =IF(D89="","",VLOOKUP($D89,'Concawe Library'!$A$4:$AI$1563,31,FALSE)) ->  | M89: =IF(D89="","",VLOOKUP($D89,'Concawe Library'!$A$4:$AI$1563,32,FALSE)) ->  | N89: =IF(D89="","",VLOOKUP($D89,'Concawe Library'!$A$4:$AI$1563,33,FALSE)) ->  | O89: =IF(D89="","",VLOOKUP($D89,'Concawe Library'!$A$4:$AI$1563,34,FALSE)) ->  | P89: =IF(D89="","",VLOOKUP($D89,'Concawe Library'!$A$4:$AI$1563,35,FALSE)) ->  | Q89: =IF(D89="","",VLOOKUP($D89,'Concawe Library'!$A$4:$AI$1563,25,FALSE)) ->  | R89: =IF(D89="","",VLOOKUP($D89,'Concawe Library'!$A$4:$AI$1563,26,FALSE)) ->  | S89: =IF(D89="","",VLOOKUP($D89,'Concawe Library'!$A$4:$AI$1563,30,FALSE)) ->  | T89: =IF(D89="","",VLOOKUP($D89,'Concawe Library'!$A$4:$AI$1563,29,FALSE)) -> 
E90: =IF(D90="","",VLOOKUP($D90,'Concawe Library'!$A$4:$AI$1563,3,FALSE)) ->  | F90: =IF(D90="","",VLOOKUP($D90,'Concawe Library'!$A$4:$AI$1563,4,FALSE)) ->  | G90: =IF(D90="","",VLOOKUP($D90,'Concawe Library'!$A$4:$AI$1563,6,FALSE)) ->  | H90: =IF(D90="","",VLOOKUP($D90,'Concawe Library'!$A$4:$AI$1563,11,FALSE)) ->  | I90: =IF(D90="","",LOG(VLOOKUP($D90,'Concawe Library'!$A$4:$AI$1563,13,FALSE))) ->  | J90: =IF(D90="","",VLOOKUP($D90,'Concawe Library'!$A$4:$AI$1563,14,FALSE)) ->  | K90: =IF(D90="","",LOG(VLOOKUP($D90,'Concawe Library'!$A$4:$AI$1563,28,FALSE))) ->  | L90: =IF(D90="","",VLOOKUP($D90,'Concawe Library'!$A$4:$AI$1563,31,FALSE)) ->  | M90: =IF(D90="","",VLOOKUP($D90,'Concawe Library'!$A$4:$AI$1563,32,FALSE)) ->  | N90: =IF(D90="","",VLOOKUP($D90,'Concawe Library'!$A$4:$AI$1563,33,FALSE)) ->  | O90: =IF(D90="","",VLOOKUP($D90,'Concawe Library'!$A$4:$AI$1563,34,FALSE)) ->  | P90: =IF(D90="","",VLOOKUP($D90,'Concawe Library'!$A$4:$AI$1563,35,FALSE)) ->  | Q90: =IF(D90="","",VLOOKUP($D90,'Concawe Library'!$A$4:$AI$1563,25,FALSE)) ->  | R90: =IF(D90="","",VLOOKUP($D90,'Concawe Library'!$A$4:$AI$1563,26,FALSE)) ->  | S90: =IF(D90="","",VLOOKUP($D90,'Concawe Library'!$A$4:$AI$1563,30,FALSE)) ->  | T90: =IF(D90="","",VLOOKUP($D90,'Concawe Library'!$A$4:$AI$1563,29,FALSE)) -> 
E91: =IF(D91="","",VLOOKUP($D91,'Concawe Library'!$A$4:$AI$1563,3,FALSE)) ->  | F91: =IF(D91="","",VLOOKUP($D91,'Concawe Library'!$A$4:$AI$1563,4,FALSE)) ->  | G91: =IF(D91="","",VLOOKUP($D91,'Concawe Library'!$A$4:$AI$1563,6,FALSE)) ->  | H91: =IF(D91="","",VLOOKUP($D91,'Concawe Library'!$A$4:$AI$1563,11,FALSE)) ->  | I91: =IF(D91="","",LOG(VLOOKUP($D91,'Concawe Library'!$A$4:$AI$1563,13,FALSE))) ->  | J91: =IF(D91="","",VLOOKUP($D91,'Concawe Library'!$A$4:$AI$1563,14,FALSE)) ->  | K91: =IF(D91="","",LOG(VLOOKUP($D91,'Concawe Library'!$A$4:$AI$1563,28,FALSE))) ->  | L91: =IF(D91="","",VLOOKUP($D91,'Concawe Library'!$A$4:$AI$1563,31,FALSE)) ->  | M91: =IF(D91="","",VLOOKUP($D91,'Concawe Library'!$A$4:$AI$1563,32,FALSE)) ->  | N91: =IF(D91="","",VLOOKUP($D91,'Concawe Library'!$A$4:$AI$1563,33,FALSE)) ->  | O91: =IF(D91="","",VLOOKUP($D91,'Concawe Library'!$A$4:$AI$1563,34,FALSE)) ->  | P91: =IF(D91="","",VLOOKUP($D91,'Concawe Library'!$A$4:$AI$1563,35,FALSE)) ->  | Q91: =IF(D91="","",VLOOKUP($D91,'Concawe Library'!$A$4:$AI$1563,25,FALSE)) ->  | R91: =IF(D91="","",VLOOKUP($D91,'Concawe Library'!$A$4:$AI$1563,26,FALSE)) ->  | S91: =IF(D91="","",VLOOKUP($D91,'Concawe Library'!$A$4:$AI$1563,30,FALSE)) ->  | T91: =IF(D91="","",VLOOKUP($D91,'Concawe Library'!$A$4:$AI$1563,29,FALSE)) -> 
E92: =IF(D92="","",VLOOKUP($D92,'Concawe Library'!$A$4:$AI$1563,3,FALSE)) ->  | F92: =IF(D92="","",VLOOKUP($D92,'Concawe Library'!$A$4:$AI$1563,4,FALSE)) ->  | G92: =IF(D92="","",VLOOKUP($D92,'Concawe Library'!$A$4:$AI$1563,6,FALSE)) ->  | H92: =IF(D92="","",VLOOKUP($D92,'Concawe Library'!$A$4:$AI$1563,11,FALSE)) ->  | I92: =IF(D92="","",LOG(VLOOKUP($D92,'Concawe Library'!$A$4:$AI$1563,13,FALSE))) ->  | J92: =IF(D92="","",VLOOKUP($D92,'Concawe Library'!$A$4:$AI$1563,14,FALSE)) ->  | K92: =IF(D92="","",LOG(VLOOKUP($D92,'Concawe Library'!$A$4:$AI$1563,28,FALSE))) ->  | L92: =IF(D92="","",VLOOKUP($D92,'Concawe Library'!$A$4:$AI$1563,31,FALSE)) ->  | M92: =IF(D92="","",VLOOKUP($D92,'Concawe Library'!$A$4:$AI$1563,32,FALSE)) ->  | N92: =IF(D92="","",VLOOKUP($D92,'Concawe Library'!$A$4:$AI$1563,33,FALSE)) ->  | O92: =IF(D92="","",VLOOKUP($D92,'Concawe Library'!$A$4:$AI$1563,34,FALSE)) ->  | P92: =IF(D92="","",VLOOKUP($D92,'Concawe Library'!$A$4:$AI$1563,35,FALSE)) ->  | Q92: =IF(D92="","",VLOOKUP($D92,'Concawe Library'!$A$4:$AI$1563,25,FALSE)) ->  | R92: =IF(D92="","",VLOOKUP($D92,'Concawe Library'!$A$4:$AI$1563,26,FALSE)) ->  | S92: =IF(D92="","",VLOOKUP($D92,'Concawe Library'!$A$4:$AI$1563,30,FALSE)) ->  | T92: =IF(D92="","",VLOOKUP($D92,'Concawe Library'!$A$4:$AI$1563,29,FALSE)) -> 
E93: =IF(D93="","",VLOOKUP($D93,'Concawe Library'!$A$4:$AI$1563,3,FALSE)) ->  | F93: =IF(D93="","",VLOOKUP($D93,'Concawe Library'!$A$4:$AI$1563,4,FALSE)) ->  | G93: =IF(D93="","",VLOOKUP($D93,'Concawe Library'!$A$4:$AI$1563,6,FALSE)) ->  | H93: =IF(D93="","",VLOOKUP($D93,'Concawe Library'!$A$4:$AI$1563,11,FALSE)) ->  | I93: =IF(D93="","",LOG(VLOOKUP($D93,'Concawe Library'!$A$4:$AI$1563,13,FALSE))) ->  | J93: =IF(D93="","",VLOOKUP($D93,'Concawe Library'!$A$4:$AI$1563,14,FALSE)) ->  | K93: =IF(D93="","",LOG(VLOOKUP($D93,'Concawe Library'!$A$4:$AI$1563,28,FALSE))) ->  | L93: =IF(D93="","",VLOOKUP($D93,'Concawe Library'!$A$4:$AI$1563,31,FALSE)) ->  | M93: =IF(D93="","",VLOOKUP($D93,'Concawe Library'!$A$4:$AI$1563,32,FALSE)) ->  | N93: =IF(D93="","",VLOOKUP($D93,'Concawe Library'!$A$4:$AI$1563,33,FALSE)) ->  | O93: =IF(D93="","",VLOOKUP($D93,'Concawe Library'!$A$4:$AI$1563,34,FALSE)) ->  | P93: =IF(D93="","",VLOOKUP($D93,'Concawe Library'!$A$4:$AI$1563,35,FALSE)) ->  | Q93: =IF(D93="","",VLOOKUP($D93,'Concawe Library'!$A$4:$AI$1563,25,FALSE)) ->  | R93: =IF(D93="","",VLOOKUP($D93,'Concawe Library'!$A$4:$AI$1563,26,FALSE)) ->  | S93: =IF(D93="","",VLOOKUP($D93,'Concawe Library'!$A$4:$AI$1563,30,FALSE)) ->  | T93: =IF(D93="","",VLOOKUP($D93,'Concawe Library'!$A$4:$AI$1563,29,FALSE)) -> 
E94: =IF(D94="","",VLOOKUP($D94,'Concawe Library'!$A$4:$AI$1563,3,FALSE)) ->  | F94: =IF(D94="","",VLOOKUP($D94,'Concawe Library'!$A$4:$AI$1563,4,FALSE)) ->  | G94: =IF(D94="","",VLOOKUP($D94,'Concawe Library'!$A$4:$AI$1563,6,FALSE)) ->  | H94: =IF(D94="","",VLOOKUP($D94,'Concawe Library'!$A$4:$AI$1563,11,FALSE)) ->  | I94: =IF(D94="","",LOG(VLOOKUP($D94,'Concawe Library'!$A$4:$AI$1563,13,FALSE))) ->  | J94: =IF(D94="","",VLOOKUP($D94,'Concawe Library'!$A$4:$AI$1563,14,FALSE)) ->  | K94: =IF(D94="","",LOG(VLOOKUP($D94,'Concawe Library'!$A$4:$AI$1563,28,FALSE))) ->  | L94: =IF(D94="","",VLOOKUP($D94,'Concawe Library'!$A$4:$AI$1563,31,FALSE)) ->  | M94: =IF(D94="","",VLOOKUP($D94,'Concawe Library'!$A$4:$AI$1563,32,FALSE)) ->  | N94: =IF(D94="","",VLOOKUP($D94,'Concawe Library'!$A$4:$AI$1563,33,FALSE)) ->  | O94: =IF(D94="","",VLOOKUP($D94,'Concawe Library'!$A$4:$AI$1563,34,FALSE)) ->  | P94: =IF(D94="","",VLOOKUP($D94,'Concawe Library'!$A$4:$AI$1563,35,FALSE)) ->  | Q94: =IF(D94="","",VLOOKUP($D94,'Concawe Library'!$A$4:$AI$1563,25,FALSE)) ->  | R94: =IF(D94="","",VLOOKUP($D94,'Concawe Library'!$A$4:$AI$1563,26,FALSE)) ->  | S94: =IF(D94="","",VLOOKUP($D94,'Concawe Library'!$A$4:$AI$1563,30,FALSE)) ->  | T94: =IF(D94="","",VLOOKUP($D94,'Concawe Library'!$A$4:$AI$1563,29,FALSE)) -> 
E95: =IF(D95="","",VLOOKUP($D95,'Concawe Library'!$A$4:$AI$1563,3,FALSE)) ->  | F95: =IF(D95="","",VLOOKUP($D95,'Concawe Library'!$A$4:$AI$1563,4,FALSE)) ->  | G95: =IF(D95="","",VLOOKUP($D95,'Concawe Library'!$A$4:$AI$1563,6,FALSE)) ->  | H95: =IF(D95="","",VLOOKUP($D95,'Concawe Library'!$A$4:$AI$1563,11,FALSE)) ->  | I95: =IF(D95="","",LOG(VLOOKUP($D95,'Concawe Library'!$A$4:$AI$1563,13,FALSE))) ->  | J95: =IF(D95="","",VLOOKUP($D95,'Concawe Library'!$A$4:$AI$1563,14,FALSE)) ->  | K95: =IF(D95="","",LOG(VLOOKUP($D95,'Concawe Library'!$A$4:$AI$1563,28,FALSE))) ->  | L95: =IF(D95="","",VLOOKUP($D95,'Concawe Library'!$A$4:$AI$1563,31,FALSE)) ->  | M95: =IF(D95="","",VLOOKUP($D95,'Concawe Library'!$A$4:$AI$1563,32,FALSE)) ->  | N95: =IF(D95="","",VLOOKUP($D95,'Concawe Library'!$A$4:$AI$1563,33,FALSE)) ->  | O95: =IF(D95="","",VLOOKUP($D95,'Concawe Library'!$A$4:$AI$1563,34,FALSE)) ->  | P95: =IF(D95="","",VLOOKUP($D95,'Concawe Library'!$A$4:$AI$1563,35,FALSE)) ->  | Q95: =IF(D95="","",VLOOKUP($D95,'Concawe Library'!$A$4:$AI$1563,25,FALSE)) ->  | R95: =IF(D95="","",VLOOKUP($D95,'Concawe Library'!$A$4:$AI$1563,26,FALSE)) ->  | S95: =IF(D95="","",VLOOKUP($D95,'Concawe Library'!$A$4:$AI$1563,30,FALSE)) ->  | T95: =IF(D95="","",VLOOKUP($D95,'Concawe Library'!$A$4:$AI$1563,29,FALSE)) -> 
E96: =IF(D96="","",VLOOKUP($D96,'Concawe Library'!$A$4:$AI$1563,3,FALSE)) ->  | F96: =IF(D96="","",VLOOKUP($D96,'Concawe Library'!$A$4:$AI$1563,4,FALSE)) ->  | G96: =IF(D96="","",VLOOKUP($D96,'Concawe Library'!$A$4:$AI$1563,6,FALSE)) ->  | H96: =IF(D96="","",VLOOKUP($D96,'Concawe Library'!$A$4:$AI$1563,11,FALSE)) ->  | I96: =IF(D96="","",LOG(VLOOKUP($D96,'Concawe Library'!$A$4:$AI$1563,13,FALSE))) ->  | J96: =IF(D96="","",VLOOKUP($D96,'Concawe Library'!$A$4:$AI$1563,14,FALSE)) ->  | K96: =IF(D96="","",LOG(VLOOKUP($D96,'Concawe Library'!$A$4:$AI$1563,28,FALSE))) ->  | L96: =IF(D96="","",VLOOKUP($D96,'Concawe Library'!$A$4:$AI$1563,31,FALSE)) ->  | M96: =IF(D96="","",VLOOKUP($D96,'Concawe Library'!$A$4:$AI$1563,32,FALSE)) ->  | N96: =IF(D96="","",VLOOKUP($D96,'Concawe Library'!$A$4:$AI$1563,33,FALSE)) ->  | O96: =IF(D96="","",VLOOKUP($D96,'Concawe Library'!$A$4:$AI$1563,34,FALSE)) ->  | P96: =IF(D96="","",VLOOKUP($D96,'Concawe Library'!$A$4:$AI$1563,35,FALSE)) ->  | Q96: =IF(D96="","",VLOOKUP($D96,'Concawe Library'!$A$4:$AI$1563,25,FALSE)) ->  | R96: =IF(D96="","",VLOOKUP($D96,'Concawe Library'!$A$4:$AI$1563,26,FALSE)) ->  | S96: =IF(D96="","",VLOOKUP($D96,'Concawe Library'!$A$4:$AI$1563,30,FALSE)) ->  | T96: =IF(D96="","",VLOOKUP($D96,'Concawe Library'!$A$4:$AI$1563,29,FALSE)) -> 
E97: =IF(D97="","",VLOOKUP($D97,'Concawe Library'!$A$4:$AI$1563,3,FALSE)) ->  | F97: =IF(D97="","",VLOOKUP($D97,'Concawe Library'!$A$4:$AI$1563,4,FALSE)) ->  | G97: =IF(D97="","",VLOOKUP($D97,'Concawe Library'!$A$4:$AI$1563,6,FALSE)) ->  | H97: =IF(D97="","",VLOOKUP($D97,'Concawe Library'!$A$4:$AI$1563,11,FALSE)) ->  | I97: =IF(D97="","",LOG(VLOOKUP($D97,'Concawe Library'!$A$4:$AI$1563,13,FALSE))) ->  | J97: =IF(D97="","",VLOOKUP($D97,'Concawe Library'!$A$4:$AI$1563,14,FALSE)) ->  | K97: =IF(D97="","",LOG(VLOOKUP($D97,'Concawe Library'!$A$4:$AI$1563,28,FALSE))) ->  | L97: =IF(D97="","",VLOOKUP($D97,'Concawe Library'!$A$4:$AI$1563,31,FALSE)) ->  | M97: =IF(D97="","",VLOOKUP($D97,'Concawe Library'!$A$4:$AI$1563,32,FALSE)) ->  | N97: =IF(D97="","",VLOOKUP($D97,'Concawe Library'!$A$4:$AI$1563,33,FALSE)) ->  | O97: =IF(D97="","",VLOOKUP($D97,'Concawe Library'!$A$4:$AI$1563,34,FALSE)) ->  | P97: =IF(D97="","",VLOOKUP($D97,'Concawe Library'!$A$4:$AI$1563,35,FALSE)) ->  | Q97: =IF(D97="","",VLOOKUP($D97,'Concawe Library'!$A$4:$AI$1563,25,FALSE)) ->  | R97: =IF(D97="","",VLOOKUP($D97,'Concawe Library'!$A$4:$AI$1563,26,FALSE)) ->  | S97: =IF(D97="","",VLOOKUP($D97,'Concawe Library'!$A$4:$AI$1563,30,FALSE)) ->  | T97: =IF(D97="","",VLOOKUP($D97,'Concawe Library'!$A$4:$AI$1563,29,FALSE)) -> 
E98: =IF(D98="","",VLOOKUP($D98,'Concawe Library'!$A$4:$AI$1563,3,FALSE)) ->  | F98: =IF(D98="","",VLOOKUP($D98,'Concawe Library'!$A$4:$AI$1563,4,FALSE)) ->  | G98: =IF(D98="","",VLOOKUP($D98,'Concawe Library'!$A$4:$AI$1563,6,FALSE)) ->  | H98: =IF(D98="","",VLOOKUP($D98,'Concawe Library'!$A$4:$AI$1563,11,FALSE)) ->  | I98: =IF(D98="","",LOG(VLOOKUP($D98,'Concawe Library'!$A$4:$AI$1563,13,FALSE))) ->  | J98: =IF(D98="","",VLOOKUP($D98,'Concawe Library'!$A$4:$AI$1563,14,FALSE)) ->  | K98: =IF(D98="","",LOG(VLOOKUP($D98,'Concawe Library'!$A$4:$AI$1563,28,FALSE))) ->  | L98: =IF(D98="","",VLOOKUP($D98,'Concawe Library'!$A$4:$AI$1563,31,FALSE)) ->  | M98: =IF(D98="","",VLOOKUP($D98,'Concawe Library'!$A$4:$AI$1563,32,FALSE)) ->  | N98: =IF(D98="","",VLOOKUP($D98,'Concawe Library'!$A$4:$AI$1563,33,FALSE)) ->  | O98: =IF(D98="","",VLOOKUP($D98,'Concawe Library'!$A$4:$AI$1563,34,FALSE)) ->  | P98: =IF(D98="","",VLOOKUP($D98,'Concawe Library'!$A$4:$AI$1563,35,FALSE)) ->  | Q98: =IF(D98="","",VLOOKUP($D98,'Concawe Library'!$A$4:$AI$1563,25,FALSE)) ->  | R98: =IF(D98="","",VLOOKUP($D98,'Concawe Library'!$A$4:$AI$1563,26,FALSE)) ->  | S98: =IF(D98="","",VLOOKUP($D98,'Concawe Library'!$A$4:$AI$1563,30,FALSE)) ->  | T98: =IF(D98="","",VLOOKUP($D98,'Concawe Library'!$A$4:$AI$1563,29,FALSE)) -> 
E99: =IF(D99="","",VLOOKUP($D99,'Concawe Library'!$A$4:$AI$1563,3,FALSE)) ->  | F99: =IF(D99="","",VLOOKUP($D99,'Concawe Library'!$A$4:$AI$1563,4,FALSE)) ->  | G99: =IF(D99="","",VLOOKUP($D99,'Concawe Library'!$A$4:$AI$1563,6,FALSE)) ->  | H99: =IF(D99="","",VLOOKUP($D99,'Concawe Library'!$A$4:$AI$1563,11,FALSE)) ->  | I99: =IF(D99="","",LOG(VLOOKUP($D99,'Concawe Library'!$A$4:$AI$1563,13,FALSE))) ->  | J99: =IF(D99="","",VLOOKUP($D99,'Concawe Library'!$A$4:$AI$1563,14,FALSE)) ->  | K99: =IF(D99="","",LOG(VLOOKUP($D99,'Concawe Library'!$A$4:$AI$1563,28,FALSE))) ->  | L99: =IF(D99="","",VLOOKUP($D99,'Concawe Library'!$A$4:$AI$1563,31,FALSE)) ->  | M99: =IF(D99="","",VLOOKUP($D99,'Concawe Library'!$A$4:$AI$1563,32,FALSE)) ->  | N99: =IF(D99="","",VLOOKUP($D99,'Concawe Library'!$A$4:$AI$1563,33,FALSE)) ->  | O99: =IF(D99="","",VLOOKUP($D99,'Concawe Library'!$A$4:$AI$1563,34,FALSE)) ->  | P99: =IF(D99="","",VLOOKUP($D99,'Concawe Library'!$A$4:$AI$1563,35,FALSE)) ->  | Q99: =IF(D99="","",VLOOKUP($D99,'Concawe Library'!$A$4:$AI$1563,25,FALSE)) ->  | R99: =IF(D99="","",VLOOKUP($D99,'Concawe Library'!$A$4:$AI$1563,26,FALSE)) ->  | S99: =IF(D99="","",VLOOKUP($D99,'Concawe Library'!$A$4:$AI$1563,30,FALSE)) ->  | T99: =IF(D99="","",VLOOKUP($D99,'Concawe Library'!$A$4:$AI$1563,29,FALSE)) -> 
E100: =IF(D100="","",VLOOKUP($D100,'Concawe Library'!$A$4:$AI$1563,3,FALSE)) ->  | F100: =IF(D100="","",VLOOKUP($D100,'Concawe Library'!$A$4:$AI$1563,4,FALSE)) ->  | G100: =IF(D100="","",VLOOKUP($D100,'Concawe Library'!$A$4:$AI$1563,6,FALSE)) ->  | H100: =IF(D100="","",VLOOKUP($D100,'Concawe Library'!$A$4:$AI$1563,11,FALSE)) ->  | I100: =IF(D100="","",LOG(VLOOKUP($D100,'Concawe Library'!$A$4:$AI$1563,13,FALSE))) ->  | J100: =IF(D100="","",VLOOKUP($D100,'Concawe Library'!$A$4:$AI$1563,14,FALSE)) ->  | K100: =IF(D100="","",LOG(VLOOKUP($D100,'Concawe Library'!$A$4:$AI$1563,28,FALSE))) ->  | L100: =IF(D100="","",VLOOKUP($D100,'Concawe Library'!$A$4:$AI$1563,31,FALSE)) ->  | M100: =IF(D100="","",VLOOKUP($D100,'Concawe Library'!$A$4:$AI$1563,32,FALSE)) ->  | N100: =IF(D100="","",VLOOKUP($D100,'Concawe Library'!$A$4:$AI$1563,33,FALSE)) ->  | O100: =IF(D100="","",VLOOKUP($D100,'Concawe Library'!$A$4:$AI$1563,34,FALSE)) ->  | P100: =IF(D100="","",VLOOKUP($D100,'Concawe Library'!$A$4:$AI$1563,35,FALSE)) ->  | Q100: =IF(D100="","",VLOOKUP($D100,'Concawe Library'!$A$4:$AI$1563,25,FALSE)) ->  | R100: =IF(D100="","",VLOOKUP($D100,'Concawe Library'!$A$4:$AI$1563,26,FALSE)) ->  | S100: =IF(D100="","",VLOOKUP($D100,'Concawe Library'!$A$4:$AI$1563,30,FALSE)) ->  | T100: =IF(D100="","",VLOOKUP($D100,'Concawe Library'!$A$4:$AI$1563,29,FALSE)) -> 
E101: =IF(D101="","",VLOOKUP($D101,'Concawe Library'!$A$4:$AI$1563,3,FALSE)) ->  | F101: =IF(D101="","",VLOOKUP($D101,'Concawe Library'!$A$4:$AI$1563,4,FALSE)) ->  | G101: =IF(D101="","",VLOOKUP($D101,'Concawe Library'!$A$4:$AI$1563,6,FALSE)) ->  | H101: =IF(D101="","",VLOOKUP($D101,'Concawe Library'!$A$4:$AI$1563,11,FALSE)) ->  | I101: =IF(D101="","",LOG(VLOOKUP($D101,'Concawe Library'!$A$4:$AI$1563,13,FALSE))) ->  | J101: =IF(D101="","",VLOOKUP($D101,'Concawe Library'!$A$4:$AI$1563,14,FALSE)) ->  | K101: =IF(D101="","",LOG(VLOOKUP($D101,'Concawe Library'!$A$4:$AI$1563,28,FALSE))) ->  | L101: =IF(D101="","",VLOOKUP($D101,'Concawe Library'!$A$4:$AI$1563,31,FALSE)) ->  | M101: =IF(D101="","",VLOOKUP($D101,'Concawe Library'!$A$4:$AI$1563,32,FALSE)) ->  | N101: =IF(D101="","",VLOOKUP($D101,'Concawe Library'!$A$4:$AI$1563,33,FALSE)) ->  | O101: =IF(D101="","",VLOOKUP($D101,'Concawe Library'!$A$4:$AI$1563,34,FALSE)) ->  | P101: =IF(D101="","",VLOOKUP($D101,'Concawe Library'!$A$4:$AI$1563,35,FALSE)) ->  | Q101: =IF(D101="","",VLOOKUP($D101,'Concawe Library'!$A$4:$AI$1563,25,FALSE)) ->  | R101: =IF(D101="","",VLOOKUP($D101,'Concawe Library'!$A$4:$AI$1563,26,FALSE)) ->  | S101: =IF(D101="","",VLOOKUP($D101,'Concawe Library'!$A$4:$AI$1563,30,FALSE)) ->  | T101: =IF(D101="","",VLOOKUP($D101,'Concawe Library'!$A$4:$AI$1563,29,FALSE)) -> 
E102: =IF(D102="","",VLOOKUP($D102,'Concawe Library'!$A$4:$AI$1563,3,FALSE)) ->  | F102: =IF(D102="","",VLOOKUP($D102,'Concawe Library'!$A$4:$AI$1563,4,FALSE)) ->  | G102: =IF(D102="","",VLOOKUP($D102,'Concawe Library'!$A$4:$AI$1563,6,FALSE)) ->  | H102: =IF(D102="","",VLOOKUP($D102,'Concawe Library'!$A$4:$AI$1563,11,FALSE)) ->  | I102: =IF(D102="","",LOG(VLOOKUP($D102,'Concawe Library'!$A$4:$AI$1563,13,FALSE))) ->  | J102: =IF(D102="","",VLOOKUP($D102,'Concawe Library'!$A$4:$AI$1563,14,FALSE)) ->  | K102: =IF(D102="","",LOG(VLOOKUP($D102,'Concawe Library'!$A$4:$AI$1563,28,FALSE))) ->  | L102: =IF(D102="","",VLOOKUP($D102,'Concawe Library'!$A$4:$AI$1563,31,FALSE)) ->  | M102: =IF(D102="","",VLOOKUP($D102,'Concawe Library'!$A$4:$AI$1563,32,FALSE)) ->  | N102: =IF(D102="","",VLOOKUP($D102,'Concawe Library'!$A$4:$AI$1563,33,FALSE)) ->  | O102: =IF(D102="","",VLOOKUP($D102,'Concawe Library'!$A$4:$AI$1563,34,FALSE)) ->  | P102: =IF(D102="","",VLOOKUP($D102,'Concawe Library'!$A$4:$AI$1563,35,FALSE)) ->  | Q102: =IF(D102="","",VLOOKUP($D102,'Concawe Library'!$A$4:$AI$1563,25,FALSE)) ->  | R102: =IF(D102="","",VLOOKUP($D102,'Concawe Library'!$A$4:$AI$1563,26,FALSE)) ->  | S102: =IF(D102="","",VLOOKUP($D102,'Concawe Library'!$A$4:$AI$1563,30,FALSE)) ->  | T102: =IF(D102="","",VLOOKUP($D102,'Concawe Library'!$A$4:$AI$1563,29,FALSE)) -> 
E103: =IF(D103="","",VLOOKUP($D103,'Concawe Library'!$A$4:$AI$1563,3,FALSE)) ->  | F103: =IF(D103="","",VLOOKUP($D103,'Concawe Library'!$A$4:$AI$1563,4,FALSE)) ->  | G103: =IF(D103="","",VLOOKUP($D103,'Concawe Library'!$A$4:$AI$1563,6,FALSE)) ->  | H103: =IF(D103="","",VLOOKUP($D103,'Concawe Library'!$A$4:$AI$1563,11,FALSE)) ->  | I103: =IF(D103="","",LOG(VLOOKUP($D103,'Concawe Library'!$A$4:$AI$1563,13,FALSE))) ->  | J103: =IF(D103="","",VLOOKUP($D103,'Concawe Library'!$A$4:$AI$1563,14,FALSE)) ->  | K103: =IF(D103="","",LOG(VLOOKUP($D103,'Concawe Library'!$A$4:$AI$1563,28,FALSE))) ->  | L103: =IF(D103="","",VLOOKUP($D103,'Concawe Library'!$A$4:$AI$1563,31,FALSE)) ->  | M103: =IF(D103="","",VLOOKUP($D103,'Concawe Library'!$A$4:$AI$1563,32,FALSE)) ->  | N103: =IF(D103="","",VLOOKUP($D103,'Concawe Library'!$A$4:$AI$1563,33,FALSE)) ->  | O103: =IF(D103="","",VLOOKUP($D103,'Concawe Library'!$A$4:$AI$1563,34,FALSE)) ->  | P103: =IF(D103="","",VLOOKUP($D103,'Concawe Library'!$A$4:$AI$1563,35,FALSE)) ->  | Q103: =IF(D103="","",VLOOKUP($D103,'Concawe Library'!$A$4:$AI$1563,25,FALSE)) ->  | R103: =IF(D103="","",VLOOKUP($D103,'Concawe Library'!$A$4:$AI$1563,26,FALSE)) ->  | S103: =IF(D103="","",VLOOKUP($D103,'Concawe Library'!$A$4:$AI$1563,30,FALSE)) ->  | T103: =IF(D103="","",VLOOKUP($D103,'Concawe Library'!$A$4:$AI$1563,29,FALSE)) -> 
E104: =IF(D104="","",VLOOKUP($D104,'Concawe Library'!$A$4:$AI$1563,3,FALSE)) ->  | F104: =IF(D104="","",VLOOKUP($D104,'Concawe Library'!$A$4:$AI$1563,4,FALSE)) ->  | G104: =IF(D104="","",VLOOKUP($D104,'Concawe Library'!$A$4:$AI$1563,6,FALSE)) ->  | H104: =IF(D104="","",VLOOKUP($D104,'Concawe Library'!$A$4:$AI$1563,11,FALSE)) ->  | I104: =IF(D104="","",LOG(VLOOKUP($D104,'Concawe Library'!$A$4:$AI$1563,13,FALSE))) ->  | J104: =IF(D104="","",VLOOKUP($D104,'Concawe Library'!$A$4:$AI$1563,14,FALSE)) ->  | K104: =IF(D104="","",LOG(VLOOKUP($D104,'Concawe Library'!$A$4:$AI$1563,28,FALSE))) ->  | L104: =IF(D104="","",VLOOKUP($D104,'Concawe Library'!$A$4:$AI$1563,31,FALSE)) ->  | M104: =IF(D104="","",VLOOKUP($D104,'Concawe Library'!$A$4:$AI$1563,32,FALSE)) ->  | N104: =IF(D104="","",VLOOKUP($D104,'Concawe Library'!$A$4:$AI$1563,33,FALSE)) ->  | O104: =IF(D104="","",VLOOKUP($D104,'Concawe Library'!$A$4:$AI$1563,34,FALSE)) ->  | P104: =IF(D104="","",VLOOKUP($D104,'Concawe Library'!$A$4:$AI$1563,35,FALSE)) ->  | Q104: =IF(D104="","",VLOOKUP($D104,'Concawe Library'!$A$4:$AI$1563,25,FALSE)) ->  | R104: =IF(D104="","",VLOOKUP($D104,'Concawe Library'!$A$4:$AI$1563,26,FALSE)) ->  | S104: =IF(D104="","",VLOOKUP($D104,'Concawe Library'!$A$4:$AI$1563,30,FALSE)) ->  | T104: =IF(D104="","",VLOOKUP($D104,'Concawe Library'!$A$4:$AI$1563,29,FALSE)) -> 
E105: =IF(D105="","",VLOOKUP($D105,'Concawe Library'!$A$4:$AI$1563,3,FALSE)) ->  | F105: =IF(D105="","",VLOOKUP($D105,'Concawe Library'!$A$4:$AI$1563,4,FALSE)) ->  | G105: =IF(D105="","",VLOOKUP($D105,'Concawe Library'!$A$4:$AI$1563,6,FALSE)) ->  | H105: =IF(D105="","",VLOOKUP($D105,'Concawe Library'!$A$4:$AI$1563,11,FALSE)) ->  | I105: =IF(D105="","",LOG(VLOOKUP($D105,'Concawe Library'!$A$4:$AI$1563,13,FALSE))) ->  | J105: =IF(D105="","",VLOOKUP($D105,'Concawe Library'!$A$4:$AI$1563,14,FALSE)) ->  | K105: =IF(D105="","",LOG(VLOOKUP($D105,'Concawe Library'!$A$4:$AI$1563,28,FALSE))) ->  | L105: =IF(D105="","",VLOOKUP($D105,'Concawe Library'!$A$4:$AI$1563,31,FALSE)) ->  | M105: =IF(D105="","",VLOOKUP($D105,'Concawe Library'!$A$4:$AI$1563,32,FALSE)) ->  | N105: =IF(D105="","",VLOOKUP($D105,'Concawe Library'!$A$4:$AI$1563,33,FALSE)) ->  | O105: =IF(D105="","",VLOOKUP($D105,'Concawe Library'!$A$4:$AI$1563,34,FALSE)) ->  | P105: =IF(D105="","",VLOOKUP($D105,'Concawe Library'!$A$4:$AI$1563,35,FALSE)) ->  | Q105: =IF(D105="","",VLOOKUP($D105,'Concawe Library'!$A$4:$AI$1563,25,FALSE)) ->  | R105: =IF(D105="","",VLOOKUP($D105,'Concawe Library'!$A$4:$AI$1563,26,FALSE)) ->  | S105: =IF(D105="","",VLOOKUP($D105,'Concawe Library'!$A$4:$AI$1563,30,FALSE)) ->  | T105: =IF(D105="","",VLOOKUP($D105,'Concawe Library'!$A$4:$AI$1563,29,FALSE)) -> 
E106: =IF(D106="","",VLOOKUP($D106,'Concawe Library'!$A$4:$AI$1563,3,FALSE)) ->  | F106: =IF(D106="","",VLOOKUP($D106,'Concawe Library'!$A$4:$AI$1563,4,FALSE)) ->  | G106: =IF(D106="","",VLOOKUP($D106,'Concawe Library'!$A$4:$AI$1563,6,FALSE)) ->  | H106: =IF(D106="","",VLOOKUP($D106,'Concawe Library'!$A$4:$AI$1563,11,FALSE)) ->  | I106: =IF(D106="","",LOG(VLOOKUP($D106,'Concawe Library'!$A$4:$AI$1563,13,FALSE))) ->  | J106: =IF(D106="","",VLOOKUP($D106,'Concawe Library'!$A$4:$AI$1563,14,FALSE)) ->  | K106: =IF(D106="","",LOG(VLOOKUP($D106,'Concawe Library'!$A$4:$AI$1563,28,FALSE))) ->  | L106: =IF(D106="","",VLOOKUP($D106,'Concawe Library'!$A$4:$AI$1563,31,FALSE)) ->  | M106: =IF(D106="","",VLOOKUP($D106,'Concawe Library'!$A$4:$AI$1563,32,FALSE)) ->  | N106: =IF(D106="","",VLOOKUP($D106,'Concawe Library'!$A$4:$AI$1563,33,FALSE)) ->  | O106: =IF(D106="","",VLOOKUP($D106,'Concawe Library'!$A$4:$AI$1563,34,FALSE)) ->  | P106: =IF(D106="","",VLOOKUP($D106,'Concawe Library'!$A$4:$AI$1563,35,FALSE)) ->  | Q106: =IF(D106="","",VLOOKUP($D106,'Concawe Library'!$A$4:$AI$1563,25,FALSE)) ->  | R106: =IF(D106="","",VLOOKUP($D106,'Concawe Library'!$A$4:$AI$1563,26,FALSE)) ->  | S106: =IF(D106="","",VLOOKUP($D106,'Concawe Library'!$A$4:$AI$1563,30,FALSE)) ->  | T106: =IF(D106="","",VLOOKUP($D106,'Concawe Library'!$A$4:$AI$1563,29,FALSE)) -> 
E107: =IF(D107="","",VLOOKUP($D107,'Concawe Library'!$A$4:$AI$1563,3,FALSE)) ->  | F107: =IF(D107="","",VLOOKUP($D107,'Concawe Library'!$A$4:$AI$1563,4,FALSE)) ->  | G107: =IF(D107="","",VLOOKUP($D107,'Concawe Library'!$A$4:$AI$1563,6,FALSE)) ->  | H107: =IF(D107="","",VLOOKUP($D107,'Concawe Library'!$A$4:$AI$1563,11,FALSE)) ->  | I107: =IF(D107="","",LOG(VLOOKUP($D107,'Concawe Library'!$A$4:$AI$1563,13,FALSE))) ->  | J107: =IF(D107="","",VLOOKUP($D107,'Concawe Library'!$A$4:$AI$1563,14,FALSE)) ->  | K107: =IF(D107="","",LOG(VLOOKUP($D107,'Concawe Library'!$A$4:$AI$1563,28,FALSE))) ->  | L107: =IF(D107="","",VLOOKUP($D107,'Concawe Library'!$A$4:$AI$1563,31,FALSE)) ->  | M107: =IF(D107="","",VLOOKUP($D107,'Concawe Library'!$A$4:$AI$1563,32,FALSE)) ->  | N107: =IF(D107="","",VLOOKUP($D107,'Concawe Library'!$A$4:$AI$1563,33,FALSE)) ->  | O107: =IF(D107="","",VLOOKUP($D107,'Concawe Library'!$A$4:$AI$1563,34,FALSE)) ->  | P107: =IF(D107="","",VLOOKUP($D107,'Concawe Library'!$A$4:$AI$1563,35,FALSE)) ->  | Q107: =IF(D107="","",VLOOKUP($D107,'Concawe Library'!$A$4:$AI$1563,25,FALSE)) ->  | R107: =IF(D107="","",VLOOKUP($D107,'Concawe Library'!$A$4:$AI$1563,26,FALSE)) ->  | S107: =IF(D107="","",VLOOKUP($D107,'Concawe Library'!$A$4:$AI$1563,30,FALSE)) ->  | T107: =IF(D107="","",VLOOKUP($D107,'Concawe Library'!$A$4:$AI$1563,29,FALSE)) -> 
E108: =IF(D108="","",VLOOKUP($D108,'Concawe Library'!$A$4:$AI$1563,3,FALSE)) ->  | F108: =IF(D108="","",VLOOKUP($D108,'Concawe Library'!$A$4:$AI$1563,4,FALSE)) ->  | G108: =IF(D108="","",VLOOKUP($D108,'Concawe Library'!$A$4:$AI$1563,6,FALSE)) ->  | H108: =IF(D108="","",VLOOKUP($D108,'Concawe Library'!$A$4:$AI$1563,11,FALSE)) ->  | I108: =IF(D108="","",LOG(VLOOKUP($D108,'Concawe Library'!$A$4:$AI$1563,13,FALSE))) ->  | J108: =IF(D108="","",VLOOKUP($D108,'Concawe Library'!$A$4:$AI$1563,14,FALSE)) ->  | K108: =IF(D108="","",LOG(VLOOKUP($D108,'Concawe Library'!$A$4:$AI$1563,28,FALSE))) ->  | L108: =IF(D108="","",VLOOKUP($D108,'Concawe Library'!$A$4:$AI$1563,31,FALSE)) ->  | M108: =IF(D108="","",VLOOKUP($D108,'Concawe Library'!$A$4:$AI$1563,32,FALSE)) ->  | N108: =IF(D108="","",VLOOKUP($D108,'Concawe Library'!$A$4:$AI$1563,33,FALSE)) ->  | O108: =IF(D108="","",VLOOKUP($D108,'Concawe Library'!$A$4:$AI$1563,34,FALSE)) ->  | P108: =IF(D108="","",VLOOKUP($D108,'Concawe Library'!$A$4:$AI$1563,35,FALSE)) ->  | Q108: =IF(D108="","",VLOOKUP($D108,'Concawe Library'!$A$4:$AI$1563,25,FALSE)) ->  | R108: =IF(D108="","",VLOOKUP($D108,'Concawe Library'!$A$4:$AI$1563,26,FALSE)) ->  | S108: =IF(D108="","",VLOOKUP($D108,'Concawe Library'!$A$4:$AI$1563,30,FALSE)) ->  | T108: =IF(D108="","",VLOOKUP($D108,'Concawe Library'!$A$4:$AI$1563,29,FALSE)) -> 
E109: =IF(D109="","",VLOOKUP($D109,'Concawe Library'!$A$4:$AI$1563,3,FALSE)) ->  | F109: =IF(D109="","",VLOOKUP($D109,'Concawe Library'!$A$4:$AI$1563,4,FALSE)) ->  | G109: =IF(D109="","",VLOOKUP($D109,'Concawe Library'!$A$4:$AI$1563,6,FALSE)) ->  | H109: =IF(D109="","",VLOOKUP($D109,'Concawe Library'!$A$4:$AI$1563,11,FALSE)) ->  | I109: =IF(D109="","",LOG(VLOOKUP($D109,'Concawe Library'!$A$4:$AI$1563,13,FALSE))) ->  | J109: =IF(D109="","",VLOOKUP($D109,'Concawe Library'!$A$4:$AI$1563,14,FALSE)) ->  | K109: =IF(D109="","",LOG(VLOOKUP($D109,'Concawe Library'!$A$4:$AI$1563,28,FALSE))) ->  | L109: =IF(D109="","",VLOOKUP($D109,'Concawe Library'!$A$4:$AI$1563,31,FALSE)) ->  | M109: =IF(D109="","",VLOOKUP($D109,'Concawe Library'!$A$4:$AI$1563,32,FALSE)) ->  | N109: =IF(D109="","",VLOOKUP($D109,'Concawe Library'!$A$4:$AI$1563,33,FALSE)) ->  | O109: =IF(D109="","",VLOOKUP($D109,'Concawe Library'!$A$4:$AI$1563,34,FALSE)) ->  | P109: =IF(D109="","",VLOOKUP($D109,'Concawe Library'!$A$4:$AI$1563,35,FALSE)) ->  | Q109: =IF(D109="","",VLOOKUP($D109,'Concawe Library'!$A$4:$AI$1563,25,FALSE)) ->  | R109: =IF(D109="","",VLOOKUP($D109,'Concawe Library'!$A$4:$AI$1563,26,FALSE)) ->  | S109: =IF(D109="","",VLOOKUP($D109,'Concawe Library'!$A$4:$AI$1563,30,FALSE)) ->  | T109: =IF(D109="","",VLOOKUP($D109,'Concawe Library'!$A$4:$AI$1563,29,FALSE)) -> 
E110: =IF(D110="","",VLOOKUP($D110,'Concawe Library'!$A$4:$AI$1563,3,FALSE)) ->  | F110: =IF(D110="","",VLOOKUP($D110,'Concawe Library'!$A$4:$AI$1563,4,FALSE)) ->  | G110: =IF(D110="","",VLOOKUP($D110,'Concawe Library'!$A$4:$AI$1563,6,FALSE)) ->  | H110: =IF(D110="","",VLOOKUP($D110,'Concawe Library'!$A$4:$AI$1563,11,FALSE)) ->  | I110: =IF(D110="","",LOG(VLOOKUP($D110,'Concawe Library'!$A$4:$AI$1563,13,FALSE))) ->  | J110: =IF(D110="","",VLOOKUP($D110,'Concawe Library'!$A$4:$AI$1563,14,FALSE)) ->  | K110: =IF(D110="","",LOG(VLOOKUP($D110,'Concawe Library'!$A$4:$AI$1563,28,FALSE))) ->  | L110: =IF(D110="","",VLOOKUP($D110,'Concawe Library'!$A$4:$AI$1563,31,FALSE)) ->  | M110: =IF(D110="","",VLOOKUP($D110,'Concawe Library'!$A$4:$AI$1563,32,FALSE)) ->  | N110: =IF(D110="","",VLOOKUP($D110,'Concawe Library'!$A$4:$AI$1563,33,FALSE)) ->  | O110: =IF(D110="","",VLOOKUP($D110,'Concawe Library'!$A$4:$AI$1563,34,FALSE)) ->  | P110: =IF(D110="","",VLOOKUP($D110,'Concawe Library'!$A$4:$AI$1563,35,FALSE)) ->  | Q110: =IF(D110="","",VLOOKUP($D110,'Concawe Library'!$A$4:$AI$1563,25,FALSE)) ->  | R110: =IF(D110="","",VLOOKUP($D110,'Concawe Library'!$A$4:$AI$1563,26,FALSE)) ->  | S110: =IF(D110="","",VLOOKUP($D110,'Concawe Library'!$A$4:$AI$1563,30,FALSE)) ->  | T110: =IF(D110="","",VLOOKUP($D110,'Concawe Library'!$A$4:$AI$1563,29,FALSE)) -> 
E111: =IF(D111="","",VLOOKUP($D111,'Concawe Library'!$A$4:$AI$1563,3,FALSE)) ->  | F111: =IF(D111="","",VLOOKUP($D111,'Concawe Library'!$A$4:$AI$1563,4,FALSE)) ->  | G111: =IF(D111="","",VLOOKUP($D111,'Concawe Library'!$A$4:$AI$1563,6,FALSE)) ->  | H111: =IF(D111="","",VLOOKUP($D111,'Concawe Library'!$A$4:$AI$1563,11,FALSE)) ->  | I111: =IF(D111="","",LOG(VLOOKUP($D111,'Concawe Library'!$A$4:$AI$1563,13,FALSE))) ->  | J111: =IF(D111="","",VLOOKUP($D111,'Concawe Library'!$A$4:$AI$1563,14,FALSE)) ->  | K111: =IF(D111="","",LOG(VLOOKUP($D111,'Concawe Library'!$A$4:$AI$1563,28,FALSE))) ->  | L111: =IF(D111="","",VLOOKUP($D111,'Concawe Library'!$A$4:$AI$1563,31,FALSE)) ->  | M111: =IF(D111="","",VLOOKUP($D111,'Concawe Library'!$A$4:$AI$1563,32,FALSE)) ->  | N111: =IF(D111="","",VLOOKUP($D111,'Concawe Library'!$A$4:$AI$1563,33,FALSE)) ->  | O111: =IF(D111="","",VLOOKUP($D111,'Concawe Library'!$A$4:$AI$1563,34,FALSE)) ->  | P111: =IF(D111="","",VLOOKUP($D111,'Concawe Library'!$A$4:$AI$1563,35,FALSE)) ->  | Q111: =IF(D111="","",VLOOKUP($D111,'Concawe Library'!$A$4:$AI$1563,25,FALSE)) ->  | R111: =IF(D111="","",VLOOKUP($D111,'Concawe Library'!$A$4:$AI$1563,26,FALSE)) ->  | S111: =IF(D111="","",VLOOKUP($D111,'Concawe Library'!$A$4:$AI$1563,30,FALSE)) ->  | T111: =IF(D111="","",VLOOKUP($D111,'Concawe Library'!$A$4:$AI$1563,29,FALSE)) -> 
E112: =IF(D112="","",VLOOKUP($D112,'Concawe Library'!$A$4:$AI$1563,3,FALSE)) ->  | F112: =IF(D112="","",VLOOKUP($D112,'Concawe Library'!$A$4:$AI$1563,4,FALSE)) ->  | G112: =IF(D112="","",VLOOKUP($D112,'Concawe Library'!$A$4:$AI$1563,6,FALSE)) ->  | H112: =IF(D112="","",VLOOKUP($D112,'Concawe Library'!$A$4:$AI$1563,11,FALSE)) ->  | I112: =IF(D112="","",LOG(VLOOKUP($D112,'Concawe Library'!$A$4:$AI$1563,13,FALSE))) ->  | J112: =IF(D112="","",VLOOKUP($D112,'Concawe Library'!$A$4:$AI$1563,14,FALSE)) ->  | K112: =IF(D112="","",LOG(VLOOKUP($D112,'Concawe Library'!$A$4:$AI$1563,28,FALSE))) ->  | L112: =IF(D112="","",VLOOKUP($D112,'Concawe Library'!$A$4:$AI$1563,31,FALSE)) ->  | M112: =IF(D112="","",VLOOKUP($D112,'Concawe Library'!$A$4:$AI$1563,32,FALSE)) ->  | N112: =IF(D112="","",VLOOKUP($D112,'Concawe Library'!$A$4:$AI$1563,33,FALSE)) ->  | O112: =IF(D112="","",VLOOKUP($D112,'Concawe Library'!$A$4:$AI$1563,34,FALSE)) ->  | P112: =IF(D112="","",VLOOKUP($D112,'Concawe Library'!$A$4:$AI$1563,35,FALSE)) ->  | Q112: =IF(D112="","",VLOOKUP($D112,'Concawe Library'!$A$4:$AI$1563,25,FALSE)) ->  | R112: =IF(D112="","",VLOOKUP($D112,'Concawe Library'!$A$4:$AI$1563,26,FALSE)) ->  | S112: =IF(D112="","",VLOOKUP($D112,'Concawe Library'!$A$4:$AI$1563,30,FALSE)) ->  | T112: =IF(D112="","",VLOOKUP($D112,'Concawe Library'!$A$4:$AI$1563,29,FALSE)) -> 
E113: =IF(D113="","",VLOOKUP($D113,'Concawe Library'!$A$4:$AI$1563,3,FALSE)) ->  | F113: =IF(D113="","",VLOOKUP($D113,'Concawe Library'!$A$4:$AI$1563,4,FALSE)) ->  | G113: =IF(D113="","",VLOOKUP($D113,'Concawe Library'!$A$4:$AI$1563,6,FALSE)) ->  | H113: =IF(D113="","",VLOOKUP($D113,'Concawe Library'!$A$4:$AI$1563,11,FALSE)) ->  | I113: =IF(D113="","",LOG(VLOOKUP($D113,'Concawe Library'!$A$4:$AI$1563,13,FALSE))) ->  | J113: =IF(D113="","",VLOOKUP($D113,'Concawe Library'!$A$4:$AI$1563,14,FALSE)) ->  | K113: =IF(D113="","",LOG(VLOOKUP($D113,'Concawe Library'!$A$4:$AI$1563,28,FALSE))) ->  | L113: =IF(D113="","",VLOOKUP($D113,'Concawe Library'!$A$4:$AI$1563,31,FALSE)) ->  | M113: =IF(D113="","",VLOOKUP($D113,'Concawe Library'!$A$4:$AI$1563,32,FALSE)) ->  | N113: =IF(D113="","",VLOOKUP($D113,'Concawe Library'!$A$4:$AI$1563,33,FALSE)) ->  | O113: =IF(D113="","",VLOOKUP($D113,'Concawe Library'!$A$4:$AI$1563,34,FALSE)) ->  | P113: =IF(D113="","",VLOOKUP($D113,'Concawe Library'!$A$4:$AI$1563,35,FALSE)) ->  | Q113: =IF(D113="","",VLOOKUP($D113,'Concawe Library'!$A$4:$AI$1563,25,FALSE)) ->  | R113: =IF(D113="","",VLOOKUP($D113,'Concawe Library'!$A$4:$AI$1563,26,FALSE)) ->  | S113: =IF(D113="","",VLOOKUP($D113,'Concawe Library'!$A$4:$AI$1563,30,FALSE)) ->  | T113: =IF(D113="","",VLOOKUP($D113,'Concawe Library'!$A$4:$AI$1563,29,FALSE)) -> 
E114: =IF(D114="","",VLOOKUP($D114,'Concawe Library'!$A$4:$AI$1563,3,FALSE)) ->  | F114: =IF(D114="","",VLOOKUP($D114,'Concawe Library'!$A$4:$AI$1563,4,FALSE)) ->  | G114: =IF(D114="","",VLOOKUP($D114,'Concawe Library'!$A$4:$AI$1563,6,FALSE)) ->  | H114: =IF(D114="","",VLOOKUP($D114,'Concawe Library'!$A$4:$AI$1563,11,FALSE)) ->  | I114: =IF(D114="","",LOG(VLOOKUP($D114,'Concawe Library'!$A$4:$AI$1563,13,FALSE))) ->  | J114: =IF(D114="","",VLOOKUP($D114,'Concawe Library'!$A$4:$AI$1563,14,FALSE)) ->  | K114: =IF(D114="","",LOG(VLOOKUP($D114,'Concawe Library'!$A$4:$AI$1563,28,FALSE))) ->  | L114: =IF(D114="","",VLOOKUP($D114,'Concawe Library'!$A$4:$AI$1563,31,FALSE)) ->  | M114: =IF(D114="","",VLOOKUP($D114,'Concawe Library'!$A$4:$AI$1563,32,FALSE)) ->  | N114: =IF(D114="","",VLOOKUP($D114,'Concawe Library'!$A$4:$AI$1563,33,FALSE)) ->  | O114: =IF(D114="","",VLOOKUP($D114,'Concawe Library'!$A$4:$AI$1563,34,FALSE)) ->  | P114: =IF(D114="","",VLOOKUP($D114,'Concawe Library'!$A$4:$AI$1563,35,FALSE)) ->  | Q114: =IF(D114="","",VLOOKUP($D114,'Concawe Library'!$A$4:$AI$1563,25,FALSE)) ->  | R114: =IF(D114="","",VLOOKUP($D114,'Concawe Library'!$A$4:$AI$1563,26,FALSE)) ->  | S114: =IF(D114="","",VLOOKUP($D114,'Concawe Library'!$A$4:$AI$1563,30,FALSE)) ->  | T114: =IF(D114="","",VLOOKUP($D114,'Concawe Library'!$A$4:$AI$1563,29,FALSE)) -> 
E115: =IF(D115="","",VLOOKUP($D115,'Concawe Library'!$A$4:$AI$1563,3,FALSE)) ->  | F115: =IF(D115="","",VLOOKUP($D115,'Concawe Library'!$A$4:$AI$1563,4,FALSE)) ->  | G115: =IF(D115="","",VLOOKUP($D115,'Concawe Library'!$A$4:$AI$1563,6,FALSE)) ->  | H115: =IF(D115="","",VLOOKUP($D115,'Concawe Library'!$A$4:$AI$1563,11,FALSE)) ->  | I115: =IF(D115="","",LOG(VLOOKUP($D115,'Concawe Library'!$A$4:$AI$1563,13,FALSE))) ->  | J115: =IF(D115="","",VLOOKUP($D115,'Concawe Library'!$A$4:$AI$1563,14,FALSE)) ->  | K115: =IF(D115="","",LOG(VLOOKUP($D115,'Concawe Library'!$A$4:$AI$1563,28,FALSE))) ->  | L115: =IF(D115="","",VLOOKUP($D115,'Concawe Library'!$A$4:$AI$1563,31,FALSE)) ->  | M115: =IF(D115="","",VLOOKUP($D115,'Concawe Library'!$A$4:$AI$1563,32,FALSE)) ->  | N115: =IF(D115="","",VLOOKUP($D115,'Concawe Library'!$A$4:$AI$1563,33,FALSE)) ->  | O115: =IF(D115="","",VLOOKUP($D115,'Concawe Library'!$A$4:$AI$1563,34,FALSE)) ->  | P115: =IF(D115="","",VLOOKUP($D115,'Concawe Library'!$A$4:$AI$1563,35,FALSE)) ->  | Q115: =IF(D115="","",VLOOKUP($D115,'Concawe Library'!$A$4:$AI$1563,25,FALSE)) ->  | R115: =IF(D115="","",VLOOKUP($D115,'Concawe Library'!$A$4:$AI$1563,26,FALSE)) ->  | S115: =IF(D115="","",VLOOKUP($D115,'Concawe Library'!$A$4:$AI$1563,30,FALSE)) ->  | T115: =IF(D115="","",VLOOKUP($D115,'Concawe Library'!$A$4:$AI$1563,29,FALSE)) -> 
E116: =IF(D116="","",VLOOKUP($D116,'Concawe Library'!$A$4:$AI$1563,3,FALSE)) ->  | F116: =IF(D116="","",VLOOKUP($D116,'Concawe Library'!$A$4:$AI$1563,4,FALSE)) ->  | G116: =IF(D116="","",VLOOKUP($D116,'Concawe Library'!$A$4:$AI$1563,6,FALSE)) ->  | H116: =IF(D116="","",VLOOKUP($D116,'Concawe Library'!$A$4:$AI$1563,11,FALSE)) ->  | I116: =IF(D116="","",LOG(VLOOKUP($D116,'Concawe Library'!$A$4:$AI$1563,13,FALSE))) ->  | J116: =IF(D116="","",VLOOKUP($D116,'Concawe Library'!$A$4:$AI$1563,14,FALSE)) ->  | K116: =IF(D116="","",LOG(VLOOKUP($D116,'Concawe Library'!$A$4:$AI$1563,28,FALSE))) ->  | L116: =IF(D116="","",VLOOKUP($D116,'Concawe Library'!$A$4:$AI$1563,31,FALSE)) ->  | M116: =IF(D116="","",VLOOKUP($D116,'Concawe Library'!$A$4:$AI$1563,32,FALSE)) ->  | N116: =IF(D116="","",VLOOKUP($D116,'Concawe Library'!$A$4:$AI$1563,33,FALSE)) ->  | O116: =IF(D116="","",VLOOKUP($D116,'Concawe Library'!$A$4:$AI$1563,34,FALSE)) ->  | P116: =IF(D116="","",VLOOKUP($D116,'Concawe Library'!$A$4:$AI$1563,35,FALSE)) ->  | Q116: =IF(D116="","",VLOOKUP($D116,'Concawe Library'!$A$4:$AI$1563,25,FALSE)) ->  | R116: =IF(D116="","",VLOOKUP($D116,'Concawe Library'!$A$4:$AI$1563,26,FALSE)) ->  | S116: =IF(D116="","",VLOOKUP($D116,'Concawe Library'!$A$4:$AI$1563,30,FALSE)) ->  | T116: =IF(D116="","",VLOOKUP($D116,'Concawe Library'!$A$4:$AI$1563,29,FALSE)) -> 
E117: =IF(D117="","",VLOOKUP($D117,'Concawe Library'!$A$4:$AI$1563,3,FALSE)) ->  | F117: =IF(D117="","",VLOOKUP($D117,'Concawe Library'!$A$4:$AI$1563,4,FALSE)) ->  | G117: =IF(D117="","",VLOOKUP($D117,'Concawe Library'!$A$4:$AI$1563,6,FALSE)) ->  | H117: =IF(D117="","",VLOOKUP($D117,'Concawe Library'!$A$4:$AI$1563,11,FALSE)) ->  | I117: =IF(D117="","",LOG(VLOOKUP($D117,'Concawe Library'!$A$4:$AI$1563,13,FALSE))) ->  | J117: =IF(D117="","",VLOOKUP($D117,'Concawe Library'!$A$4:$AI$1563,14,FALSE)) ->  | K117: =IF(D117="","",LOG(VLOOKUP($D117,'Concawe Library'!$A$4:$AI$1563,28,FALSE))) ->  | L117: =IF(D117="","",VLOOKUP($D117,'Concawe Library'!$A$4:$AI$1563,31,FALSE)) ->  | M117: =IF(D117="","",VLOOKUP($D117,'Concawe Library'!$A$4:$AI$1563,32,FALSE)) ->  | N117: =IF(D117="","",VLOOKUP($D117,'Concawe Library'!$A$4:$AI$1563,33,FALSE)) ->  | O117: =IF(D117="","",VLOOKUP($D117,'Concawe Library'!$A$4:$AI$1563,34,FALSE)) ->  | P117: =IF(D117="","",VLOOKUP($D117,'Concawe Library'!$A$4:$AI$1563,35,FALSE)) ->  | Q117: =IF(D117="","",VLOOKUP($D117,'Concawe Library'!$A$4:$AI$1563,25,FALSE)) ->  | R117: =IF(D117="","",VLOOKUP($D117,'Concawe Library'!$A$4:$AI$1563,26,FALSE)) ->  | S117: =IF(D117="","",VLOOKUP($D117,'Concawe Library'!$A$4:$AI$1563,30,FALSE)) ->  | T117: =IF(D117="","",VLOOKUP($D117,'Concawe Library'!$A$4:$AI$1563,29,FALSE)) -> 
E118: =IF(D118="","",VLOOKUP($D118,'Concawe Library'!$A$4:$AI$1563,3,FALSE)) ->  | F118: =IF(D118="","",VLOOKUP($D118,'Concawe Library'!$A$4:$AI$1563,4,FALSE)) ->  | G118: =IF(D118="","",VLOOKUP($D118,'Concawe Library'!$A$4:$AI$1563,6,FALSE)) ->  | H118: =IF(D118="","",VLOOKUP($D118,'Concawe Library'!$A$4:$AI$1563,11,FALSE)) ->  | I118: =IF(D118="","",LOG(VLOOKUP($D118,'Concawe Library'!$A$4:$AI$1563,13,FALSE))) ->  | J118: =IF(D118="","",VLOOKUP($D118,'Concawe Library'!$A$4:$AI$1563,14,FALSE)) ->  | K118: =IF(D118="","",LOG(VLOOKUP($D118,'Concawe Library'!$A$4:$AI$1563,28,FALSE))) ->  | L118: =IF(D118="","",VLOOKUP($D118,'Concawe Library'!$A$4:$AI$1563,31,FALSE)) ->  | M118: =IF(D118="","",VLOOKUP($D118,'Concawe Library'!$A$4:$AI$1563,32,FALSE)) ->  | N118: =IF(D118="","",VLOOKUP($D118,'Concawe Library'!$A$4:$AI$1563,33,FALSE)) ->  | O118: =IF(D118="","",VLOOKUP($D118,'Concawe Library'!$A$4:$AI$1563,34,FALSE)) ->  | P118: =IF(D118="","",VLOOKUP($D118,'Concawe Library'!$A$4:$AI$1563,35,FALSE)) ->  | Q118: =IF(D118="","",VLOOKUP($D118,'Concawe Library'!$A$4:$AI$1563,25,FALSE)) ->  | R118: =IF(D118="","",VLOOKUP($D118,'Concawe Library'!$A$4:$AI$1563,26,FALSE)) ->  | S118: =IF(D118="","",VLOOKUP($D118,'Concawe Library'!$A$4:$AI$1563,30,FALSE)) ->  | T118: =IF(D118="","",VLOOKUP($D118,'Concawe Library'!$A$4:$AI$1563,29,FALSE)) -> 
E119: =IF(D119="","",VLOOKUP($D119,'Concawe Library'!$A$4:$AI$1563,3,FALSE)) ->  | F119: =IF(D119="","",VLOOKUP($D119,'Concawe Library'!$A$4:$AI$1563,4,FALSE)) ->  | G119: =IF(D119="","",VLOOKUP($D119,'Concawe Library'!$A$4:$AI$1563,6,FALSE)) ->  | H119: =IF(D119="","",VLOOKUP($D119,'Concawe Library'!$A$4:$AI$1563,11,FALSE)) ->  | I119: =IF(D119="","",LOG(VLOOKUP($D119,'Concawe Library'!$A$4:$AI$1563,13,FALSE))) ->  | J119: =IF(D119="","",VLOOKUP($D119,'Concawe Library'!$A$4:$AI$1563,14,FALSE)) ->  | K119: =IF(D119="","",LOG(VLOOKUP($D119,'Concawe Library'!$A$4:$AI$1563,28,FALSE))) ->  | L119: =IF(D119="","",VLOOKUP($D119,'Concawe Library'!$A$4:$AI$1563,31,FALSE)) ->  | M119: =IF(D119="","",VLOOKUP($D119,'Concawe Library'!$A$4:$AI$1563,32,FALSE)) ->  | N119: =IF(D119="","",VLOOKUP($D119,'Concawe Library'!$A$4:$AI$1563,33,FALSE)) ->  | O119: =IF(D119="","",VLOOKUP($D119,'Concawe Library'!$A$4:$AI$1563,34,FALSE)) ->  | P119: =IF(D119="","",VLOOKUP($D119,'Concawe Library'!$A$4:$AI$1563,35,FALSE)) ->  | Q119: =IF(D119="","",VLOOKUP($D119,'Concawe Library'!$A$4:$AI$1563,25,FALSE)) ->  | R119: =IF(D119="","",VLOOKUP($D119,'Concawe Library'!$A$4:$AI$1563,26,FALSE)) ->  | S119: =IF(D119="","",VLOOKUP($D119,'Concawe Library'!$A$4:$AI$1563,30,FALSE)) ->  | T119: =IF(D119="","",VLOOKUP($D119,'Concawe Library'!$A$4:$AI$1563,29,FALSE)) -> 
E120: =IF(D120="","",VLOOKUP($D120,'Concawe Library'!$A$4:$AI$1563,3,FALSE)) ->  | F120: =IF(D120="","",VLOOKUP($D120,'Concawe Library'!$A$4:$AI$1563,4,FALSE)) ->  | G120: =IF(D120="","",VLOOKUP($D120,'Concawe Library'!$A$4:$AI$1563,6,FALSE)) ->  | H120: =IF(D120="","",VLOOKUP($D120,'Concawe Library'!$A$4:$AI$1563,11,FALSE)) ->  | I120: =IF(D120="","",LOG(VLOOKUP($D120,'Concawe Library'!$A$4:$AI$1563,13,FALSE))) ->  | J120: =IF(D120="","",VLOOKUP($D120,'Concawe Library'!$A$4:$AI$1563,14,FALSE)) ->  | K120: =IF(D120="","",LOG(VLOOKUP($D120,'Concawe Library'!$A$4:$AI$1563,28,FALSE))) ->  | L120: =IF(D120="","",VLOOKUP($D120,'Concawe Library'!$A$4:$AI$1563,31,FALSE)) ->  | M120: =IF(D120="","",VLOOKUP($D120,'Concawe Library'!$A$4:$AI$1563,32,FALSE)) ->  | N120: =IF(D120="","",VLOOKUP($D120,'Concawe Library'!$A$4:$AI$1563,33,FALSE)) ->  | O120: =IF(D120="","",VLOOKUP($D120,'Concawe Library'!$A$4:$AI$1563,34,FALSE)) ->  | P120: =IF(D120="","",VLOOKUP($D120,'Concawe Library'!$A$4:$AI$1563,35,FALSE)) ->  | Q120: =IF(D120="","",VLOOKUP($D120,'Concawe Library'!$A$4:$AI$1563,25,FALSE)) ->  | R120: =IF(D120="","",VLOOKUP($D120,'Concawe Library'!$A$4:$AI$1563,26,FALSE)) ->  | S120: =IF(D120="","",VLOOKUP($D120,'Concawe Library'!$A$4:$AI$1563,30,FALSE)) ->  | T120: =IF(D120="","",VLOOKUP($D120,'Concawe Library'!$A$4:$AI$1563,29,FALSE)) -> 
E121: =IF(D121="","",VLOOKUP($D121,'Concawe Library'!$A$4:$AI$1563,3,FALSE)) ->  | F121: =IF(D121="","",VLOOKUP($D121,'Concawe Library'!$A$4:$AI$1563,4,FALSE)) ->  | G121: =IF(D121="","",VLOOKUP($D121,'Concawe Library'!$A$4:$AI$1563,6,FALSE)) ->  | H121: =IF(D121="","",VLOOKUP($D121,'Concawe Library'!$A$4:$AI$1563,11,FALSE)) ->  | I121: =IF(D121="","",LOG(VLOOKUP($D121,'Concawe Library'!$A$4:$AI$1563,13,FALSE))) ->  | J121: =IF(D121="","",VLOOKUP($D121,'Concawe Library'!$A$4:$AI$1563,14,FALSE)) ->  | K121: =IF(D121="","",LOG(VLOOKUP($D121,'Concawe Library'!$A$4:$AI$1563,28,FALSE))) ->  | L121: =IF(D121="","",VLOOKUP($D121,'Concawe Library'!$A$4:$AI$1563,31,FALSE)) ->  | M121: =IF(D121="","",VLOOKUP($D121,'Concawe Library'!$A$4:$AI$1563,32,FALSE)) ->  | N121: =IF(D121="","",VLOOKUP($D121,'Concawe Library'!$A$4:$AI$1563,33,FALSE)) ->  | O121: =IF(D121="","",VLOOKUP($D121,'Concawe Library'!$A$4:$AI$1563,34,FALSE)) ->  | P121: =IF(D121="","",VLOOKUP($D121,'Concawe Library'!$A$4:$AI$1563,35,FALSE)) ->  | Q121: =IF(D121="","",VLOOKUP($D121,'Concawe Library'!$A$4:$AI$1563,25,FALSE)) ->  | R121: =IF(D121="","",VLOOKUP($D121,'Concawe Library'!$A$4:$AI$1563,26,FALSE)) ->  | S121: =IF(D121="","",VLOOKUP($D121,'Concawe Library'!$A$4:$AI$1563,30,FALSE)) ->  | T121: =IF(D121="","",VLOOKUP($D121,'Concawe Library'!$A$4:$AI$1563,29,FALSE)) -> 
E122: =IF(D122="","",VLOOKUP($D122,'Concawe Library'!$A$4:$AI$1563,3,FALSE)) ->  | F122: =IF(D122="","",VLOOKUP($D122,'Concawe Library'!$A$4:$AI$1563,4,FALSE)) ->  | G122: =IF(D122="","",VLOOKUP($D122,'Concawe Library'!$A$4:$AI$1563,6,FALSE)) ->  | H122: =IF(D122="","",VLOOKUP($D122,'Concawe Library'!$A$4:$AI$1563,11,FALSE)) ->  | I122: =IF(D122="","",LOG(VLOOKUP($D122,'Concawe Library'!$A$4:$AI$1563,13,FALSE))) ->  | J122: =IF(D122="","",VLOOKUP($D122,'Concawe Library'!$A$4:$AI$1563,14,FALSE)) ->  | K122: =IF(D122="","",LOG(VLOOKUP($D122,'Concawe Library'!$A$4:$AI$1563,28,FALSE))) ->  | L122: =IF(D122="","",VLOOKUP($D122,'Concawe Library'!$A$4:$AI$1563,31,FALSE)) ->  | M122: =IF(D122="","",VLOOKUP($D122,'Concawe Library'!$A$4:$AI$1563,32,FALSE)) ->  | N122: =IF(D122="","",VLOOKUP($D122,'Concawe Library'!$A$4:$AI$1563,33,FALSE)) ->  | O122: =IF(D122="","",VLOOKUP($D122,'Concawe Library'!$A$4:$AI$1563,34,FALSE)) ->  | P122: =IF(D122="","",VLOOKUP($D122,'Concawe Library'!$A$4:$AI$1563,35,FALSE)) ->  | Q122: =IF(D122="","",VLOOKUP($D122,'Concawe Library'!$A$4:$AI$1563,25,FALSE)) ->  | R122: =IF(D122="","",VLOOKUP($D122,'Concawe Library'!$A$4:$AI$1563,26,FALSE)) ->  | S122: =IF(D122="","",VLOOKUP($D122,'Concawe Library'!$A$4:$AI$1563,30,FALSE)) ->  | T122: =IF(D122="","",VLOOKUP($D122,'Concawe Library'!$A$4:$AI$1563,29,FALSE)) -> 
E123: =IF(D123="","",VLOOKUP($D123,'Concawe Library'!$A$4:$AI$1563,3,FALSE)) ->  | F123: =IF(D123="","",VLOOKUP($D123,'Concawe Library'!$A$4:$AI$1563,4,FALSE)) ->  | G123: =IF(D123="","",VLOOKUP($D123,'Concawe Library'!$A$4:$AI$1563,6,FALSE)) ->  | H123: =IF(D123="","",VLOOKUP($D123,'Concawe Library'!$A$4:$AI$1563,11,FALSE)) ->  | I123: =IF(D123="","",LOG(VLOOKUP($D123,'Concawe Library'!$A$4:$AI$1563,13,FALSE))) ->  | J123: =IF(D123="","",VLOOKUP($D123,'Concawe Library'!$A$4:$AI$1563,14,FALSE)) ->  | K123: =IF(D123="","",LOG(VLOOKUP($D123,'Concawe Library'!$A$4:$AI$1563,28,FALSE))) ->  | L123: =IF(D123="","",VLOOKUP($D123,'Concawe Library'!$A$4:$AI$1563,31,FALSE)) ->  | M123: =IF(D123="","",VLOOKUP($D123,'Concawe Library'!$A$4:$AI$1563,32,FALSE)) ->  | N123: =IF(D123="","",VLOOKUP($D123,'Concawe Library'!$A$4:$AI$1563,33,FALSE)) ->  | O123: =IF(D123="","",VLOOKUP($D123,'Concawe Library'!$A$4:$AI$1563,34,FALSE)) ->  | P123: =IF(D123="","",VLOOKUP($D123,'Concawe Library'!$A$4:$AI$1563,35,FALSE)) ->  | Q123: =IF(D123="","",VLOOKUP($D123,'Concawe Library'!$A$4:$AI$1563,25,FALSE)) ->  | R123: =IF(D123="","",VLOOKUP($D123,'Concawe Library'!$A$4:$AI$1563,26,FALSE)) ->  | S123: =IF(D123="","",VLOOKUP($D123,'Concawe Library'!$A$4:$AI$1563,30,FALSE)) ->  | T123: =IF(D123="","",VLOOKUP($D123,'Concawe Library'!$A$4:$AI$1563,29,FALSE)) -> 
E124: =IF(D124="","",VLOOKUP($D124,'Concawe Library'!$A$4:$AI$1563,3,FALSE)) ->  | F124: =IF(D124="","",VLOOKUP($D124,'Concawe Library'!$A$4:$AI$1563,4,FALSE)) ->  | G124: =IF(D124="","",VLOOKUP($D124,'Concawe Library'!$A$4:$AI$1563,6,FALSE)) ->  | H124: =IF(D124="","",VLOOKUP($D124,'Concawe Library'!$A$4:$AI$1563,11,FALSE)) ->  | I124: =IF(D124="","",LOG(VLOOKUP($D124,'Concawe Library'!$A$4:$AI$1563,13,FALSE))) ->  | J124: =IF(D124="","",VLOOKUP($D124,'Concawe Library'!$A$4:$AI$1563,14,FALSE)) ->  | K124: =IF(D124="","",LOG(VLOOKUP($D124,'Concawe Library'!$A$4:$AI$1563,28,FALSE))) ->  | L124: =IF(D124="","",VLOOKUP($D124,'Concawe Library'!$A$4:$AI$1563,31,FALSE)) ->  | M124: =IF(D124="","",VLOOKUP($D124,'Concawe Library'!$A$4:$AI$1563,32,FALSE)) ->  | N124: =IF(D124="","",VLOOKUP($D124,'Concawe Library'!$A$4:$AI$1563,33,FALSE)) ->  | O124: =IF(D124="","",VLOOKUP($D124,'Concawe Library'!$A$4:$AI$1563,34,FALSE)) ->  | P124: =IF(D124="","",VLOOKUP($D124,'Concawe Library'!$A$4:$AI$1563,35,FALSE)) ->  | Q124: =IF(D124="","",VLOOKUP($D124,'Concawe Library'!$A$4:$AI$1563,25,FALSE)) ->  | R124: =IF(D124="","",VLOOKUP($D124,'Concawe Library'!$A$4:$AI$1563,26,FALSE)) ->  | S124: =IF(D124="","",VLOOKUP($D124,'Concawe Library'!$A$4:$AI$1563,30,FALSE)) ->  | T124: =IF(D124="","",VLOOKUP($D124,'Concawe Library'!$A$4:$AI$1563,29,FALSE)) -> 
E125: =IF(D125="","",VLOOKUP($D125,'Concawe Library'!$A$4:$AI$1563,3,FALSE)) ->  | F125: =IF(D125="","",VLOOKUP($D125,'Concawe Library'!$A$4:$AI$1563,4,FALSE)) ->  | G125: =IF(D125="","",VLOOKUP($D125,'Concawe Library'!$A$4:$AI$1563,6,FALSE)) ->  | H125: =IF(D125="","",VLOOKUP($D125,'Concawe Library'!$A$4:$AI$1563,11,FALSE)) ->  | I125: =IF(D125="","",LOG(VLOOKUP($D125,'Concawe Library'!$A$4:$AI$1563,13,FALSE))) ->  | J125: =IF(D125="","",VLOOKUP($D125,'Concawe Library'!$A$4:$AI$1563,14,FALSE)) ->  | K125: =IF(D125="","",LOG(VLOOKUP($D125,'Concawe Library'!$A$4:$AI$1563,28,FALSE))) ->  | L125: =IF(D125="","",VLOOKUP($D125,'Concawe Library'!$A$4:$AI$1563,31,FALSE)) ->  | M125: =IF(D125="","",VLOOKUP($D125,'Concawe Library'!$A$4:$AI$1563,32,FALSE)) ->  | N125: =IF(D125="","",VLOOKUP($D125,'Concawe Library'!$A$4:$AI$1563,33,FALSE)) ->  | O125: =IF(D125="","",VLOOKUP($D125,'Concawe Library'!$A$4:$AI$1563,34,FALSE)) ->  | P125: =IF(D125="","",VLOOKUP($D125,'Concawe Library'!$A$4:$AI$1563,35,FALSE)) ->  | Q125: =IF(D125="","",VLOOKUP($D125,'Concawe Library'!$A$4:$AI$1563,25,FALSE)) ->  | R125: =IF(D125="","",VLOOKUP($D125,'Concawe Library'!$A$4:$AI$1563,26,FALSE)) ->  | S125: =IF(D125="","",VLOOKUP($D125,'Concawe Library'!$A$4:$AI$1563,30,FALSE)) ->  | T125: =IF(D125="","",VLOOKUP($D125,'Concawe Library'!$A$4:$AI$1563,29,FALSE)) -> 
E126: =IF(D126="","",VLOOKUP($D126,'Concawe Library'!$A$4:$AI$1563,3,FALSE)) ->  | F126: =IF(D126="","",VLOOKUP($D126,'Concawe Library'!$A$4:$AI$1563,4,FALSE)) ->  | G126: =IF(D126="","",VLOOKUP($D126,'Concawe Library'!$A$4:$AI$1563,6,FALSE)) ->  | H126: =IF(D126="","",VLOOKUP($D126,'Concawe Library'!$A$4:$AI$1563,11,FALSE)) ->  | I126: =IF(D126="","",LOG(VLOOKUP($D126,'Concawe Library'!$A$4:$AI$1563,13,FALSE))) ->  | J126: =IF(D126="","",VLOOKUP($D126,'Concawe Library'!$A$4:$AI$1563,14,FALSE)) ->  | K126: =IF(D126="","",LOG(VLOOKUP($D126,'Concawe Library'!$A$4:$AI$1563,28,FALSE))) ->  | L126: =IF(D126="","",VLOOKUP($D126,'Concawe Library'!$A$4:$AI$1563,31,FALSE)) ->  | M126: =IF(D126="","",VLOOKUP($D126,'Concawe Library'!$A$4:$AI$1563,32,FALSE)) ->  | N126: =IF(D126="","",VLOOKUP($D126,'Concawe Library'!$A$4:$AI$1563,33,FALSE)) ->  | O126: =IF(D126="","",VLOOKUP($D126,'Concawe Library'!$A$4:$AI$1563,34,FALSE)) ->  | P126: =IF(D126="","",VLOOKUP($D126,'Concawe Library'!$A$4:$AI$1563,35,FALSE)) ->  | Q126: =IF(D126="","",VLOOKUP($D126,'Concawe Library'!$A$4:$AI$1563,25,FALSE)) ->  | R126: =IF(D126="","",VLOOKUP($D126,'Concawe Library'!$A$4:$AI$1563,26,FALSE)) ->  | S126: =IF(D126="","",VLOOKUP($D126,'Concawe Library'!$A$4:$AI$1563,30,FALSE)) ->  | T126: =IF(D126="","",VLOOKUP($D126,'Concawe Library'!$A$4:$AI$1563,29,FALSE)) -> 
E127: =IF(D127="","",VLOOKUP($D127,'Concawe Library'!$A$4:$AI$1563,3,FALSE)) ->  | F127: =IF(D127="","",VLOOKUP($D127,'Concawe Library'!$A$4:$AI$1563,4,FALSE)) ->  | G127: =IF(D127="","",VLOOKUP($D127,'Concawe Library'!$A$4:$AI$1563,6,FALSE)) ->  | H127: =IF(D127="","",VLOOKUP($D127,'Concawe Library'!$A$4:$AI$1563,11,FALSE)) ->  | I127: =IF(D127="","",LOG(VLOOKUP($D127,'Concawe Library'!$A$4:$AI$1563,13,FALSE))) ->  | J127: =IF(D127="","",VLOOKUP($D127,'Concawe Library'!$A$4:$AI$1563,14,FALSE)) ->  | K127: =IF(D127="","",LOG(VLOOKUP($D127,'Concawe Library'!$A$4:$AI$1563,28,FALSE))) ->  | L127: =IF(D127="","",VLOOKUP($D127,'Concawe Library'!$A$4:$AI$1563,31,FALSE)) ->  | M127: =IF(D127="","",VLOOKUP($D127,'Concawe Library'!$A$4:$AI$1563,32,FALSE)) ->  | N127: =IF(D127="","",VLOOKUP($D127,'Concawe Library'!$A$4:$AI$1563,33,FALSE)) ->  | O127: =IF(D127="","",VLOOKUP($D127,'Concawe Library'!$A$4:$AI$1563,34,FALSE)) ->  | P127: =IF(D127="","",VLOOKUP($D127,'Concawe Library'!$A$4:$AI$1563,35,FALSE)) ->  | Q127: =IF(D127="","",VLOOKUP($D127,'Concawe Library'!$A$4:$AI$1563,25,FALSE)) ->  | R127: =IF(D127="","",VLOOKUP($D127,'Concawe Library'!$A$4:$AI$1563,26,FALSE)) ->  | S127: =IF(D127="","",VLOOKUP($D127,'Concawe Library'!$A$4:$AI$1563,30,FALSE)) ->  | T127: =IF(D127="","",VLOOKUP($D127,'Concawe Library'!$A$4:$AI$1563,29,FALSE)) -> 
E128: =IF(D128="","",VLOOKUP($D128,'Concawe Library'!$A$4:$AI$1563,3,FALSE)) ->  | F128: =IF(D128="","",VLOOKUP($D128,'Concawe Library'!$A$4:$AI$1563,4,FALSE)) ->  | G128: =IF(D128="","",VLOOKUP($D128,'Concawe Library'!$A$4:$AI$1563,6,FALSE)) ->  | H128: =IF(D128="","",VLOOKUP($D128,'Concawe Library'!$A$4:$AI$1563,11,FALSE)) ->  | I128: =IF(D128="","",LOG(VLOOKUP($D128,'Concawe Library'!$A$4:$AI$1563,13,FALSE))) ->  | J128: =IF(D128="","",VLOOKUP($D128,'Concawe Library'!$A$4:$AI$1563,14,FALSE)) ->  | K128: =IF(D128="","",LOG(VLOOKUP($D128,'Concawe Library'!$A$4:$AI$1563,28,FALSE))) ->  | L128: =IF(D128="","",VLOOKUP($D128,'Concawe Library'!$A$4:$AI$1563,31,FALSE)) ->  | M128: =IF(D128="","",VLOOKUP($D128,'Concawe Library'!$A$4:$AI$1563,32,FALSE)) ->  | N128: =IF(D128="","",VLOOKUP($D128,'Concawe Library'!$A$4:$AI$1563,33,FALSE)) ->  | O128: =IF(D128="","",VLOOKUP($D128,'Concawe Library'!$A$4:$AI$1563,34,FALSE)) ->  | P128: =IF(D128="","",VLOOKUP($D128,'Concawe Library'!$A$4:$AI$1563,35,FALSE)) ->  | Q128: =IF(D128="","",VLOOKUP($D128,'Concawe Library'!$A$4:$AI$1563,25,FALSE)) ->  | R128: =IF(D128="","",VLOOKUP($D128,'Concawe Library'!$A$4:$AI$1563,26,FALSE)) ->  | S128: =IF(D128="","",VLOOKUP($D128,'Concawe Library'!$A$4:$AI$1563,30,FALSE)) ->  | T128: =IF(D128="","",VLOOKUP($D128,'Concawe Library'!$A$4:$AI$1563,29,FALSE)) -> 
E129: =IF(D129="","",VLOOKUP($D129,'Concawe Library'!$A$4:$AI$1563,3,FALSE)) ->  | F129: =IF(D129="","",VLOOKUP($D129,'Concawe Library'!$A$4:$AI$1563,4,FALSE)) ->  | G129: =IF(D129="","",VLOOKUP($D129,'Concawe Library'!$A$4:$AI$1563,6,FALSE)) ->  | H129: =IF(D129="","",VLOOKUP($D129,'Concawe Library'!$A$4:$AI$1563,11,FALSE)) ->  | I129: =IF(D129="","",LOG(VLOOKUP($D129,'Concawe Library'!$A$4:$AI$1563,13,FALSE))) ->  | J129: =IF(D129="","",VLOOKUP($D129,'Concawe Library'!$A$4:$AI$1563,14,FALSE)) ->  | K129: =IF(D129="","",LOG(VLOOKUP($D129,'Concawe Library'!$A$4:$AI$1563,28,FALSE))) ->  | L129: =IF(D129="","",VLOOKUP($D129,'Concawe Library'!$A$4:$AI$1563,31,FALSE)) ->  | M129: =IF(D129="","",VLOOKUP($D129,'Concawe Library'!$A$4:$AI$1563,32,FALSE)) ->  | N129: =IF(D129="","",VLOOKUP($D129,'Concawe Library'!$A$4:$AI$1563,33,FALSE)) ->  | O129: =IF(D129="","",VLOOKUP($D129,'Concawe Library'!$A$4:$AI$1563,34,FALSE)) ->  | P129: =IF(D129="","",VLOOKUP($D129,'Concawe Library'!$A$4:$AI$1563,35,FALSE)) ->  | Q129: =IF(D129="","",VLOOKUP($D129,'Concawe Library'!$A$4:$AI$1563,25,FALSE)) ->  | R129: =IF(D129="","",VLOOKUP($D129,'Concawe Library'!$A$4:$AI$1563,26,FALSE)) ->  | S129: =IF(D129="","",VLOOKUP($D129,'Concawe Library'!$A$4:$AI$1563,30,FALSE)) ->  | T129: =IF(D129="","",VLOOKUP($D129,'Concawe Library'!$A$4:$AI$1563,29,FALSE)) -> 
E130: =IF(D130="","",VLOOKUP($D130,'Concawe Library'!$A$4:$AI$1563,3,FALSE)) ->  | F130: =IF(D130="","",VLOOKUP($D130,'Concawe Library'!$A$4:$AI$1563,4,FALSE)) ->  | G130: =IF(D130="","",VLOOKUP($D130,'Concawe Library'!$A$4:$AI$1563,6,FALSE)) ->  | H130: =IF(D130="","",VLOOKUP($D130,'Concawe Library'!$A$4:$AI$1563,11,FALSE)) ->  | I130: =IF(D130="","",LOG(VLOOKUP($D130,'Concawe Library'!$A$4:$AI$1563,13,FALSE))) ->  | J130: =IF(D130="","",VLOOKUP($D130,'Concawe Library'!$A$4:$AI$1563,14,FALSE)) ->  | K130: =IF(D130="","",LOG(VLOOKUP($D130,'Concawe Library'!$A$4:$AI$1563,28,FALSE))) ->  | L130: =IF(D130="","",VLOOKUP($D130,'Concawe Library'!$A$4:$AI$1563,31,FALSE)) ->  | M130: =IF(D130="","",VLOOKUP($D130,'Concawe Library'!$A$4:$AI$1563,32,FALSE)) ->  | N130: =IF(D130="","",VLOOKUP($D130,'Concawe Library'!$A$4:$AI$1563,33,FALSE)) ->  | O130: =IF(D130="","",VLOOKUP($D130,'Concawe Library'!$A$4:$AI$1563,34,FALSE)) ->  | P130: =IF(D130="","",VLOOKUP($D130,'Concawe Library'!$A$4:$AI$1563,35,FALSE)) ->  | Q130: =IF(D130="","",VLOOKUP($D130,'Concawe Library'!$A$4:$AI$1563,25,FALSE)) ->  | R130: =IF(D130="","",VLOOKUP($D130,'Concawe Library'!$A$4:$AI$1563,26,FALSE)) ->  | S130: =IF(D130="","",VLOOKUP($D130,'Concawe Library'!$A$4:$AI$1563,30,FALSE)) ->  | T130: =IF(D130="","",VLOOKUP($D130,'Concawe Library'!$A$4:$AI$1563,29,FALSE)) -> 
E131: =IF(D131="","",VLOOKUP($D131,'Concawe Library'!$A$4:$AI$1563,3,FALSE)) ->  | F131: =IF(D131="","",VLOOKUP($D131,'Concawe Library'!$A$4:$AI$1563,4,FALSE)) ->  | G131: =IF(D131="","",VLOOKUP($D131,'Concawe Library'!$A$4:$AI$1563,6,FALSE)) ->  | H131: =IF(D131="","",VLOOKUP($D131,'Concawe Library'!$A$4:$AI$1563,11,FALSE)) ->  | I131: =IF(D131="","",LOG(VLOOKUP($D131,'Concawe Library'!$A$4:$AI$1563,13,FALSE))) ->  | J131: =IF(D131="","",VLOOKUP($D131,'Concawe Library'!$A$4:$AI$1563,14,FALSE)) ->  | K131: =IF(D131="","",LOG(VLOOKUP($D131,'Concawe Library'!$A$4:$AI$1563,28,FALSE))) ->  | L131: =IF(D131="","",VLOOKUP($D131,'Concawe Library'!$A$4:$AI$1563,31,FALSE)) ->  | M131: =IF(D131="","",VLOOKUP($D131,'Concawe Library'!$A$4:$AI$1563,32,FALSE)) ->  | N131: =IF(D131="","",VLOOKUP($D131,'Concawe Library'!$A$4:$AI$1563,33,FALSE)) ->  | O131: =IF(D131="","",VLOOKUP($D131,'Concawe Library'!$A$4:$AI$1563,34,FALSE)) ->  | P131: =IF(D131="","",VLOOKUP($D131,'Concawe Library'!$A$4:$AI$1563,35,FALSE)) ->  | Q131: =IF(D131="","",VLOOKUP($D131,'Concawe Library'!$A$4:$AI$1563,25,FALSE)) ->  | R131: =IF(D131="","",VLOOKUP($D131,'Concawe Library'!$A$4:$AI$1563,26,FALSE)) ->  | S131: =IF(D131="","",VLOOKUP($D131,'Concawe Library'!$A$4:$AI$1563,30,FALSE)) ->  | T131: =IF(D131="","",VLOOKUP($D131,'Concawe Library'!$A$4:$AI$1563,29,FALSE)) -> 
E132: =IF(D132="","",VLOOKUP($D132,'Concawe Library'!$A$4:$AI$1563,3,FALSE)) ->  | F132: =IF(D132="","",VLOOKUP($D132,'Concawe Library'!$A$4:$AI$1563,4,FALSE)) ->  | G132: =IF(D132="","",VLOOKUP($D132,'Concawe Library'!$A$4:$AI$1563,6,FALSE)) ->  | H132: =IF(D132="","",VLOOKUP($D132,'Concawe Library'!$A$4:$AI$1563,11,FALSE)) ->  | I132: =IF(D132="","",LOG(VLOOKUP($D132,'Concawe Library'!$A$4:$AI$1563,13,FALSE))) ->  | J132: =IF(D132="","",VLOOKUP($D132,'Concawe Library'!$A$4:$AI$1563,14,FALSE)) ->  | K132: =IF(D132="","",LOG(VLOOKUP($D132,'Concawe Library'!$A$4:$AI$1563,28,FALSE))) ->  | L132: =IF(D132="","",VLOOKUP($D132,'Concawe Library'!$A$4:$AI$1563,31,FALSE)) ->  | M132: =IF(D132="","",VLOOKUP($D132,'Concawe Library'!$A$4:$AI$1563,32,FALSE)) ->  | N132: =IF(D132="","",VLOOKUP($D132,'Concawe Library'!$A$4:$AI$1563,33,FALSE)) ->  | O132: =IF(D132="","",VLOOKUP($D132,'Concawe Library'!$A$4:$AI$1563,34,FALSE)) ->  | P132: =IF(D132="","",VLOOKUP($D132,'Concawe Library'!$A$4:$AI$1563,35,FALSE)) ->  | Q132: =IF(D132="","",VLOOKUP($D132,'Concawe Library'!$A$4:$AI$1563,25,FALSE)) ->  | R132: =IF(D132="","",VLOOKUP($D132,'Concawe Library'!$A$4:$AI$1563,26,FALSE)) ->  | S132: =IF(D132="","",VLOOKUP($D132,'Concawe Library'!$A$4:$AI$1563,30,FALSE)) ->  | T132: =IF(D132="","",VLOOKUP($D132,'Concawe Library'!$A$4:$AI$1563,29,FALSE)) -> 
E133: =IF(D133="","",VLOOKUP($D133,'Concawe Library'!$A$4:$AI$1563,3,FALSE)) ->  | F133: =IF(D133="","",VLOOKUP($D133,'Concawe Library'!$A$4:$AI$1563,4,FALSE)) ->  | G133: =IF(D133="","",VLOOKUP($D133,'Concawe Library'!$A$4:$AI$1563,6,FALSE)) ->  | H133: =IF(D133="","",VLOOKUP($D133,'Concawe Library'!$A$4:$AI$1563,11,FALSE)) ->  | I133: =IF(D133="","",LOG(VLOOKUP($D133,'Concawe Library'!$A$4:$AI$1563,13,FALSE))) ->  | J133: =IF(D133="","",VLOOKUP($D133,'Concawe Library'!$A$4:$AI$1563,14,FALSE)) ->  | K133: =IF(D133="","",LOG(VLOOKUP($D133,'Concawe Library'!$A$4:$AI$1563,28,FALSE))) ->  | L133: =IF(D133="","",VLOOKUP($D133,'Concawe Library'!$A$4:$AI$1563,31,FALSE)) ->  | M133: =IF(D133="","",VLOOKUP($D133,'Concawe Library'!$A$4:$AI$1563,32,FALSE)) ->  | N133: =IF(D133="","",VLOOKUP($D133,'Concawe Library'!$A$4:$AI$1563,33,FALSE)) ->  | O133: =IF(D133="","",VLOOKUP($D133,'Concawe Library'!$A$4:$AI$1563,34,FALSE)) ->  | P133: =IF(D133="","",VLOOKUP($D133,'Concawe Library'!$A$4:$AI$1563,35,FALSE)) ->  | Q133: =IF(D133="","",VLOOKUP($D133,'Concawe Library'!$A$4:$AI$1563,25,FALSE)) ->  | R133: =IF(D133="","",VLOOKUP($D133,'Concawe Library'!$A$4:$AI$1563,26,FALSE)) ->  | S133: =IF(D133="","",VLOOKUP($D133,'Concawe Library'!$A$4:$AI$1563,30,FALSE)) ->  | T133: =IF(D133="","",VLOOKUP($D133,'Concawe Library'!$A$4:$AI$1563,29,FALSE)) -> 
E134: =IF(D134="","",VLOOKUP($D134,'Concawe Library'!$A$4:$AI$1563,3,FALSE)) ->  | F134: =IF(D134="","",VLOOKUP($D134,'Concawe Library'!$A$4:$AI$1563,4,FALSE)) ->  | G134: =IF(D134="","",VLOOKUP($D134,'Concawe Library'!$A$4:$AI$1563,6,FALSE)) ->  | H134: =IF(D134="","",VLOOKUP($D134,'Concawe Library'!$A$4:$AI$1563,11,FALSE)) ->  | I134: =IF(D134="","",LOG(VLOOKUP($D134,'Concawe Library'!$A$4:$AI$1563,13,FALSE))) ->  | J134: =IF(D134="","",VLOOKUP($D134,'Concawe Library'!$A$4:$AI$1563,14,FALSE)) ->  | K134: =IF(D134="","",LOG(VLOOKUP($D134,'Concawe Library'!$A$4:$AI$1563,28,FALSE))) ->  | L134: =IF(D134="","",VLOOKUP($D134,'Concawe Library'!$A$4:$AI$1563,31,FALSE)) ->  | M134: =IF(D134="","",VLOOKUP($D134,'Concawe Library'!$A$4:$AI$1563,32,FALSE)) ->  | N134: =IF(D134="","",VLOOKUP($D134,'Concawe Library'!$A$4:$AI$1563,33,FALSE)) ->  | O134: =IF(D134="","",VLOOKUP($D134,'Concawe Library'!$A$4:$AI$1563,34,FALSE)) ->  | P134: =IF(D134="","",VLOOKUP($D134,'Concawe Library'!$A$4:$AI$1563,35,FALSE)) ->  | Q134: =IF(D134="","",VLOOKUP($D134,'Concawe Library'!$A$4:$AI$1563,25,FALSE)) ->  | R134: =IF(D134="","",VLOOKUP($D134,'Concawe Library'!$A$4:$AI$1563,26,FALSE)) ->  | S134: =IF(D134="","",VLOOKUP($D134,'Concawe Library'!$A$4:$AI$1563,30,FALSE)) ->  | T134: =IF(D134="","",VLOOKUP($D134,'Concawe Library'!$A$4:$AI$1563,29,FALSE)) -> 
E135: =IF(D135="","",VLOOKUP($D135,'Concawe Library'!$A$4:$AI$1563,3,FALSE)) ->  | F135: =IF(D135="","",VLOOKUP($D135,'Concawe Library'!$A$4:$AI$1563,4,FALSE)) ->  | G135: =IF(D135="","",VLOOKUP($D135,'Concawe Library'!$A$4:$AI$1563,6,FALSE)) ->  | H135: =IF(D135="","",VLOOKUP($D135,'Concawe Library'!$A$4:$AI$1563,11,FALSE)) ->  | I135: =IF(D135="","",LOG(VLOOKUP($D135,'Concawe Library'!$A$4:$AI$1563,13,FALSE))) ->  | J135: =IF(D135="","",VLOOKUP($D135,'Concawe Library'!$A$4:$AI$1563,14,FALSE)) ->  | K135: =IF(D135="","",LOG(VLOOKUP($D135,'Concawe Library'!$A$4:$AI$1563,28,FALSE))) ->  | L135: =IF(D135="","",VLOOKUP($D135,'Concawe Library'!$A$4:$AI$1563,31,FALSE)) ->  | M135: =IF(D135="","",VLOOKUP($D135,'Concawe Library'!$A$4:$AI$1563,32,FALSE)) ->  | N135: =IF(D135="","",VLOOKUP($D135,'Concawe Library'!$A$4:$AI$1563,33,FALSE)) ->  | O135: =IF(D135="","",VLOOKUP($D135,'Concawe Library'!$A$4:$AI$1563,34,FALSE)) ->  | P135: =IF(D135="","",VLOOKUP($D135,'Concawe Library'!$A$4:$AI$1563,35,FALSE)) ->  | Q135: =IF(D135="","",VLOOKUP($D135,'Concawe Library'!$A$4:$AI$1563,25,FALSE)) ->  | R135: =IF(D135="","",VLOOKUP($D135,'Concawe Library'!$A$4:$AI$1563,26,FALSE)) ->  | S135: =IF(D135="","",VLOOKUP($D135,'Concawe Library'!$A$4:$AI$1563,30,FALSE)) ->  | T135: =IF(D135="","",VLOOKUP($D135,'Concawe Library'!$A$4:$AI$1563,29,FALSE)) -> 
E136: =IF(D136="","",VLOOKUP($D136,'Concawe Library'!$A$4:$AI$1563,3,FALSE)) ->  | F136: =IF(D136="","",VLOOKUP($D136,'Concawe Library'!$A$4:$AI$1563,4,FALSE)) ->  | G136: =IF(D136="","",VLOOKUP($D136,'Concawe Library'!$A$4:$AI$1563,6,FALSE)) ->  | H136: =IF(D136="","",VLOOKUP($D136,'Concawe Library'!$A$4:$AI$1563,11,FALSE)) ->  | I136: =IF(D136="","",LOG(VLOOKUP($D136,'Concawe Library'!$A$4:$AI$1563,13,FALSE))) ->  | J136: =IF(D136="","",VLOOKUP($D136,'Concawe Library'!$A$4:$AI$1563,14,FALSE)) ->  | K136: =IF(D136="","",LOG(VLOOKUP($D136,'Concawe Library'!$A$4:$AI$1563,28,FALSE))) ->  | L136: =IF(D136="","",VLOOKUP($D136,'Concawe Library'!$A$4:$AI$1563,31,FALSE)) ->  | M136: =IF(D136="","",VLOOKUP($D136,'Concawe Library'!$A$4:$AI$1563,32,FALSE)) ->  | N136: =IF(D136="","",VLOOKUP($D136,'Concawe Library'!$A$4:$AI$1563,33,FALSE)) ->  | O136: =IF(D136="","",VLOOKUP($D136,'Concawe Library'!$A$4:$AI$1563,34,FALSE)) ->  | P136: =IF(D136="","",VLOOKUP($D136,'Concawe Library'!$A$4:$AI$1563,35,FALSE)) ->  | Q136: =IF(D136="","",VLOOKUP($D136,'Concawe Library'!$A$4:$AI$1563,25,FALSE)) ->  | R136: =IF(D136="","",VLOOKUP($D136,'Concawe Library'!$A$4:$AI$1563,26,FALSE)) ->  | S136: =IF(D136="","",VLOOKUP($D136,'Concawe Library'!$A$4:$AI$1563,30,FALSE)) ->  | T136: =IF(D136="","",VLOOKUP($D136,'Concawe Library'!$A$4:$AI$1563,29,FALSE)) -> 
E137: =IF(D137="","",VLOOKUP($D137,'Concawe Library'!$A$4:$AI$1563,3,FALSE)) ->  | F137: =IF(D137="","",VLOOKUP($D137,'Concawe Library'!$A$4:$AI$1563,4,FALSE)) ->  | G137: =IF(D137="","",VLOOKUP($D137,'Concawe Library'!$A$4:$AI$1563,6,FALSE)) ->  | H137: =IF(D137="","",VLOOKUP($D137,'Concawe Library'!$A$4:$AI$1563,11,FALSE)) ->  | I137: =IF(D137="","",LOG(VLOOKUP($D137,'Concawe Library'!$A$4:$AI$1563,13,FALSE))) ->  | J137: =IF(D137="","",VLOOKUP($D137,'Concawe Library'!$A$4:$AI$1563,14,FALSE)) ->  | K137: =IF(D137="","",LOG(VLOOKUP($D137,'Concawe Library'!$A$4:$AI$1563,28,FALSE))) ->  | L137: =IF(D137="","",VLOOKUP($D137,'Concawe Library'!$A$4:$AI$1563,31,FALSE)) ->  | M137: =IF(D137="","",VLOOKUP($D137,'Concawe Library'!$A$4:$AI$1563,32,FALSE)) ->  | N137: =IF(D137="","",VLOOKUP($D137,'Concawe Library'!$A$4:$AI$1563,33,FALSE)) ->  | O137: =IF(D137="","",VLOOKUP($D137,'Concawe Library'!$A$4:$AI$1563,34,FALSE)) ->  | P137: =IF(D137="","",VLOOKUP($D137,'Concawe Library'!$A$4:$AI$1563,35,FALSE)) ->  | Q137: =IF(D137="","",VLOOKUP($D137,'Concawe Library'!$A$4:$AI$1563,25,FALSE)) ->  | R137: =IF(D137="","",VLOOKUP($D137,'Concawe Library'!$A$4:$AI$1563,26,FALSE)) ->  | S137: =IF(D137="","",VLOOKUP($D137,'Concawe Library'!$A$4:$AI$1563,30,FALSE)) ->  | T137: =IF(D137="","",VLOOKUP($D137,'Concawe Library'!$A$4:$AI$1563,29,FALSE)) -> 
E138: =IF(D138="","",VLOOKUP($D138,'Concawe Library'!$A$4:$AI$1563,3,FALSE)) ->  | F138: =IF(D138="","",VLOOKUP($D138,'Concawe Library'!$A$4:$AI$1563,4,FALSE)) ->  | G138: =IF(D138="","",VLOOKUP($D138,'Concawe Library'!$A$4:$AI$1563,6,FALSE)) ->  | H138: =IF(D138="","",VLOOKUP($D138,'Concawe Library'!$A$4:$AI$1563,11,FALSE)) ->  | I138: =IF(D138="","",LOG(VLOOKUP($D138,'Concawe Library'!$A$4:$AI$1563,13,FALSE))) ->  | J138: =IF(D138="","",VLOOKUP($D138,'Concawe Library'!$A$4:$AI$1563,14,FALSE)) ->  | K138: =IF(D138="","",LOG(VLOOKUP($D138,'Concawe Library'!$A$4:$AI$1563,28,FALSE))) ->  | L138: =IF(D138="","",VLOOKUP($D138,'Concawe Library'!$A$4:$AI$1563,31,FALSE)) ->  | M138: =IF(D138="","",VLOOKUP($D138,'Concawe Library'!$A$4:$AI$1563,32,FALSE)) ->  | N138: =IF(D138="","",VLOOKUP($D138,'Concawe Library'!$A$4:$AI$1563,33,FALSE)) ->  | O138: =IF(D138="","",VLOOKUP($D138,'Concawe Library'!$A$4:$AI$1563,34,FALSE)) ->  | P138: =IF(D138="","",VLOOKUP($D138,'Concawe Library'!$A$4:$AI$1563,35,FALSE)) ->  | Q138: =IF(D138="","",VLOOKUP($D138,'Concawe Library'!$A$4:$AI$1563,25,FALSE)) ->  | R138: =IF(D138="","",VLOOKUP($D138,'Concawe Library'!$A$4:$AI$1563,26,FALSE)) ->  | S138: =IF(D138="","",VLOOKUP($D138,'Concawe Library'!$A$4:$AI$1563,30,FALSE)) ->  | T138: =IF(D138="","",VLOOKUP($D138,'Concawe Library'!$A$4:$AI$1563,29,FALSE)) -> 
E139: =IF(D139="","",VLOOKUP($D139,'Concawe Library'!$A$4:$AI$1563,3,FALSE)) ->  | F139: =IF(D139="","",VLOOKUP($D139,'Concawe Library'!$A$4:$AI$1563,4,FALSE)) ->  | G139: =IF(D139="","",VLOOKUP($D139,'Concawe Library'!$A$4:$AI$1563,6,FALSE)) ->  | H139: =IF(D139="","",VLOOKUP($D139,'Concawe Library'!$A$4:$AI$1563,11,FALSE)) ->  | I139: =IF(D139="","",LOG(VLOOKUP($D139,'Concawe Library'!$A$4:$AI$1563,13,FALSE))) ->  | J139: =IF(D139="","",VLOOKUP($D139,'Concawe Library'!$A$4:$AI$1563,14,FALSE)) ->  | K139: =IF(D139="","",LOG(VLOOKUP($D139,'Concawe Library'!$A$4:$AI$1563,28,FALSE))) ->  | L139: =IF(D139="","",VLOOKUP($D139,'Concawe Library'!$A$4:$AI$1563,31,FALSE)) ->  | M139: =IF(D139="","",VLOOKUP($D139,'Concawe Library'!$A$4:$AI$1563,32,FALSE)) ->  | N139: =IF(D139="","",VLOOKUP($D139,'Concawe Library'!$A$4:$AI$1563,33,FALSE)) ->  | O139: =IF(D139="","",VLOOKUP($D139,'Concawe Library'!$A$4:$AI$1563,34,FALSE)) ->  | P139: =IF(D139="","",VLOOKUP($D139,'Concawe Library'!$A$4:$AI$1563,35,FALSE)) ->  | Q139: =IF(D139="","",VLOOKUP($D139,'Concawe Library'!$A$4:$AI$1563,25,FALSE)) ->  | R139: =IF(D139="","",VLOOKUP($D139,'Concawe Library'!$A$4:$AI$1563,26,FALSE)) ->  | S139: =IF(D139="","",VLOOKUP($D139,'Concawe Library'!$A$4:$AI$1563,30,FALSE)) ->  | T139: =IF(D139="","",VLOOKUP($D139,'Concawe Library'!$A$4:$AI$1563,29,FALSE)) -> 
E140: =IF(D140="","",VLOOKUP($D140,'Concawe Library'!$A$4:$AI$1563,3,FALSE)) ->  | F140: =IF(D140="","",VLOOKUP($D140,'Concawe Library'!$A$4:$AI$1563,4,FALSE)) ->  | G140: =IF(D140="","",VLOOKUP($D140,'Concawe Library'!$A$4:$AI$1563,6,FALSE)) ->  | H140: =IF(D140="","",VLOOKUP($D140,'Concawe Library'!$A$4:$AI$1563,11,FALSE)) ->  | I140: =IF(D140="","",LOG(VLOOKUP($D140,'Concawe Library'!$A$4:$AI$1563,13,FALSE))) ->  | J140: =IF(D140="","",VLOOKUP($D140,'Concawe Library'!$A$4:$AI$1563,14,FALSE)) ->  | K140: =IF(D140="","",LOG(VLOOKUP($D140,'Concawe Library'!$A$4:$AI$1563,28,FALSE))) ->  | L140: =IF(D140="","",VLOOKUP($D140,'Concawe Library'!$A$4:$AI$1563,31,FALSE)) ->  | M140: =IF(D140="","",VLOOKUP($D140,'Concawe Library'!$A$4:$AI$1563,32,FALSE)) ->  | N140: =IF(D140="","",VLOOKUP($D140,'Concawe Library'!$A$4:$AI$1563,33,FALSE)) ->  | O140: =IF(D140="","",VLOOKUP($D140,'Concawe Library'!$A$4:$AI$1563,34,FALSE)) ->  | P140: =IF(D140="","",VLOOKUP($D140,'Concawe Library'!$A$4:$AI$1563,35,FALSE)) ->  | Q140: =IF(D140="","",VLOOKUP($D140,'Concawe Library'!$A$4:$AI$1563,25,FALSE)) ->  | R140: =IF(D140="","",VLOOKUP($D140,'Concawe Library'!$A$4:$AI$1563,26,FALSE)) ->  | S140: =IF(D140="","",VLOOKUP($D140,'Concawe Library'!$A$4:$AI$1563,30,FALSE)) ->  | T140: =IF(D140="","",VLOOKUP($D140,'Concawe Library'!$A$4:$AI$1563,29,FALSE)) -> 
E141: =IF(D141="","",VLOOKUP($D141,'Concawe Library'!$A$4:$AI$1563,3,FALSE)) ->  | F141: =IF(D141="","",VLOOKUP($D141,'Concawe Library'!$A$4:$AI$1563,4,FALSE)) ->  | G141: =IF(D141="","",VLOOKUP($D141,'Concawe Library'!$A$4:$AI$1563,6,FALSE)) ->  | H141: =IF(D141="","",VLOOKUP($D141,'Concawe Library'!$A$4:$AI$1563,11,FALSE)) ->  | I141: =IF(D141="","",LOG(VLOOKUP($D141,'Concawe Library'!$A$4:$AI$1563,13,FALSE))) ->  | J141: =IF(D141="","",VLOOKUP($D141,'Concawe Library'!$A$4:$AI$1563,14,FALSE)) ->  | K141: =IF(D141="","",LOG(VLOOKUP($D141,'Concawe Library'!$A$4:$AI$1563,28,FALSE))) ->  | L141: =IF(D141="","",VLOOKUP($D141,'Concawe Library'!$A$4:$AI$1563,31,FALSE)) ->  | M141: =IF(D141="","",VLOOKUP($D141,'Concawe Library'!$A$4:$AI$1563,32,FALSE)) ->  | N141: =IF(D141="","",VLOOKUP($D141,'Concawe Library'!$A$4:$AI$1563,33,FALSE)) ->  | O141: =IF(D141="","",VLOOKUP($D141,'Concawe Library'!$A$4:$AI$1563,34,FALSE)) ->  | P141: =IF(D141="","",VLOOKUP($D141,'Concawe Library'!$A$4:$AI$1563,35,FALSE)) ->  | Q141: =IF(D141="","",VLOOKUP($D141,'Concawe Library'!$A$4:$AI$1563,25,FALSE)) ->  | R141: =IF(D141="","",VLOOKUP($D141,'Concawe Library'!$A$4:$AI$1563,26,FALSE)) ->  | S141: =IF(D141="","",VLOOKUP($D141,'Concawe Library'!$A$4:$AI$1563,30,FALSE)) ->  | T141: =IF(D141="","",VLOOKUP($D141,'Concawe Library'!$A$4:$AI$1563,29,FALSE)) -> 
E142: =IF(D142="","",VLOOKUP($D142,'Concawe Library'!$A$4:$AI$1563,3,FALSE)) ->  | F142: =IF(D142="","",VLOOKUP($D142,'Concawe Library'!$A$4:$AI$1563,4,FALSE)) ->  | G142: =IF(D142="","",VLOOKUP($D142,'Concawe Library'!$A$4:$AI$1563,6,FALSE)) ->  | H142: =IF(D142="","",VLOOKUP($D142,'Concawe Library'!$A$4:$AI$1563,11,FALSE)) ->  | I142: =IF(D142="","",LOG(VLOOKUP($D142,'Concawe Library'!$A$4:$AI$1563,13,FALSE))) ->  | J142: =IF(D142="","",VLOOKUP($D142,'Concawe Library'!$A$4:$AI$1563,14,FALSE)) ->  | K142: =IF(D142="","",LOG(VLOOKUP($D142,'Concawe Library'!$A$4:$AI$1563,28,FALSE))) ->  | L142: =IF(D142="","",VLOOKUP($D142,'Concawe Library'!$A$4:$AI$1563,31,FALSE)) ->  | M142: =IF(D142="","",VLOOKUP($D142,'Concawe Library'!$A$4:$AI$1563,32,FALSE)) ->  | N142: =IF(D142="","",VLOOKUP($D142,'Concawe Library'!$A$4:$AI$1563,33,FALSE)) ->  | O142: =IF(D142="","",VLOOKUP($D142,'Concawe Library'!$A$4:$AI$1563,34,FALSE)) ->  | P142: =IF(D142="","",VLOOKUP($D142,'Concawe Library'!$A$4:$AI$1563,35,FALSE)) ->  | Q142: =IF(D142="","",VLOOKUP($D142,'Concawe Library'!$A$4:$AI$1563,25,FALSE)) ->  | R142: =IF(D142="","",VLOOKUP($D142,'Concawe Library'!$A$4:$AI$1563,26,FALSE)) ->  | S142: =IF(D142="","",VLOOKUP($D142,'Concawe Library'!$A$4:$AI$1563,30,FALSE)) ->  | T142: =IF(D142="","",VLOOKUP($D142,'Concawe Library'!$A$4:$AI$1563,29,FALSE)) -> 
E143: =IF(D143="","",VLOOKUP($D143,'Concawe Library'!$A$4:$AI$1563,3,FALSE)) ->  | F143: =IF(D143="","",VLOOKUP($D143,'Concawe Library'!$A$4:$AI$1563,4,FALSE)) ->  | G143: =IF(D143="","",VLOOKUP($D143,'Concawe Library'!$A$4:$AI$1563,6,FALSE)) ->  | H143: =IF(D143="","",VLOOKUP($D143,'Concawe Library'!$A$4:$AI$1563,11,FALSE)) ->  | I143: =IF(D143="","",LOG(VLOOKUP($D143,'Concawe Library'!$A$4:$AI$1563,13,FALSE))) ->  | J143: =IF(D143="","",VLOOKUP($D143,'Concawe Library'!$A$4:$AI$1563,14,FALSE)) ->  | K143: =IF(D143="","",LOG(VLOOKUP($D143,'Concawe Library'!$A$4:$AI$1563,28,FALSE))) ->  | L143: =IF(D143="","",VLOOKUP($D143,'Concawe Library'!$A$4:$AI$1563,31,FALSE)) ->  | M143: =IF(D143="","",VLOOKUP($D143,'Concawe Library'!$A$4:$AI$1563,32,FALSE)) ->  | N143: =IF(D143="","",VLOOKUP($D143,'Concawe Library'!$A$4:$AI$1563,33,FALSE)) ->  | O143: =IF(D143="","",VLOOKUP($D143,'Concawe Library'!$A$4:$AI$1563,34,FALSE)) ->  | P143: =IF(D143="","",VLOOKUP($D143,'Concawe Library'!$A$4:$AI$1563,35,FALSE)) ->  | Q143: =IF(D143="","",VLOOKUP($D143,'Concawe Library'!$A$4:$AI$1563,25,FALSE)) ->  | R143: =IF(D143="","",VLOOKUP($D143,'Concawe Library'!$A$4:$AI$1563,26,FALSE)) ->  | S143: =IF(D143="","",VLOOKUP($D143,'Concawe Library'!$A$4:$AI$1563,30,FALSE)) ->  | T143: =IF(D143="","",VLOOKUP($D143,'Concawe Library'!$A$4:$AI$1563,29,FALSE)) -> 
E144: =IF(D144="","",VLOOKUP($D144,'Concawe Library'!$A$4:$AI$1563,3,FALSE)) ->  | F144: =IF(D144="","",VLOOKUP($D144,'Concawe Library'!$A$4:$AI$1563,4,FALSE)) ->  | G144: =IF(D144="","",VLOOKUP($D144,'Concawe Library'!$A$4:$AI$1563,6,FALSE)) ->  | H144: =IF(D144="","",VLOOKUP($D144,'Concawe Library'!$A$4:$AI$1563,11,FALSE)) ->  | I144: =IF(D144="","",LOG(VLOOKUP($D144,'Concawe Library'!$A$4:$AI$1563,13,FALSE))) ->  | J144: =IF(D144="","",VLOOKUP($D144,'Concawe Library'!$A$4:$AI$1563,14,FALSE)) ->  | K144: =IF(D144="","",LOG(VLOOKUP($D144,'Concawe Library'!$A$4:$AI$1563,28,FALSE))) ->  | L144: =IF(D144="","",VLOOKUP($D144,'Concawe Library'!$A$4:$AI$1563,31,FALSE)) ->  | M144: =IF(D144="","",VLOOKUP($D144,'Concawe Library'!$A$4:$AI$1563,32,FALSE)) ->  | N144: =IF(D144="","",VLOOKUP($D144,'Concawe Library'!$A$4:$AI$1563,33,FALSE)) ->  | O144: =IF(D144="","",VLOOKUP($D144,'Concawe Library'!$A$4:$AI$1563,34,FALSE)) ->  | P144: =IF(D144="","",VLOOKUP($D144,'Concawe Library'!$A$4:$AI$1563,35,FALSE)) ->  | Q144: =IF(D144="","",VLOOKUP($D144,'Concawe Library'!$A$4:$AI$1563,25,FALSE)) ->  | R144: =IF(D144="","",VLOOKUP($D144,'Concawe Library'!$A$4:$AI$1563,26,FALSE)) ->  | S144: =IF(D144="","",VLOOKUP($D144,'Concawe Library'!$A$4:$AI$1563,30,FALSE)) ->  | T144: =IF(D144="","",VLOOKUP($D144,'Concawe Library'!$A$4:$AI$1563,29,FALSE)) -> 
E145: =IF(D145="","",VLOOKUP($D145,'Concawe Library'!$A$4:$AI$1563,3,FALSE)) ->  | F145: =IF(D145="","",VLOOKUP($D145,'Concawe Library'!$A$4:$AI$1563,4,FALSE)) ->  | G145: =IF(D145="","",VLOOKUP($D145,'Concawe Library'!$A$4:$AI$1563,6,FALSE)) ->  | H145: =IF(D145="","",VLOOKUP($D145,'Concawe Library'!$A$4:$AI$1563,11,FALSE)) ->  | I145: =IF(D145="","",LOG(VLOOKUP($D145,'Concawe Library'!$A$4:$AI$1563,13,FALSE))) ->  | J145: =IF(D145="","",VLOOKUP($D145,'Concawe Library'!$A$4:$AI$1563,14,FALSE)) ->  | K145: =IF(D145="","",LOG(VLOOKUP($D145,'Concawe Library'!$A$4:$AI$1563,28,FALSE))) ->  | L145: =IF(D145="","",VLOOKUP($D145,'Concawe Library'!$A$4:$AI$1563,31,FALSE)) ->  | M145: =IF(D145="","",VLOOKUP($D145,'Concawe Library'!$A$4:$AI$1563,32,FALSE)) ->  | N145: =IF(D145="","",VLOOKUP($D145,'Concawe Library'!$A$4:$AI$1563,33,FALSE)) ->  | O145: =IF(D145="","",VLOOKUP($D145,'Concawe Library'!$A$4:$AI$1563,34,FALSE)) ->  | P145: =IF(D145="","",VLOOKUP($D145,'Concawe Library'!$A$4:$AI$1563,35,FALSE)) ->  | Q145: =IF(D145="","",VLOOKUP($D145,'Concawe Library'!$A$4:$AI$1563,25,FALSE)) ->  | R145: =IF(D145="","",VLOOKUP($D145,'Concawe Library'!$A$4:$AI$1563,26,FALSE)) ->  | S145: =IF(D145="","",VLOOKUP($D145,'Concawe Library'!$A$4:$AI$1563,30,FALSE)) ->  | T145: =IF(D145="","",VLOOKUP($D145,'Concawe Library'!$A$4:$AI$1563,29,FALSE)) -> 
E146: =IF(D146="","",VLOOKUP($D146,'Concawe Library'!$A$4:$AI$1563,3,FALSE)) ->  | F146: =IF(D146="","",VLOOKUP($D146,'Concawe Library'!$A$4:$AI$1563,4,FALSE)) ->  | G146: =IF(D146="","",VLOOKUP($D146,'Concawe Library'!$A$4:$AI$1563,6,FALSE)) ->  | H146: =IF(D146="","",VLOOKUP($D146,'Concawe Library'!$A$4:$AI$1563,11,FALSE)) ->  | I146: =IF(D146="","",LOG(VLOOKUP($D146,'Concawe Library'!$A$4:$AI$1563,13,FALSE))) ->  | J146: =IF(D146="","",VLOOKUP($D146,'Concawe Library'!$A$4:$AI$1563,14,FALSE)) ->  | K146: =IF(D146="","",LOG(VLOOKUP($D146,'Concawe Library'!$A$4:$AI$1563,28,FALSE))) ->  | L146: =IF(D146="","",VLOOKUP($D146,'Concawe Library'!$A$4:$AI$1563,31,FALSE)) ->  | M146: =IF(D146="","",VLOOKUP($D146,'Concawe Library'!$A$4:$AI$1563,32,FALSE)) ->  | N146: =IF(D146="","",VLOOKUP($D146,'Concawe Library'!$A$4:$AI$1563,33,FALSE)) ->  | O146: =IF(D146="","",VLOOKUP($D146,'Concawe Library'!$A$4:$AI$1563,34,FALSE)) ->  | P146: =IF(D146="","",VLOOKUP($D146,'Concawe Library'!$A$4:$AI$1563,35,FALSE)) ->  | Q146: =IF(D146="","",VLOOKUP($D146,'Concawe Library'!$A$4:$AI$1563,25,FALSE)) ->  | R146: =IF(D146="","",VLOOKUP($D146,'Concawe Library'!$A$4:$AI$1563,26,FALSE)) ->  | S146: =IF(D146="","",VLOOKUP($D146,'Concawe Library'!$A$4:$AI$1563,30,FALSE)) ->  | T146: =IF(D146="","",VLOOKUP($D146,'Concawe Library'!$A$4:$AI$1563,29,FALSE)) -> 
E147: =IF(D147="","",VLOOKUP($D147,'Concawe Library'!$A$4:$AI$1563,3,FALSE)) ->  | F147: =IF(D147="","",VLOOKUP($D147,'Concawe Library'!$A$4:$AI$1563,4,FALSE)) ->  | G147: =IF(D147="","",VLOOKUP($D147,'Concawe Library'!$A$4:$AI$1563,6,FALSE)) ->  | H147: =IF(D147="","",VLOOKUP($D147,'Concawe Library'!$A$4:$AI$1563,11,FALSE)) ->  | I147: =IF(D147="","",LOG(VLOOKUP($D147,'Concawe Library'!$A$4:$AI$1563,13,FALSE))) ->  | J147: =IF(D147="","",VLOOKUP($D147,'Concawe Library'!$A$4:$AI$1563,14,FALSE)) ->  | K147: =IF(D147="","",LOG(VLOOKUP($D147,'Concawe Library'!$A$4:$AI$1563,28,FALSE))) ->  | L147: =IF(D147="","",VLOOKUP($D147,'Concawe Library'!$A$4:$AI$1563,31,FALSE)) ->  | M147: =IF(D147="","",VLOOKUP($D147,'Concawe Library'!$A$4:$AI$1563,32,FALSE)) ->  | N147: =IF(D147="","",VLOOKUP($D147,'Concawe Library'!$A$4:$AI$1563,33,FALSE)) ->  | O147: =IF(D147="","",VLOOKUP($D147,'Concawe Library'!$A$4:$AI$1563,34,FALSE)) ->  | P147: =IF(D147="","",VLOOKUP($D147,'Concawe Library'!$A$4:$AI$1563,35,FALSE)) ->  | Q147: =IF(D147="","",VLOOKUP($D147,'Concawe Library'!$A$4:$AI$1563,25,FALSE)) ->  | R147: =IF(D147="","",VLOOKUP($D147,'Concawe Library'!$A$4:$AI$1563,26,FALSE)) ->  | S147: =IF(D147="","",VLOOKUP($D147,'Concawe Library'!$A$4:$AI$1563,30,FALSE)) ->  | T147: =IF(D147="","",VLOOKUP($D147,'Concawe Library'!$A$4:$AI$1563,29,FALSE)) -> 
E148: =IF(D148="","",VLOOKUP($D148,'Concawe Library'!$A$4:$AI$1563,3,FALSE)) ->  | F148: =IF(D148="","",VLOOKUP($D148,'Concawe Library'!$A$4:$AI$1563,4,FALSE)) ->  | G148: =IF(D148="","",VLOOKUP($D148,'Concawe Library'!$A$4:$AI$1563,6,FALSE)) ->  | H148: =IF(D148="","",VLOOKUP($D148,'Concawe Library'!$A$4:$AI$1563,11,FALSE)) ->  | I148: =IF(D148="","",LOG(VLOOKUP($D148,'Concawe Library'!$A$4:$AI$1563,13,FALSE))) ->  | J148: =IF(D148="","",VLOOKUP($D148,'Concawe Library'!$A$4:$AI$1563,14,FALSE)) ->  | K148: =IF(D148="","",LOG(VLOOKUP($D148,'Concawe Library'!$A$4:$AI$1563,28,FALSE))) ->  | L148: =IF(D148="","",VLOOKUP($D148,'Concawe Library'!$A$4:$AI$1563,31,FALSE)) ->  | M148: =IF(D148="","",VLOOKUP($D148,'Concawe Library'!$A$4:$AI$1563,32,FALSE)) ->  | N148: =IF(D148="","",VLOOKUP($D148,'Concawe Library'!$A$4:$AI$1563,33,FALSE)) ->  | O148: =IF(D148="","",VLOOKUP($D148,'Concawe Library'!$A$4:$AI$1563,34,FALSE)) ->  | P148: =IF(D148="","",VLOOKUP($D148,'Concawe Library'!$A$4:$AI$1563,35,FALSE)) ->  | Q148: =IF(D148="","",VLOOKUP($D148,'Concawe Library'!$A$4:$AI$1563,25,FALSE)) ->  | R148: =IF(D148="","",VLOOKUP($D148,'Concawe Library'!$A$4:$AI$1563,26,FALSE)) ->  | S148: =IF(D148="","",VLOOKUP($D148,'Concawe Library'!$A$4:$AI$1563,30,FALSE)) ->  | T148: =IF(D148="","",VLOOKUP($D148,'Concawe Library'!$A$4:$AI$1563,29,FALSE)) -> 
E149: =IF(D149="","",VLOOKUP($D149,'Concawe Library'!$A$4:$AI$1563,3,FALSE)) ->  | F149: =IF(D149="","",VLOOKUP($D149,'Concawe Library'!$A$4:$AI$1563,4,FALSE)) ->  | G149: =IF(D149="","",VLOOKUP($D149,'Concawe Library'!$A$4:$AI$1563,6,FALSE)) ->  | H149: =IF(D149="","",VLOOKUP($D149,'Concawe Library'!$A$4:$AI$1563,11,FALSE)) ->  | I149: =IF(D149="","",LOG(VLOOKUP($D149,'Concawe Library'!$A$4:$AI$1563,13,FALSE))) ->  | J149: =IF(D149="","",VLOOKUP($D149,'Concawe Library'!$A$4:$AI$1563,14,FALSE)) ->  | K149: =IF(D149="","",LOG(VLOOKUP($D149,'Concawe Library'!$A$4:$AI$1563,28,FALSE))) ->  | L149: =IF(D149="","",VLOOKUP($D149,'Concawe Library'!$A$4:$AI$1563,31,FALSE)) ->  | M149: =IF(D149="","",VLOOKUP($D149,'Concawe Library'!$A$4:$AI$1563,32,FALSE)) ->  | N149: =IF(D149="","",VLOOKUP($D149,'Concawe Library'!$A$4:$AI$1563,33,FALSE)) ->  | O149: =IF(D149="","",VLOOKUP($D149,'Concawe Library'!$A$4:$AI$1563,34,FALSE)) ->  | P149: =IF(D149="","",VLOOKUP($D149,'Concawe Library'!$A$4:$AI$1563,35,FALSE)) ->  | Q149: =IF(D149="","",VLOOKUP($D149,'Concawe Library'!$A$4:$AI$1563,25,FALSE)) ->  | R149: =IF(D149="","",VLOOKUP($D149,'Concawe Library'!$A$4:$AI$1563,26,FALSE)) ->  | S149: =IF(D149="","",VLOOKUP($D149,'Concawe Library'!$A$4:$AI$1563,30,FALSE)) ->  | T149: =IF(D149="","",VLOOKUP($D149,'Concawe Library'!$A$4:$AI$1563,29,FALSE)) -> 
E150: =IF(D150="","",VLOOKUP($D150,'Concawe Library'!$A$4:$AI$1563,3,FALSE)) ->  | F150: =IF(D150="","",VLOOKUP($D150,'Concawe Library'!$A$4:$AI$1563,4,FALSE)) ->  | G150: =IF(D150="","",VLOOKUP($D150,'Concawe Library'!$A$4:$AI$1563,6,FALSE)) ->  | H150: =IF(D150="","",VLOOKUP($D150,'Concawe Library'!$A$4:$AI$1563,11,FALSE)) ->  | I150: =IF(D150="","",LOG(VLOOKUP($D150,'Concawe Library'!$A$4:$AI$1563,13,FALSE))) ->  | J150: =IF(D150="","",VLOOKUP($D150,'Concawe Library'!$A$4:$AI$1563,14,FALSE)) ->  | K150: =IF(D150="","",LOG(VLOOKUP($D150,'Concawe Library'!$A$4:$AI$1563,28,FALSE))) ->  | L150: =IF(D150="","",VLOOKUP($D150,'Concawe Library'!$A$4:$AI$1563,31,FALSE)) ->  | M150: =IF(D150="","",VLOOKUP($D150,'Concawe Library'!$A$4:$AI$1563,32,FALSE)) ->  | N150: =IF(D150="","",VLOOKUP($D150,'Concawe Library'!$A$4:$AI$1563,33,FALSE)) ->  | O150: =IF(D150="","",VLOOKUP($D150,'Concawe Library'!$A$4:$AI$1563,34,FALSE)) ->  | P150: =IF(D150="","",VLOOKUP($D150,'Concawe Library'!$A$4:$AI$1563,35,FALSE)) ->  | Q150: =IF(D150="","",VLOOKUP($D150,'Concawe Library'!$A$4:$AI$1563,25,FALSE)) ->  | R150: =IF(D150="","",VLOOKUP($D150,'Concawe Library'!$A$4:$AI$1563,26,FALSE)) ->  | S150: =IF(D150="","",VLOOKUP($D150,'Concawe Library'!$A$4:$AI$1563,30,FALSE)) ->  | T150: =IF(D150="","",VLOOKUP($D150,'Concawe Library'!$A$4:$AI$1563,29,FALSE)) -> 
E151: =IF(D151="","",VLOOKUP($D151,'Concawe Library'!$A$4:$AI$1563,3,FALSE)) ->  | F151: =IF(D151="","",VLOOKUP($D151,'Concawe Library'!$A$4:$AI$1563,4,FALSE)) ->  | G151: =IF(D151="","",VLOOKUP($D151,'Concawe Library'!$A$4:$AI$1563,6,FALSE)) ->  | H151: =IF(D151="","",VLOOKUP($D151,'Concawe Library'!$A$4:$AI$1563,11,FALSE)) ->  | I151: =IF(D151="","",LOG(VLOOKUP($D151,'Concawe Library'!$A$4:$AI$1563,13,FALSE))) ->  | J151: =IF(D151="","",VLOOKUP($D151,'Concawe Library'!$A$4:$AI$1563,14,FALSE)) ->  | K151: =IF(D151="","",LOG(VLOOKUP($D151,'Concawe Library'!$A$4:$AI$1563,28,FALSE))) ->  | L151: =IF(D151="","",VLOOKUP($D151,'Concawe Library'!$A$4:$AI$1563,31,FALSE)) ->  | M151: =IF(D151="","",VLOOKUP($D151,'Concawe Library'!$A$4:$AI$1563,32,FALSE)) ->  | N151: =IF(D151="","",VLOOKUP($D151,'Concawe Library'!$A$4:$AI$1563,33,FALSE)) ->  | O151: =IF(D151="","",VLOOKUP($D151,'Concawe Library'!$A$4:$AI$1563,34,FALSE)) ->  | P151: =IF(D151="","",VLOOKUP($D151,'Concawe Library'!$A$4:$AI$1563,35,FALSE)) ->  | Q151: =IF(D151="","",VLOOKUP($D151,'Concawe Library'!$A$4:$AI$1563,25,FALSE)) ->  | R151: =IF(D151="","",VLOOKUP($D151,'Concawe Library'!$A$4:$AI$1563,26,FALSE)) ->  | S151: =IF(D151="","",VLOOKUP($D151,'Concawe Library'!$A$4:$AI$1563,30,FALSE)) ->  | T151: =IF(D151="","",VLOOKUP($D151,'Concawe Library'!$A$4:$AI$1563,29,FALSE)) -> 
E152: =IF(D152="","",VLOOKUP($D152,'Concawe Library'!$A$4:$AI$1563,3,FALSE)) ->  | F152: =IF(D152="","",VLOOKUP($D152,'Concawe Library'!$A$4:$AI$1563,4,FALSE)) ->  | G152: =IF(D152="","",VLOOKUP($D152,'Concawe Library'!$A$4:$AI$1563,6,FALSE)) ->  | H152: =IF(D152="","",VLOOKUP($D152,'Concawe Library'!$A$4:$AI$1563,11,FALSE)) ->  | I152: =IF(D152="","",LOG(VLOOKUP($D152,'Concawe Library'!$A$4:$AI$1563,13,FALSE))) ->  | J152: =IF(D152="","",VLOOKUP($D152,'Concawe Library'!$A$4:$AI$1563,14,FALSE)) ->  | K152: =IF(D152="","",LOG(VLOOKUP($D152,'Concawe Library'!$A$4:$AI$1563,28,FALSE))) ->  | L152: =IF(D152="","",VLOOKUP($D152,'Concawe Library'!$A$4:$AI$1563,31,FALSE)) ->  | M152: =IF(D152="","",VLOOKUP($D152,'Concawe Library'!$A$4:$AI$1563,32,FALSE)) ->  | N152: =IF(D152="","",VLOOKUP($D152,'Concawe Library'!$A$4:$AI$1563,33,FALSE)) ->  | O152: =IF(D152="","",VLOOKUP($D152,'Concawe Library'!$A$4:$AI$1563,34,FALSE)) ->  | P152: =IF(D152="","",VLOOKUP($D152,'Concawe Library'!$A$4:$AI$1563,35,FALSE)) ->  | Q152: =IF(D152="","",VLOOKUP($D152,'Concawe Library'!$A$4:$AI$1563,25,FALSE)) ->  | R152: =IF(D152="","",VLOOKUP($D152,'Concawe Library'!$A$4:$AI$1563,26,FALSE)) ->  | S152: =IF(D152="","",VLOOKUP($D152,'Concawe Library'!$A$4:$AI$1563,30,FALSE)) ->  | T152: =IF(D152="","",VLOOKUP($D152,'Concawe Library'!$A$4:$AI$1563,29,FALSE)) -> 
E153: =IF(D153="","",VLOOKUP($D153,'Concawe Library'!$A$4:$AI$1563,3,FALSE)) ->  | F153: =IF(D153="","",VLOOKUP($D153,'Concawe Library'!$A$4:$AI$1563,4,FALSE)) ->  | G153: =IF(D153="","",VLOOKUP($D153,'Concawe Library'!$A$4:$AI$1563,6,FALSE)) ->  | H153: =IF(D153="","",VLOOKUP($D153,'Concawe Library'!$A$4:$AI$1563,11,FALSE)) ->  | I153: =IF(D153="","",LOG(VLOOKUP($D153,'Concawe Library'!$A$4:$AI$1563,13,FALSE))) ->  | J153: =IF(D153="","",VLOOKUP($D153,'Concawe Library'!$A$4:$AI$1563,14,FALSE)) ->  | K153: =IF(D153="","",LOG(VLOOKUP($D153,'Concawe Library'!$A$4:$AI$1563,28,FALSE))) ->  | L153: =IF(D153="","",VLOOKUP($D153,'Concawe Library'!$A$4:$AI$1563,31,FALSE)) ->  | M153: =IF(D153="","",VLOOKUP($D153,'Concawe Library'!$A$4:$AI$1563,32,FALSE)) ->  | N153: =IF(D153="","",VLOOKUP($D153,'Concawe Library'!$A$4:$AI$1563,33,FALSE)) ->  | O153: =IF(D153="","",VLOOKUP($D153,'Concawe Library'!$A$4:$AI$1563,34,FALSE)) ->  | P153: =IF(D153="","",VLOOKUP($D153,'Concawe Library'!$A$4:$AI$1563,35,FALSE)) ->  | Q153: =IF(D153="","",VLOOKUP($D153,'Concawe Library'!$A$4:$AI$1563,25,FALSE)) ->  | R153: =IF(D153="","",VLOOKUP($D153,'Concawe Library'!$A$4:$AI$1563,26,FALSE)) ->  | S153: =IF(D153="","",VLOOKUP($D153,'Concawe Library'!$A$4:$AI$1563,30,FALSE)) ->  | T153: =IF(D153="","",VLOOKUP($D153,'Concawe Library'!$A$4:$AI$1563,29,FALSE)) -> 
E154: =IF(D154="","",VLOOKUP($D154,'Concawe Library'!$A$4:$AI$1563,3,FALSE)) ->  | F154: =IF(D154="","",VLOOKUP($D154,'Concawe Library'!$A$4:$AI$1563,4,FALSE)) ->  | G154: =IF(D154="","",VLOOKUP($D154,'Concawe Library'!$A$4:$AI$1563,6,FALSE)) ->  | H154: =IF(D154="","",VLOOKUP($D154,'Concawe Library'!$A$4:$AI$1563,11,FALSE)) ->  | I154: =IF(D154="","",LOG(VLOOKUP($D154,'Concawe Library'!$A$4:$AI$1563,13,FALSE))) ->  | J154: =IF(D154="","",VLOOKUP($D154,'Concawe Library'!$A$4:$AI$1563,14,FALSE)) ->  | K154: =IF(D154="","",LOG(VLOOKUP($D154,'Concawe Library'!$A$4:$AI$1563,28,FALSE))) ->  | L154: =IF(D154="","",VLOOKUP($D154,'Concawe Library'!$A$4:$AI$1563,31,FALSE)) ->  | M154: =IF(D154="","",VLOOKUP($D154,'Concawe Library'!$A$4:$AI$1563,32,FALSE)) ->  | N154: =IF(D154="","",VLOOKUP($D154,'Concawe Library'!$A$4:$AI$1563,33,FALSE)) ->  | O154: =IF(D154="","",VLOOKUP($D154,'Concawe Library'!$A$4:$AI$1563,34,FALSE)) ->  | P154: =IF(D154="","",VLOOKUP($D154,'Concawe Library'!$A$4:$AI$1563,35,FALSE)) ->  | Q154: =IF(D154="","",VLOOKUP($D154,'Concawe Library'!$A$4:$AI$1563,25,FALSE)) ->  | R154: =IF(D154="","",VLOOKUP($D154,'Concawe Library'!$A$4:$AI$1563,26,FALSE)) ->  | S154: =IF(D154="","",VLOOKUP($D154,'Concawe Library'!$A$4:$AI$1563,30,FALSE)) ->  | T154: =IF(D154="","",VLOOKUP($D154,'Concawe Library'!$A$4:$AI$1563,29,FALSE)) -> 
E155: =IF(D155="","",VLOOKUP($D155,'Concawe Library'!$A$4:$AI$1563,3,FALSE)) ->  | F155: =IF(D155="","",VLOOKUP($D155,'Concawe Library'!$A$4:$AI$1563,4,FALSE)) ->  | G155: =IF(D155="","",VLOOKUP($D155,'Concawe Library'!$A$4:$AI$1563,6,FALSE)) ->  | H155: =IF(D155="","",VLOOKUP($D155,'Concawe Library'!$A$4:$AI$1563,11,FALSE)) ->  | I155: =IF(D155="","",LOG(VLOOKUP($D155,'Concawe Library'!$A$4:$AI$1563,13,FALSE))) ->  | J155: =IF(D155="","",VLOOKUP($D155,'Concawe Library'!$A$4:$AI$1563,14,FALSE)) ->  | K155: =IF(D155="","",LOG(VLOOKUP($D155,'Concawe Library'!$A$4:$AI$1563,28,FALSE))) ->  | L155: =IF(D155="","",VLOOKUP($D155,'Concawe Library'!$A$4:$AI$1563,31,FALSE)) ->  | M155: =IF(D155="","",VLOOKUP($D155,'Concawe Library'!$A$4:$AI$1563,32,FALSE)) ->  | N155: =IF(D155="","",VLOOKUP($D155,'Concawe Library'!$A$4:$AI$1563,33,FALSE)) ->  | O155: =IF(D155="","",VLOOKUP($D155,'Concawe Library'!$A$4:$AI$1563,34,FALSE)) ->  | P155: =IF(D155="","",VLOOKUP($D155,'Concawe Library'!$A$4:$AI$1563,35,FALSE)) ->  | Q155: =IF(D155="","",VLOOKUP($D155,'Concawe Library'!$A$4:$AI$1563,25,FALSE)) ->  | R155: =IF(D155="","",VLOOKUP($D155,'Concawe Library'!$A$4:$AI$1563,26,FALSE)) ->  | S155: =IF(D155="","",VLOOKUP($D155,'Concawe Library'!$A$4:$AI$1563,30,FALSE)) ->  | T155: =IF(D155="","",VLOOKUP($D155,'Concawe Library'!$A$4:$AI$1563,29,FALSE)) -> 
E156: =IF(D156="","",VLOOKUP($D156,'Concawe Library'!$A$4:$AI$1563,3,FALSE)) ->  | F156: =IF(D156="","",VLOOKUP($D156,'Concawe Library'!$A$4:$AI$1563,4,FALSE)) ->  | G156: =IF(D156="","",VLOOKUP($D156,'Concawe Library'!$A$4:$AI$1563,6,FALSE)) ->  | H156: =IF(D156="","",VLOOKUP($D156,'Concawe Library'!$A$4:$AI$1563,11,FALSE)) ->  | I156: =IF(D156="","",LOG(VLOOKUP($D156,'Concawe Library'!$A$4:$AI$1563,13,FALSE))) ->  | J156: =IF(D156="","",VLOOKUP($D156,'Concawe Library'!$A$4:$AI$1563,14,FALSE)) ->  | K156: =IF(D156="","",LOG(VLOOKUP($D156,'Concawe Library'!$A$4:$AI$1563,28,FALSE))) ->  | L156: =IF(D156="","",VLOOKUP($D156,'Concawe Library'!$A$4:$AI$1563,31,FALSE)) ->  | M156: =IF(D156="","",VLOOKUP($D156,'Concawe Library'!$A$4:$AI$1563,32,FALSE)) ->  | N156: =IF(D156="","",VLOOKUP($D156,'Concawe Library'!$A$4:$AI$1563,33,FALSE)) ->  | O156: =IF(D156="","",VLOOKUP($D156,'Concawe Library'!$A$4:$AI$1563,34,FALSE)) ->  | P156: =IF(D156="","",VLOOKUP($D156,'Concawe Library'!$A$4:$AI$1563,35,FALSE)) ->  | Q156: =IF(D156="","",VLOOKUP($D156,'Concawe Library'!$A$4:$AI$1563,25,FALSE)) ->  | R156: =IF(D156="","",VLOOKUP($D156,'Concawe Library'!$A$4:$AI$1563,26,FALSE)) ->  | S156: =IF(D156="","",VLOOKUP($D156,'Concawe Library'!$A$4:$AI$1563,30,FALSE)) ->  | T156: =IF(D156="","",VLOOKUP($D156,'Concawe Library'!$A$4:$AI$1563,29,FALSE)) -> 
E157: =IF(D157="","",VLOOKUP($D157,'Concawe Library'!$A$4:$AI$1563,3,FALSE)) ->  | F157: =IF(D157="","",VLOOKUP($D157,'Concawe Library'!$A$4:$AI$1563,4,FALSE)) ->  | G157: =IF(D157="","",VLOOKUP($D157,'Concawe Library'!$A$4:$AI$1563,6,FALSE)) ->  | H157: =IF(D157="","",VLOOKUP($D157,'Concawe Library'!$A$4:$AI$1563,11,FALSE)) ->  | I157: =IF(D157="","",LOG(VLOOKUP($D157,'Concawe Library'!$A$4:$AI$1563,13,FALSE))) ->  | J157: =IF(D157="","",VLOOKUP($D157,'Concawe Library'!$A$4:$AI$1563,14,FALSE)) ->  | K157: =IF(D157="","",LOG(VLOOKUP($D157,'Concawe Library'!$A$4:$AI$1563,28,FALSE))) ->  | L157: =IF(D157="","",VLOOKUP($D157,'Concawe Library'!$A$4:$AI$1563,31,FALSE)) ->  | M157: =IF(D157="","",VLOOKUP($D157,'Concawe Library'!$A$4:$AI$1563,32,FALSE)) ->  | N157: =IF(D157="","",VLOOKUP($D157,'Concawe Library'!$A$4:$AI$1563,33,FALSE)) ->  | O157: =IF(D157="","",VLOOKUP($D157,'Concawe Library'!$A$4:$AI$1563,34,FALSE)) ->  | P157: =IF(D157="","",VLOOKUP($D157,'Concawe Library'!$A$4:$AI$1563,35,FALSE)) ->  | Q157: =IF(D157="","",VLOOKUP($D157,'Concawe Library'!$A$4:$AI$1563,25,FALSE)) ->  | R157: =IF(D157="","",VLOOKUP($D157,'Concawe Library'!$A$4:$AI$1563,26,FALSE)) ->  | S157: =IF(D157="","",VLOOKUP($D157,'Concawe Library'!$A$4:$AI$1563,30,FALSE)) ->  | T157: =IF(D157="","",VLOOKUP($D157,'Concawe Library'!$A$4:$AI$1563,29,FALSE)) -> 
E158: =IF(D158="","",VLOOKUP($D158,'Concawe Library'!$A$4:$AI$1563,3,FALSE)) ->  | F158: =IF(D158="","",VLOOKUP($D158,'Concawe Library'!$A$4:$AI$1563,4,FALSE)) ->  | G158: =IF(D158="","",VLOOKUP($D158,'Concawe Library'!$A$4:$AI$1563,6,FALSE)) ->  | H158: =IF(D158="","",VLOOKUP($D158,'Concawe Library'!$A$4:$AI$1563,11,FALSE)) ->  | I158: =IF(D158="","",LOG(VLOOKUP($D158,'Concawe Library'!$A$4:$AI$1563,13,FALSE))) ->  | J158: =IF(D158="","",VLOOKUP($D158,'Concawe Library'!$A$4:$AI$1563,14,FALSE)) ->  | K158: =IF(D158="","",LOG(VLOOKUP($D158,'Concawe Library'!$A$4:$AI$1563,28,FALSE))) ->  | L158: =IF(D158="","",VLOOKUP($D158,'Concawe Library'!$A$4:$AI$1563,31,FALSE)) ->  | M158: =IF(D158="","",VLOOKUP($D158,'Concawe Library'!$A$4:$AI$1563,32,FALSE)) ->  | N158: =IF(D158="","",VLOOKUP($D158,'Concawe Library'!$A$4:$AI$1563,33,FALSE)) ->  | O158: =IF(D158="","",VLOOKUP($D158,'Concawe Library'!$A$4:$AI$1563,34,FALSE)) ->  | P158: =IF(D158="","",VLOOKUP($D158,'Concawe Library'!$A$4:$AI$1563,35,FALSE)) ->  | Q158: =IF(D158="","",VLOOKUP($D158,'Concawe Library'!$A$4:$AI$1563,25,FALSE)) ->  | R158: =IF(D158="","",VLOOKUP($D158,'Concawe Library'!$A$4:$AI$1563,26,FALSE)) ->  | S158: =IF(D158="","",VLOOKUP($D158,'Concawe Library'!$A$4:$AI$1563,30,FALSE)) ->  | T158: =IF(D158="","",VLOOKUP($D158,'Concawe Library'!$A$4:$AI$1563,29,FALSE)) -> 
E159: =IF(D159="","",VLOOKUP($D159,'Concawe Library'!$A$4:$AI$1563,3,FALSE)) ->  | F159: =IF(D159="","",VLOOKUP($D159,'Concawe Library'!$A$4:$AI$1563,4,FALSE)) ->  | G159: =IF(D159="","",VLOOKUP($D159,'Concawe Library'!$A$4:$AI$1563,6,FALSE)) ->  | H159: =IF(D159="","",VLOOKUP($D159,'Concawe Library'!$A$4:$AI$1563,11,FALSE)) ->  | I159: =IF(D159="","",LOG(VLOOKUP($D159,'Concawe Library'!$A$4:$AI$1563,13,FALSE))) ->  | J159: =IF(D159="","",VLOOKUP($D159,'Concawe Library'!$A$4:$AI$1563,14,FALSE)) ->  | K159: =IF(D159="","",LOG(VLOOKUP($D159,'Concawe Library'!$A$4:$AI$1563,28,FALSE))) ->  | L159: =IF(D159="","",VLOOKUP($D159,'Concawe Library'!$A$4:$AI$1563,31,FALSE)) ->  | M159: =IF(D159="","",VLOOKUP($D159,'Concawe Library'!$A$4:$AI$1563,32,FALSE)) ->  | N159: =IF(D159="","",VLOOKUP($D159,'Concawe Library'!$A$4:$AI$1563,33,FALSE)) ->  | O159: =IF(D159="","",VLOOKUP($D159,'Concawe Library'!$A$4:$AI$1563,34,FALSE)) ->  | P159: =IF(D159="","",VLOOKUP($D159,'Concawe Library'!$A$4:$AI$1563,35,FALSE)) ->  | Q159: =IF(D159="","",VLOOKUP($D159,'Concawe Library'!$A$4:$AI$1563,25,FALSE)) ->  | R159: =IF(D159="","",VLOOKUP($D159,'Concawe Library'!$A$4:$AI$1563,26,FALSE)) ->  | S159: =IF(D159="","",VLOOKUP($D159,'Concawe Library'!$A$4:$AI$1563,30,FALSE)) ->  | T159: =IF(D159="","",VLOOKUP($D159,'Concawe Library'!$A$4:$AI$1563,29,FALSE)) -> 
E160: =IF(D160="","",VLOOKUP($D160,'Concawe Library'!$A$4:$AI$1563,3,FALSE)) ->  | F160: =IF(D160="","",VLOOKUP($D160,'Concawe Library'!$A$4:$AI$1563,4,FALSE)) ->  | G160: =IF(D160="","",VLOOKUP($D160,'Concawe Library'!$A$4:$AI$1563,6,FALSE)) ->  | H160: =IF(D160="","",VLOOKUP($D160,'Concawe Library'!$A$4:$AI$1563,11,FALSE)) ->  | I160: =IF(D160="","",LOG(VLOOKUP($D160,'Concawe Library'!$A$4:$AI$1563,13,FALSE))) ->  | J160: =IF(D160="","",VLOOKUP($D160,'Concawe Library'!$A$4:$AI$1563,14,FALSE)) ->  | K160: =IF(D160="","",LOG(VLOOKUP($D160,'Concawe Library'!$A$4:$AI$1563,28,FALSE))) ->  | L160: =IF(D160="","",VLOOKUP($D160,'Concawe Library'!$A$4:$AI$1563,31,FALSE)) ->  | M160: =IF(D160="","",VLOOKUP($D160,'Concawe Library'!$A$4:$AI$1563,32,FALSE)) ->  | N160: =IF(D160="","",VLOOKUP($D160,'Concawe Library'!$A$4:$AI$1563,33,FALSE)) ->  | O160: =IF(D160="","",VLOOKUP($D160,'Concawe Library'!$A$4:$AI$1563,34,FALSE)) ->  | P160: =IF(D160="","",VLOOKUP($D160,'Concawe Library'!$A$4:$AI$1563,35,FALSE)) ->  | Q160: =IF(D160="","",VLOOKUP($D160,'Concawe Library'!$A$4:$AI$1563,25,FALSE)) ->  | R160: =IF(D160="","",VLOOKUP($D160,'Concawe Library'!$A$4:$AI$1563,26,FALSE)) ->  | S160: =IF(D160="","",VLOOKUP($D160,'Concawe Library'!$A$4:$AI$1563,30,FALSE)) ->  | T160: =IF(D160="","",VLOOKUP($D160,'Concawe Library'!$A$4:$AI$1563,29,FALSE)) -> 
E161: =IF(D161="","",VLOOKUP($D161,'Concawe Library'!$A$4:$AI$1563,3,FALSE)) ->  | F161: =IF(D161="","",VLOOKUP($D161,'Concawe Library'!$A$4:$AI$1563,4,FALSE)) ->  | G161: =IF(D161="","",VLOOKUP($D161,'Concawe Library'!$A$4:$AI$1563,6,FALSE)) ->  | H161: =IF(D161="","",VLOOKUP($D161,'Concawe Library'!$A$4:$AI$1563,11,FALSE)) ->  | I161: =IF(D161="","",LOG(VLOOKUP($D161,'Concawe Library'!$A$4:$AI$1563,13,FALSE))) ->  | J161: =IF(D161="","",VLOOKUP($D161,'Concawe Library'!$A$4:$AI$1563,14,FALSE)) ->  | K161: =IF(D161="","",LOG(VLOOKUP($D161,'Concawe Library'!$A$4:$AI$1563,28,FALSE))) ->  | L161: =IF(D161="","",VLOOKUP($D161,'Concawe Library'!$A$4:$AI$1563,31,FALSE)) ->  | M161: =IF(D161="","",VLOOKUP($D161,'Concawe Library'!$A$4:$AI$1563,32,FALSE)) ->  | N161: =IF(D161="","",VLOOKUP($D161,'Concawe Library'!$A$4:$AI$1563,33,FALSE)) ->  | O161: =IF(D161="","",VLOOKUP($D161,'Concawe Library'!$A$4:$AI$1563,34,FALSE)) ->  | P161: =IF(D161="","",VLOOKUP($D161,'Concawe Library'!$A$4:$AI$1563,35,FALSE)) ->  | Q161: =IF(D161="","",VLOOKUP($D161,'Concawe Library'!$A$4:$AI$1563,25,FALSE)) ->  | R161: =IF(D161="","",VLOOKUP($D161,'Concawe Library'!$A$4:$AI$1563,26,FALSE)) ->  | S161: =IF(D161="","",VLOOKUP($D161,'Concawe Library'!$A$4:$AI$1563,30,FALSE)) ->  | T161: =IF(D161="","",VLOOKUP($D161,'Concawe Library'!$A$4:$AI$1563,29,FALSE)) -> 
E162: =IF(D162="","",VLOOKUP($D162,'Concawe Library'!$A$4:$AI$1563,3,FALSE)) ->  | F162: =IF(D162="","",VLOOKUP($D162,'Concawe Library'!$A$4:$AI$1563,4,FALSE)) ->  | G162: =IF(D162="","",VLOOKUP($D162,'Concawe Library'!$A$4:$AI$1563,6,FALSE)) ->  | H162: =IF(D162="","",VLOOKUP($D162,'Concawe Library'!$A$4:$AI$1563,11,FALSE)) ->  | I162: =IF(D162="","",LOG(VLOOKUP($D162,'Concawe Library'!$A$4:$AI$1563,13,FALSE))) ->  | J162: =IF(D162="","",VLOOKUP($D162,'Concawe Library'!$A$4:$AI$1563,14,FALSE)) ->  | K162: =IF(D162="","",LOG(VLOOKUP($D162,'Concawe Library'!$A$4:$AI$1563,28,FALSE))) ->  | L162: =IF(D162="","",VLOOKUP($D162,'Concawe Library'!$A$4:$AI$1563,31,FALSE)) ->  | M162: =IF(D162="","",VLOOKUP($D162,'Concawe Library'!$A$4:$AI$1563,32,FALSE)) ->  | N162: =IF(D162="","",VLOOKUP($D162,'Concawe Library'!$A$4:$AI$1563,33,FALSE)) ->  | O162: =IF(D162="","",VLOOKUP($D162,'Concawe Library'!$A$4:$AI$1563,34,FALSE)) ->  | P162: =IF(D162="","",VLOOKUP($D162,'Concawe Library'!$A$4:$AI$1563,35,FALSE)) ->  | Q162: =IF(D162="","",VLOOKUP($D162,'Concawe Library'!$A$4:$AI$1563,25,FALSE)) ->  | R162: =IF(D162="","",VLOOKUP($D162,'Concawe Library'!$A$4:$AI$1563,26,FALSE)) ->  | S162: =IF(D162="","",VLOOKUP($D162,'Concawe Library'!$A$4:$AI$1563,30,FALSE)) ->  | T162: =IF(D162="","",VLOOKUP($D162,'Concawe Library'!$A$4:$AI$1563,29,FALSE)) -> 
E163: =IF(D163="","",VLOOKUP($D163,'Concawe Library'!$A$4:$AI$1563,3,FALSE)) ->  | F163: =IF(D163="","",VLOOKUP($D163,'Concawe Library'!$A$4:$AI$1563,4,FALSE)) ->  | G163: =IF(D163="","",VLOOKUP($D163,'Concawe Library'!$A$4:$AI$1563,6,FALSE)) ->  | H163: =IF(D163="","",VLOOKUP($D163,'Concawe Library'!$A$4:$AI$1563,11,FALSE)) ->  | I163: =IF(D163="","",LOG(VLOOKUP($D163,'Concawe Library'!$A$4:$AI$1563,13,FALSE))) ->  | J163: =IF(D163="","",VLOOKUP($D163,'Concawe Library'!$A$4:$AI$1563,14,FALSE)) ->  | K163: =IF(D163="","",LOG(VLOOKUP($D163,'Concawe Library'!$A$4:$AI$1563,28,FALSE))) ->  | L163: =IF(D163="","",VLOOKUP($D163,'Concawe Library'!$A$4:$AI$1563,31,FALSE)) ->  | M163: =IF(D163="","",VLOOKUP($D163,'Concawe Library'!$A$4:$AI$1563,32,FALSE)) ->  | N163: =IF(D163="","",VLOOKUP($D163,'Concawe Library'!$A$4:$AI$1563,33,FALSE)) ->  | O163: =IF(D163="","",VLOOKUP($D163,'Concawe Library'!$A$4:$AI$1563,34,FALSE)) ->  | P163: =IF(D163="","",VLOOKUP($D163,'Concawe Library'!$A$4:$AI$1563,35,FALSE)) ->  | Q163: =IF(D163="","",VLOOKUP($D163,'Concawe Library'!$A$4:$AI$1563,25,FALSE)) ->  | R163: =IF(D163="","",VLOOKUP($D163,'Concawe Library'!$A$4:$AI$1563,26,FALSE)) ->  | S163: =IF(D163="","",VLOOKUP($D163,'Concawe Library'!$A$4:$AI$1563,30,FALSE)) ->  | T163: =IF(D163="","",VLOOKUP($D163,'Concawe Library'!$A$4:$AI$1563,29,FALSE)) -> 
E164: =IF(D164="","",VLOOKUP($D164,'Concawe Library'!$A$4:$AI$1563,3,FALSE)) ->  | F164: =IF(D164="","",VLOOKUP($D164,'Concawe Library'!$A$4:$AI$1563,4,FALSE)) ->  | G164: =IF(D164="","",VLOOKUP($D164,'Concawe Library'!$A$4:$AI$1563,6,FALSE)) ->  | H164: =IF(D164="","",VLOOKUP($D164,'Concawe Library'!$A$4:$AI$1563,11,FALSE)) ->  | I164: =IF(D164="","",LOG(VLOOKUP($D164,'Concawe Library'!$A$4:$AI$1563,13,FALSE))) ->  | J164: =IF(D164="","",VLOOKUP($D164,'Concawe Library'!$A$4:$AI$1563,14,FALSE)) ->  | K164: =IF(D164="","",LOG(VLOOKUP($D164,'Concawe Library'!$A$4:$AI$1563,28,FALSE))) ->  | L164: =IF(D164="","",VLOOKUP($D164,'Concawe Library'!$A$4:$AI$1563,31,FALSE)) ->  | M164: =IF(D164="","",VLOOKUP($D164,'Concawe Library'!$A$4:$AI$1563,32,FALSE)) ->  | N164: =IF(D164="","",VLOOKUP($D164,'Concawe Library'!$A$4:$AI$1563,33,FALSE)) ->  | O164: =IF(D164="","",VLOOKUP($D164,'Concawe Library'!$A$4:$AI$1563,34,FALSE)) ->  | P164: =IF(D164="","",VLOOKUP($D164,'Concawe Library'!$A$4:$AI$1563,35,FALSE)) ->  | Q164: =IF(D164="","",VLOOKUP($D164,'Concawe Library'!$A$4:$AI$1563,25,FALSE)) ->  | R164: =IF(D164="","",VLOOKUP($D164,'Concawe Library'!$A$4:$AI$1563,26,FALSE)) ->  | S164: =IF(D164="","",VLOOKUP($D164,'Concawe Library'!$A$4:$AI$1563,30,FALSE)) ->  | T164: =IF(D164="","",VLOOKUP($D164,'Concawe Library'!$A$4:$AI$1563,29,FALSE)) -> 
E165: =IF(D165="","",VLOOKUP($D165,'Concawe Library'!$A$4:$AI$1563,3,FALSE)) ->  | F165: =IF(D165="","",VLOOKUP($D165,'Concawe Library'!$A$4:$AI$1563,4,FALSE)) ->  | G165: =IF(D165="","",VLOOKUP($D165,'Concawe Library'!$A$4:$AI$1563,6,FALSE)) ->  | H165: =IF(D165="","",VLOOKUP($D165,'Concawe Library'!$A$4:$AI$1563,11,FALSE)) ->  | I165: =IF(D165="","",LOG(VLOOKUP($D165,'Concawe Library'!$A$4:$AI$1563,13,FALSE))) ->  | J165: =IF(D165="","",VLOOKUP($D165,'Concawe Library'!$A$4:$AI$1563,14,FALSE)) ->  | K165: =IF(D165="","",LOG(VLOOKUP($D165,'Concawe Library'!$A$4:$AI$1563,28,FALSE))) ->  | L165: =IF(D165="","",VLOOKUP($D165,'Concawe Library'!$A$4:$AI$1563,31,FALSE)) ->  | M165: =IF(D165="","",VLOOKUP($D165,'Concawe Library'!$A$4:$AI$1563,32,FALSE)) ->  | N165: =IF(D165="","",VLOOKUP($D165,'Concawe Library'!$A$4:$AI$1563,33,FALSE)) ->  | O165: =IF(D165="","",VLOOKUP($D165,'Concawe Library'!$A$4:$AI$1563,34,FALSE)) ->  | P165: =IF(D165="","",VLOOKUP($D165,'Concawe Library'!$A$4:$AI$1563,35,FALSE)) ->  | Q165: =IF(D165="","",VLOOKUP($D165,'Concawe Library'!$A$4:$AI$1563,25,FALSE)) ->  | R165: =IF(D165="","",VLOOKUP($D165,'Concawe Library'!$A$4:$AI$1563,26,FALSE)) ->  | S165: =IF(D165="","",VLOOKUP($D165,'Concawe Library'!$A$4:$AI$1563,30,FALSE)) ->  | T165: =IF(D165="","",VLOOKUP($D165,'Concawe Library'!$A$4:$AI$1563,29,FALSE)) -> 
E166: =IF(D166="","",VLOOKUP($D166,'Concawe Library'!$A$4:$AI$1563,3,FALSE)) ->  | F166: =IF(D166="","",VLOOKUP($D166,'Concawe Library'!$A$4:$AI$1563,4,FALSE)) ->  | G166: =IF(D166="","",VLOOKUP($D166,'Concawe Library'!$A$4:$AI$1563,6,FALSE)) ->  | H166: =IF(D166="","",VLOOKUP($D166,'Concawe Library'!$A$4:$AI$1563,11,FALSE)) ->  | I166: =IF(D166="","",LOG(VLOOKUP($D166,'Concawe Library'!$A$4:$AI$1563,13,FALSE))) ->  | J166: =IF(D166="","",VLOOKUP($D166,'Concawe Library'!$A$4:$AI$1563,14,FALSE)) ->  | K166: =IF(D166="","",LOG(VLOOKUP($D166,'Concawe Library'!$A$4:$AI$1563,28,FALSE))) ->  | L166: =IF(D166="","",VLOOKUP($D166,'Concawe Library'!$A$4:$AI$1563,31,FALSE)) ->  | M166: =IF(D166="","",VLOOKUP($D166,'Concawe Library'!$A$4:$AI$1563,32,FALSE)) ->  | N166: =IF(D166="","",VLOOKUP($D166,'Concawe Library'!$A$4:$AI$1563,33,FALSE)) ->  | O166: =IF(D166="","",VLOOKUP($D166,'Concawe Library'!$A$4:$AI$1563,34,FALSE)) ->  | P166: =IF(D166="","",VLOOKUP($D166,'Concawe Library'!$A$4:$AI$1563,35,FALSE)) ->  | Q166: =IF(D166="","",VLOOKUP($D166,'Concawe Library'!$A$4:$AI$1563,25,FALSE)) ->  | R166: =IF(D166="","",VLOOKUP($D166,'Concawe Library'!$A$4:$AI$1563,26,FALSE)) ->  | S166: =IF(D166="","",VLOOKUP($D166,'Concawe Library'!$A$4:$AI$1563,30,FALSE)) ->  | T166: =IF(D166="","",VLOOKUP($D166,'Concawe Library'!$A$4:$AI$1563,29,FALSE)) -> 
E167: =IF(D167="","",VLOOKUP($D167,'Concawe Library'!$A$4:$AI$1563,3,FALSE)) ->  | F167: =IF(D167="","",VLOOKUP($D167,'Concawe Library'!$A$4:$AI$1563,4,FALSE)) ->  | G167: =IF(D167="","",VLOOKUP($D167,'Concawe Library'!$A$4:$AI$1563,6,FALSE)) ->  | H167: =IF(D167="","",VLOOKUP($D167,'Concawe Library'!$A$4:$AI$1563,11,FALSE)) ->  | I167: =IF(D167="","",LOG(VLOOKUP($D167,'Concawe Library'!$A$4:$AI$1563,13,FALSE))) ->  | J167: =IF(D167="","",VLOOKUP($D167,'Concawe Library'!$A$4:$AI$1563,14,FALSE)) ->  | K167: =IF(D167="","",LOG(VLOOKUP($D167,'Concawe Library'!$A$4:$AI$1563,28,FALSE))) ->  | L167: =IF(D167="","",VLOOKUP($D167,'Concawe Library'!$A$4:$AI$1563,31,FALSE)) ->  | M167: =IF(D167="","",VLOOKUP($D167,'Concawe Library'!$A$4:$AI$1563,32,FALSE)) ->  | N167: =IF(D167="","",VLOOKUP($D167,'Concawe Library'!$A$4:$AI$1563,33,FALSE)) ->  | O167: =IF(D167="","",VLOOKUP($D167,'Concawe Library'!$A$4:$AI$1563,34,FALSE)) ->  | P167: =IF(D167="","",VLOOKUP($D167,'Concawe Library'!$A$4:$AI$1563,35,FALSE)) ->  | Q167: =IF(D167="","",VLOOKUP($D167,'Concawe Library'!$A$4:$AI$1563,25,FALSE)) ->  | R167: =IF(D167="","",VLOOKUP($D167,'Concawe Library'!$A$4:$AI$1563,26,FALSE)) ->  | S167: =IF(D167="","",VLOOKUP($D167,'Concawe Library'!$A$4:$AI$1563,30,FALSE)) ->  | T167: =IF(D167="","",VLOOKUP($D167,'Concawe Library'!$A$4:$AI$1563,29,FALSE)) -> 
E168: =IF(D168="","",VLOOKUP($D168,'Concawe Library'!$A$4:$AI$1563,3,FALSE)) ->  | F168: =IF(D168="","",VLOOKUP($D168,'Concawe Library'!$A$4:$AI$1563,4,FALSE)) ->  | G168: =IF(D168="","",VLOOKUP($D168,'Concawe Library'!$A$4:$AI$1563,6,FALSE)) ->  | H168: =IF(D168="","",VLOOKUP($D168,'Concawe Library'!$A$4:$AI$1563,11,FALSE)) ->  | I168: =IF(D168="","",LOG(VLOOKUP($D168,'Concawe Library'!$A$4:$AI$1563,13,FALSE))) ->  | J168: =IF(D168="","",VLOOKUP($D168,'Concawe Library'!$A$4:$AI$1563,14,FALSE)) ->  | K168: =IF(D168="","",LOG(VLOOKUP($D168,'Concawe Library'!$A$4:$AI$1563,28,FALSE))) ->  | L168: =IF(D168="","",VLOOKUP($D168,'Concawe Library'!$A$4:$AI$1563,31,FALSE)) ->  | M168: =IF(D168="","",VLOOKUP($D168,'Concawe Library'!$A$4:$AI$1563,32,FALSE)) ->  | N168: =IF(D168="","",VLOOKUP($D168,'Concawe Library'!$A$4:$AI$1563,33,FALSE)) ->  | O168: =IF(D168="","",VLOOKUP($D168,'Concawe Library'!$A$4:$AI$1563,34,FALSE)) ->  | P168: =IF(D168="","",VLOOKUP($D168,'Concawe Library'!$A$4:$AI$1563,35,FALSE)) ->  | Q168: =IF(D168="","",VLOOKUP($D168,'Concawe Library'!$A$4:$AI$1563,25,FALSE)) ->  | R168: =IF(D168="","",VLOOKUP($D168,'Concawe Library'!$A$4:$AI$1563,26,FALSE)) ->  | S168: =IF(D168="","",VLOOKUP($D168,'Concawe Library'!$A$4:$AI$1563,30,FALSE)) ->  | T168: =IF(D168="","",VLOOKUP($D168,'Concawe Library'!$A$4:$AI$1563,29,FALSE)) -> 
E169: =IF(D169="","",VLOOKUP($D169,'Concawe Library'!$A$4:$AI$1563,3,FALSE)) ->  | F169: =IF(D169="","",VLOOKUP($D169,'Concawe Library'!$A$4:$AI$1563,4,FALSE)) ->  | G169: =IF(D169="","",VLOOKUP($D169,'Concawe Library'!$A$4:$AI$1563,6,FALSE)) ->  | H169: =IF(D169="","",VLOOKUP($D169,'Concawe Library'!$A$4:$AI$1563,11,FALSE)) ->  | I169: =IF(D169="","",LOG(VLOOKUP($D169,'Concawe Library'!$A$4:$AI$1563,13,FALSE))) ->  | J169: =IF(D169="","",VLOOKUP($D169,'Concawe Library'!$A$4:$AI$1563,14,FALSE)) ->  | K169: =IF(D169="","",LOG(VLOOKUP($D169,'Concawe Library'!$A$4:$AI$1563,28,FALSE))) ->  | L169: =IF(D169="","",VLOOKUP($D169,'Concawe Library'!$A$4:$AI$1563,31,FALSE)) ->  | M169: =IF(D169="","",VLOOKUP($D169,'Concawe Library'!$A$4:$AI$1563,32,FALSE)) ->  | N169: =IF(D169="","",VLOOKUP($D169,'Concawe Library'!$A$4:$AI$1563,33,FALSE)) ->  | O169: =IF(D169="","",VLOOKUP($D169,'Concawe Library'!$A$4:$AI$1563,34,FALSE)) ->  | P169: =IF(D169="","",VLOOKUP($D169,'Concawe Library'!$A$4:$AI$1563,35,FALSE)) ->  | Q169: =IF(D169="","",VLOOKUP($D169,'Concawe Library'!$A$4:$AI$1563,25,FALSE)) ->  | R169: =IF(D169="","",VLOOKUP($D169,'Concawe Library'!$A$4:$AI$1563,26,FALSE)) ->  | S169: =IF(D169="","",VLOOKUP($D169,'Concawe Library'!$A$4:$AI$1563,30,FALSE)) ->  | T169: =IF(D169="","",VLOOKUP($D169,'Concawe Library'!$A$4:$AI$1563,29,FALSE)) -> 
E170: =IF(D170="","",VLOOKUP($D170,'Concawe Library'!$A$4:$AI$1563,3,FALSE)) ->  | F170: =IF(D170="","",VLOOKUP($D170,'Concawe Library'!$A$4:$AI$1563,4,FALSE)) ->  | G170: =IF(D170="","",VLOOKUP($D170,'Concawe Library'!$A$4:$AI$1563,6,FALSE)) ->  | H170: =IF(D170="","",VLOOKUP($D170,'Concawe Library'!$A$4:$AI$1563,11,FALSE)) ->  | I170: =IF(D170="","",LOG(VLOOKUP($D170,'Concawe Library'!$A$4:$AI$1563,13,FALSE))) ->  | J170: =IF(D170="","",VLOOKUP($D170,'Concawe Library'!$A$4:$AI$1563,14,FALSE)) ->  | K170: =IF(D170="","",LOG(VLOOKUP($D170,'Concawe Library'!$A$4:$AI$1563,28,FALSE))) ->  | L170: =IF(D170="","",VLOOKUP($D170,'Concawe Library'!$A$4:$AI$1563,31,FALSE)) ->  | M170: =IF(D170="","",VLOOKUP($D170,'Concawe Library'!$A$4:$AI$1563,32,FALSE)) ->  | N170: =IF(D170="","",VLOOKUP($D170,'Concawe Library'!$A$4:$AI$1563,33,FALSE)) ->  | O170: =IF(D170="","",VLOOKUP($D170,'Concawe Library'!$A$4:$AI$1563,34,FALSE)) ->  | P170: =IF(D170="","",VLOOKUP($D170,'Concawe Library'!$A$4:$AI$1563,35,FALSE)) ->  | Q170: =IF(D170="","",VLOOKUP($D170,'Concawe Library'!$A$4:$AI$1563,25,FALSE)) ->  | R170: =IF(D170="","",VLOOKUP($D170,'Concawe Library'!$A$4:$AI$1563,26,FALSE)) ->  | S170: =IF(D170="","",VLOOKUP($D170,'Concawe Library'!$A$4:$AI$1563,30,FALSE)) ->  | T170: =IF(D170="","",VLOOKUP($D170,'Concawe Library'!$A$4:$AI$1563,29,FALSE)) -> 
E171: =IF(D171="","",VLOOKUP($D171,'Concawe Library'!$A$4:$AI$1563,3,FALSE)) ->  | F171: =IF(D171="","",VLOOKUP($D171,'Concawe Library'!$A$4:$AI$1563,4,FALSE)) ->  | G171: =IF(D171="","",VLOOKUP($D171,'Concawe Library'!$A$4:$AI$1563,6,FALSE)) ->  | H171: =IF(D171="","",VLOOKUP($D171,'Concawe Library'!$A$4:$AI$1563,11,FALSE)) ->  | I171: =IF(D171="","",LOG(VLOOKUP($D171,'Concawe Library'!$A$4:$AI$1563,13,FALSE))) ->  | J171: =IF(D171="","",VLOOKUP($D171,'Concawe Library'!$A$4:$AI$1563,14,FALSE)) ->  | K171: =IF(D171="","",LOG(VLOOKUP($D171,'Concawe Library'!$A$4:$AI$1563,28,FALSE))) ->  | L171: =IF(D171="","",VLOOKUP($D171,'Concawe Library'!$A$4:$AI$1563,31,FALSE)) ->  | M171: =IF(D171="","",VLOOKUP($D171,'Concawe Library'!$A$4:$AI$1563,32,FALSE)) ->  | N171: =IF(D171="","",VLOOKUP($D171,'Concawe Library'!$A$4:$AI$1563,33,FALSE)) ->  | O171: =IF(D171="","",VLOOKUP($D171,'Concawe Library'!$A$4:$AI$1563,34,FALSE)) ->  | P171: =IF(D171="","",VLOOKUP($D171,'Concawe Library'!$A$4:$AI$1563,35,FALSE)) ->  | Q171: =IF(D171="","",VLOOKUP($D171,'Concawe Library'!$A$4:$AI$1563,25,FALSE)) ->  | R171: =IF(D171="","",VLOOKUP($D171,'Concawe Library'!$A$4:$AI$1563,26,FALSE)) ->  | S171: =IF(D171="","",VLOOKUP($D171,'Concawe Library'!$A$4:$AI$1563,30,FALSE)) ->  | T171: =IF(D171="","",VLOOKUP($D171,'Concawe Library'!$A$4:$AI$1563,29,FALSE)) -> 
E172: =IF(D172="","",VLOOKUP($D172,'Concawe Library'!$A$4:$AI$1563,3,FALSE)) ->  | F172: =IF(D172="","",VLOOKUP($D172,'Concawe Library'!$A$4:$AI$1563,4,FALSE)) ->  | G172: =IF(D172="","",VLOOKUP($D172,'Concawe Library'!$A$4:$AI$1563,6,FALSE)) ->  | H172: =IF(D172="","",VLOOKUP($D172,'Concawe Library'!$A$4:$AI$1563,11,FALSE)) ->  | I172: =IF(D172="","",LOG(VLOOKUP($D172,'Concawe Library'!$A$4:$AI$1563,13,FALSE))) ->  | J172: =IF(D172="","",VLOOKUP($D172,'Concawe Library'!$A$4:$AI$1563,14,FALSE)) ->  | K172: =IF(D172="","",LOG(VLOOKUP($D172,'Concawe Library'!$A$4:$AI$1563,28,FALSE))) ->  | L172: =IF(D172="","",VLOOKUP($D172,'Concawe Library'!$A$4:$AI$1563,31,FALSE)) ->  | M172: =IF(D172="","",VLOOKUP($D172,'Concawe Library'!$A$4:$AI$1563,32,FALSE)) ->  | N172: =IF(D172="","",VLOOKUP($D172,'Concawe Library'!$A$4:$AI$1563,33,FALSE)) ->  | O172: =IF(D172="","",VLOOKUP($D172,'Concawe Library'!$A$4:$AI$1563,34,FALSE)) ->  | P172: =IF(D172="","",VLOOKUP($D172,'Concawe Library'!$A$4:$AI$1563,35,FALSE)) ->  | Q172: =IF(D172="","",VLOOKUP($D172,'Concawe Library'!$A$4:$AI$1563,25,FALSE)) ->  | R172: =IF(D172="","",VLOOKUP($D172,'Concawe Library'!$A$4:$AI$1563,26,FALSE)) ->  | S172: =IF(D172="","",VLOOKUP($D172,'Concawe Library'!$A$4:$AI$1563,30,FALSE)) ->  | T172: =IF(D172="","",VLOOKUP($D172,'Concawe Library'!$A$4:$AI$1563,29,FALSE)) -> 
E173: =IF(D173="","",VLOOKUP($D173,'Concawe Library'!$A$4:$AI$1563,3,FALSE)) ->  | F173: =IF(D173="","",VLOOKUP($D173,'Concawe Library'!$A$4:$AI$1563,4,FALSE)) ->  | G173: =IF(D173="","",VLOOKUP($D173,'Concawe Library'!$A$4:$AI$1563,6,FALSE)) ->  | H173: =IF(D173="","",VLOOKUP($D173,'Concawe Library'!$A$4:$AI$1563,11,FALSE)) ->  | I173: =IF(D173="","",LOG(VLOOKUP($D173,'Concawe Library'!$A$4:$AI$1563,13,FALSE))) ->  | J173: =IF(D173="","",VLOOKUP($D173,'Concawe Library'!$A$4:$AI$1563,14,FALSE)) ->  | K173: =IF(D173="","",LOG(VLOOKUP($D173,'Concawe Library'!$A$4:$AI$1563,28,FALSE))) ->  | L173: =IF(D173="","",VLOOKUP($D173,'Concawe Library'!$A$4:$AI$1563,31,FALSE)) ->  | M173: =IF(D173="","",VLOOKUP($D173,'Concawe Library'!$A$4:$AI$1563,32,FALSE)) ->  | N173: =IF(D173="","",VLOOKUP($D173,'Concawe Library'!$A$4:$AI$1563,33,FALSE)) ->  | O173: =IF(D173="","",VLOOKUP($D173,'Concawe Library'!$A$4:$AI$1563,34,FALSE)) ->  | P173: =IF(D173="","",VLOOKUP($D173,'Concawe Library'!$A$4:$AI$1563,35,FALSE)) ->  | Q173: =IF(D173="","",VLOOKUP($D173,'Concawe Library'!$A$4:$AI$1563,25,FALSE)) ->  | R173: =IF(D173="","",VLOOKUP($D173,'Concawe Library'!$A$4:$AI$1563,26,FALSE)) ->  | S173: =IF(D173="","",VLOOKUP($D173,'Concawe Library'!$A$4:$AI$1563,30,FALSE)) ->  | T173: =IF(D173="","",VLOOKUP($D173,'Concawe Library'!$A$4:$AI$1563,29,FALSE)) -> 
E174: =IF(D174="","",VLOOKUP($D174,'Concawe Library'!$A$4:$AI$1563,3,FALSE)) ->  | F174: =IF(D174="","",VLOOKUP($D174,'Concawe Library'!$A$4:$AI$1563,4,FALSE)) ->  | G174: =IF(D174="","",VLOOKUP($D174,'Concawe Library'!$A$4:$AI$1563,6,FALSE)) ->  | H174: =IF(D174="","",VLOOKUP($D174,'Concawe Library'!$A$4:$AI$1563,11,FALSE)) ->  | I174: =IF(D174="","",LOG(VLOOKUP($D174,'Concawe Library'!$A$4:$AI$1563,13,FALSE))) ->  | J174: =IF(D174="","",VLOOKUP($D174,'Concawe Library'!$A$4:$AI$1563,14,FALSE)) ->  | K174: =IF(D174="","",LOG(VLOOKUP($D174,'Concawe Library'!$A$4:$AI$1563,28,FALSE))) ->  | L174: =IF(D174="","",VLOOKUP($D174,'Concawe Library'!$A$4:$AI$1563,31,FALSE)) ->  | M174: =IF(D174="","",VLOOKUP($D174,'Concawe Library'!$A$4:$AI$1563,32,FALSE)) ->  | N174: =IF(D174="","",VLOOKUP($D174,'Concawe Library'!$A$4:$AI$1563,33,FALSE)) ->  | O174: =IF(D174="","",VLOOKUP($D174,'Concawe Library'!$A$4:$AI$1563,34,FALSE)) ->  | P174: =IF(D174="","",VLOOKUP($D174,'Concawe Library'!$A$4:$AI$1563,35,FALSE)) ->  | Q174: =IF(D174="","",VLOOKUP($D174,'Concawe Library'!$A$4:$AI$1563,25,FALSE)) ->  | R174: =IF(D174="","",VLOOKUP($D174,'Concawe Library'!$A$4:$AI$1563,26,FALSE)) ->  | S174: =IF(D174="","",VLOOKUP($D174,'Concawe Library'!$A$4:$AI$1563,30,FALSE)) ->  | T174: =IF(D174="","",VLOOKUP($D174,'Concawe Library'!$A$4:$AI$1563,29,FALSE)) -> 
E175: =IF(D175="","",VLOOKUP($D175,'Concawe Library'!$A$4:$AI$1563,3,FALSE)) ->  | F175: =IF(D175="","",VLOOKUP($D175,'Concawe Library'!$A$4:$AI$1563,4,FALSE)) ->  | G175: =IF(D175="","",VLOOKUP($D175,'Concawe Library'!$A$4:$AI$1563,6,FALSE)) ->  | H175: =IF(D175="","",VLOOKUP($D175,'Concawe Library'!$A$4:$AI$1563,11,FALSE)) ->  | I175: =IF(D175="","",LOG(VLOOKUP($D175,'Concawe Library'!$A$4:$AI$1563,13,FALSE))) ->  | J175: =IF(D175="","",VLOOKUP($D175,'Concawe Library'!$A$4:$AI$1563,14,FALSE)) ->  | K175: =IF(D175="","",LOG(VLOOKUP($D175,'Concawe Library'!$A$4:$AI$1563,28,FALSE))) ->  | L175: =IF(D175="","",VLOOKUP($D175,'Concawe Library'!$A$4:$AI$1563,31,FALSE)) ->  | M175: =IF(D175="","",VLOOKUP($D175,'Concawe Library'!$A$4:$AI$1563,32,FALSE)) ->  | N175: =IF(D175="","",VLOOKUP($D175,'Concawe Library'!$A$4:$AI$1563,33,FALSE)) ->  | O175: =IF(D175="","",VLOOKUP($D175,'Concawe Library'!$A$4:$AI$1563,34,FALSE)) ->  | P175: =IF(D175="","",VLOOKUP($D175,'Concawe Library'!$A$4:$AI$1563,35,FALSE)) ->  | Q175: =IF(D175="","",VLOOKUP($D175,'Concawe Library'!$A$4:$AI$1563,25,FALSE)) ->  | R175: =IF(D175="","",VLOOKUP($D175,'Concawe Library'!$A$4:$AI$1563,26,FALSE)) ->  | S175: =IF(D175="","",VLOOKUP($D175,'Concawe Library'!$A$4:$AI$1563,30,FALSE)) ->  | T175: =IF(D175="","",VLOOKUP($D175,'Concawe Library'!$A$4:$AI$1563,29,FALSE)) -> 
E176: =IF(D176="","",VLOOKUP($D176,'Concawe Library'!$A$4:$AI$1563,3,FALSE)) ->  | F176: =IF(D176="","",VLOOKUP($D176,'Concawe Library'!$A$4:$AI$1563,4,FALSE)) ->  | G176: =IF(D176="","",VLOOKUP($D176,'Concawe Library'!$A$4:$AI$1563,6,FALSE)) ->  | H176: =IF(D176="","",VLOOKUP($D176,'Concawe Library'!$A$4:$AI$1563,11,FALSE)) ->  | I176: =IF(D176="","",LOG(VLOOKUP($D176,'Concawe Library'!$A$4:$AI$1563,13,FALSE))) ->  | J176: =IF(D176="","",VLOOKUP($D176,'Concawe Library'!$A$4:$AI$1563,14,FALSE)) ->  | K176: =IF(D176="","",LOG(VLOOKUP($D176,'Concawe Library'!$A$4:$AI$1563,28,FALSE))) ->  | L176: =IF(D176="","",VLOOKUP($D176,'Concawe Library'!$A$4:$AI$1563,31,FALSE)) ->  | M176: =IF(D176="","",VLOOKUP($D176,'Concawe Library'!$A$4:$AI$1563,32,FALSE)) ->  | N176: =IF(D176="","",VLOOKUP($D176,'Concawe Library'!$A$4:$AI$1563,33,FALSE)) ->  | O176: =IF(D176="","",VLOOKUP($D176,'Concawe Library'!$A$4:$AI$1563,34,FALSE)) ->  | P176: =IF(D176="","",VLOOKUP($D176,'Concawe Library'!$A$4:$AI$1563,35,FALSE)) ->  | Q176: =IF(D176="","",VLOOKUP($D176,'Concawe Library'!$A$4:$AI$1563,25,FALSE)) ->  | R176: =IF(D176="","",VLOOKUP($D176,'Concawe Library'!$A$4:$AI$1563,26,FALSE)) ->  | S176: =IF(D176="","",VLOOKUP($D176,'Concawe Library'!$A$4:$AI$1563,30,FALSE)) ->  | T176: =IF(D176="","",VLOOKUP($D176,'Concawe Library'!$A$4:$AI$1563,29,FALSE)) -> 
E177: =IF(D177="","",VLOOKUP($D177,'Concawe Library'!$A$4:$AI$1563,3,FALSE)) ->  | F177: =IF(D177="","",VLOOKUP($D177,'Concawe Library'!$A$4:$AI$1563,4,FALSE)) ->  | G177: =IF(D177="","",VLOOKUP($D177,'Concawe Library'!$A$4:$AI$1563,6,FALSE)) ->  | H177: =IF(D177="","",VLOOKUP($D177,'Concawe Library'!$A$4:$AI$1563,11,FALSE)) ->  | I177: =IF(D177="","",LOG(VLOOKUP($D177,'Concawe Library'!$A$4:$AI$1563,13,FALSE))) ->  | J177: =IF(D177="","",VLOOKUP($D177,'Concawe Library'!$A$4:$AI$1563,14,FALSE)) ->  | K177: =IF(D177="","",LOG(VLOOKUP($D177,'Concawe Library'!$A$4:$AI$1563,28,FALSE))) ->  | L177: =IF(D177="","",VLOOKUP($D177,'Concawe Library'!$A$4:$AI$1563,31,FALSE)) ->  | M177: =IF(D177="","",VLOOKUP($D177,'Concawe Library'!$A$4:$AI$1563,32,FALSE)) ->  | N177: =IF(D177="","",VLOOKUP($D177,'Concawe Library'!$A$4:$AI$1563,33,FALSE)) ->  | O177: =IF(D177="","",VLOOKUP($D177,'Concawe Library'!$A$4:$AI$1563,34,FALSE)) ->  | P177: =IF(D177="","",VLOOKUP($D177,'Concawe Library'!$A$4:$AI$1563,35,FALSE)) ->  | Q177: =IF(D177="","",VLOOKUP($D177,'Concawe Library'!$A$4:$AI$1563,25,FALSE)) ->  | R177: =IF(D177="","",VLOOKUP($D177,'Concawe Library'!$A$4:$AI$1563,26,FALSE)) ->  | S177: =IF(D177="","",VLOOKUP($D177,'Concawe Library'!$A$4:$AI$1563,30,FALSE)) ->  | T177: =IF(D177="","",VLOOKUP($D177,'Concawe Library'!$A$4:$AI$1563,29,FALSE)) -> 
E178: =IF(D178="","",VLOOKUP($D178,'Concawe Library'!$A$4:$AI$1563,3,FALSE)) ->  | F178: =IF(D178="","",VLOOKUP($D178,'Concawe Library'!$A$4:$AI$1563,4,FALSE)) ->  | G178: =IF(D178="","",VLOOKUP($D178,'Concawe Library'!$A$4:$AI$1563,6,FALSE)) ->  | H178: =IF(D178="","",VLOOKUP($D178,'Concawe Library'!$A$4:$AI$1563,11,FALSE)) ->  | I178: =IF(D178="","",LOG(VLOOKUP($D178,'Concawe Library'!$A$4:$AI$1563,13,FALSE))) ->  | J178: =IF(D178="","",VLOOKUP($D178,'Concawe Library'!$A$4:$AI$1563,14,FALSE)) ->  | K178: =IF(D178="","",LOG(VLOOKUP($D178,'Concawe Library'!$A$4:$AI$1563,28,FALSE))) ->  | L178: =IF(D178="","",VLOOKUP($D178,'Concawe Library'!$A$4:$AI$1563,31,FALSE)) ->  | M178: =IF(D178="","",VLOOKUP($D178,'Concawe Library'!$A$4:$AI$1563,32,FALSE)) ->  | N178: =IF(D178="","",VLOOKUP($D178,'Concawe Library'!$A$4:$AI$1563,33,FALSE)) ->  | O178: =IF(D178="","",VLOOKUP($D178,'Concawe Library'!$A$4:$AI$1563,34,FALSE)) ->  | P178: =IF(D178="","",VLOOKUP($D178,'Concawe Library'!$A$4:$AI$1563,35,FALSE)) ->  | Q178: =IF(D178="","",VLOOKUP($D178,'Concawe Library'!$A$4:$AI$1563,25,FALSE)) ->  | R178: =IF(D178="","",VLOOKUP($D178,'Concawe Library'!$A$4:$AI$1563,26,FALSE)) ->  | S178: =IF(D178="","",VLOOKUP($D178,'Concawe Library'!$A$4:$AI$1563,30,FALSE)) ->  | T178: =IF(D178="","",VLOOKUP($D178,'Concawe Library'!$A$4:$AI$1563,29,FALSE)) -> 
E179: =IF(D179="","",VLOOKUP($D179,'Concawe Library'!$A$4:$AI$1563,3,FALSE)) ->  | F179: =IF(D179="","",VLOOKUP($D179,'Concawe Library'!$A$4:$AI$1563,4,FALSE)) ->  | G179: =IF(D179="","",VLOOKUP($D179,'Concawe Library'!$A$4:$AI$1563,6,FALSE)) ->  | H179: =IF(D179="","",VLOOKUP($D179,'Concawe Library'!$A$4:$AI$1563,11,FALSE)) ->  | I179: =IF(D179="","",LOG(VLOOKUP($D179,'Concawe Library'!$A$4:$AI$1563,13,FALSE))) ->  | J179: =IF(D179="","",VLOOKUP($D179,'Concawe Library'!$A$4:$AI$1563,14,FALSE)) ->  | K179: =IF(D179="","",LOG(VLOOKUP($D179,'Concawe Library'!$A$4:$AI$1563,28,FALSE))) ->  | L179: =IF(D179="","",VLOOKUP($D179,'Concawe Library'!$A$4:$AI$1563,31,FALSE)) ->  | M179: =IF(D179="","",VLOOKUP($D179,'Concawe Library'!$A$4:$AI$1563,32,FALSE)) ->  | N179: =IF(D179="","",VLOOKUP($D179,'Concawe Library'!$A$4:$AI$1563,33,FALSE)) ->  | O179: =IF(D179="","",VLOOKUP($D179,'Concawe Library'!$A$4:$AI$1563,34,FALSE)) ->  | P179: =IF(D179="","",VLOOKUP($D179,'Concawe Library'!$A$4:$AI$1563,35,FALSE)) ->  | Q179: =IF(D179="","",VLOOKUP($D179,'Concawe Library'!$A$4:$AI$1563,25,FALSE)) ->  | R179: =IF(D179="","",VLOOKUP($D179,'Concawe Library'!$A$4:$AI$1563,26,FALSE)) ->  | S179: =IF(D179="","",VLOOKUP($D179,'Concawe Library'!$A$4:$AI$1563,30,FALSE)) ->  | T179: =IF(D179="","",VLOOKUP($D179,'Concawe Library'!$A$4:$AI$1563,29,FALSE)) -> 
E180: =IF(D180="","",VLOOKUP($D180,'Concawe Library'!$A$4:$AI$1563,3,FALSE)) ->  | F180: =IF(D180="","",VLOOKUP($D180,'Concawe Library'!$A$4:$AI$1563,4,FALSE)) ->  | G180: =IF(D180="","",VLOOKUP($D180,'Concawe Library'!$A$4:$AI$1563,6,FALSE)) ->  | H180: =IF(D180="","",VLOOKUP($D180,'Concawe Library'!$A$4:$AI$1563,11,FALSE)) ->  | I180: =IF(D180="","",LOG(VLOOKUP($D180,'Concawe Library'!$A$4:$AI$1563,13,FALSE))) ->  | J180: =IF(D180="","",VLOOKUP($D180,'Concawe Library'!$A$4:$AI$1563,14,FALSE)) ->  | K180: =IF(D180="","",LOG(VLOOKUP($D180,'Concawe Library'!$A$4:$AI$1563,28,FALSE))) ->  | L180: =IF(D180="","",VLOOKUP($D180,'Concawe Library'!$A$4:$AI$1563,31,FALSE)) ->  | M180: =IF(D180="","",VLOOKUP($D180,'Concawe Library'!$A$4:$AI$1563,32,FALSE)) ->  | N180: =IF(D180="","",VLOOKUP($D180,'Concawe Library'!$A$4:$AI$1563,33,FALSE)) ->  | O180: =IF(D180="","",VLOOKUP($D180,'Concawe Library'!$A$4:$AI$1563,34,FALSE)) ->  | P180: =IF(D180="","",VLOOKUP($D180,'Concawe Library'!$A$4:$AI$1563,35,FALSE)) ->  | Q180: =IF(D180="","",VLOOKUP($D180,'Concawe Library'!$A$4:$AI$1563,25,FALSE)) ->  | R180: =IF(D180="","",VLOOKUP($D180,'Concawe Library'!$A$4:$AI$1563,26,FALSE)) ->  | S180: =IF(D180="","",VLOOKUP($D180,'Concawe Library'!$A$4:$AI$1563,30,FALSE)) ->  | T180: =IF(D180="","",VLOOKUP($D180,'Concawe Library'!$A$4:$AI$1563,29,FALSE)) -> 
E181: =IF(D181="","",VLOOKUP($D181,'Concawe Library'!$A$4:$AI$1563,3,FALSE)) ->  | F181: =IF(D181="","",VLOOKUP($D181,'Concawe Library'!$A$4:$AI$1563,4,FALSE)) ->  | G181: =IF(D181="","",VLOOKUP($D181,'Concawe Library'!$A$4:$AI$1563,6,FALSE)) ->  | H181: =IF(D181="","",VLOOKUP($D181,'Concawe Library'!$A$4:$AI$1563,11,FALSE)) ->  | I181: =IF(D181="","",LOG(VLOOKUP($D181,'Concawe Library'!$A$4:$AI$1563,13,FALSE))) ->  | J181: =IF(D181="","",VLOOKUP($D181,'Concawe Library'!$A$4:$AI$1563,14,FALSE)) ->  | K181: =IF(D181="","",LOG(VLOOKUP($D181,'Concawe Library'!$A$4:$AI$1563,28,FALSE))) ->  | L181: =IF(D181="","",VLOOKUP($D181,'Concawe Library'!$A$4:$AI$1563,31,FALSE)) ->  | M181: =IF(D181="","",VLOOKUP($D181,'Concawe Library'!$A$4:$AI$1563,32,FALSE)) ->  | N181: =IF(D181="","",VLOOKUP($D181,'Concawe Library'!$A$4:$AI$1563,33,FALSE)) ->  | O181: =IF(D181="","",VLOOKUP($D181,'Concawe Library'!$A$4:$AI$1563,34,FALSE)) ->  | P181: =IF(D181="","",VLOOKUP($D181,'Concawe Library'!$A$4:$AI$1563,35,FALSE)) ->  | Q181: =IF(D181="","",VLOOKUP($D181,'Concawe Library'!$A$4:$AI$1563,25,FALSE)) ->  | R181: =IF(D181="","",VLOOKUP($D181,'Concawe Library'!$A$4:$AI$1563,26,FALSE)) ->  | S181: =IF(D181="","",VLOOKUP($D181,'Concawe Library'!$A$4:$AI$1563,30,FALSE)) ->  | T181: =IF(D181="","",VLOOKUP($D181,'Concawe Library'!$A$4:$AI$1563,29,FALSE)) -> 
E182: =IF(D182="","",VLOOKUP($D182,'Concawe Library'!$A$4:$AI$1563,3,FALSE)) ->  | F182: =IF(D182="","",VLOOKUP($D182,'Concawe Library'!$A$4:$AI$1563,4,FALSE)) ->  | G182: =IF(D182="","",VLOOKUP($D182,'Concawe Library'!$A$4:$AI$1563,6,FALSE)) ->  | H182: =IF(D182="","",VLOOKUP($D182,'Concawe Library'!$A$4:$AI$1563,11,FALSE)) ->  | I182: =IF(D182="","",LOG(VLOOKUP($D182,'Concawe Library'!$A$4:$AI$1563,13,FALSE))) ->  | J182: =IF(D182="","",VLOOKUP($D182,'Concawe Library'!$A$4:$AI$1563,14,FALSE)) ->  | K182: =IF(D182="","",LOG(VLOOKUP($D182,'Concawe Library'!$A$4:$AI$1563,28,FALSE))) ->  | L182: =IF(D182="","",VLOOKUP($D182,'Concawe Library'!$A$4:$AI$1563,31,FALSE)) ->  | M182: =IF(D182="","",VLOOKUP($D182,'Concawe Library'!$A$4:$AI$1563,32,FALSE)) ->  | N182: =IF(D182="","",VLOOKUP($D182,'Concawe Library'!$A$4:$AI$1563,33,FALSE)) ->  | O182: =IF(D182="","",VLOOKUP($D182,'Concawe Library'!$A$4:$AI$1563,34,FALSE)) ->  | P182: =IF(D182="","",VLOOKUP($D182,'Concawe Library'!$A$4:$AI$1563,35,FALSE)) ->  | Q182: =IF(D182="","",VLOOKUP($D182,'Concawe Library'!$A$4:$AI$1563,25,FALSE)) ->  | R182: =IF(D182="","",VLOOKUP($D182,'Concawe Library'!$A$4:$AI$1563,26,FALSE)) ->  | S182: =IF(D182="","",VLOOKUP($D182,'Concawe Library'!$A$4:$AI$1563,30,FALSE)) ->  | T182: =IF(D182="","",VLOOKUP($D182,'Concawe Library'!$A$4:$AI$1563,29,FALSE)) -> 
E183: =IF(D183="","",VLOOKUP($D183,'Concawe Library'!$A$4:$AI$1563,3,FALSE)) ->  | F183: =IF(D183="","",VLOOKUP($D183,'Concawe Library'!$A$4:$AI$1563,4,FALSE)) ->  | G183: =IF(D183="","",VLOOKUP($D183,'Concawe Library'!$A$4:$AI$1563,6,FALSE)) ->  | H183: =IF(D183="","",VLOOKUP($D183,'Concawe Library'!$A$4:$AI$1563,11,FALSE)) ->  | I183: =IF(D183="","",LOG(VLOOKUP($D183,'Concawe Library'!$A$4:$AI$1563,13,FALSE))) ->  | J183: =IF(D183="","",VLOOKUP($D183,'Concawe Library'!$A$4:$AI$1563,14,FALSE)) ->  | K183: =IF(D183="","",LOG(VLOOKUP($D183,'Concawe Library'!$A$4:$AI$1563,28,FALSE))) ->  | L183: =IF(D183="","",VLOOKUP($D183,'Concawe Library'!$A$4:$AI$1563,31,FALSE)) ->  | M183: =IF(D183="","",VLOOKUP($D183,'Concawe Library'!$A$4:$AI$1563,32,FALSE)) ->  | N183: =IF(D183="","",VLOOKUP($D183,'Concawe Library'!$A$4:$AI$1563,33,FALSE)) ->  | O183: =IF(D183="","",VLOOKUP($D183,'Concawe Library'!$A$4:$AI$1563,34,FALSE)) ->  | P183: =IF(D183="","",VLOOKUP($D183,'Concawe Library'!$A$4:$AI$1563,35,FALSE)) ->  | Q183: =IF(D183="","",VLOOKUP($D183,'Concawe Library'!$A$4:$AI$1563,25,FALSE)) ->  | R183: =IF(D183="","",VLOOKUP($D183,'Concawe Library'!$A$4:$AI$1563,26,FALSE)) ->  | S183: =IF(D183="","",VLOOKUP($D183,'Concawe Library'!$A$4:$AI$1563,30,FALSE)) ->  | T183: =IF(D183="","",VLOOKUP($D183,'Concawe Library'!$A$4:$AI$1563,29,FALSE)) -> 
E184: =IF(D184="","",VLOOKUP($D184,'Concawe Library'!$A$4:$AI$1563,3,FALSE)) ->  | F184: =IF(D184="","",VLOOKUP($D184,'Concawe Library'!$A$4:$AI$1563,4,FALSE)) ->  | G184: =IF(D184="","",VLOOKUP($D184,'Concawe Library'!$A$4:$AI$1563,6,FALSE)) ->  | H184: =IF(D184="","",VLOOKUP($D184,'Concawe Library'!$A$4:$AI$1563,11,FALSE)) ->  | I184: =IF(D184="","",LOG(VLOOKUP($D184,'Concawe Library'!$A$4:$AI$1563,13,FALSE))) ->  | J184: =IF(D184="","",VLOOKUP($D184,'Concawe Library'!$A$4:$AI$1563,14,FALSE)) ->  | K184: =IF(D184="","",LOG(VLOOKUP($D184,'Concawe Library'!$A$4:$AI$1563,28,FALSE))) ->  | L184: =IF(D184="","",VLOOKUP($D184,'Concawe Library'!$A$4:$AI$1563,31,FALSE)) ->  | M184: =IF(D184="","",VLOOKUP($D184,'Concawe Library'!$A$4:$AI$1563,32,FALSE)) ->  | N184: =IF(D184="","",VLOOKUP($D184,'Concawe Library'!$A$4:$AI$1563,33,FALSE)) ->  | O184: =IF(D184="","",VLOOKUP($D184,'Concawe Library'!$A$4:$AI$1563,34,FALSE)) ->  | P184: =IF(D184="","",VLOOKUP($D184,'Concawe Library'!$A$4:$AI$1563,35,FALSE)) ->  | Q184: =IF(D184="","",VLOOKUP($D184,'Concawe Library'!$A$4:$AI$1563,25,FALSE)) ->  | R184: =IF(D184="","",VLOOKUP($D184,'Concawe Library'!$A$4:$AI$1563,26,FALSE)) ->  | S184: =IF(D184="","",VLOOKUP($D184,'Concawe Library'!$A$4:$AI$1563,30,FALSE)) ->  | T184: =IF(D184="","",VLOOKUP($D184,'Concawe Library'!$A$4:$AI$1563,29,FALSE)) -> 
E185: =IF(D185="","",VLOOKUP($D185,'Concawe Library'!$A$4:$AI$1563,3,FALSE)) ->  | F185: =IF(D185="","",VLOOKUP($D185,'Concawe Library'!$A$4:$AI$1563,4,FALSE)) ->  | G185: =IF(D185="","",VLOOKUP($D185,'Concawe Library'!$A$4:$AI$1563,6,FALSE)) ->  | H185: =IF(D185="","",VLOOKUP($D185,'Concawe Library'!$A$4:$AI$1563,11,FALSE)) ->  | I185: =IF(D185="","",LOG(VLOOKUP($D185,'Concawe Library'!$A$4:$AI$1563,13,FALSE))) ->  | J185: =IF(D185="","",VLOOKUP($D185,'Concawe Library'!$A$4:$AI$1563,14,FALSE)) ->  | K185: =IF(D185="","",LOG(VLOOKUP($D185,'Concawe Library'!$A$4:$AI$1563,28,FALSE))) ->  | L185: =IF(D185="","",VLOOKUP($D185,'Concawe Library'!$A$4:$AI$1563,31,FALSE)) ->  | M185: =IF(D185="","",VLOOKUP($D185,'Concawe Library'!$A$4:$AI$1563,32,FALSE)) ->  | N185: =IF(D185="","",VLOOKUP($D185,'Concawe Library'!$A$4:$AI$1563,33,FALSE)) ->  | O185: =IF(D185="","",VLOOKUP($D185,'Concawe Library'!$A$4:$AI$1563,34,FALSE)) ->  | P185: =IF(D185="","",VLOOKUP($D185,'Concawe Library'!$A$4:$AI$1563,35,FALSE)) ->  | Q185: =IF(D185="","",VLOOKUP($D185,'Concawe Library'!$A$4:$AI$1563,25,FALSE)) ->  | R185: =IF(D185="","",VLOOKUP($D185,'Concawe Library'!$A$4:$AI$1563,26,FALSE)) ->  | S185: =IF(D185="","",VLOOKUP($D185,'Concawe Library'!$A$4:$AI$1563,30,FALSE)) ->  | T185: =IF(D185="","",VLOOKUP($D185,'Concawe Library'!$A$4:$AI$1563,29,FALSE)) -> 
